Workbook

Sheet Introduction
C4: Joint Monitoring Programme for Water Supply, Sanitation and Hygiene
C6: Estimates on household water, sanitation and hygiene by wealth quintile and sub-national region in
C7: =+Water!B5 -> Haiti
C9: Updated May 2021
C11: Follow the links below to find the following information:
C13: JMP Estimates
C14: WASH status and trends by wealth quintile (customized quintiles made without water and sanitation assets)
C15: Water
C16: Sanitation
C17: Hygiene
C19: Data inputs
C20: customized wealth quintiles and subnational data:
C21: =IF(INDIRECT(CONCATENATE("Water","!B105"))=0,"",INDIRECT(CONCATENATE("Water","!B105"))) -> DHS00
C22: =IF(INDIRECT(CONCATENATE("Water","!B106"))=0,"",INDIRECT(CONCATENATE("Water","!B106"))) -> DHS06
C23: =IF(INDIRECT(CONCATENATE("Water","!B107"))=0,"",INDIRECT(CONCATENATE("Water","!B107"))) -> DHS12
C24: =IF(INDIRECT(CONCATENATE("Water","!B108"))=0,"",INDIRECT(CONCATENATE("Water","!B108"))) -> DHS17
C25: =IF(INDIRECT(CONCATENATE("Water","!B109"))=0,"",INDIRECT(CONCATENATE("Water","!B109"))) -> 
C26: =IF(INDIRECT(CONCATENATE("Water","!B110"))=0,"",INDIRECT(CONCATENATE("Water","!B110"))) -> 
C27: =IF(INDIRECT(CONCATENATE("Water","!B111"))=0,"",INDIRECT(CONCATENATE("Water","!B111"))) -> 
C28: =IF(INDIRECT(CONCATENATE("Water","!B112"))=0,"",INDIRECT(CONCATENATE("Water","!B112"))) -> 
C29: =IF(INDIRECT(CONCATENATE("Water","!B113"))=0,"",INDIRECT(CONCATENATE("Water","!B113"))) -> 
C30: =IF(INDIRECT(CONCATENATE("Water","!B114"))=0,"",INDIRECT(CONCATENATE("Water","!B114"))) -> 
C31: =IF(INDIRECT(CONCATENATE("Water","!B115"))=0,"",INDIRECT(CONCATENATE("Water","!B115"))) -> 
C32: =IF(INDIRECT(CONCATENATE("Water","!B116"))=0,"",INDIRECT(CONCATENATE("Water","!B116"))) -> 
L55: =+IF(ISNUMBER(M48), "", "Insufficient data to estimate safely managed sanitation services at national level") -> Insufficient data to estimate safely managed sanitation services at national level

Sheet Water
A1: BGD
B4: Summary of trends in use of drinking water by wealth quintile (%)
B5: =IF(ISERROR(INDIRECT(CONCATENATE($B105,"!A2"))),"",INDIRECT(CONCATENATE($B105,"!A2"))) -> Haiti
B7: =B118 -> National use of drinking water sources, 2000–2020 | J7: =B218 -> Urban use of drinking water sources, 2000–2020 | R7: =B318 -> Rural use of drinking water sources, 2000–2020
B31: =IF(ISERROR(INDIRECT(CONCATENATE($B105,"!A2"))),"",INDIRECT(CONCATENATE($B105,"!A2"))) -> Haiti | F31: Poorest | J31: Poor | N31: Middle | R31: Rich | V31: Richest
F32: Basic | G32: Limited | H32: Unimproved | I32: Surface water | J32: Basic | K32: Limited | L32: Unimproved | M32: Surface water | N32: Basic | O32: Limited | P32: Unimproved | Q32: Surface water | R32: Basic | S32: Limited | T32: Unimproved | U32: Surface water | V32: Basic | W32: Limited | X32: Unimproved | Y32: Surface water
B33: NATIONAL | D33: Estimate | E33: =C99 -> 2000 | F33: =E99 -> 21.62737694 | G33: =F99 -> 9.589257366 | H33: 60.44556385 | I33: 8.337801846 | J33: =J99 -> 28.71432473 | K33: =K99 -> 9.82109128 | L33: 51.99817981 | M33: 9.466404185 | N33: =O99 -> 51.10325353 | O33: =P99 -> 9.174152942 | P33: 33.86721417 | Q33: 5.855379361 | R33: =T99 -> 81.9193107 | S33: =U99 -> 6.869536821 | T33: 10.2066518 | U33: 1.004500681 | V33: =Y99 -> 93.06910885 | W33: =Z99 -> 3.952672506 | X33: 2.978218647 | Y33: 0
E34: =C100 -> 2020 | F34: =E100 -> 29.17580343 | G34: 12.93611744 | H34: 56.61596185 | I34: 1.27211728 | J34: =J100 -> 43.55705788 | K34: 14.89771553 | L34: 40.8036128 | M34: 0.7416137928 | N34: =O100 -> 69.59656456 | O34: 12.49410719 | P34: 17.90932824 | Q34: 0 | R34: =T100 -> 88.85654953 | S34: 7.451275329 | T34: 3.672838387 | U34: 0.01933675514 | V34: =Y100 -> 94.38070304 | W34: 4.008376299 | X34: 1.551161592 | Y34: 0.05975906559
B36: URBAN | D36: Estimate | E36: =C199 -> 2000 | F36: =E199 -> 74.99188673 | G36: =F199 -> 10.29267086 | H36: 11.15796778 | I36: 3.557474624 | J36: =J199 -> 87.75154489 | K36: =K199 -> 7.99673882 | L36: 4.047271999 | M36: 0.2044442958 | N36: =O199 -> 92.37772638 | O36: =P199 -> 6.286383107 | P36: 1.335890513 | Q36: 0 | R36: =T199 -> 94.66626175 | S36: =U199 -> 3.64764544 | T36: 1.686092806 | U36: 0 | V36: =Y199 -> 96.62040645 | W36: =Z199 -> 2.974658877 | X36: 0.4049346765 | Y36: 0
E37: =C200 -> 2020 | F37: =E200 -> 78.90835606 | G37: 10.83020807 | H37: 10.26143587 | I37: 0 | J37: =J200 -> 86.44004033 | K37: 7.877222298 | L37: 5.562532068 | M37: 0.1202053053 | N37: =O200 -> 90.61373448 | O37: 6.166341953 | P37: 3.219923567 | Q37: 0 | R37: =T200 -> 94.8327996 | S37: 3.654062414 | T37: 1.393431743 | U37: 0.1197062415 | V37: =Y200 -> 95.70091831 | W37: 2.946350534 | X37: 1.352731153 | Y37: 0
B39: RURAL | D39: Estimate | E39: =C299 -> 2000 | F39: =E299 -> 29.24893449 | G39: =F299 -> 14.34025962 | H39: 43.48267058 | I39: 12.92813531 | J39: =J299 -> 29.23437317 | K39: =K299 -> 11.35665161 | L39: 49.48717907 | M39: 9.921796154 | N39: =O299 -> 34.03046207 | O39: =P299 -> 13.16136554 | P39: 42.08810109 | Q39: 10.72007129 | R39: =T299 -> 45.92731009 | S39: =U299 -> 10.44172569 | T39: 34.85452606 | U39: 8.776438163 | V39: =Y299 -> 68.26359192 | W39: =Z299 -> 7.883152832 | X39: 20.31620775 | Y39: 3.537047496
E40: =C300 -> 2020 | F40: =E300 -> 21.64673419 | G40: 10.61302894 | H40: 67.62084243 | I40: 0.1193944373 | J40: =J300 -> 30.26726351 | K40: 11.75789762 | L40: 55.91357069 | M40: 2.061268175 | N40: =O300 -> 34.78759969 | O40: 13.45419039 | P40: 50.54387659 | Q40: 1.214333324 | R40: =T300 -> 53.23541843 | S40: 12.10324827 | T40: 34.56847803 | U40: 0.09285527105 | V40: =Y300 -> 81.12396141 | W40: 9.368282098 | X40: 9.507756497 | Y40: 0
A97: NATIONAL | D97: Poorest | I97: Poor | N97: Middle | S97: Rich | X97: Richest
D98: Improved | E98: Basic | F98: Limited | G98: Unimproved | H98: Surface water | I98: Improved | J98: Basic | K98: Limited | L98: Unimproved | M98: Surface water | N98: Improved | O98: Basic | P98: Limited | Q98: Unimproved | R98: Surface water | S98: Improved | T98: Basic | U98: Limited | V98: Unimproved | W98: Surface water | X98: Improved | Y98: Basic | Z98: Limited | AA98: Unimproved | AB98: Surface water
A99: Forecast period: | C99: 2000 | D99: =IF((D101+H101)>100,D101*100/(D101+H101),D101) -> 31.2166343 | E99: =D99*AVERAGEIF(E105:E116,">0")/100 -> 21.62737694 | F99: =D99*(100-AVERAGEIF(E105:E116,">0"))/100 -> 9.589257366 | G99: =100-(E99+F99+H99) -> 60.44556385 | H99: =IF((D101+H101)>100,H101*100/(D101+H101),H101) -> 8.337801846 | I99: =IF((I101+M101)>100,I101*100/(I101+M101),I101) -> 38.53541601 | J99: =I99*AVERAGEIF(J105:J116,">0")/100 -> 28.71432473 | K99: =I99*(100-AVERAGEIF(J105:J116,">0"))/100 -> 9.82109128 | L99: =100-(J99+K99+M99) -> 51.99817981 | M99: =IF((I101+M101)>100,M101*100/(I101+M101),M101) -> 9.466404185 | N99: =IF((N101+R101)>100,N101*100/(N101+R101),N101) -> 60.27740647 | O99: =N99*AVERAGEIF(O105:O116,">0")/100 -> 51.10325353 | P99: =N99*(100-AVERAGEIF(O105:O116,">0"))/100 -> 9.174152942 | Q99: =100-(O99+P99+R99) -> 33.86721417 | R99: =IF((N101+R101)>100,R101*100/(N101+R101),R101) -> 5.855379361 | S99: =IF((S101+W101)>100,S101*100/(S101+W101),S101) -> 88.78884752 | T99: =S99*AVERAGEIF(T105:T116,">0")/100 -> 81.9193107 | U99: =S99*(100-AVERAGEIF(T105:T116,">0"))/100 -> 6.869536821 | V99: =100-(T99+U99+W99) -> 10.2066518 | W99: =IF((S101+W101)>100,W101*100/(S101+W101),W101) -> 1.004500681 | X99: =IF((X101+AB101)>100,X101*100/(X101+AB101),X101) -> 97.02178135 | Y99: =X99*AVERAGEIF(Y105:Y116,">0")/100 -> 93.06910885 | Z99: =X99*(100-AVERAGEIF(Y105:Y116,">0"))/100 -> 3.952672506 | AA99: =100-(Y99+Z99+AB99) -> 2.978218647 | AB99: =IF((X101+AB101)>100,AB101*100/(X101+AB101),AB101) -> 0
C100: 2020 | D100: =IF((D102+H102)>100,D102*100/(D102+H102),D102) -> 42.11192087 | E100: =D100*AVERAGEIF(E105:E116,">0")/100 -> 29.17580343 | F100: =D100*(100-AVERAGEIF(E105:E116,">0"))/100 -> 12.93611744 | G100: =100-(E100+F100+H100) -> 56.61596185 | H100: =IF((D102+H102)>100,H102*100/(D102+H102),H102) -> 1.27211728 | I100: =IF((I102+M102)>100,I102*100/(I102+M102),I102) -> 58.4547734 | J100: =I100*AVERAGEIF(J105:J116,">0")/100 -> 43.55705788 | K100: =I100*(100-AVERAGEIF(J105:J116,">0"))/100 -> 14.89771553 | L100: =100-(J100+K100+M100) -> 40.8036128 | M100: =IF((I102+M102)>100,M102*100/(I102+M102),M102) -> 0.7416137928 | N100: =IF((N102+R102)>100,N102*100/(N102+R102),N102) -> 82.09067176 | O100: =N100*AVERAGEIF(O105:O116,">0")/100 -> 69.59656456 | P100: =N100*(100-AVERAGEIF(O105:O116,">0"))/100 -> 12.49410719 | Q100: =100-(O100+P100+R100) -> 17.90932824 | R100: =IF((N102+R102)>100,R102*100/(N102+R102),R102) -> 0 | S100: =IF((S102+W102)>100,S102*100/(S102+W102),S102) -> 96.30782486 | T100: =S100*AVERAGEIF(T105:T116,">0")/100 -> 88.85654953 | U100: =S100*(100-AVERAGEIF(T105:T116,">0"))/100 -> 7.451275329 | V100: =100-(T100+U100+W100) -> 3.672838387 | W100: =IF((S102+W102)>100,W102*100/(S102+W102),W102) -> 0.01933675514 | X100: =IF((X102+AB102)>100,X102*100/(X102+AB102),X102) -> 98.38907934 | Y100: =X100*AVERAGEIF(Y105:Y116,">0")/100 -> 94.38070304 | Z100: =X100*(100-AVERAGEIF(Y105:Y116,">0"))/100 -> 4.008376299 | AA100: =100-(Y100+Z100+AB100) -> 1.551161592 | AB100: =IF((X102+AB102)>100,AB102*100/(X102+AB102),AB102) -> 0.05975906559
A101: Regression period: | C101: =MinRegYear(C99,C105:C116) -> 2004 | D101: =IF(MAX(C105:C116)-MIN(C105:C116)<5,AVERAGEIF(C105:C116,">0",D105:D116), IF(FORECAST($C101,D$105:D$116,$C$105:$C$116)<0,0, IF(FORECAST($C101,D$105:D$116,$C$105:$C$116)>100,100, FORECAST($C101,D$105:D$116,$C$105:$C$116)))) -> 31.2166343 | H101: =IF(MAX(C105:C116)-MIN(C105:C116)<5,AVERAGEIF(C105:C116,">0",H105:H116), IF(FORECAST($C101,H$105:H$116,$C$105:$C$116)<0,0, IF(FORECAST($C101,H$105:H$116,$C$105:$C$116)>100,100, FORECAST($C101,H$105:H$116,$C$105:$C$116)))) -> 8.337801846 | I101: =IF(MAX(C105:C116)-MIN(C105:C116)<5,AVERAGEIF(C105:C116,">0",I105:I116), IF(FORECAST($C101,I$105:I$116,$C$105:$C$116)<0,0, IF(FORECAST($C101,I$105:I$116,$C$105:$C$116)>100,100, FORECAST($C101,I$105:I$116,$C$105:$C$116)))) -> 38.53541601 | M101: =IF(MAX(C105:C116)-MIN(C105:C116)<5,AVERAGEIF(C105:C116,">0",M105:M116), IF(FORECAST($C101,M$105:M$116,$C$105:$C$116)<0,0, IF(FORECAST($C101,M$105:M$116,$C$105:$C$116)>100,100, FORECAST($C101,M$105:M$116,$C$105:$C$116)))) -> 9.466404185 | N101: =IF(MAX(C105:C116)-MIN(C105:C116)<5,AVERAGEIF(C105:C116,">0",N105:N116), IF(FORECAST($C101,N$105:N$116,$C$105:$C$116)<0,0, IF(FORECAST($C101,N$105:N$116,$C$105:$C$116)>100,100, FORECAST($C101,N$105:N$116,$C$105:$C$116)))) -> 60.27740647 | R101: =IF(MAX(C105:C116)-MIN(C105:C116)<5,AVERAGEIF(C105:C116,">0",R105:R116), IF(FORECAST($C101,R$105:R$116,$C$105:$C$116)<0,0, IF(FORECAST($C101,R$105:R$116,$C$105:$C$116)>100,100, FORECAST($C101,R$105:R$116,$C$105:$C$116)))) -> 5.855379361 | S101: =IF(MAX(C105:C116)-MIN(C105:C116)<5,AVERAGEIF(C105:C116,">0",S105:S116), IF(FORECAST($C101,S$105:S$116,$C$105:$C$116)<0,0, IF(FORECAST($C101,S$105:S$116,$C$105:$C$116)>100,100, FORECAST($C101,S$105:S$116,$C$105:$C$116)))) -> 88.78884752 | W101: =IF(MAX(C105:C116)-MIN(C105:C116)<5,AVERAGEIF(C105:C116,">0",W105:W116), IF(FORECAST($C101,W$105:W$116,$C$105:$C$116)<0,0, IF(FORECAST($C101,W$105:W$116,$C$105:$C$116)>100,100, FORECAST($C101,W$105:W$116,$C$105:$C$116)))) -> 1.004500681 | X101: =IF(MAX(C105:C116)-MIN(C105:C116)<5,AVERAGEIF(C105:C116,">0",X105:X116), IF(FORECAST($C101,X$105:X$116,$C$105:$C$116)<0,0, IF(FORECAST($C101,X$105:X$116,$C$105:$C$116)>100,100, FORECAST($C101,X$105:X$116,$C$105:$C$116)))) -> 97.02178135 | AB101: =IF(MAX(C105:C116)-MIN(C105:C116)<5,AVERAGEIF(C105:C116,">0",AB105:AB116), IF(FORECAST($C101,AB$105:AB$116,$C$105:$C$116)<0,0, IF(FORECAST($C101,AB$105:AB$116,$C$105:$C$116)>100,100, FORECAST($C101,AB$105:AB$116,$C$105:$C$116)))) -> 0
C102: =MaxRegYear(C100,C105:C116) -> 2019 | D102: =IF(MAX(C105:C116)-MIN(C105:C116)<5,AVERAGEIF(C105:C116,">0",D105:D116), IF(FORECAST($C102,D$105:D$116,$C$105:$C$116)<0,0, IF(FORECAST($C102,D$105:D$116,$C$105:$C$116)>100,100, FORECAST($C102,D$105:D$116,$C$105:$C$116)))) -> 42.11192087 | H102: =IF(MAX(C105:C116)-MIN(C105:C116)<5,AVERAGEIF(C105:C116,">0",H105:H116), IF(FORECAST($C102,H$105:H$116,$C$105:$C$116)<0,0, IF(FORECAST($C102,H$105:H$116,$C$105:$C$116)>100,100, FORECAST($C102,H$105:H$116,$C$105:$C$116)))) -> 1.27211728 | I102: =IF(MAX(C105:C116)-MIN(C105:C116)<5,AVERAGEIF(C105:C116,">0",I105:I116), IF(FORECAST($C102,I$105:I$116,$C$105:$C$116)<0,0, IF(FORECAST($C102,I$105:I$116,$C$105:$C$116)>100,100, FORECAST($C102,I$105:I$116,$C$105:$C$116)))) -> 58.4547734 | M102: =IF(MAX(C105:C116)-MIN(C105:C116)<5,AVERAGEIF(C105:C116,">0",M105:M116), IF(FORECAST($C102,M$105:M$116,$C$105:$C$116)<0,0, IF(FORECAST($C102,M$105:M$116,$C$105:$C$116)>100,100, FORECAST($C102,M$105:M$116,$C$105:$C$116)))) -> 0.7416137928 | N102: =IF(MAX(C105:C116)-MIN(C105:C116)<5,AVERAGEIF(C105:C116,">0",N105:N116), IF(FORECAST($C102,N$105:N$116,$C$105:$C$116)<0,0, IF(FORECAST($C102,N$105:N$116,$C$105:$C$116)>100,100, FORECAST($C102,N$105:N$116,$C$105:$C$116)))) -> 82.09067176 | R102: =IF(MAX(C105:C116)-MIN(C105:C116)<5,AVERAGEIF(C105:C116,">0",R105:R116), IF(FORECAST($C102,R$105:R$116,$C$105:$C$116)<0,0, IF(FORECAST($C102,R$105:R$116,$C$105:$C$116)>100,100, FORECAST($C102,R$105:R$116,$C$105:$C$116)))) -> 0 | S102: =IF(MAX(C105:C116)-MIN(C105:C116)<5,AVERAGEIF(C105:C116,">0",S105:S116), IF(FORECAST($C102,S$105:S$116,$C$105:$C$116)<0,0, IF(FORECAST($C102,S$105:S$116,$C$105:$C$116)>100,100, FORECAST($C102,S$105:S$116,$C$105:$C$116)))) -> 96.30782486 | W102: =IF(MAX(C105:C116)-MIN(C105:C116)<5,AVERAGEIF(C105:C116,">0",W105:W116), IF(FORECAST($C102,W$105:W$116,$C$105:$C$116)<0,0, IF(FORECAST($C102,W$105:W$116,$C$105:$C$116)>100,100, FORECAST($C102,W$105:W$116,$C$105:$C$116)))) -> 0.01933675514 | X102: =IF(MAX(C105:C116)-MIN(C105:C116)<5,AVERAGEIF(C105:C116,">0",X105:X116), IF(FORECAST($C102,X$105:X$116,$C$105:$C$116)<0,0, IF(FORECAST($C102,X$105:X$116,$C$105:$C$116)>100,100, FORECAST($C102,X$105:X$116,$C$105:$C$116)))) -> 98.38907934 | AB102: =IF(MAX(C105:C116)-MIN(C105:C116)<5,AVERAGEIF(C105:C116,">0",AB105:AB116), IF(FORECAST($C102,AB$105:AB$116,$C$105:$C$116)<0,0, IF(FORECAST($C102,AB$105:AB$116,$C$105:$C$116)>100,100, FORECAST($C102,AB$105:AB$116,$C$105:$C$116)))) -> 0.05975906559
B104: Survey | C104: Year | D104: Improved | E104: % Improved < = 30min | H104: Surface water | I104: Improved | J104: % Improved < = 30min | M104: Surface water | N104: Improved | O104: % Improved < = 30min | R104: Surface water | S104: Improved | T104: % Improved < = 30min | W104: Surface water | X104: Improved | Y104: % Improved < = 30min | AB104: Surface water
B105: DHS00 | D105: =IF(ISERROR(INDIRECT(CONCATENATE($B105,"!C16"))),"",INDIRECT(CONCATENATE($B105,"!C16"))) -> 48.36320975 | E105: =IF(ISERROR(INDIRECT(CONCATENATE($B105,"!C23"))),"",INDIRECT(CONCATENATE($B105,"!C23"))) -> N/A | H105: =IF(ISERROR(INDIRECT(CONCATENATE($B105,"!C21"))),"",INDIRECT(CONCATENATE($B105,"!C21"))) -> 10.2047894 | I105: =IF(ISERROR(INDIRECT(CONCATENATE($B105,"!D16"))),"",INDIRECT(CONCATENATE($B105,"!D16"))) -> 51.59841525 | J105: =IF(ISERROR(INDIRECT(CONCATENATE($B105,"!D23"))),"",INDIRECT(CONCATENATE($B105,"!D23"))) -> N/A | M105: =IF(ISERROR(INDIRECT(CONCATENATE($B105,"!D21"))),"",INDIRECT(CONCATENATE($B105,"!D21"))) -> 10.25868056 | N105: =IF(ISERROR(INDIRECT(CONCATENATE($B105,"!E16"))),"",INDIRECT(CONCATENATE($B105,"!E16"))) -> 65.58509509 | O105: =IF(ISERROR(INDIRECT(CONCATENATE($B105,"!E23"))),"",INDIRECT(CONCATENATE($B105,"!E23"))) -> N/A | R105: =IF(ISERROR(INDIRECT(CONCATENATE($B105,"!E21"))),"",INDIRECT(CONCATENATE($B105,"!E21"))) -> 7.400289724 | S105: =IF(ISERROR(INDIRECT(CONCATENATE($B105,"!F16"))),"",INDIRECT(CONCATENATE($B105,"!F16"))) -> 93.89237804 | T105: =IF(ISERROR(INDIRECT(CONCATENATE($B105,"!F23"))),"",INDIRECT(CONCATENATE($B105,"!F23"))) -> N/A | W105: =IF(ISERROR(INDIRECT(CONCATENATE($B105,"!F21"))),"",INDIRECT(CONCATENATE($B105,"!F21"))) -> 0.831131683 | X105: =IF(ISERROR(INDIRECT(CONCATENATE($B105,"!G16"))),"",INDIRECT(CONCATENATE($B105,"!G16"))) -> 99.87049338 | Y105: =IF(ISERROR(INDIRECT(CONCATENATE($B105,"!G23"))),"",INDIRECT(CONCATENATE($B105,"!G23"))) -> N/A | AB105: =IF(ISERROR(INDIRECT(CONCATENATE($B105,"!G221"))),"",INDIRECT(CONCATENATE($B105,"!G21"))) -> 0
B106: DHS06 | C106: 2006 | D106: 33.5 | E106: 77.4 | H106: 8.2 | I106: 44.4 | J106: 80.4 | M106: 8.9 | N106: 63.6 | O106: 85.9 | R106: 5.4 | S106: 89.7 | T106: 92.2 | W106: 1 | X106: 97.5 | Y106: 96.5 | AB106: 0
B107: DHS12 | C107: 2012 | D107: 35.2 | E107: 62.7 | H107: 2.8 | I107: 42.1 | J107: 73.6 | M107: 3.5 | N107: 71 | O107: 83.7 | R107: 1.4 | S107: 93 | T107: 91.1 | W107: 0.2 | X107: 97.1 | Y107: 94.7 | AB107: 0
B108: DHS17 | C108: 2017 | D108: 41.65600898 | E108: 67.74473489 | H108: 3.17935587 | I108: 59.64926269 | J108: 69.5423491 | M108: 2.62120062 | N108: 79.67922618 | O108: 84.74034004 | R108: 0.6438863908 | S108: 95.19564115 | T108: 93.48919027 | W108: 0.3029173564 | X108: 98.56186764 | Y108: 96.57798413 | AB108: 0.06110196594
D111: =IF(ISERROR(INDIRECT(CONCATENATE($B111,"!C16"))),"",INDIRECT(CONCATENATE($B111,"!C16"))) ->  | E111: =IF(ISERROR(INDIRECT(CONCATENATE($B111,"!C23"))),"",INDIRECT(CONCATENATE($B111,"!C23"))) ->  | H111: =IF(ISERROR(INDIRECT(CONCATENATE($B111,"!C21"))),"",INDIRECT(CONCATENATE($B111,"!C21"))) ->  | I111: =IF(ISERROR(INDIRECT(CONCATENATE($B111,"!D16"))),"",INDIRECT(CONCATENATE($B111,"!D16"))) ->  | J111: =IF(ISERROR(INDIRECT(CONCATENATE($B111,"!D23"))),"",INDIRECT(CONCATENATE($B111,"!D23"))) ->  | M111: =IF(ISERROR(INDIRECT(CONCATENATE($B111,"!D21"))),"",INDIRECT(CONCATENATE($B111,"!D21"))) ->  | N111: =IF(ISERROR(INDIRECT(CONCATENATE($B111,"!E16"))),"",INDIRECT(CONCATENATE($B111,"!E16"))) ->  | O111: =IF(ISERROR(INDIRECT(CONCATENATE($B111,"!E23"))),"",INDIRECT(CONCATENATE($B111,"!E23"))) ->  | R111: =IF(ISERROR(INDIRECT(CONCATENATE($B111,"!E21"))),"",INDIRECT(CONCATENATE($B111,"!E21"))) ->  | S111: =IF(ISERROR(INDIRECT(CONCATENATE($B111,"!F16"))),"",INDIRECT(CONCATENATE($B111,"!F16"))) ->  | T111: =IF(ISERROR(INDIRECT(CONCATENATE($B111,"!F23"))),"",INDIRECT(CONCATENATE($B111,"!F23"))) ->  | W111: =IF(ISERROR(INDIRECT(CONCATENATE($B111,"!F21"))),"",INDIRECT(CONCATENATE($B111,"!F21"))) ->  | X111: =IF(ISERROR(INDIRECT(CONCATENATE($B111,"!G16"))),"",INDIRECT(CONCATENATE($B111,"!G16"))) ->  | Y111: =IF(ISERROR(INDIRECT(CONCATENATE($B111,"!G23"))),"",INDIRECT(CONCATENATE($B111,"!G23"))) ->  | AB111: =IF(ISERROR(INDIRECT(CONCATENATE($B111,"!G221"))),"",INDIRECT(CONCATENATE($B111,"!G21"))) -> 
D112: =IF(ISERROR(INDIRECT(CONCATENATE($B112,"!C16"))),"",INDIRECT(CONCATENATE($B112,"!C16"))) ->  | E112: =IF(ISERROR(INDIRECT(CONCATENATE($B112,"!C23"))),"",INDIRECT(CONCATENATE($B112,"!C23"))) ->  | H112: =IF(ISERROR(INDIRECT(CONCATENATE($B112,"!C21"))),"",INDIRECT(CONCATENATE($B112,"!C21"))) ->  | I112: =IF(ISERROR(INDIRECT(CONCATENATE($B112,"!D16"))),"",INDIRECT(CONCATENATE($B112,"!D16"))) ->  | J112: =IF(ISERROR(INDIRECT(CONCATENATE($B112,"!D23"))),"",INDIRECT(CONCATENATE($B112,"!D23"))) ->  | M112: =IF(ISERROR(INDIRECT(CONCATENATE($B112,"!D21"))),"",INDIRECT(CONCATENATE($B112,"!D21"))) ->  | N112: =IF(ISERROR(INDIRECT(CONCATENATE($B112,"!E16"))),"",INDIRECT(CONCATENATE($B112,"!E16"))) ->  | O112: =IF(ISERROR(INDIRECT(CONCATENATE($B112,"!E23"))),"",INDIRECT(CONCATENATE($B112,"!E23"))) ->  | R112: =IF(ISERROR(INDIRECT(CONCATENATE($B112,"!E21"))),"",INDIRECT(CONCATENATE($B112,"!E21"))) ->  | S112: =IF(ISERROR(INDIRECT(CONCATENATE($B112,"!F16"))),"",INDIRECT(CONCATENATE($B112,"!F16"))) ->  | T112: =IF(ISERROR(INDIRECT(CONCATENATE($B112,"!F23"))),"",INDIRECT(CONCATENATE($B112,"!F23"))) ->  | W112: =IF(ISERROR(INDIRECT(CONCATENATE($B112,"!F21"))),"",INDIRECT(CONCATENATE($B112,"!F21"))) ->  | X112: =IF(ISERROR(INDIRECT(CONCATENATE($B112,"!G16"))),"",INDIRECT(CONCATENATE($B112,"!G16"))) ->  | Y112: =IF(ISERROR(INDIRECT(CONCATENATE($B112,"!G23"))),"",INDIRECT(CONCATENATE($B112,"!G23"))) ->  | AB112: =IF(ISERROR(INDIRECT(CONCATENATE($B112,"!G221"))),"",INDIRECT(CONCATENATE($B112,"!G21"))) -> 
B118: =CONCATENATE("National use of drinking water sources, ",C99,"–",C100) -> National use of drinking water sources, 2000–2020 | S118: Data points used for regression
E153: =IF(ISERROR(INDIRECT(CONCATENATE($B153,"!M18"))),"",INDIRECT(CONCATENATE($B153,"!M18"))) ->  | F153: =IF(ISERROR(INDIRECT(CONCATENATE($B153,"!M19"))),"",INDIRECT(CONCATENATE($B153,"!M19"))) ->  | G153: =IF(ISERROR(INDIRECT(CONCATENATE($B153,"!M20"))),"",INDIRECT(CONCATENATE($B153,"!M20"))) ->  | H153: =IF(ISERROR(INDIRECT(CONCATENATE($B153,"!M21"))),"",INDIRECT(CONCATENATE($B153,"!M21"))) ->  | J153: =IF(ISERROR(INDIRECT(CONCATENATE($B153,"!N18"))),"",INDIRECT(CONCATENATE($B153,"!N18"))) ->  | K153: =IF(ISERROR(INDIRECT(CONCATENATE($B153,"!N19"))),"",INDIRECT(CONCATENATE($B153,"!N19"))) ->  | L153: =IF(ISERROR(INDIRECT(CONCATENATE($B153,"!N20"))),"",INDIRECT(CONCATENATE($B153,"!N20"))) ->  | M153: =IF(ISERROR(INDIRECT(CONCATENATE($B153,"!N21"))),"",INDIRECT(CONCATENATE($B153,"!N21"))) ->  | O153: =IF(ISERROR(INDIRECT(CONCATENATE($B153,"!O18"))),"",INDIRECT(CONCATENATE($B153,"!O18"))) ->  | P153: =IF(ISERROR(INDIRECT(CONCATENATE($B153,"!O19"))),"",INDIRECT(CONCATENATE($B153,"!O19"))) ->  | Q153: =IF(ISERROR(INDIRECT(CONCATENATE($B153,"!O20"))),"",INDIRECT(CONCATENATE($B153,"!O20"))) ->  | R153: =IF(ISERROR(INDIRECT(CONCATENATE($B153,"!O21"))),"",INDIRECT(CONCATENATE($B153,"!O21"))) ->  | T153: =IF(ISERROR(INDIRECT(CONCATENATE($B153,"!P18"))),"",INDIRECT(CONCATENATE($B153,"!P18"))) ->  | U153: =IF(ISERROR(INDIRECT(CONCATENATE($B153,"!P19"))),"",INDIRECT(CONCATENATE($B153,"!P19"))) ->  | V153: =IF(ISERROR(INDIRECT(CONCATENATE($B153,"!P20"))),"",INDIRECT(CONCATENATE($B153,"!P20"))) ->  | W153: =IF(ISERROR(INDIRECT(CONCATENATE($B153,"!P21"))),"",INDIRECT(CONCATENATE($B153,"!P21"))) ->  | Y153: =IF(ISERROR(INDIRECT(CONCATENATE($B153,"!Q18"))),"",INDIRECT(CONCATENATE($B153,"!Q18"))) ->  | Z153: =IF(ISERROR(INDIRECT(CONCATENATE($B153,"!Q19"))),"",INDIRECT(CONCATENATE($B153,"!Q19"))) ->  | AA153: =IF(ISERROR(INDIRECT(CONCATENATE($B153,"!Q20"))),"",INDIRECT(CONCATENATE($B153,"!Q20"))) ->  | AB153: =IF(ISERROR(INDIRECT(CONCATENATE($B153,"!Q21"))),"",INDIRECT(CONCATENATE($B153,"!Q1"))) -> 
A197: URBAN | D197: Poorest | I197: Poor | N197: Middle | S197: Rich | X197: Richest
D198: Improved | E198: Basic | F198: Limited | G198: Unimproved | H198: Surface water | I198: Improved | J198: Basic | K198: Limited | L198: Unimproved | M198: Surface water | N198: Improved | O198: Basic | P198: Limited | Q198: Unimproved | R198: Surface water | S198: Improved | T198: Basic | U198: Limited | V198: Unimproved | W198: Surface water | X198: Improved | Y198: Basic | Z198: Limited | AA198: Unimproved | AB198: Surface water
A199: Forecast period: | C199: 2000 | D199: =IF((D201+H201)>100,D201*100/(D201+H201),D201) -> 85.2845576 | E199: =D199*AVERAGEIF(E205:E216,">0")/100 -> 74.99188673 | F199: =D199*(100-AVERAGEIF(E205:E216,">0"))/100 -> 10.29267086 | G199: =100-(E199+F199+H199) -> 11.15796778 | H199: =IF((D201+H201)>100,H201*100/(D201+H201),H201) -> 3.557474624 | I199: =IF((I201+M201)>100,I201*100/(I201+M201),I201) -> 95.74828371 | J199: =I199*AVERAGEIF(J205:J216,">0")/100 -> 87.75154489 | K199: =I199*(100-AVERAGEIF(J205:J216,">0"))/100 -> 7.99673882 | L199: =100-(J199+K199+M199) -> 4.047271999 | M199: =IF((I201+M201)>100,M201*100/(I201+M201),M201) -> 0.2044442958 | N199: =IF((N201+R201)>100,N201*100/(N201+R201),N201) -> 98.66410949 | O199: =N199*AVERAGEIF(O205:O216,">0")/100 -> 92.37772638 | P199: =N199*(100-AVERAGEIF(O205:O216,">0"))/100 -> 6.286383107 | Q199: =100-(O199+P199+R199) -> 1.335890513 | R199: =IF((N201+R201)>100,R201*100/(N201+R201),R201) -> 0 | S199: =IF((S201+W201)>100,S201*100/(S201+W201),S201) -> 98.31390719 | T199: =S199*AVERAGEIF(T205:T216,">0")/100 -> 94.66626175 | U199: =S199*(100-AVERAGEIF(T205:T216,">0"))/100 -> 3.64764544 | V199: =100-(T199+U199+W199) -> 1.686092806 | W199: =IF((S201+W201)>100,W201*100/(S201+W201),W201) -> 0 | X199: =IF((X201+AB201)>100,X201*100/(X201+AB201),X201) -> 99.59506532 | Y199: =X199*AVERAGEIF(Y205:Y216,">0")/100 -> 96.62040645 | Z199: =X199*(100-AVERAGEIF(Y205:Y216,">0"))/100 -> 2.974658877 | AA199: =100-(Y199+Z199+AB199) -> 0.4049346765 | AB199: =IF((X201+AB201)>100,AB201*100/(X201+AB201),AB201) -> 0
C200: 2020 | D200: =IF((D202+H202)>100,D202*100/(D202+H202),D202) -> 89.73856413 | E200: =D200*AVERAGEIF(E205:E216,">0")/100 -> 78.90835606 | F200: =D200*(100-AVERAGEIF(E205:E216,">0"))/100 -> 10.83020807 | G200: =100-(E200+F200+H200) -> 10.26143587 | H200: =IF((D202+H202)>100,H202*100/(D202+H202),H202) -> 0 | I200: =IF((I202+M202)>100,I202*100/(I202+M202),I202) -> 94.31726263 | J200: =I200*AVERAGEIF(J205:J216,">0")/100 -> 86.44004033 | K200: =I200*(100-AVERAGEIF(J205:J216,">0"))/100 -> 7.877222298 | L200: =100-(J200+K200+M200) -> 5.562532068 | M200: =IF((I202+M202)>100,M202*100/(I202+M202),M202) -> 0.1202053053 | N200: =IF((N202+R202)>100,N202*100/(N202+R202),N202) -> 96.78007643 | O200: =N200*AVERAGEIF(O205:O216,">0")/100 -> 90.61373448 | P200: =N200*(100-AVERAGEIF(O205:O216,">0"))/100 -> 6.166341953 | Q200: =100-(O200+P200+R200) -> 3.219923567 | R200: =IF((N202+R202)>100,R202*100/(N202+R202),R202) -> 0 | S200: =IF((S202+W202)>100,S202*100/(S202+W202),S202) -> 98.48686202 | T200: =S200*AVERAGEIF(T205:T216,">0")/100 -> 94.8327996 | U200: =S200*(100-AVERAGEIF(T205:T216,">0"))/100 -> 3.654062414 | V200: =100-(T200+U200+W200) -> 1.393431743 | W200: =IF((S202+W202)>100,W202*100/(S202+W202),W202) -> 0.1197062415 | X200: =IF((X202+AB202)>100,X202*100/(X202+AB202),X202) -> 98.64726885 | Y200: =X200*AVERAGEIF(Y205:Y216,">0")/100 -> 95.70091831 | Z200: =X200*(100-AVERAGEIF(Y205:Y216,">0"))/100 -> 2.946350534 | AA200: =100-(Y200+Z200+AB200) -> 1.352731153 | AB200: =IF((X202+AB202)>100,AB202*100/(X202+AB202),AB202) -> 0
A201: Regression period: | C201: =MinRegYear(C199,C205:C216) -> 2000 | D201: =IF(MAX(C205:C216)-MIN(C205:C216)<5,AVERAGEIF(C205:C216,">0",D205:D216), IF(FORECAST($C201,D$205:D$216,$C$205:$C$216)<0,0, IF(FORECAST($C201,D$205:D$216,$C$205:$C$216)>100,100, FORECAST($C201,D$205:D$216,$C$205:$C$216)))) -> 85.2845576 | H201: =IF(MAX(C205:C216)-MIN(C205:C216)<5,AVERAGEIF(C205:C216,">0",H205:H216), IF(FORECAST($C201,H$205:H$216,$C$205:$C$216)<0,0, IF(FORECAST($C201,H$205:H$216,$C$205:$C$216)>100,100, FORECAST($C201,H$205:H$216,$C$205:$C$216)))) -> 3.557474624 | I201: =IF(MAX(C205:C216)-MIN(C205:C216)<5,AVERAGEIF(C205:C216,">0",I205:I216), IF(FORECAST($C201,I$205:I$216,$C$205:$C$216)<0,0, IF(FORECAST($C201,I$205:I$216,$C$205:$C$216)>100,100, FORECAST($C201,I$205:I$216,$C$205:$C$216)))) -> 95.74828371 | M201: =IF(MAX(C205:C216)-MIN(C205:C216)<5,AVERAGEIF(C205:C216,">0",M205:M216), IF(FORECAST($C201,M$205:M$216,$C$205:$C$216)<0,0, IF(FORECAST($C201,M$205:M$216,$C$205:$C$216)>100,100, FORECAST($C201,M$205:M$216,$C$205:$C$216)))) -> 0.2044442958 | N201: =IF(MAX(C205:C216)-MIN(C205:C216)<5,AVERAGEIF(C205:C216,">0",N205:N216), IF(FORECAST($C201,N$205:N$216,$C$205:$C$216)<0,0, IF(FORECAST($C201,N$205:N$216,$C$205:$C$216)>100,100, FORECAST($C201,N$205:N$216,$C$205:$C$216)))) -> 98.66410949 | R201: =IF(MAX(C205:C216)-MIN(C205:C216)<5,AVERAGEIF(C205:C216,">0",R205:R216), IF(FORECAST($C201,R$205:R$216,$C$205:$C$216)<0,0, IF(FORECAST($C201,R$205:R$216,$C$205:$C$216)>100,100, FORECAST($C201,R$205:R$216,$C$205:$C$216)))) -> 0 | S201: =IF(MAX(C205:C216)-MIN(C205:C216)<5,AVERAGEIF(C205:C216,">0",S205:S216), IF(FORECAST($C201,S$205:S$216,$C$205:$C$216)<0,0, IF(FORECAST($C201,S$205:S$216,$C$205:$C$216)>100,100, FORECAST($C201,S$205:S$216,$C$205:$C$216)))) -> 98.31390719 | W201: =IF(MAX(C205:C216)-MIN(C205:C216)<5,AVERAGEIF(C205:C216,">0",W205:W216), IF(FORECAST($C201,W$205:W$216,$C$205:$C$216)<0,0, IF(FORECAST($C201,W$205:W$216,$C$205:$C$216)>100,100, FORECAST($C201,W$205:W$216,$C$205:$C$216)))) -> 0 | X201: =IF(MAX(C205:C216)-MIN(C205:C216)<5,AVERAGEIF(C205:C216,">0",X205:X216), IF(FORECAST($C201,X$205:X$216,$C$205:$C$216)<0,0, IF(FORECAST($C201,X$205:X$216,$C$205:$C$216)>100,100, FORECAST($C201,X$205:X$216,$C$205:$C$216)))) -> 99.59506532 | AB201: =IF(MAX(C205:C216)-MIN(C205:C216)<5,AVERAGEIF(C205:C216,">0",AB205:AB216), IF(FORECAST($C201,AB$205:AB$216,$C$205:$C$216)<0,0, IF(FORECAST($C201,AB$205:AB$216,$C$205:$C$216)>100,100, FORECAST($C201,AB$205:AB$216,$C$205:$C$216)))) -> 0
C202: =MaxRegYear(C200,C205:C216) -> 2019 | D202: =IF(MAX(C205:C216)-MIN(C205:C216)<5,AVERAGEIF(C205:C216,">0",D205:D216), IF(FORECAST($C202,D$205:D$216,$C$205:$C$216)<0,0, IF(FORECAST($C202,D$205:D$216,$C$205:$C$216)>100,100, FORECAST($C202,D$205:D$216,$C$205:$C$216)))) -> 89.73856413 | H202: =IF(MAX(C205:C216)-MIN(C205:C216)<5,AVERAGEIF(C205:C216,">0",H205:H216), IF(FORECAST($C202,H$205:H$216,$C$205:$C$216)<0,0, IF(FORECAST($C202,H$205:H$216,$C$205:$C$216)>100,100, FORECAST($C202,H$205:H$216,$C$205:$C$216)))) -> 0 | I202: =IF(MAX(C205:C216)-MIN(C205:C216)<5,AVERAGEIF(C205:C216,">0",I205:I216), IF(FORECAST($C202,I$205:I$216,$C$205:$C$216)<0,0, IF(FORECAST($C202,I$205:I$216,$C$205:$C$216)>100,100, FORECAST($C202,I$205:I$216,$C$205:$C$216)))) -> 94.31726263 | M202: =IF(MAX(C205:C216)-MIN(C205:C216)<5,AVERAGEIF(C205:C216,">0",M205:M216), IF(FORECAST($C202,M$205:M$216,$C$205:$C$216)<0,0, IF(FORECAST($C202,M$205:M$216,$C$205:$C$216)>100,100, FORECAST($C202,M$205:M$216,$C$205:$C$216)))) -> 0.1202053053 | N202: =IF(MAX(C205:C216)-MIN(C205:C216)<5,AVERAGEIF(C205:C216,">0",N205:N216), IF(FORECAST($C202,N$205:N$216,$C$205:$C$216)<0,0, IF(FORECAST($C202,N$205:N$216,$C$205:$C$216)>100,100, FORECAST($C202,N$205:N$216,$C$205:$C$216)))) -> 96.78007643 | R202: =IF(MAX(C205:C216)-MIN(C205:C216)<5,AVERAGEIF(C205:C216,">0",R205:R216), IF(FORECAST($C202,R$205:R$216,$C$205:$C$216)<0,0, IF(FORECAST($C202,R$205:R$216,$C$205:$C$216)>100,100, FORECAST($C202,R$205:R$216,$C$205:$C$216)))) -> 0 | S202: =IF(MAX(C205:C216)-MIN(C205:C216)<5,AVERAGEIF(C205:C216,">0",S205:S216), IF(FORECAST($C202,S$205:S$216,$C$205:$C$216)<0,0, IF(FORECAST($C202,S$205:S$216,$C$205:$C$216)>100,100, FORECAST($C202,S$205:S$216,$C$205:$C$216)))) -> 98.48686202 | W202: =IF(MAX(C205:C216)-MIN(C205:C216)<5,AVERAGEIF(C205:C216,">0",W205:W216), IF(FORECAST($C202,W$205:W$216,$C$205:$C$216)<0,0, IF(FORECAST($C202,W$205:W$216,$C$205:$C$216)>100,100, FORECAST($C202,W$205:W$216,$C$205:$C$216)))) -> 0.1197062415 | X202: =IF(MAX(C205:C216)-MIN(C205:C216)<5,AVERAGEIF(C205:C216,">0",X205:X216), IF(FORECAST($C202,X$205:X$216,$C$205:$C$216)<0,0, IF(FORECAST($C202,X$205:X$216,$C$205:$C$216)>100,100, FORECAST($C202,X$205:X$216,$C$205:$C$216)))) -> 98.64726885 | AB202: =IF(MAX(C205:C216)-MIN(C205:C216)<5,AVERAGEIF(C205:C216,">0",AB205:AB216), IF(FORECAST($C202,AB$205:AB$216,$C$205:$C$216)<0,0, IF(FORECAST($C202,AB$205:AB$216,$C$205:$C$216)>100,100, FORECAST($C202,AB$205:AB$216,$C$205:$C$216)))) -> 0
B204: Survey | C204: Year | D204: Improved | E204: % Improved < = 30min | H204: Surface water | I204: Improved | J204: % Improved < = 30min | M204: Surface water | N204: Improved | O204: % Improved < = 30min | R204: Surface water | S204: Improved | T204: % Improved < = 30min | W204: Surface water | X204: Improved | Y204: % Improved < = 30min | AB204: Surface water
B205: DHS00 | C205: 2000 | D205: =IF(ISERROR(INDIRECT(CONCATENATE($B205,"!H16"))),"",INDIRECT(CONCATENATE($B205,"!H16"))) -> 89.36632333 | E205: =IF(ISERROR(INDIRECT(CONCATENATE($B205,"!H23"))),"",INDIRECT(CONCATENATE($B205,"!H23"))) -> N/A | H205: =IF(ISERROR(INDIRECT(CONCATENATE($B205,"!H21"))),"",INDIRECT(CONCATENATE($B205,"!H21"))) -> 3.376971791 | I205: =IF(ISERROR(INDIRECT(CONCATENATE($B205,"!I16"))),"",INDIRECT(CONCATENATE($B205,"!I16"))) -> 98.57667253 | J205: =IF(ISERROR(INDIRECT(CONCATENATE($B205,"!I23"))),"",INDIRECT(CONCATENATE($B205,"!I23"))) -> N/A | M205: =IF(ISERROR(INDIRECT(CONCATENATE($B205,"!I21"))),"",INDIRECT(CONCATENATE($B205,"!I21"))) -> 0.2404720144 | N205: =IF(ISERROR(INDIRECT(CONCATENATE($B205,"!J16"))),"",INDIRECT(CONCATENATE($B205,"!J16"))) -> 100.1836176 | O205: =IF(ISERROR(INDIRECT(CONCATENATE($B205,"!J23"))),"",INDIRECT(CONCATENATE($B205,"!J23"))) -> N/A | R205: =IF(ISERROR(INDIRECT(CONCATENATE($B205,"!J21"))),"",INDIRECT(CONCATENATE($B205,"!J21"))) -> 0 | S205: =IF(ISERROR(INDIRECT(CONCATENATE($B205,"!K16"))),"",INDIRECT(CONCATENATE($B205,"!K16"))) -> 99.24740594 | T205: =IF(ISERROR(INDIRECT(CONCATENATE($B205,"!K23"))),"",INDIRECT(CONCATENATE($B205,"!K23"))) -> N/A | W205: =IF(ISERROR(INDIRECT(CONCATENATE($B205,"!K21"))),"",INDIRECT(CONCATENATE($B205,"!K21"))) -> 0 | X205: =IF(ISERROR(INDIRECT(CONCATENATE($B205,"!L16"))),"",INDIRECT(CONCATENATE($B205,"!L16"))) -> 100.050104 | Y205: =IF(ISERROR(INDIRECT(CONCATENATE($B205,"!L23"))),"",INDIRECT(CONCATENATE($B205,"!L23"))) -> N/A | AB205: =IF(ISERROR(INDIRECT(CONCATENATE($B205,"!L221"))),"",INDIRECT(CONCATENATE($B205,"!L21"))) -> 0
B206: DHS06 | C206: 2006 | D206: 81.2 | E206: 91.3 | H206: 3 | I206: 91.9 | J206: 91.6 | M206: 0.1 | N206: 96.3 | O206: 93.4 | R206: 0 | S206: 97.3 | T206: 96 | W206: 0 | X206: 99 | Y206: 98.3 | AB206: 0
B207: DHS12 | C207: 2012 | D207: 86.3 | E207: 86.9 | H207: 0 | I207: 92.7 | J207: 91.1 | M207: 0.2 | N207: 96.2 | O207: 92.3 | R207: 0 | S207: 97.6 | T207: 94.9 | W207: 0 | X207: 98.1 | Y207: 94.9 | AB207: 0
B208: DHS17 | C208: 2017 | D208: 92.47665593 | E208: 85.59413407 | H208: 0.3562205505 | I208: 97.18037083 | J208: 92.24449453 | M208: 0.1221280809 | N208: 98.50223315 | O208: 95.18550191 | R208: 0 | S208: 99.42682382 | T208: 97.96939129 | W208: 0.1555464336 | X208: 99.48421639 | Y208: 97.83974017 | AB208: 0
B218: =CONCATENATE("Urban use of drinking water sources, ",C199,"–",C200) -> Urban use of drinking water sources, 2000–2020 | S218: Data points used for regression
E253: =IF(ISERROR(INDIRECT(CONCATENATE($B253,"!M18"))),"",INDIRECT(CONCATENATE($B253,"!M18"))) ->  | F253: =IF(ISERROR(INDIRECT(CONCATENATE($B253,"!M19"))),"",INDIRECT(CONCATENATE($B253,"!M19"))) ->  | G253: =IF(ISERROR(INDIRECT(CONCATENATE($B253,"!M20"))),"",INDIRECT(CONCATENATE($B253,"!M20"))) ->  | H253: =IF(ISERROR(INDIRECT(CONCATENATE($B253,"!M21"))),"",INDIRECT(CONCATENATE($B253,"!M21"))) ->  | J253: =IF(ISERROR(INDIRECT(CONCATENATE($B253,"!N18"))),"",INDIRECT(CONCATENATE($B253,"!N18"))) ->  | K253: =IF(ISERROR(INDIRECT(CONCATENATE($B253,"!N19"))),"",INDIRECT(CONCATENATE($B253,"!N19"))) ->  | L253: =IF(ISERROR(INDIRECT(CONCATENATE($B253,"!N20"))),"",INDIRECT(CONCATENATE($B253,"!N20"))) ->  | M253: =IF(ISERROR(INDIRECT(CONCATENATE($B253,"!N21"))),"",INDIRECT(CONCATENATE($B253,"!N21"))) ->  | O253: =IF(ISERROR(INDIRECT(CONCATENATE($B253,"!O18"))),"",INDIRECT(CONCATENATE($B253,"!O18"))) ->  | P253: =IF(ISERROR(INDIRECT(CONCATENATE($B253,"!O19"))),"",INDIRECT(CONCATENATE($B253,"!O19"))) ->  | Q253: =IF(ISERROR(INDIRECT(CONCATENATE($B253,"!O20"))),"",INDIRECT(CONCATENATE($B253,"!O20"))) ->  | R253: =IF(ISERROR(INDIRECT(CONCATENATE($B253,"!O21"))),"",INDIRECT(CONCATENATE($B253,"!O21"))) ->  | T253: =IF(ISERROR(INDIRECT(CONCATENATE($B253,"!P18"))),"",INDIRECT(CONCATENATE($B253,"!P18"))) ->  | U253: =IF(ISERROR(INDIRECT(CONCATENATE($B253,"!P19"))),"",INDIRECT(CONCATENATE($B253,"!P19"))) ->  | V253: =IF(ISERROR(INDIRECT(CONCATENATE($B253,"!P20"))),"",INDIRECT(CONCATENATE($B253,"!P20"))) ->  | W253: =IF(ISERROR(INDIRECT(CONCATENATE($B253,"!P21"))),"",INDIRECT(CONCATENATE($B253,"!P21"))) ->  | Y253: =IF(ISERROR(INDIRECT(CONCATENATE($B253,"!Q18"))),"",INDIRECT(CONCATENATE($B253,"!Q18"))) ->  | Z253: =IF(ISERROR(INDIRECT(CONCATENATE($B253,"!Q19"))),"",INDIRECT(CONCATENATE($B253,"!Q19"))) ->  | AA253: =IF(ISERROR(INDIRECT(CONCATENATE($B253,"!Q20"))),"",INDIRECT(CONCATENATE($B253,"!Q20"))) ->  | AB253: =IF(ISERROR(INDIRECT(CONCATENATE($B253,"!Q21"))),"",INDIRECT(CONCATENATE($B253,"!Q1"))) -> 
E254: =IF(ISERROR(INDIRECT(CONCATENATE($B254,"!M18"))),"",INDIRECT(CONCATENATE($B254,"!M18"))) ->  | F254: =IF(ISERROR(INDIRECT(CONCATENATE($B254,"!M19"))),"",INDIRECT(CONCATENATE($B254,"!M19"))) ->  | G254: =IF(ISERROR(INDIRECT(CONCATENATE($B254,"!M20"))),"",INDIRECT(CONCATENATE($B254,"!M20"))) ->  | H254: =IF(ISERROR(INDIRECT(CONCATENATE($B254,"!M21"))),"",INDIRECT(CONCATENATE($B254,"!M21"))) ->  | J254: =IF(ISERROR(INDIRECT(CONCATENATE($B254,"!N18"))),"",INDIRECT(CONCATENATE($B254,"!N18"))) ->  | K254: =IF(ISERROR(INDIRECT(CONCATENATE($B254,"!N19"))),"",INDIRECT(CONCATENATE($B254,"!N19"))) ->  | L254: =IF(ISERROR(INDIRECT(CONCATENATE($B254,"!N20"))),"",INDIRECT(CONCATENATE($B254,"!N20"))) ->  | M254: =IF(ISERROR(INDIRECT(CONCATENATE($B254,"!N21"))),"",INDIRECT(CONCATENATE($B254,"!N21"))) ->  | O254: =IF(ISERROR(INDIRECT(CONCATENATE($B254,"!O18"))),"",INDIRECT(CONCATENATE($B254,"!O18"))) ->  | P254: =IF(ISERROR(INDIRECT(CONCATENATE($B254,"!O19"))),"",INDIRECT(CONCATENATE($B254,"!O19"))) ->  | Q254: =IF(ISERROR(INDIRECT(CONCATENATE($B254,"!O20"))),"",INDIRECT(CONCATENATE($B254,"!O20"))) ->  | R254: =IF(ISERROR(INDIRECT(CONCATENATE($B254,"!O21"))),"",INDIRECT(CONCATENATE($B254,"!O21"))) ->  | T254: =IF(ISERROR(INDIRECT(CONCATENATE($B254,"!P18"))),"",INDIRECT(CONCATENATE($B254,"!P18"))) ->  | U254: =IF(ISERROR(INDIRECT(CONCATENATE($B254,"!P19"))),"",INDIRECT(CONCATENATE($B254,"!P19"))) ->  | V254: =IF(ISERROR(INDIRECT(CONCATENATE($B254,"!P20"))),"",INDIRECT(CONCATENATE($B254,"!P20"))) ->  | W254: =IF(ISERROR(INDIRECT(CONCATENATE($B254,"!P21"))),"",INDIRECT(CONCATENATE($B254,"!P21"))) ->  | Y254: =IF(ISERROR(INDIRECT(CONCATENATE($B254,"!Q18"))),"",INDIRECT(CONCATENATE($B254,"!Q18"))) ->  | Z254: =IF(ISERROR(INDIRECT(CONCATENATE($B254,"!Q19"))),"",INDIRECT(CONCATENATE($B254,"!Q19"))) ->  | AA254: =IF(ISERROR(INDIRECT(CONCATENATE($B254,"!Q20"))),"",INDIRECT(CONCATENATE($B254,"!Q20"))) ->  | AB254: =IF(ISERROR(INDIRECT(CONCATENATE($B254,"!Q21"))),"",INDIRECT(CONCATENATE($B254,"!Q1"))) -> 
E255: =IF(ISERROR(INDIRECT(CONCATENATE($B255,"!M18"))),"",INDIRECT(CONCATENATE($B255,"!M18"))) ->  | F255: =IF(ISERROR(INDIRECT(CONCATENATE($B255,"!M19"))),"",INDIRECT(CONCATENATE($B255,"!M19"))) ->  | G255: =IF(ISERROR(INDIRECT(CONCATENATE($B255,"!M20"))),"",INDIRECT(CONCATENATE($B255,"!M20"))) ->  | H255: =IF(ISERROR(INDIRECT(CONCATENATE($B255,"!M21"))),"",INDIRECT(CONCATENATE($B255,"!M21"))) ->  | J255: =IF(ISERROR(INDIRECT(CONCATENATE($B255,"!N18"))),"",INDIRECT(CONCATENATE($B255,"!N18"))) ->  | K255: =IF(ISERROR(INDIRECT(CONCATENATE($B255,"!N19"))),"",INDIRECT(CONCATENATE($B255,"!N19"))) ->  | L255: =IF(ISERROR(INDIRECT(CONCATENATE($B255,"!N20"))),"",INDIRECT(CONCATENATE($B255,"!N20"))) ->  | M255: =IF(ISERROR(INDIRECT(CONCATENATE($B255,"!N21"))),"",INDIRECT(CONCATENATE($B255,"!N21"))) ->  | O255: =IF(ISERROR(INDIRECT(CONCATENATE($B255,"!O18"))),"",INDIRECT(CONCATENATE($B255,"!O18"))) ->  | P255: =IF(ISERROR(INDIRECT(CONCATENATE($B255,"!O19"))),"",INDIRECT(CONCATENATE($B255,"!O19"))) ->  | Q255: =IF(ISERROR(INDIRECT(CONCATENATE($B255,"!O20"))),"",INDIRECT(CONCATENATE($B255,"!O20"))) ->  | R255: =IF(ISERROR(INDIRECT(CONCATENATE($B255,"!O21"))),"",INDIRECT(CONCATENATE($B255,"!O21"))) ->  | T255: =IF(ISERROR(INDIRECT(CONCATENATE($B255,"!P18"))),"",INDIRECT(CONCATENATE($B255,"!P18"))) ->  | U255: =IF(ISERROR(INDIRECT(CONCATENATE($B255,"!P19"))),"",INDIRECT(CONCATENATE($B255,"!P19"))) ->  | V255: =IF(ISERROR(INDIRECT(CONCATENATE($B255,"!P20"))),"",INDIRECT(CONCATENATE($B255,"!P20"))) ->  | W255: =IF(ISERROR(INDIRECT(CONCATENATE($B255,"!P21"))),"",INDIRECT(CONCATENATE($B255,"!P21"))) ->  | Y255: =IF(ISERROR(INDIRECT(CONCATENATE($B255,"!Q18"))),"",INDIRECT(CONCATENATE($B255,"!Q18"))) ->  | Z255: =IF(ISERROR(INDIRECT(CONCATENATE($B255,"!Q19"))),"",INDIRECT(CONCATENATE($B255,"!Q19"))) ->  | AA255: =IF(ISERROR(INDIRECT(CONCATENATE($B255,"!Q20"))),"",INDIRECT(CONCATENATE($B255,"!Q20"))) ->  | AB255: =IF(ISERROR(INDIRECT(CONCATENATE($B255,"!Q21"))),"",INDIRECT(CONCATENATE($B255,"!Q1"))) -> 
E256: =IF(ISERROR(INDIRECT(CONCATENATE($B256,"!M18"))),"",INDIRECT(CONCATENATE($B256,"!M18"))) ->  | F256: =IF(ISERROR(INDIRECT(CONCATENATE($B256,"!M19"))),"",INDIRECT(CONCATENATE($B256,"!M19"))) ->  | G256: =IF(ISERROR(INDIRECT(CONCATENATE($B256,"!M20"))),"",INDIRECT(CONCATENATE($B256,"!M20"))) ->  | H256: =IF(ISERROR(INDIRECT(CONCATENATE($B256,"!M21"))),"",INDIRECT(CONCATENATE($B256,"!M21"))) ->  | J256: =IF(ISERROR(INDIRECT(CONCATENATE($B256,"!N18"))),"",INDIRECT(CONCATENATE($B256,"!N18"))) ->  | K256: =IF(ISERROR(INDIRECT(CONCATENATE($B256,"!N19"))),"",INDIRECT(CONCATENATE($B256,"!N19"))) ->  | L256: =IF(ISERROR(INDIRECT(CONCATENATE($B256,"!N20"))),"",INDIRECT(CONCATENATE($B256,"!N20"))) ->  | M256: =IF(ISERROR(INDIRECT(CONCATENATE($B256,"!N21"))),"",INDIRECT(CONCATENATE($B256,"!N21"))) ->  | O256: =IF(ISERROR(INDIRECT(CONCATENATE($B256,"!O18"))),"",INDIRECT(CONCATENATE($B256,"!O18"))) ->  | P256: =IF(ISERROR(INDIRECT(CONCATENATE($B256,"!O19"))),"",INDIRECT(CONCATENATE($B256,"!O19"))) ->  | Q256: =IF(ISERROR(INDIRECT(CONCATENATE($B256,"!O20"))),"",INDIRECT(CONCATENATE($B256,"!O20"))) ->  | R256: =IF(ISERROR(INDIRECT(CONCATENATE($B256,"!O21"))),"",INDIRECT(CONCATENATE($B256,"!O21"))) ->  | T256: =IF(ISERROR(INDIRECT(CONCATENATE($B256,"!P18"))),"",INDIRECT(CONCATENATE($B256,"!P18"))) ->  | U256: =IF(ISERROR(INDIRECT(CONCATENATE($B256,"!P19"))),"",INDIRECT(CONCATENATE($B256,"!P19"))) ->  | V256: =IF(ISERROR(INDIRECT(CONCATENATE($B256,"!P20"))),"",INDIRECT(CONCATENATE($B256,"!P20"))) ->  | W256: =IF(ISERROR(INDIRECT(CONCATENATE($B256,"!P21"))),"",INDIRECT(CONCATENATE($B256,"!P21"))) ->  | Y256: =IF(ISERROR(INDIRECT(CONCATENATE($B256,"!Q18"))),"",INDIRECT(CONCATENATE($B256,"!Q18"))) ->  | Z256: =IF(ISERROR(INDIRECT(CONCATENATE($B256,"!Q19"))),"",INDIRECT(CONCATENATE($B256,"!Q19"))) ->  | AA256: =IF(ISERROR(INDIRECT(CONCATENATE($B256,"!Q20"))),"",INDIRECT(CONCATENATE($B256,"!Q20"))) ->  | AB256: =IF(ISERROR(INDIRECT(CONCATENATE($B256,"!Q21"))),"",INDIRECT(CONCATENATE($B256,"!Q1"))) -> 
E257: =IF(ISERROR(INDIRECT(CONCATENATE($B257,"!M18"))),"",INDIRECT(CONCATENATE($B257,"!M18"))) ->  | F257: =IF(ISERROR(INDIRECT(CONCATENATE($B257,"!M19"))),"",INDIRECT(CONCATENATE($B257,"!M19"))) ->  | G257: =IF(ISERROR(INDIRECT(CONCATENATE($B257,"!M20"))),"",INDIRECT(CONCATENATE($B257,"!M20"))) ->  | H257: =IF(ISERROR(INDIRECT(CONCATENATE($B257,"!M21"))),"",INDIRECT(CONCATENATE($B257,"!M21"))) ->  | J257: =IF(ISERROR(INDIRECT(CONCATENATE($B257,"!N18"))),"",INDIRECT(CONCATENATE($B257,"!N18"))) ->  | K257: =IF(ISERROR(INDIRECT(CONCATENATE($B257,"!N19"))),"",INDIRECT(CONCATENATE($B257,"!N19"))) ->  | L257: =IF(ISERROR(INDIRECT(CONCATENATE($B257,"!N20"))),"",INDIRECT(CONCATENATE($B257,"!N20"))) ->  | M257: =IF(ISERROR(INDIRECT(CONCATENATE($B257,"!N21"))),"",INDIRECT(CONCATENATE($B257,"!N21"))) ->  | O257: =IF(ISERROR(INDIRECT(CONCATENATE($B257,"!O18"))),"",INDIRECT(CONCATENATE($B257,"!O18"))) ->  | P257: =IF(ISERROR(INDIRECT(CONCATENATE($B257,"!O19"))),"",INDIRECT(CONCATENATE($B257,"!O19"))) ->  | Q257: =IF(ISERROR(INDIRECT(CONCATENATE($B257,"!O20"))),"",INDIRECT(CONCATENATE($B257,"!O20"))) ->  | R257: =IF(ISERROR(INDIRECT(CONCATENATE($B257,"!O21"))),"",INDIRECT(CONCATENATE($B257,"!O21"))) ->  | T257: =IF(ISERROR(INDIRECT(CONCATENATE($B257,"!P18"))),"",INDIRECT(CONCATENATE($B257,"!P18"))) ->  | U257: =IF(ISERROR(INDIRECT(CONCATENATE($B257,"!P19"))),"",INDIRECT(CONCATENATE($B257,"!P19"))) ->  | V257: =IF(ISERROR(INDIRECT(CONCATENATE($B257,"!P20"))),"",INDIRECT(CONCATENATE($B257,"!P20"))) ->  | W257: =IF(ISERROR(INDIRECT(CONCATENATE($B257,"!P21"))),"",INDIRECT(CONCATENATE($B257,"!P21"))) ->  | Y257: =IF(ISERROR(INDIRECT(CONCATENATE($B257,"!Q18"))),"",INDIRECT(CONCATENATE($B257,"!Q18"))) ->  | Z257: =IF(ISERROR(INDIRECT(CONCATENATE($B257,"!Q19"))),"",INDIRECT(CONCATENATE($B257,"!Q19"))) ->  | AA257: =IF(ISERROR(INDIRECT(CONCATENATE($B257,"!Q20"))),"",INDIRECT(CONCATENATE($B257,"!Q20"))) ->  | AB257: =IF(ISERROR(INDIRECT(CONCATENATE($B257,"!Q21"))),"",INDIRECT(CONCATENATE($B257,"!Q1"))) -> 
A297: RURAL | D297: Poorest | I297: Poor | N297: Middle | S297: Rich | X297: Richest
D298: Improved | E298: Basic | F298: Limited | G298: Unimproved | H298: Surface water | I298: Improved | J298: Basic | K298: Limited | L298: Unimproved | M298: Surface water | N298: Improved | O298: Basic | P298: Limited | Q298: Unimproved | R298: Surface water | S298: Improved | T298: Basic | U298: Limited | V298: Unimproved | W298: Surface water | X298: Improved | Y298: Basic | Z298: Limited | AA298: Unimproved | AB298: Surface water
A299: Forecast period: | C299: 2000 | D299: =IF((D301+H301)>100,D301*100/(D301+H301),D301) -> 43.58919411 | E299: =D299*AVERAGEIF(E305:E316,">0")/100 -> 29.24893449 | F299: =D299*(100-AVERAGEIF(E305:E316,">0"))/100 -> 14.34025962 | G299: =100-(E299+F299+H299) -> 43.48267058 | H299: =IF((D301+H301)>100,H301*100/(D301+H301),H301) -> 12.92813531 | I299: =IF((I301+M301)>100,I301*100/(I301+M301),I301) -> 40.59102478 | J299: =I299*AVERAGEIF(J305:J316,">0")/100 -> 29.23437317 | K299: =I299*(100-AVERAGEIF(J305:J316,">0"))/100 -> 11.35665161 | L299: =100-(J299+K299+M299) -> 49.48717907 | M299: =IF((I301+M301)>100,M301*100/(I301+M301),M301) -> 9.921796154 | N299: =IF((N301+R301)>100,N301*100/(N301+R301),N301) -> 47.19182762 | O299: =N299*AVERAGEIF(O305:O316,">0")/100 -> 34.03046207 | P299: =N299*(100-AVERAGEIF(O305:O316,">0"))/100 -> 13.16136554 | Q299: =100-(O299+P299+R299) -> 42.08810109 | R299: =IF((N301+R301)>100,R301*100/(N301+R301),R301) -> 10.72007129 | S299: =IF((S301+W301)>100,S301*100/(S301+W301),S301) -> 56.36903578 | T299: =S299*AVERAGEIF(T305:T316,">0")/100 -> 45.92731009 | U299: =S299*(100-AVERAGEIF(T305:T316,">0"))/100 -> 10.44172569 | V299: =100-(T299+U299+W299) -> 34.85452606 | W299: =IF((S301+W301)>100,W301*100/(S301+W301),W301) -> 8.776438163 | X299: =IF((X301+AB301)>100,X301*100/(X301+AB301),X301) -> 76.14674475 | Y299: =X299*AVERAGEIF(Y305:Y316,">0")/100 -> 68.26359192 | Z299: =X299*(100-AVERAGEIF(Y305:Y316,">0"))/100 -> 7.883152832 | AA299: =100-(Y299+Z299+AB299) -> 20.31620775 | AB299: =IF((X301+AB301)>100,AB301*100/(X301+AB301),AB301) -> 3.537047496
C300: 2020 | D300: =IF((D302+H302)>100,D302*100/(D302+H302),D302) -> 32.25976313 | E300: =D300*AVERAGEIF(E305:E316,">0")/100 -> 21.64673419 | F300: =D300*(100-AVERAGEIF(E305:E316,">0"))/100 -> 10.61302894 | G300: =100-(E300+F300+H300) -> 67.62084243 | H300: =IF((D302+H302)>100,H302*100/(D302+H302),H302) -> 0.1193944373 | I300: =IF((I302+M302)>100,I302*100/(I302+M302),I302) -> 42.02516113 | J300: =I300*AVERAGEIF(J305:J316,">0")/100 -> 30.26726351 | K300: =I300*(100-AVERAGEIF(J305:J316,">0"))/100 -> 11.75789762 | L300: =100-(J300+K300+M300) -> 55.91357069 | M300: =IF((I302+M302)>100,M302*100/(I302+M302),M302) -> 2.061268175 | N300: =IF((N302+R302)>100,N302*100/(N302+R302),N302) -> 48.24179009 | O300: =N300*AVERAGEIF(O305:O316,">0")/100 -> 34.78759969 | P300: =N300*(100-AVERAGEIF(O305:O316,">0"))/100 -> 13.45419039 | Q300: =100-(O300+P300+R300) -> 50.54387659 | R300: =IF((N302+R302)>100,R302*100/(N302+R302),R302) -> 1.214333324 | S300: =IF((S302+W302)>100,S302*100/(S302+W302),S302) -> 65.3386667 | T300: =S300*AVERAGEIF(T305:T316,">0")/100 -> 53.23541843 | U300: =S300*(100-AVERAGEIF(T305:T316,">0"))/100 -> 12.10324827 | V300: =100-(T300+U300+W300) -> 34.56847803 | W300: =IF((S302+W302)>100,W302*100/(S302+W302),W302) -> 0.09285527105 | X300: =IF((X302+AB302)>100,X302*100/(X302+AB302),X302) -> 90.4922435 | Y300: =X300*AVERAGEIF(Y305:Y316,">0")/100 -> 81.12396141 | Z300: =X300*(100-AVERAGEIF(Y305:Y316,">0"))/100 -> 9.368282098 | AA300: =100-(Y300+Z300+AB300) -> 9.507756497 | AB300: =IF((X302+AB302)>100,AB302*100/(X302+AB302),AB302) -> 0
A301: Regression period: | C301: =MinRegYear(C299,C305:C316) -> 2000 | D301: =IF(MAX(C305:C316)-MIN(C305:C316)<5,AVERAGEIF(C305:C316,">0",D305:D316), IF(FORECAST($C301,D$305:D$316,$C$305:$C$316)<0,0, IF(FORECAST($C301,D$305:D$316,$C$305:$C$316)>100,100, FORECAST($C301,D$305:D$316,$C$305:$C$316)))) -> 43.58919411 | H301: =IF(MAX(C305:C316)-MIN(C305:C316)<5,AVERAGEIF(C305:C316,">0",H305:H316), IF(FORECAST($C301,H$305:H$316,$C$305:$C$316)<0,0, IF(FORECAST($C301,H$305:H$316,$C$305:$C$316)>100,100, FORECAST($C301,H$305:H$316,$C$305:$C$316)))) -> 12.92813531 | I301: =IF(MAX(C305:C316)-MIN(C305:C316)<5,AVERAGEIF(C305:C316,">0",I305:I316), IF(FORECAST($C301,I$305:I$316,$C$305:$C$316)<0,0, IF(FORECAST($C301,I$305:I$316,$C$305:$C$316)>100,100, FORECAST($C301,I$305:I$316,$C$305:$C$316)))) -> 40.59102478 | M301: =IF(MAX(C305:C316)-MIN(C305:C316)<5,AVERAGEIF(C305:C316,">0",M305:M316), IF(FORECAST($C301,M$305:M$316,$C$305:$C$316)<0,0, IF(FORECAST($C301,M$305:M$316,$C$305:$C$316)>100,100, FORECAST($C301,M$305:M$316,$C$305:$C$316)))) -> 9.921796154 | N301: =IF(MAX(C305:C316)-MIN(C305:C316)<5,AVERAGEIF(C305:C316,">0",N305:N316), IF(FORECAST($C301,N$305:N$316,$C$305:$C$316)<0,0, IF(FORECAST($C301,N$305:N$316,$C$305:$C$316)>100,100, FORECAST($C301,N$305:N$316,$C$305:$C$316)))) -> 47.19182762 | R301: =IF(MAX(C305:C316)-MIN(C305:C316)<5,AVERAGEIF(C305:C316,">0",R305:R316), IF(FORECAST($C301,R$305:R$316,$C$305:$C$316)<0,0, IF(FORECAST($C301,R$305:R$316,$C$305:$C$316)>100,100, FORECAST($C301,R$305:R$316,$C$305:$C$316)))) -> 10.72007129 | S301: =IF(MAX(C305:C316)-MIN(C305:C316)<5,AVERAGEIF(C305:C316,">0",S305:S316), IF(FORECAST($C301,S$305:S$316,$C$305:$C$316)<0,0, IF(FORECAST($C301,S$305:S$316,$C$305:$C$316)>100,100, FORECAST($C301,S$305:S$316,$C$305:$C$316)))) -> 56.36903578 | W301: =IF(MAX(C305:C316)-MIN(C305:C316)<5,AVERAGEIF(C305:C316,">0",W305:W316), IF(FORECAST($C301,W$305:W$316,$C$305:$C$316)<0,0, IF(FORECAST($C301,W$305:W$316,$C$305:$C$316)>100,100, FORECAST($C301,W$305:W$316,$C$305:$C$316)))) -> 8.776438163 | X301: =IF(MAX(C305:C316)-MIN(C305:C316)<5,AVERAGEIF(C305:C316,">0",X305:X316), IF(FORECAST($C301,X$305:X$316,$C$305:$C$316)<0,0, IF(FORECAST($C301,X$305:X$316,$C$305:$C$316)>100,100, FORECAST($C301,X$305:X$316,$C$305:$C$316)))) -> 76.14674475 | AB301: =IF(MAX(C305:C316)-MIN(C305:C316)<5,AVERAGEIF(C305:C316,">0",AB305:AB316), IF(FORECAST($C301,AB$305:AB$316,$C$305:$C$316)<0,0, IF(FORECAST($C301,AB$305:AB$316,$C$305:$C$316)>100,100, FORECAST($C301,AB$305:AB$316,$C$305:$C$316)))) -> 3.537047496
C302: =MaxRegYear(C300,C305:C316) -> 2019 | D302: =IF(MAX(C305:C316)-MIN(C305:C316)<5,AVERAGEIF(C305:C316,">0",D305:D316), IF(FORECAST($C302,D$305:D$316,$C$305:$C$316)<0,0, IF(FORECAST($C302,D$305:D$316,$C$305:$C$316)>100,100, FORECAST($C302,D$305:D$316,$C$305:$C$316)))) -> 32.25976313 | H302: =IF(MAX(C305:C316)-MIN(C305:C316)<5,AVERAGEIF(C305:C316,">0",H305:H316), IF(FORECAST($C302,H$305:H$316,$C$305:$C$316)<0,0, IF(FORECAST($C302,H$305:H$316,$C$305:$C$316)>100,100, FORECAST($C302,H$305:H$316,$C$305:$C$316)))) -> 0.1193944373 | I302: =IF(MAX(C305:C316)-MIN(C305:C316)<5,AVERAGEIF(C305:C316,">0",I305:I316), IF(FORECAST($C302,I$305:I$316,$C$305:$C$316)<0,0, IF(FORECAST($C302,I$305:I$316,$C$305:$C$316)>100,100, FORECAST($C302,I$305:I$316,$C$305:$C$316)))) -> 42.02516113 | M302: =IF(MAX(C305:C316)-MIN(C305:C316)<5,AVERAGEIF(C305:C316,">0",M305:M316), IF(FORECAST($C302,M$305:M$316,$C$305:$C$316)<0,0, IF(FORECAST($C302,M$305:M$316,$C$305:$C$316)>100,100, FORECAST($C302,M$305:M$316,$C$305:$C$316)))) -> 2.061268175 | N302: =IF(MAX(C305:C316)-MIN(C305:C316)<5,AVERAGEIF(C305:C316,">0",N305:N316), IF(FORECAST($C302,N$305:N$316,$C$305:$C$316)<0,0, IF(FORECAST($C302,N$305:N$316,$C$305:$C$316)>100,100, FORECAST($C302,N$305:N$316,$C$305:$C$316)))) -> 48.24179009 | R302: =IF(MAX(C305:C316)-MIN(C305:C316)<5,AVERAGEIF(C305:C316,">0",R305:R316), IF(FORECAST($C302,R$305:R$316,$C$305:$C$316)<0,0, IF(FORECAST($C302,R$305:R$316,$C$305:$C$316)>100,100, FORECAST($C302,R$305:R$316,$C$305:$C$316)))) -> 1.214333324 | S302: =IF(MAX(C305:C316)-MIN(C305:C316)<5,AVERAGEIF(C305:C316,">0",S305:S316), IF(FORECAST($C302,S$305:S$316,$C$305:$C$316)<0,0, IF(FORECAST($C302,S$305:S$316,$C$305:$C$316)>100,100, FORECAST($C302,S$305:S$316,$C$305:$C$316)))) -> 65.3386667 | W302: =IF(MAX(C305:C316)-MIN(C305:C316)<5,AVERAGEIF(C305:C316,">0",W305:W316), IF(FORECAST($C302,W$305:W$316,$C$305:$C$316)<0,0, IF(FORECAST($C302,W$305:W$316,$C$305:$C$316)>100,100, FORECAST($C302,W$305:W$316,$C$305:$C$316)))) -> 0.09285527105 | X302: =IF(MAX(C305:C316)-MIN(C305:C316)<5,AVERAGEIF(C305:C316,">0",X305:X316), IF(FORECAST($C302,X$305:X$316,$C$305:$C$316)<0,0, IF(FORECAST($C302,X$305:X$316,$C$305:$C$316)>100,100, FORECAST($C302,X$305:X$316,$C$305:$C$316)))) -> 90.4922435 | AB302: =IF(MAX(C305:C316)-MIN(C305:C316)<5,AVERAGEIF(C305:C316,">0",AB305:AB316), IF(FORECAST($C302,AB$305:AB$316,$C$305:$C$316)<0,0, IF(FORECAST($C302,AB$305:AB$316,$C$305:$C$316)>100,100, FORECAST($C302,AB$305:AB$316,$C$305:$C$316)))) -> 0
B304: Survey | C304: Year | D304: Improved | E304: % Improved < = 30min | H304: Surface water | I304: Improved | J304: % Improved < = 30min | M304: Surface water | N304: Improved | O304: % Improved < = 30min | R304: Surface water | S304: Improved | T304: % Improved < = 30min | W304: Surface water | X304: Improved | Y304: % Improved < = 30min | AB304: Surface water
B305: DHS00 | C305: 2000 | D305: =IF(ISERROR(INDIRECT(CONCATENATE($B305,"!M16"))),"",INDIRECT(CONCATENATE($B305,"!M16"))) -> 49.57714057 | E305: =IF(ISERROR(INDIRECT(CONCATENATE($B305,"!M23"))),"",INDIRECT(CONCATENATE($B305,"!M23"))) -> N/A | H305: =IF(ISERROR(INDIRECT(CONCATENATE($B305,"!M21"))),"",INDIRECT(CONCATENATE($B305,"!M21"))) -> 13.67566405 | I305: =IF(ISERROR(INDIRECT(CONCATENATE($B305,"!N16"))),"",INDIRECT(CONCATENATE($B305,"!N16"))) -> 46.91849448 | J305: =IF(ISERROR(INDIRECT(CONCATENATE($B305,"!N23"))),"",INDIRECT(CONCATENATE($B305,"!N23"))) -> N/A | M305: =IF(ISERROR(INDIRECT(CONCATENATE($B305,"!N21"))),"",INDIRECT(CONCATENATE($B305,"!N21"))) -> 9.128915367 | N305: =IF(ISERROR(INDIRECT(CONCATENATE($B305,"!O16"))),"",INDIRECT(CONCATENATE($B305,"!O16"))) -> 51.70548355 | O305: =IF(ISERROR(INDIRECT(CONCATENATE($B305,"!O23"))),"",INDIRECT(CONCATENATE($B305,"!O23"))) -> N/A | R305: =IF(ISERROR(INDIRECT(CONCATENATE($B305,"!O21"))),"",INDIRECT(CONCATENATE($B305,"!O21"))) -> 10.71907652 | S305: =IF(ISERROR(INDIRECT(CONCATENATE($B305,"!P16"))),"",INDIRECT(CONCATENATE($B305,"!P16"))) -> 60.9565292 | T305: =IF(ISERROR(INDIRECT(CONCATENATE($B305,"!P23"))),"",INDIRECT(CONCATENATE($B305,"!P23"))) -> N/A | W305: =IF(ISERROR(INDIRECT(CONCATENATE($B305,"!P21"))),"",INDIRECT(CONCATENATE($B305,"!P21"))) -> 8.390387875 | X305: =IF(ISERROR(INDIRECT(CONCATENATE($B305,"!Q16"))),"",INDIRECT(CONCATENATE($B305,"!Q16"))) -> 77.38093438 | Y305: =IF(ISERROR(INDIRECT(CONCATENATE($B305,"!Q23"))),"",INDIRECT(CONCATENATE($B305,"!Q23"))) -> N/A | AB305: =IF(ISERROR(INDIRECT(CONCATENATE($B305,"!Q221"))),"",INDIRECT(CONCATENATE($B305,"!Q21"))) -> 3.495875871
B306: DHS06 | C306: 2006 | D306: 32.5 | E306: 74.9 | H306: 8.7 | I306: 33.4 | J306: 81.6 | M306: 9.6 | N306: 45.3 | O306: 77 | R306: 8 | S306: 54.4 | T306: 83.1 | W306: 6.9 | X306: 78.5 | Y306: 90.9 | AB306: 2.7
B307: DHS12 | C307: 2012 | D307: 32.6 | E307: 59.2 | H307: 2.7 | I307: 36.8 | J307: 69.5 | M307: 2.9 | N307: 37.4 | O307: 70 | R307: 4.1 | S307: 57 | T307: 79.4 | W307: 2.7 | X307: 85.8 | Y307: 88.4 | AB307: 0.6
B308: DHS17 | C308: 2017 | D308: 38.80963143 | E308: 67.20402789 | H308: 3.041828208 | I308: 47.88743476 | J308: 64.96530014 | M308: 3.578349289 | N308: 56.29596831 | O308: 69.33276645 | R308: 2.550638706 | S308: 69.64261825 | T308: 81.92839646 | W308: 1.119291028 | X308: 89.33196339 | Y308: 89.64225935 | AB308: 0.5210147914
B318: =CONCATENATE("Rural use of drinking water sources, ",C299,"–",C300) -> Rural use of drinking water sources, 2000–2020 | S318: Data points used for regression

Sheet Sanitation
B4: Summary of trends in use of sanitation facilities by wealth quintile (%)
B5: =IF(ISERROR(INDIRECT(CONCATENATE($B105,"!A2"))),"",INDIRECT(CONCATENATE($B105,"!A2"))) -> Haiti
B7: =B118 -> National use of sanitation facilities, 2000–2020 | J7: =B218 -> Urban use of sanitation facilities, 2000–2020 | R7: =B318 -> Rural use of sanitation facilities, 2000–2020
B31: =IF(ISERROR(INDIRECT(CONCATENATE($B105,"!A2"))),"",INDIRECT(CONCATENATE($B105,"!A2"))) -> Haiti | F31: Poorest | J31: Poor | N31: Middle | R31: Rich | V31: Richest
F32: Basic | G32: Limited | H32: Unimproved | I32: Open defecation | J32: Basic | K32: Limited | L32: Unimproved | M32: Open defecation | N32: Basic | O32: Limited | P32: Unimproved | Q32: Open defecation | R32: Basic | S32: Limited | T32: Unimproved | U32: Open defecation | V32: Basic | W32: Limited | X32: Unimproved | Y32: Open defecation
B33: NATIONAL | D33: Estimate | E33: =C99 -> 2000 | F33: =E99 -> 3.017478959 | G33: =F99 -> 1.835682809 | H33: 23.45240758 | I33: 71.69443065 | J33: =J99 -> 4.314449591 | K33: =K99 -> 3.362989267 | L33: 30.5868706 | M33: 61.73569054 | N33: =O99 -> 8.366420901 | O33: =P99 -> 7.749420489 | P33: 39.9973344 | Q33: 43.88682421 | R33: =T99 -> 14.09013741 | S33: =U99 -> 18.23953923 | T33: 52.64518267 | U33: 15.02514069 | V33: =Y99 -> 42.69016678 | W33: =Z99 -> 18.46958966 | X33: 36.53987783 | Y33: 2.300365736
E34: =C100 -> 2020 | F34: =E100 -> 12.59349123 | G34: 7.661248242 | H34: 27.95646174 | I34: 51.78879879 | J34: =J100 -> 19.71724402 | K34: 15.36902417 | L34: 29.96481471 | M34: 34.94891709 | N34: =O100 -> 32.02566075 | O34: 29.66385681 | P34: 20.35257424 | Q34: 17.9579082 | R34: =T100 -> 38.75126036 | S34: 50.16311148 | T34: 5.944322394 | U34: 5.141305767 | V34: =Y100 -> 69.50576193 | W34: 30.07116155 | X34: 0 | Y34: 0.4230765185
B36: URBAN | D36: Estimate | E36: =C199 -> 2000 | F36: =E199 -> 7.050773247 | G36: =F199 -> 14.81449274 | H36: 50.86692716 | I36: 27.26780685 | J36: =J199 -> 12.52177946 | K36: =K199 -> 21.46957713 | L36: 55.72032079 | M36: 10.28832261 | N36: =O199 -> 21.10810472 | O36: =P199 -> 26.80445713 | P36: 47.25423569 | Q36: 4.833202464 | R36: =T199 -> 29.97019392 | S36: =U199 -> 24.23801811 | T36: 42.97978435 | U36: 2.812003623 | V36: =Y199 -> 59.81183419 | W36: =Z199 -> 12.10888029 | X36: 27.30299248 | Y36: 0.7762930404
E37: =C200 -> 2020 | F37: =E200 -> 18.55274477 | G37: 38.98146956 | H37: 14.0348241 | I37: 28.43096158 | J37: =J200 -> 31.66148224 | K37: 54.28610505 | L37: 4.538497487 | M37: 9.513915217 | N37: =O200 -> 40.85313764 | O37: 51.87799618 | P37: 3.437725428 | Q37: 3.831140753 | R37: =T200 -> 54.8197064 | S37: 44.33474939 | T37: 0 | U37: 0.8455442105 | V37: =Y200 -> 83.16357064 | W37: 16.83642936 | X37: 0 | Y37: 0
B39: RURAL | D39: Estimate | E39: =C299 -> 2000 | F39: =E299 -> 4.189803058 | G39: =F299 -> 2.409160221 | H39: 28.62811962 | I39: 64.7729171 | J39: =J299 -> 2.44266928 | K39: =K299 -> 1.60902572 | L39: 23.63147832 | M39: 72.31682668 | N39: =O299 -> 5.312181679 | O39: =P299 -> 3.235471004 | P39: 28.80084424 | Q39: 62.65150308 | R39: =T299 -> 7.465283609 | S39: =U299 -> 4.822648397 | T39: 40.55998362 | U39: 47.15208437 | V39: =Y299 -> 16.80003416 | W39: =Z299 -> 10.1482587 | X39: 43.59839534 | Y39: 29.4533118
E40: =C300 -> 2020 | F40: =E300 -> 10.77505839 | G40: 6.195718913 | H40: 24.78716005 | I40: 58.24206265 | J40: =J300 -> 15.20880746 | K40: 10.0182872 | L40: 31.24430286 | M40: 43.52860248 | N40: =O300 -> 21.33450067 | O40: 12.99412604 | P40: 30.40361271 | Q40: 35.26776058 | R40: =T300 -> 33.19997241 | S40: 21.44751654 | T40: 25.00538463 | U40: 20.34712643 | V40: =Y300 -> 54.76816913 | W40: 33.08335827 | X40: 9.170170097 | Y40: 2.978302497
A97: NATIONAL | D97: Poorest | I97: Poor | N97: Middle | S97: Rich | X97: Richest
D98: Improved | E98: Basic | F98: Limited | G98: Unimproved | H98: Open defecation | I98: Improved | J98: Basic | K98: Limited | L98: Unimproved | M98: Open defecation | N98: Improved | O98: Basic | P98: Limited | Q98: Unimproved | R98: Open defecation | S98: Improved | T98: Basic | U98: Limited | V98: Unimproved | W98: Open defecation | X98: Improved | Y98: Basic | Z98: Limited | AA98: Unimproved | AB98: Open defecation
A99: Forecast period: | C99: 2000 | D99: =IF((D101+H101)>100,D101*100/(D101+H101),D101) -> 4.853161768 | E99: =D99*AVERAGEIF(E105:E116,">0")/100 -> 3.017478959 | F99: =D99*(100-AVERAGEIF(E105:E116,">0"))/100 -> 1.835682809 | G99: =100-(E99+F99+H99) -> 23.45240758 | H99: =IF((D101+H101)>100,H101*100/(D101+H101),H101) -> 71.69443065 | I99: =IF((I101+M101)>100,I101*100/(I101+M101),I101) -> 7.677438858 | J99: =I99*AVERAGEIF(J105:J116,">0")/100 -> 4.314449591 | K99: =I99*(100-AVERAGEIF(J105:J116,">0"))/100 -> 3.362989267 | L99: =100-(J99+K99+M99) -> 30.5868706 | M99: =IF((I101+M101)>100,M101*100/(I101+M101),M101) -> 61.73569054 | N99: =IF((N101+R101)>100,N101*100/(N101+R101),N101) -> 16.11584139 | O99: =N99*AVERAGEIF(O105:O116,">0")/100 -> 8.366420901 | P99: =N99*(100-AVERAGEIF(O105:O116,">0"))/100 -> 7.749420489 | Q99: =100-(O99+P99+R99) -> 39.9973344 | R99: =IF((N101+R101)>100,R101*100/(N101+R101),R101) -> 43.88682421 | S99: =IF((S101+W101)>100,S101*100/(S101+W101),S101) -> 32.32967664 | T99: =S99*AVERAGEIF(T105:T116,">0")/100 -> 14.09013741 | U99: =S99*(100-AVERAGEIF(T105:T116,">0"))/100 -> 18.23953923 | V99: =100-(T99+U99+W99) -> 52.64518267 | W99: =IF((S101+W101)>100,W101*100/(S101+W101),W101) -> 15.02514069 | X99: =IF((X101+AB101)>100,X101*100/(X101+AB101),X101) -> 61.15975644 | Y99: =X99*AVERAGEIF(Y105:Y116,">0")/100 -> 42.69016678 | Z99: =X99*(100-AVERAGEIF(Y105:Y116,">0"))/100 -> 18.46958966 | AA99: =100-(Y99+Z99+AB99) -> 36.53987783 | AB99: =IF((X101+AB101)>100,AB101*100/(X101+AB101),AB101) -> 2.300365736
C100: 2020 | D100: =IF((D102+H102)>100,D102*100/(D102+H102),D102) -> 20.25473948 | E100: =D100*AVERAGEIF(E105:E116,">0")/100 -> 12.59349123 | F100: =D100*(100-AVERAGEIF(E105:E116,">0"))/100 -> 7.661248242 | G100: =100-(E100+F100+H100) -> 27.95646174 | H100: =IF((D102+H102)>100,H102*100/(D102+H102),H102) -> 51.78879879 | I100: =IF((I102+M102)>100,I102*100/(I102+M102),I102) -> 35.0862682 | J100: =I100*AVERAGEIF(J105:J116,">0")/100 -> 19.71724402 | K100: =I100*(100-AVERAGEIF(J105:J116,">0"))/100 -> 15.36902417 | L100: =100-(J100+K100+M100) -> 29.96481471 | M100: =IF((I102+M102)>100,M102*100/(I102+M102),M102) -> 34.94891709 | N100: =IF((N102+R102)>100,N102*100/(N102+R102),N102) -> 61.68951756 | O100: =N100*AVERAGEIF(O105:O116,">0")/100 -> 32.02566075 | P100: =N100*(100-AVERAGEIF(O105:O116,">0"))/100 -> 29.66385681 | Q100: =100-(O100+P100+R100) -> 20.35257424 | R100: =IF((N102+R102)>100,R102*100/(N102+R102),R102) -> 17.9579082 | S100: =IF((S102+W102)>100,S102*100/(S102+W102),S102) -> 88.91437184 | T100: =S100*AVERAGEIF(T105:T116,">0")/100 -> 38.75126036 | U100: =S100*(100-AVERAGEIF(T105:T116,">0"))/100 -> 50.16311148 | V100: =100-(T100+U100+W100) -> 5.944322394 | W100: =IF((S102+W102)>100,W102*100/(S102+W102),W102) -> 5.141305767 | X100: =IF((X102+AB102)>100,X102*100/(X102+AB102),X102) -> 99.57692348 | Y100: =X100*AVERAGEIF(Y105:Y116,">0")/100 -> 69.50576193 | Z100: =X100*(100-AVERAGEIF(Y105:Y116,">0"))/100 -> 30.07116155 | AA100: =100-(Y100+Z100+AB100) -> 0 | AB100: =IF((X102+AB102)>100,AB102*100/(X102+AB102),AB102) -> 0.4230765185
A101: Regression period: | C101: =MinRegYear(C99,C105:C116) -> 2000 | D101: =IF(MAX(C105:C116)-MIN(C105:C116)<5,AVERAGEIF(C105:C116,">0",D105:D116), IF(FORECAST($C101,D$105:D$116,$C$105:$C$116)<0,0, IF(FORECAST($C101,D$105:D$116,$C$105:$C$116)>100,100, FORECAST($C101,D$105:D$116,$C$105:$C$116)))) -> 4.853161768 | H101: =IF(MAX(C105:C116)-MIN(C105:C116)<5,AVERAGEIF(C105:C116,">0",H105:H116), IF(FORECAST($C101,H$105:H$116,$C$105:$C$116)<0,0, IF(FORECAST($C101,H$105:H$116,$C$105:$C$116)>100,100, FORECAST($C101,H$105:H$116,$C$105:$C$116)))) -> 71.69443065 | I101: =IF(MAX(C105:C116)-MIN(C105:C116)<5,AVERAGEIF(C105:C116,">0",I105:I116), IF(FORECAST($C101,I$105:I$116,$C$105:$C$116)<0,0, IF(FORECAST($C101,I$105:I$116,$C$105:$C$116)>100,100, FORECAST($C101,I$105:I$116,$C$105:$C$116)))) -> 7.677438858 | M101: =IF(MAX(C105:C116)-MIN(C105:C116)<5,AVERAGEIF(C105:C116,">0",M105:M116), IF(FORECAST($C101,M$105:M$116,$C$105:$C$116)<0,0, IF(FORECAST($C101,M$105:M$116,$C$105:$C$116)>100,100, FORECAST($C101,M$105:M$116,$C$105:$C$116)))) -> 61.73569054 | N101: =IF(MAX(C105:C116)-MIN(C105:C116)<5,AVERAGEIF(C105:C116,">0",N105:N116), IF(FORECAST($C101,N$105:N$116,$C$105:$C$116)<0,0, IF(FORECAST($C101,N$105:N$116,$C$105:$C$116)>100,100, FORECAST($C101,N$105:N$116,$C$105:$C$116)))) -> 16.11584139 | R101: =IF(MAX(C105:C116)-MIN(C105:C116)<5,AVERAGEIF(C105:C116,">0",R105:R116), IF(FORECAST($C101,R$105:R$116,$C$105:$C$116)<0,0, IF(FORECAST($C101,R$105:R$116,$C$105:$C$116)>100,100, FORECAST($C101,R$105:R$116,$C$105:$C$116)))) -> 43.88682421 | S101: =IF(MAX(C105:C116)-MIN(C105:C116)<5,AVERAGEIF(C105:C116,">0",S105:S116), IF(FORECAST($C101,S$105:S$116,$C$105:$C$116)<0,0, IF(FORECAST($C101,S$105:S$116,$C$105:$C$116)>100,100, FORECAST($C101,S$105:S$116,$C$105:$C$116)))) -> 32.32967664 | W101: =IF(MAX(C105:C116)-MIN(C105:C116)<5,AVERAGEIF(C105:C116,">0",W105:W116), IF(FORECAST($C101,W$105:W$116,$C$105:$C$116)<0,0, IF(FORECAST($C101,W$105:W$116,$C$105:$C$116)>100,100, FORECAST($C101,W$105:W$116,$C$105:$C$116)))) -> 15.02514069 | X101: =IF(MAX(C105:C116)-MIN(C105:C116)<5,AVERAGEIF(C105:C116,">0",X105:X116), IF(FORECAST($C101,X$105:X$116,$C$105:$C$116)<0,0, IF(FORECAST($C101,X$105:X$116,$C$105:$C$116)>100,100, FORECAST($C101,X$105:X$116,$C$105:$C$116)))) -> 61.15975644 | AB101: =IF(MAX(C105:C116)-MIN(C105:C116)<5,AVERAGEIF(C105:C116,">0",AB105:AB116), IF(FORECAST($C101,AB$105:AB$116,$C$105:$C$116)<0,0, IF(FORECAST($C101,AB$105:AB$116,$C$105:$C$116)>100,100, FORECAST($C101,AB$105:AB$116,$C$105:$C$116)))) -> 2.300365736
C102: =MaxRegYear(C100,C105:C116) -> 2019 | D102: =IF(MAX(C105:C116)-MIN(C105:C116)<5,AVERAGEIF(C105:C116,">0",D105:D116), IF(FORECAST($C102,D$105:D$116,$C$105:$C$116)<0,0, IF(FORECAST($C102,D$105:D$116,$C$105:$C$116)>100,100, FORECAST($C102,D$105:D$116,$C$105:$C$116)))) -> 20.25473948 | H102: =IF(MAX(C105:C116)-MIN(C105:C116)<5,AVERAGEIF(C105:C116,">0",H105:H116), IF(FORECAST($C102,H$105:H$116,$C$105:$C$116)<0,0, IF(FORECAST($C102,H$105:H$116,$C$105:$C$116)>100,100, FORECAST($C102,H$105:H$116,$C$105:$C$116)))) -> 51.78879879 | I102: =IF(MAX(C105:C116)-MIN(C105:C116)<5,AVERAGEIF(C105:C116,">0",I105:I116), IF(FORECAST($C102,I$105:I$116,$C$105:$C$116)<0,0, IF(FORECAST($C102,I$105:I$116,$C$105:$C$116)>100,100, FORECAST($C102,I$105:I$116,$C$105:$C$116)))) -> 35.0862682 | M102: =IF(MAX(C105:C116)-MIN(C105:C116)<5,AVERAGEIF(C105:C116,">0",M105:M116), IF(FORECAST($C102,M$105:M$116,$C$105:$C$116)<0,0, IF(FORECAST($C102,M$105:M$116,$C$105:$C$116)>100,100, FORECAST($C102,M$105:M$116,$C$105:$C$116)))) -> 34.94891709 | N102: =IF(MAX(C105:C116)-MIN(C105:C116)<5,AVERAGEIF(C105:C116,">0",N105:N116), IF(FORECAST($C102,N$105:N$116,$C$105:$C$116)<0,0, IF(FORECAST($C102,N$105:N$116,$C$105:$C$116)>100,100, FORECAST($C102,N$105:N$116,$C$105:$C$116)))) -> 61.68951756 | R102: =IF(MAX(C105:C116)-MIN(C105:C116)<5,AVERAGEIF(C105:C116,">0",R105:R116), IF(FORECAST($C102,R$105:R$116,$C$105:$C$116)<0,0, IF(FORECAST($C102,R$105:R$116,$C$105:$C$116)>100,100, FORECAST($C102,R$105:R$116,$C$105:$C$116)))) -> 17.9579082 | S102: =IF(MAX(C105:C116)-MIN(C105:C116)<5,AVERAGEIF(C105:C116,">0",S105:S116), IF(FORECAST($C102,S$105:S$116,$C$105:$C$116)<0,0, IF(FORECAST($C102,S$105:S$116,$C$105:$C$116)>100,100, FORECAST($C102,S$105:S$116,$C$105:$C$116)))) -> 88.91437184 | W102: =IF(MAX(C105:C116)-MIN(C105:C116)<5,AVERAGEIF(C105:C116,">0",W105:W116), IF(FORECAST($C102,W$105:W$116,$C$105:$C$116)<0,0, IF(FORECAST($C102,W$105:W$116,$C$105:$C$116)>100,100, FORECAST($C102,W$105:W$116,$C$105:$C$116)))) -> 5.141305767 | X102: =IF(MAX(C105:C116)-MIN(C105:C116)<5,AVERAGEIF(C105:C116,">0",X105:X116), IF(FORECAST($C102,X$105:X$116,$C$105:$C$116)<0,0, IF(FORECAST($C102,X$105:X$116,$C$105:$C$116)>100,100, FORECAST($C102,X$105:X$116,$C$105:$C$116)))) -> 100 | AB102: =IF(MAX(C105:C116)-MIN(C105:C116)<5,AVERAGEIF(C105:C116,">0",AB105:AB116), IF(FORECAST($C102,AB$105:AB$116,$C$105:$C$116)<0,0, IF(FORECAST($C102,AB$105:AB$116,$C$105:$C$116)>100,100, FORECAST($C102,AB$105:AB$116,$C$105:$C$116)))) -> 0.4248740609
B104: Survey | C104: Year | D104: Improved | E104: Not shared | H104: Open defecation | I104: Improved | J104: Not shared | M104: Open defecation | N104: Improved | O104: Not shared | R104: Open defecation | S104: Improved | T104: Not shared | W104: Open defecation | X104: Improved | Y104: Not shared | AB104: Open defecation
B105: DHS00 | C105: 2000 | D105: =IF(ISERROR(INDIRECT(CONCATENATE($B105,"!C122"))),"",INDIRECT(CONCATENATE($B105,"!C122"))) -> 6.398556518 | E105: =IF(ISERROR(INDIRECT(CONCATENATE($B105,"!C129"))),"",INDIRECT(CONCATENATE($B105,"!C129"))) -> N/A | H105: =IF(ISERROR(INDIRECT(CONCATENATE($B105,"!C127"))),"",INDIRECT(CONCATENATE($B105,"!C127"))) -> 67.90723753 | I105: =IF(ISERROR(INDIRECT(CONCATENATE($B105,"!D122"))),"",INDIRECT(CONCATENATE($B105,"!D122"))) -> 10.30282235 | J105: =IF(ISERROR(INDIRECT(CONCATENATE($B105,"!D129"))),"",INDIRECT(CONCATENATE($B105,"!D129"))) -> N/A | M105: =IF(ISERROR(INDIRECT(CONCATENATE($B105,"!D127"))),"",INDIRECT(CONCATENATE($B105,"!D127"))) -> 60.0004819 | N105: =IF(ISERROR(INDIRECT(CONCATENATE($B105,"!E122"))),"",INDIRECT(CONCATENATE($B105,"!E122"))) -> 17.76947904 | O105: =IF(ISERROR(INDIRECT(CONCATENATE($B105,"!E129"))),"",INDIRECT(CONCATENATE($B105,"!E129"))) -> N/A | R105: =IF(ISERROR(INDIRECT(CONCATENATE($B105,"!E127"))),"",INDIRECT(CONCATENATE($B105,"!E127"))) -> 46.94864508 | S105: =IF(ISERROR(INDIRECT(CONCATENATE($B105,"!F122"))),"",INDIRECT(CONCATENATE($B105,"!F122"))) -> 35.42149442 | T105: =IF(ISERROR(INDIRECT(CONCATENATE($B105,"!F129"))),"",INDIRECT(CONCATENATE($B105,"!F129"))) -> N/A | W105: =IF(ISERROR(INDIRECT(CONCATENATE($B105,"!F127"))),"",INDIRECT(CONCATENATE($B105,"!F127"))) -> 16.60655087 | X105: =IF(ISERROR(INDIRECT(CONCATENATE($B105,"!G122"))),"",INDIRECT(CONCATENATE($B105,"!G122"))) -> 61.92278246 | Y105: =IF(ISERROR(INDIRECT(CONCATENATE($B105,"!G129"))),"",INDIRECT(CONCATENATE($B105,"!G129"))) -> N/A | AB105: =IF(ISERROR(INDIRECT(CONCATENATE($B105,"!G2127"))),"",INDIRECT(CONCATENATE($B105,"!G127"))) -> 2.9665719
B106: DHS06 | C106: 2006 | D106: 5.05777724 | E106: 70.40151203 | H106: 75.5346602 | I106: 11.66250595 | J106: 59.78267007 | M106: 56.2928541 | N106: 24.05841304 | O106: 60.9690227 | R106: 32.35683447 | S106: 40.50975965 | T106: 40.25333736 | W106: 9.655937818 | X106: 68.9226301 | Y106: 71.39801462 | AB106: 0.8324850971
B107: DHS12 | C107: 2012 | D107: 19.57602128 | E107: 57.71152296 | H107: 49.7212284 | I107: 26.33675052 | J107: 47.35076126 | M107: 44.08191953 | N107: 53.46490204 | O107: 40.2426091 | R107: 24.45268 | S107: 78.87048826 | T107: 40.05278129 | W107: 8.351506072 | X107: 95.33713655 | Y107: 64.92766514 | AB107: 0.7771079621
B108: DHS17 | C108: 2017 | D108: 16.75161939 | E108: 58.41354931 | H108: 56.94632724 | I108: 32.8976254 | J108: 61.45597734 | M108: 37.22345029 | N108: 53.12208018 | O108: 54.53116869 | R108: 24.02534465 | S108: 78.75192908 | T108: 50.4419018 | W108: 7.279503665 | X108: 93.2481303 | Y108: 73.07754188 | AB108: 1.170444899
B118: =CONCATENATE("National use of sanitation facilities, ",C99,"–",C100) -> National use of sanitation facilities, 2000–2020 | S118: Data points used for regression
A197: URBAN | D197: Poorest | I197: Poor | N197: Middle | S197: Rich | X197: Richest
D198: Improved | E198: Basic | F198: Limited | G198: Unimproved | H198: Open defecation | I198: Improved | J198: Basic | K198: Limited | L198: Unimproved | M198: Open defecation | N198: Improved | O198: Basic | P198: Limited | Q198: Unimproved | R198: Open defecation | S198: Improved | T198: Basic | U198: Limited | V198: Unimproved | W198: Open defecation | X198: Improved | Y198: Basic | Z198: Limited | AA198: Unimproved | AB198: Open defecation
A199: Forecast period: | C199: 2000 | D199: =IF((D201+H201)>100,D201*100/(D201+H201),D201) -> 21.86526599 | E199: =D199*AVERAGEIF(E205:E216,">0")/100 -> 7.050773247 | F199: =D199*(100-AVERAGEIF(E205:E216,">0"))/100 -> 14.81449274 | G199: =100-(E199+F199+H199) -> 50.86692716 | H199: =IF((D201+H201)>100,H201*100/(D201+H201),H201) -> 27.26780685 | I199: =IF((I201+M201)>100,I201*100/(I201+M201),I201) -> 33.99135659 | J199: =I199*AVERAGEIF(J205:J216,">0")/100 -> 12.52177946 | K199: =I199*(100-AVERAGEIF(J205:J216,">0"))/100 -> 21.46957713 | L199: =100-(J199+K199+M199) -> 55.72032079 | M199: =IF((I201+M201)>100,M201*100/(I201+M201),M201) -> 10.28832261 | N199: =IF((N201+R201)>100,N201*100/(N201+R201),N201) -> 47.91256185 | O199: =N199*AVERAGEIF(O205:O216,">0")/100 -> 21.10810472 | P199: =N199*(100-AVERAGEIF(O205:O216,">0"))/100 -> 26.80445713 | Q199: =100-(O199+P199+R199) -> 47.25423569 | R199: =IF((N201+R201)>100,R201*100/(N201+R201),R201) -> 4.833202464 | S199: =IF((S201+W201)>100,S201*100/(S201+W201),S201) -> 54.20821203 | T199: =S199*AVERAGEIF(T205:T216,">0")/100 -> 29.97019392 | U199: =S199*(100-AVERAGEIF(T205:T216,">0"))/100 -> 24.23801811 | V199: =100-(T199+U199+W199) -> 42.97978435 | W199: =IF((S201+W201)>100,W201*100/(S201+W201),W201) -> 2.812003623 | X199: =IF((X201+AB201)>100,X201*100/(X201+AB201),X201) -> 71.92071448 | Y199: =X199*AVERAGEIF(Y205:Y216,">0")/100 -> 59.81183419 | Z199: =X199*(100-AVERAGEIF(Y205:Y216,">0"))/100 -> 12.10888029 | AA199: =100-(Y199+Z199+AB199) -> 27.30299248 | AB199: =IF((X201+AB201)>100,AB201*100/(X201+AB201),AB201) -> 0.7762930404
C200: 2020 | D200: =IF((D202+H202)>100,D202*100/(D202+H202),D202) -> 57.53421432 | E200: =D200*AVERAGEIF(E205:E216,">0")/100 -> 18.55274477 | F200: =D200*(100-AVERAGEIF(E205:E216,">0"))/100 -> 38.98146956 | G200: =100-(E200+F200+H200) -> 14.0348241 | H200: =IF((D202+H202)>100,H202*100/(D202+H202),H202) -> 28.43096158 | I200: =IF((I202+M202)>100,I202*100/(I202+M202),I202) -> 85.9475873 | J200: =I200*AVERAGEIF(J205:J216,">0")/100 -> 31.66148224 | K200: =I200*(100-AVERAGEIF(J205:J216,">0"))/100 -> 54.28610505 | L200: =100-(J200+K200+M200) -> 4.538497487 | M200: =IF((I202+M202)>100,M202*100/(I202+M202),M202) -> 9.513915217 | N200: =IF((N202+R202)>100,N202*100/(N202+R202),N202) -> 92.73113382 | O200: =N200*AVERAGEIF(O205:O216,">0")/100 -> 40.85313764 | P200: =N200*(100-AVERAGEIF(O205:O216,">0"))/100 -> 51.87799618 | Q200: =100-(O200+P200+R200) -> 3.437725428 | R200: =IF((N202+R202)>100,R202*100/(N202+R202),R202) -> 3.831140753 | S200: =IF((S202+W202)>100,S202*100/(S202+W202),S202) -> 99.15445579 | T200: =S200*AVERAGEIF(T205:T216,">0")/100 -> 54.8197064 | U200: =S200*(100-AVERAGEIF(T205:T216,">0"))/100 -> 44.33474939 | V200: =100-(T200+U200+W200) -> 0 | W200: =IF((S202+W202)>100,W202*100/(S202+W202),W202) -> 0.8455442105 | X200: =IF((X202+AB202)>100,X202*100/(X202+AB202),X202) -> 100 | Y200: =X200*AVERAGEIF(Y205:Y216,">0")/100 -> 83.16357064 | Z200: =X200*(100-AVERAGEIF(Y205:Y216,">0"))/100 -> 16.83642936 | AA200: =100-(Y200+Z200+AB200) -> 0 | AB200: =IF((X202+AB202)>100,AB202*100/(X202+AB202),AB202) -> 0
A201: Regression period: | C201: =MinRegYear(C199,C205:C216) -> 2000 | D201: =IF(MAX(C205:C216)-MIN(C205:C216)<5,AVERAGEIF(C205:C216,">0",D205:D216), IF(FORECAST($C201,D$205:D$216,$C$205:$C$216)<0,0, IF(FORECAST($C201,D$205:D$216,$C$205:$C$216)>100,100, FORECAST($C201,D$205:D$216,$C$205:$C$216)))) -> 21.86526599 | H201: =IF(MAX(C205:C216)-MIN(C205:C216)<5,AVERAGEIF(C205:C216,">0",H205:H216), IF(FORECAST($C201,H$205:H$216,$C$205:$C$216)<0,0, IF(FORECAST($C201,H$205:H$216,$C$205:$C$216)>100,100, FORECAST($C201,H$205:H$216,$C$205:$C$216)))) -> 27.26780685 | I201: =IF(MAX(C205:C216)-MIN(C205:C216)<5,AVERAGEIF(C205:C216,">0",I205:I216), IF(FORECAST($C201,I$205:I$216,$C$205:$C$216)<0,0, IF(FORECAST($C201,I$205:I$216,$C$205:$C$216)>100,100, FORECAST($C201,I$205:I$216,$C$205:$C$216)))) -> 33.99135659 | M201: =IF(MAX(C205:C216)-MIN(C205:C216)<5,AVERAGEIF(C205:C216,">0",M205:M216), IF(FORECAST($C201,M$205:M$216,$C$205:$C$216)<0,0, IF(FORECAST($C201,M$205:M$216,$C$205:$C$216)>100,100, FORECAST($C201,M$205:M$216,$C$205:$C$216)))) -> 10.28832261 | N201: =IF(MAX(C205:C216)-MIN(C205:C216)<5,AVERAGEIF(C205:C216,">0",N205:N216), IF(FORECAST($C201,N$205:N$216,$C$205:$C$216)<0,0, IF(FORECAST($C201,N$205:N$216,$C$205:$C$216)>100,100, FORECAST($C201,N$205:N$216,$C$205:$C$216)))) -> 47.91256185 | R201: =IF(MAX(C205:C216)-MIN(C205:C216)<5,AVERAGEIF(C205:C216,">0",R205:R216), IF(FORECAST($C201,R$205:R$216,$C$205:$C$216)<0,0, IF(FORECAST($C201,R$205:R$216,$C$205:$C$216)>100,100, FORECAST($C201,R$205:R$216,$C$205:$C$216)))) -> 4.833202464 | S201: =IF(MAX(C205:C216)-MIN(C205:C216)<5,AVERAGEIF(C205:C216,">0",S205:S216), IF(FORECAST($C201,S$205:S$216,$C$205:$C$216)<0,0, IF(FORECAST($C201,S$205:S$216,$C$205:$C$216)>100,100, FORECAST($C201,S$205:S$216,$C$205:$C$216)))) -> 54.20821203 | W201: =IF(MAX(C205:C216)-MIN(C205:C216)<5,AVERAGEIF(C205:C216,">0",W205:W216), IF(FORECAST($C201,W$205:W$216,$C$205:$C$216)<0,0, IF(FORECAST($C201,W$205:W$216,$C$205:$C$216)>100,100, FORECAST($C201,W$205:W$216,$C$205:$C$216)))) -> 2.812003623 | X201: =IF(MAX(C205:C216)-MIN(C205:C216)<5,AVERAGEIF(C205:C216,">0",X205:X216), IF(FORECAST($C201,X$205:X$216,$C$205:$C$216)<0,0, IF(FORECAST($C201,X$205:X$216,$C$205:$C$216)>100,100, FORECAST($C201,X$205:X$216,$C$205:$C$216)))) -> 71.92071448 | AB201: =IF(MAX(C205:C216)-MIN(C205:C216)<5,AVERAGEIF(C205:C216,">0",AB205:AB216), IF(FORECAST($C201,AB$205:AB$216,$C$205:$C$216)<0,0, IF(FORECAST($C201,AB$205:AB$216,$C$205:$C$216)>100,100, FORECAST($C201,AB$205:AB$216,$C$205:$C$216)))) -> 0.7762930404
C202: =MaxRegYear(C200,C205:C216) -> 2019 | D202: =IF(MAX(C205:C216)-MIN(C205:C216)<5,AVERAGEIF(C205:C216,">0",D205:D216), IF(FORECAST($C202,D$205:D$216,$C$205:$C$216)<0,0, IF(FORECAST($C202,D$205:D$216,$C$205:$C$216)>100,100, FORECAST($C202,D$205:D$216,$C$205:$C$216)))) -> 57.53421432 | H202: =IF(MAX(C205:C216)-MIN(C205:C216)<5,AVERAGEIF(C205:C216,">0",H205:H216), IF(FORECAST($C202,H$205:H$216,$C$205:$C$216)<0,0, IF(FORECAST($C202,H$205:H$216,$C$205:$C$216)>100,100, FORECAST($C202,H$205:H$216,$C$205:$C$216)))) -> 28.43096158 | I202: =IF(MAX(C205:C216)-MIN(C205:C216)<5,AVERAGEIF(C205:C216,">0",I205:I216), IF(FORECAST($C202,I$205:I$216,$C$205:$C$216)<0,0, IF(FORECAST($C202,I$205:I$216,$C$205:$C$216)>100,100, FORECAST($C202,I$205:I$216,$C$205:$C$216)))) -> 85.9475873 | M202: =IF(MAX(C205:C216)-MIN(C205:C216)<5,AVERAGEIF(C205:C216,">0",M205:M216), IF(FORECAST($C202,M$205:M$216,$C$205:$C$216)<0,0, IF(FORECAST($C202,M$205:M$216,$C$205:$C$216)>100,100, FORECAST($C202,M$205:M$216,$C$205:$C$216)))) -> 9.513915217 | N202: =IF(MAX(C205:C216)-MIN(C205:C216)<5,AVERAGEIF(C205:C216,">0",N205:N216), IF(FORECAST($C202,N$205:N$216,$C$205:$C$216)<0,0, IF(FORECAST($C202,N$205:N$216,$C$205:$C$216)>100,100, FORECAST($C202,N$205:N$216,$C$205:$C$216)))) -> 92.73113382 | R202: =IF(MAX(C205:C216)-MIN(C205:C216)<5,AVERAGEIF(C205:C216,">0",R205:R216), IF(FORECAST($C202,R$205:R$216,$C$205:$C$216)<0,0, IF(FORECAST($C202,R$205:R$216,$C$205:$C$216)>100,100, FORECAST($C202,R$205:R$216,$C$205:$C$216)))) -> 3.831140753 | S202: =IF(MAX(C205:C216)-MIN(C205:C216)<5,AVERAGEIF(C205:C216,">0",S205:S216), IF(FORECAST($C202,S$205:S$216,$C$205:$C$216)<0,0, IF(FORECAST($C202,S$205:S$216,$C$205:$C$216)>100,100, FORECAST($C202,S$205:S$216,$C$205:$C$216)))) -> 100 | W202: =IF(MAX(C205:C216)-MIN(C205:C216)<5,AVERAGEIF(C205:C216,">0",W205:W216), IF(FORECAST($C202,W$205:W$216,$C$205:$C$216)<0,0, IF(FORECAST($C202,W$205:W$216,$C$205:$C$216)>100,100, FORECAST($C202,W$205:W$216,$C$205:$C$216)))) -> 0.8527546279 | X202: =IF(MAX(C205:C216)-MIN(C205:C216)<5,AVERAGEIF(C205:C216,">0",X205:X216), IF(FORECAST($C202,X$205:X$216,$C$205:$C$216)<0,0, IF(FORECAST($C202,X$205:X$216,$C$205:$C$216)>100,100, FORECAST($C202,X$205:X$216,$C$205:$C$216)))) -> 100 | AB202: =IF(MAX(C205:C216)-MIN(C205:C216)<5,AVERAGEIF(C205:C216,">0",AB205:AB216), IF(FORECAST($C202,AB$205:AB$216,$C$205:$C$216)<0,0, IF(FORECAST($C202,AB$205:AB$216,$C$205:$C$216)>100,100, FORECAST($C202,AB$205:AB$216,$C$205:$C$216)))) -> 0
B204: Survey | C204: Year | D204: Improved | E204: Not shared | H204: Open defecation | I204: Improved | J204: Not shared | M204: Open defecation | N204: Improved | O204: Not shared | R204: Open defecation | S204: Improved | T204: Not shared | W204: Open defecation | X204: Improved | Y204: Not shared | AB204: Open defecation
B205: DHS00 | C205: 2000 | D205: =IF(ISERROR(INDIRECT(CONCATENATE($B205,"!H122"))),"",INDIRECT(CONCATENATE($B205,"!H122"))) -> 24.1375854 | E205: =IF(ISERROR(INDIRECT(CONCATENATE($B205,"!H129"))),"",INDIRECT(CONCATENATE($B205,"!H129"))) -> N/A | H205: =IF(ISERROR(INDIRECT(CONCATENATE($B205,"!H127"))),"",INDIRECT(CONCATENATE($B205,"!H127"))) -> 26.23588132 | I205: =IF(ISERROR(INDIRECT(CONCATENATE($B205,"!I122"))),"",INDIRECT(CONCATENATE($B205,"!I122"))) -> 38.6496314 | J205: =IF(ISERROR(INDIRECT(CONCATENATE($B205,"!I129"))),"",INDIRECT(CONCATENATE($B205,"!I129"))) -> N/A | M205: =IF(ISERROR(INDIRECT(CONCATENATE($B205,"!I127"))),"",INDIRECT(CONCATENATE($B205,"!I127"))) -> 9.012662142 | N205: =IF(ISERROR(INDIRECT(CONCATENATE($B205,"!J122"))),"",INDIRECT(CONCATENATE($B205,"!J122"))) -> 50.32463053 | O205: =IF(ISERROR(INDIRECT(CONCATENATE($B205,"!J129"))),"",INDIRECT(CONCATENATE($B205,"!J129"))) -> N/A | R205: =IF(ISERROR(INDIRECT(CONCATENATE($B205,"!J127"))),"",INDIRECT(CONCATENATE($B205,"!J127"))) -> 5.170895523 | S205: =IF(ISERROR(INDIRECT(CONCATENATE($B205,"!K122"))),"",INDIRECT(CONCATENATE($B205,"!K122"))) -> 55.84325223 | T205: =IF(ISERROR(INDIRECT(CONCATENATE($B205,"!K129"))),"",INDIRECT(CONCATENATE($B205,"!K129"))) -> N/A | W205: =IF(ISERROR(INDIRECT(CONCATENATE($B205,"!K127"))),"",INDIRECT(CONCATENATE($B205,"!K127"))) -> 3.753195914 | X205: =IF(ISERROR(INDIRECT(CONCATENATE($B205,"!L122"))),"",INDIRECT(CONCATENATE($B205,"!L122"))) -> 73.05344037 | Y205: =IF(ISERROR(INDIRECT(CONCATENATE($B205,"!L129"))),"",INDIRECT(CONCATENATE($B205,"!L129"))) -> N/A | AB205: =IF(ISERROR(INDIRECT(CONCATENATE($B205,"!L2127"))),"",INDIRECT(CONCATENATE($B205,"!L127"))) -> 1.068928022
B206: DHS06 | C206: 2006 | D206: 23.14104954 | E206: 32.07464189 | H206: 33.22267033 | I206: 39.03690482 | J206: 38.28866503 | M206: 11.48714668 | N206: 54.11077906 | O206: 41.07043522 | R206: 3.602586036 | S206: 61.7272177 | T206: 54.66967845 | W206: 0.8425717137 | X206: 77.1727092 | Y206: 84.94262548 | AB206: 0.01559662878
B207: DHS12 | C207: 2012 | D207: 58.64094556 | E207: 23.41456306 | H207: 19.21836452 | I207: 75.96338527 | J207: 29.02079367 | M207: 10.96104651 | N207: 85.51903013 | O207: 39.28170095 | R207: 5.063351935 | S207: 93.43193965 | T207: 50.94788685 | W207: 1.346117157 | X207: 97.75945707 | Y207: 78.90008024 | AB207: 0
B208: DHS17 | C208: 2017 | D208: 47.24744092 | E208: 41.25016127 | H208: 32.53696469 | I208: 78.0243509 | J208: 43.20492538 | M208: 8.265895179 | N208: 84.25633499 | O208: 51.8142764 | R208: 3.65007321 | S208: 91.00360072 | T208: 60.24398665 | W208: 1.696986822 | X208: 96.9811388 | Y208: 85.64800619 | AB208: 0
B218: =CONCATENATE("Urban use of sanitation facilities, ",C199,"–",C200) -> Urban use of sanitation facilities, 2000–2020 | S218: Data points used for regression
A297: RURAL | D297: Poorest | I297: Poor | N297: Middle | S297: Rich | X297: Richest
D298: Improved | E298: Basic | F298: Limited | G298: Unimproved | H298: Open defecation | I298: Improved | J298: Basic | K298: Limited | L298: Unimproved | M298: Open defecation | N298: Improved | O298: Basic | P298: Limited | Q298: Unimproved | R298: Open defecation | S298: Improved | T298: Basic | U298: Limited | V298: Unimproved | W298: Open defecation | X298: Improved | Y298: Basic | Z298: Limited | AA298: Unimproved | AB298: Open defecation
A299: Forecast period: | C299: 2000 | D299: =IF((D301+H301)>100,D301*100/(D301+H301),D301) -> 6.598963278 | E299: =D299*AVERAGEIF(E305:E316,">0")/100 -> 4.189803058 | F299: =D299*(100-AVERAGEIF(E305:E316,">0"))/100 -> 2.409160221 | G299: =100-(E299+F299+H299) -> 28.62811962 | H299: =IF((D301+H301)>100,H301*100/(D301+H301),H301) -> 64.7729171 | I299: =IF((I301+M301)>100,I301*100/(I301+M301),I301) -> 4.051695 | J299: =I299*AVERAGEIF(J305:J316,">0")/100 -> 2.44266928 | K299: =I299*(100-AVERAGEIF(J305:J316,">0"))/100 -> 1.60902572 | L299: =100-(J299+K299+M299) -> 23.63147832 | M299: =IF((I301+M301)>100,M301*100/(I301+M301),M301) -> 72.31682668 | N299: =IF((N301+R301)>100,N301*100/(N301+R301),N301) -> 8.547652683 | O299: =N299*AVERAGEIF(O305:O316,">0")/100 -> 5.312181679 | P299: =N299*(100-AVERAGEIF(O305:O316,">0"))/100 -> 3.235471004 | Q299: =100-(O299+P299+R299) -> 28.80084424 | R299: =IF((N301+R301)>100,R301*100/(N301+R301),R301) -> 62.65150308 | S299: =IF((S301+W301)>100,S301*100/(S301+W301),S301) -> 12.28793201 | T299: =S299*AVERAGEIF(T305:T316,">0")/100 -> 7.465283609 | U299: =S299*(100-AVERAGEIF(T305:T316,">0"))/100 -> 4.822648397 | V299: =100-(T299+U299+W299) -> 40.55998362 | W299: =IF((S301+W301)>100,W301*100/(S301+W301),W301) -> 47.15208437 | X299: =IF((X301+AB301)>100,X301*100/(X301+AB301),X301) -> 26.94829286 | Y299: =X299*AVERAGEIF(Y305:Y316,">0")/100 -> 16.80003416 | Z299: =X299*(100-AVERAGEIF(Y305:Y316,">0"))/100 -> 10.1482587 | AA299: =100-(Y299+Z299+AB299) -> 43.59839534 | AB299: =IF((X301+AB301)>100,AB301*100/(X301+AB301),AB301) -> 29.4533118
C300: 2020 | D300: =IF((D302+H302)>100,D302*100/(D302+H302),D302) -> 16.9707773 | E300: =D300*AVERAGEIF(E305:E316,">0")/100 -> 10.77505839 | F300: =D300*(100-AVERAGEIF(E305:E316,">0"))/100 -> 6.195718913 | G300: =100-(E300+F300+H300) -> 24.78716005 | H300: =IF((D302+H302)>100,H302*100/(D302+H302),H302) -> 58.24206265 | I300: =IF((I302+M302)>100,I302*100/(I302+M302),I302) -> 25.22709466 | J300: =I300*AVERAGEIF(J305:J316,">0")/100 -> 15.20880746 | K300: =I300*(100-AVERAGEIF(J305:J316,">0"))/100 -> 10.0182872 | L300: =100-(J300+K300+M300) -> 31.24430286 | M300: =IF((I302+M302)>100,M302*100/(I302+M302),M302) -> 43.52860248 | N300: =IF((N302+R302)>100,N302*100/(N302+R302),N302) -> 34.32862671 | O300: =N300*AVERAGEIF(O305:O316,">0")/100 -> 21.33450067 | P300: =N300*(100-AVERAGEIF(O305:O316,">0"))/100 -> 12.99412604 | Q300: =100-(O300+P300+R300) -> 30.40361271 | R300: =IF((N302+R302)>100,R302*100/(N302+R302),R302) -> 35.26776058 | S300: =IF((S302+W302)>100,S302*100/(S302+W302),S302) -> 54.64748895 | T300: =S300*AVERAGEIF(T305:T316,">0")/100 -> 33.19997241 | U300: =S300*(100-AVERAGEIF(T305:T316,">0"))/100 -> 21.44751654 | V300: =100-(T300+U300+W300) -> 25.00538463 | W300: =IF((S302+W302)>100,W302*100/(S302+W302),W302) -> 20.34712643 | X300: =IF((X302+AB302)>100,X302*100/(X302+AB302),X302) -> 87.85152741 | Y300: =X300*AVERAGEIF(Y305:Y316,">0")/100 -> 54.76816913 | Z300: =X300*(100-AVERAGEIF(Y305:Y316,">0"))/100 -> 33.08335827 | AA300: =100-(Y300+Z300+AB300) -> 9.170170097 | AB300: =IF((X302+AB302)>100,AB302*100/(X302+AB302),AB302) -> 2.978302497
A301: Regression period: | C301: =MinRegYear(C299,C305:C316) -> 2000 | D301: =IF(MAX(C305:C316)-MIN(C305:C316)<5,AVERAGEIF(C305:C316,">0",D305:D316), IF(FORECAST($C301,D$305:D$316,$C$305:$C$316)<0,0, IF(FORECAST($C301,D$305:D$316,$C$305:$C$316)>100,100, FORECAST($C301,D$305:D$316,$C$305:$C$316)))) -> 6.598963278 | H301: =IF(MAX(C305:C316)-MIN(C305:C316)<5,AVERAGEIF(C305:C316,">0",H305:H316), IF(FORECAST($C301,H$305:H$316,$C$305:$C$316)<0,0, IF(FORECAST($C301,H$305:H$316,$C$305:$C$316)>100,100, FORECAST($C301,H$305:H$316,$C$305:$C$316)))) -> 64.7729171 | I301: =IF(MAX(C305:C316)-MIN(C305:C316)<5,AVERAGEIF(C305:C316,">0",I305:I316), IF(FORECAST($C301,I$305:I$316,$C$305:$C$316)<0,0, IF(FORECAST($C301,I$305:I$316,$C$305:$C$316)>100,100, FORECAST($C301,I$305:I$316,$C$305:$C$316)))) -> 4.051695 | M301: =IF(MAX(C305:C316)-MIN(C305:C316)<5,AVERAGEIF(C305:C316,">0",M305:M316), IF(FORECAST($C301,M$305:M$316,$C$305:$C$316)<0,0, IF(FORECAST($C301,M$305:M$316,$C$305:$C$316)>100,100, FORECAST($C301,M$305:M$316,$C$305:$C$316)))) -> 72.31682668 | N301: =IF(MAX(C305:C316)-MIN(C305:C316)<5,AVERAGEIF(C305:C316,">0",N305:N316), IF(FORECAST($C301,N$305:N$316,$C$305:$C$316)<0,0, IF(FORECAST($C301,N$305:N$316,$C$305:$C$316)>100,100, FORECAST($C301,N$305:N$316,$C$305:$C$316)))) -> 8.547652683 | R301: =IF(MAX(C305:C316)-MIN(C305:C316)<5,AVERAGEIF(C305:C316,">0",R305:R316), IF(FORECAST($C301,R$305:R$316,$C$305:$C$316)<0,0, IF(FORECAST($C301,R$305:R$316,$C$305:$C$316)>100,100, FORECAST($C301,R$305:R$316,$C$305:$C$316)))) -> 62.65150308 | S301: =IF(MAX(C305:C316)-MIN(C305:C316)<5,AVERAGEIF(C305:C316,">0",S305:S316), IF(FORECAST($C301,S$305:S$316,$C$305:$C$316)<0,0, IF(FORECAST($C301,S$305:S$316,$C$305:$C$316)>100,100, FORECAST($C301,S$305:S$316,$C$305:$C$316)))) -> 12.28793201 | W301: =IF(MAX(C305:C316)-MIN(C305:C316)<5,AVERAGEIF(C305:C316,">0",W305:W316), IF(FORECAST($C301,W$305:W$316,$C$305:$C$316)<0,0, IF(FORECAST($C301,W$305:W$316,$C$305:$C$316)>100,100, FORECAST($C301,W$305:W$316,$C$305:$C$316)))) -> 47.15208437 | X301: =IF(MAX(C305:C316)-MIN(C305:C316)<5,AVERAGEIF(C305:C316,">0",X305:X316), IF(FORECAST($C301,X$305:X$316,$C$305:$C$316)<0,0, IF(FORECAST($C301,X$305:X$316,$C$305:$C$316)>100,100, FORECAST($C301,X$305:X$316,$C$305:$C$316)))) -> 26.94829286 | AB301: =IF(MAX(C305:C316)-MIN(C305:C316)<5,AVERAGEIF(C305:C316,">0",AB305:AB316), IF(FORECAST($C301,AB$305:AB$316,$C$305:$C$316)<0,0, IF(FORECAST($C301,AB$305:AB$316,$C$305:$C$316)>100,100, FORECAST($C301,AB$305:AB$316,$C$305:$C$316)))) -> 29.4533118
C302: =MaxRegYear(C300,C305:C316) -> 2019 | D302: =IF(MAX(C305:C316)-MIN(C305:C316)<5,AVERAGEIF(C305:C316,">0",D305:D316), IF(FORECAST($C302,D$305:D$316,$C$305:$C$316)<0,0, IF(FORECAST($C302,D$305:D$316,$C$305:$C$316)>100,100, FORECAST($C302,D$305:D$316,$C$305:$C$316)))) -> 16.9707773 | H302: =IF(MAX(C305:C316)-MIN(C305:C316)<5,AVERAGEIF(C305:C316,">0",H305:H316), IF(FORECAST($C302,H$305:H$316,$C$305:$C$316)<0,0, IF(FORECAST($C302,H$305:H$316,$C$305:$C$316)>100,100, FORECAST($C302,H$305:H$316,$C$305:$C$316)))) -> 58.24206265 | I302: =IF(MAX(C305:C316)-MIN(C305:C316)<5,AVERAGEIF(C305:C316,">0",I305:I316), IF(FORECAST($C302,I$305:I$316,$C$305:$C$316)<0,0, IF(FORECAST($C302,I$305:I$316,$C$305:$C$316)>100,100, FORECAST($C302,I$305:I$316,$C$305:$C$316)))) -> 25.22709466 | M302: =IF(MAX(C305:C316)-MIN(C305:C316)<5,AVERAGEIF(C305:C316,">0",M305:M316), IF(FORECAST($C302,M$305:M$316,$C$305:$C$316)<0,0, IF(FORECAST($C302,M$305:M$316,$C$305:$C$316)>100,100, FORECAST($C302,M$305:M$316,$C$305:$C$316)))) -> 43.52860248 | N302: =IF(MAX(C305:C316)-MIN(C305:C316)<5,AVERAGEIF(C305:C316,">0",N305:N316), IF(FORECAST($C302,N$305:N$316,$C$305:$C$316)<0,0, IF(FORECAST($C302,N$305:N$316,$C$305:$C$316)>100,100, FORECAST($C302,N$305:N$316,$C$305:$C$316)))) -> 34.32862671 | R302: =IF(MAX(C305:C316)-MIN(C305:C316)<5,AVERAGEIF(C305:C316,">0",R305:R316), IF(FORECAST($C302,R$305:R$316,$C$305:$C$316)<0,0, IF(FORECAST($C302,R$305:R$316,$C$305:$C$316)>100,100, FORECAST($C302,R$305:R$316,$C$305:$C$316)))) -> 35.26776058 | S302: =IF(MAX(C305:C316)-MIN(C305:C316)<5,AVERAGEIF(C305:C316,">0",S305:S316), IF(FORECAST($C302,S$305:S$316,$C$305:$C$316)<0,0, IF(FORECAST($C302,S$305:S$316,$C$305:$C$316)>100,100, FORECAST($C302,S$305:S$316,$C$305:$C$316)))) -> 54.64748895 | W302: =IF(MAX(C305:C316)-MIN(C305:C316)<5,AVERAGEIF(C305:C316,">0",W305:W316), IF(FORECAST($C302,W$305:W$316,$C$305:$C$316)<0,0, IF(FORECAST($C302,W$305:W$316,$C$305:$C$316)>100,100, FORECAST($C302,W$305:W$316,$C$305:$C$316)))) -> 20.34712643 | X302: =IF(MAX(C305:C316)-MIN(C305:C316)<5,AVERAGEIF(C305:C316,">0",X305:X316), IF(FORECAST($C302,X$305:X$316,$C$305:$C$316)<0,0, IF(FORECAST($C302,X$305:X$316,$C$305:$C$316)>100,100, FORECAST($C302,X$305:X$316,$C$305:$C$316)))) -> 87.85152741 | AB302: =IF(MAX(C305:C316)-MIN(C305:C316)<5,AVERAGEIF(C305:C316,">0",AB305:AB316), IF(FORECAST($C302,AB$305:AB$316,$C$305:$C$316)<0,0, IF(FORECAST($C302,AB$305:AB$316,$C$305:$C$316)>100,100, FORECAST($C302,AB$305:AB$316,$C$305:$C$316)))) -> 2.978302497
B304: Survey | C304: Year | D304: Improved | E304: Not shared | H304: Open defecation | I304: Improved | J304: Not shared | M304: Open defecation | N304: Improved | O304: Not shared | R304: Open defecation | S304: Improved | T304: Not shared | W304: Open defecation | X304: Improved | Y304: Not shared | AB304: Open defecation
B305: DHS00 | C305: 2000 | D305: =IF(ISERROR(INDIRECT(CONCATENATE($B305,"!M122"))),"",INDIRECT(CONCATENATE($B305,"!M122"))) -> 8.671582869 | E305: =IF(ISERROR(INDIRECT(CONCATENATE($B305,"!M129"))),"",INDIRECT(CONCATENATE($B305,"!M129"))) -> N/A | H305: =IF(ISERROR(INDIRECT(CONCATENATE($B305,"!M127"))),"",INDIRECT(CONCATENATE($B305,"!M127"))) -> 56.95922372 | I305: =IF(ISERROR(INDIRECT(CONCATENATE($B305,"!N122"))),"",INDIRECT(CONCATENATE($B305,"!N122"))) -> 5.880840964 | J305: =IF(ISERROR(INDIRECT(CONCATENATE($B305,"!N129"))),"",INDIRECT(CONCATENATE($B305,"!N129"))) -> N/A | M305: =IF(ISERROR(INDIRECT(CONCATENATE($B305,"!N127"))),"",INDIRECT(CONCATENATE($B305,"!N127"))) -> 70.60190856 | N305: =IF(ISERROR(INDIRECT(CONCATENATE($B305,"!O122"))),"",INDIRECT(CONCATENATE($B305,"!O122"))) -> 10.94192769 | O305: =IF(ISERROR(INDIRECT(CONCATENATE($B305,"!O129"))),"",INDIRECT(CONCATENATE($B305,"!O129"))) -> N/A | R305: =IF(ISERROR(INDIRECT(CONCATENATE($B305,"!O127"))),"",INDIRECT(CONCATENATE($B305,"!O127"))) -> 61.30085432 | S305: =IF(ISERROR(INDIRECT(CONCATENATE($B305,"!P122"))),"",INDIRECT(CONCATENATE($B305,"!P122"))) -> 14.96580234 | T305: =IF(ISERROR(INDIRECT(CONCATENATE($B305,"!P129"))),"",INDIRECT(CONCATENATE($B305,"!P129"))) -> N/A | W305: =IF(ISERROR(INDIRECT(CONCATENATE($B305,"!P127"))),"",INDIRECT(CONCATENATE($B305,"!P127"))) -> 49.3449435 | X305: =IF(ISERROR(INDIRECT(CONCATENATE($B305,"!Q122"))),"",INDIRECT(CONCATENATE($B305,"!Q122"))) -> 26.88709174 | Y305: =IF(ISERROR(INDIRECT(CONCATENATE($B305,"!Q129"))),"",INDIRECT(CONCATENATE($B305,"!Q129"))) -> N/A | AB305: =IF(ISERROR(INDIRECT(CONCATENATE($B305,"!Q2127"))),"",INDIRECT(CONCATENATE($B305,"!Q127"))) -> 34.63109721
B306: DHS06 | C306: 2006 | D306: 4.484040639 | E306: 63.97706503 | H306: 79.03922905 | I306: 6.399064762 | J306: 72.42758222 | M306: 68.85558128 | N306: 13.14765603 | O306: 66.4068103 | R306: 55.01923244 | S306: 20.34543642 | T306: 67.01203781 | W306: 35.05594035 | X306: 41.20866995 | Y306: 65.25797275 | AB306: 13.96075107
B307: DHS12 | C307: 2012 | D307: 17.96118718 | E307: 65.07636783 | H307: 51.29161292 | I307: 20.75365216 | J307: 49.8987651 | M307: 47.58001187 | N307: 24.48082324 | O307: 53.77815921 | R307: 47.71521418 | S307: 41.63881237 | T307: 54.51407112 | W307: 30.75604122 | X307: 76.56046867 | Y307: 57.31278266 | AB307: 10.81825214
B308: DHS17 | C308: 2017 | D308: 14.38501563 | E308: 61.42208039 | H308: 59.77108136 | I308: 22.18053727 | J308: 58.53642345 | M308: 49.1988657 | N308: 33.11147173 | O308: 66.25855631 | R308: 36.12697518 | S308: 50.23243968 | T308: 60.7328002 | W308: 24.0738583 | X308: 75.32710998 | Y308: 64.45445889 | AB308: 9.633392797
B318: =CONCATENATE("Rural use of sanitation facilities, ",C299,"–",C300) -> Rural use of sanitation facilities, 2000–2020 | S318: Data points used for regression

Sheet Hygiene
B4: Access to hygiene facilities by wealth quintile (%)
B5: =IF(ISERROR(INDIRECT(CONCATENATE($E$32,"!A2"))),"",INDIRECT(CONCATENATE($E$32,"!A2"))) -> Haiti
B7: =CONCATENATE("National ",IF(ISERROR(INDIRECT(CONCATENATE($E$32,"!A2"))),"",INDIRECT(CONCATENATE($E$32,"!A210")))) -> National Access to hygiene facilities | K7: =CONCATENATE("Urban ",IF(ISERROR(INDIRECT(CONCATENATE($E$32,"!A2"))),"",INDIRECT(CONCATENATE($E$32,"!A210")))) -> Urban Access to hygiene facilities | S7: =CONCATENATE("Rural ",IF(ISERROR(INDIRECT(CONCATENATE($E$32,"!A2"))),"",INDIRECT(CONCATENATE($E$32,"!A210")))) -> Rural Access to hygiene facilities
E32: =INDEX(B88:B100,A88) -> DHS17 | G32: =IF(ISERROR(INDIRECT(CONCATENATE($E$32,"!A2"))),"",INDIRECT(CONCATENATE($E$32,"!A2"))) -> Haiti | K32: Poorest | N32: Poor | Q32: Middle | T32: Rich | W32: Richest
K33: Basic | L33: Limited | M33: No facility | N33: Basic | O33: Limited | P33: No facility | Q33: Basic | R33: Limited | S33: No facility | T33: Basic | U33: Limited | V33: No facility | W33: Basic | X33: Limited | Y33: No facility
B34: >>> Select Survey : | G34: NATIONAL | J34: =IF(ISERROR(INDIRECT(CONCATENATE(#REF!,"!A2"))),"",INDIRECT(CONCATENATE(#REF!,"!A210"))) ->  | K34: =IF(ISERROR(INDIRECT(CONCATENATE($E$32,"!C222"))),"",INDIRECT(CONCATENATE($E$32,"!C222"))) -> 12.6 | L34: =IF(ISERROR(INDIRECT(CONCATENATE($E$32,"!C223"))),"",INDIRECT(CONCATENATE($E$32,"!C223"))) -> 64.2 | M34: =IF(ISERROR(INDIRECT(CONCATENATE($E$32,"!C224"))),"",INDIRECT(CONCATENATE($E$32,"!C224"))) -> 23.2 | N34: =IF(ISERROR(INDIRECT(CONCATENATE($E$32,"!D222"))),"",INDIRECT(CONCATENATE($E$32,"!D222"))) -> 14.1 | O34: =IF(ISERROR(INDIRECT(CONCATENATE($E$32,"!D223"))),"",INDIRECT(CONCATENATE($E$32,"!D223"))) -> 65 | P34: =IF(ISERROR(INDIRECT(CONCATENATE($E$32,"!D224"))),"",INDIRECT(CONCATENATE($E$32,"!D224"))) -> 20.8 | Q34: =IF(ISERROR(INDIRECT(CONCATENATE($E$32,"!E222"))),"",INDIRECT(CONCATENATE($E$32,"!E222"))) -> 17.9 | R34: =IF(ISERROR(INDIRECT(CONCATENATE($E$32,"!E223"))),"",INDIRECT(CONCATENATE($E$32,"!E223"))) -> 64 | S34: =IF(ISERROR(INDIRECT(CONCATENATE($E$32,"!E224"))),"",INDIRECT(CONCATENATE($E$32,"!E224"))) -> 18.1 | T34: =IF(ISERROR(INDIRECT(CONCATENATE($E$32,"!F222"))),"",INDIRECT(CONCATENATE($E$32,"!F222"))) -> 23 | U34: =IF(ISERROR(INDIRECT(CONCATENATE($E$32,"!F223"))),"",INDIRECT(CONCATENATE($E$32,"!F223"))) -> 62.8 | V34: =IF(ISERROR(INDIRECT(CONCATENATE($E$32,"!F224"))),"",INDIRECT(CONCATENATE($E$32,"!F224"))) -> 14.2 | W34: =IF(ISERROR(INDIRECT(CONCATENATE($E$32,"!G222"))),"",INDIRECT(CONCATENATE($E$32,"!G222"))) -> 40.3 | X34: =IF(ISERROR(INDIRECT(CONCATENATE($E$32,"!G223"))),"",INDIRECT(CONCATENATE($E$32,"!G223"))) -> 51.3 | Y34: =IF(ISERROR(INDIRECT(CONCATENATE($E$32,"!G224"))),"",INDIRECT(CONCATENATE($E$32,"!G224"))) -> 8.4
G37: URBAN | J37: =IF(ISERROR(INDIRECT(CONCATENATE(#REF!,"!A2"))),"",INDIRECT(CONCATENATE(#REF!,"!A210"))) ->  | K37: =IF(ISERROR(INDIRECT(CONCATENATE($E$32,"!H222"))),"",INDIRECT(CONCATENATE($E$32,"!H222"))) -> 15.1 | L37: =IF(ISERROR(INDIRECT(CONCATENATE($E$32,"!H223"))),"",INDIRECT(CONCATENATE($E$32,"!H223"))) -> 63.9 | M37: =IF(ISERROR(INDIRECT(CONCATENATE($E$32,"!H224"))),"",INDIRECT(CONCATENATE($E$32,"!H224"))) -> 21 | N37: =IF(ISERROR(INDIRECT(CONCATENATE($E$32,"!I222"))),"",INDIRECT(CONCATENATE($E$32,"!I222"))) -> 22 | O37: =IF(ISERROR(INDIRECT(CONCATENATE($E$32,"!I223"))),"",INDIRECT(CONCATENATE($E$32,"!I223"))) -> 61.7 | P37: =IF(ISERROR(INDIRECT(CONCATENATE($E$32,"!I224"))),"",INDIRECT(CONCATENATE($E$32,"!I224"))) -> 16.2 | Q37: =IF(ISERROR(INDIRECT(CONCATENATE($E$32,"!J222"))),"",INDIRECT(CONCATENATE($E$32,"!J222"))) -> 24 | R37: =IF(ISERROR(INDIRECT(CONCATENATE($E$32,"!J223"))),"",INDIRECT(CONCATENATE($E$32,"!J223"))) -> 63.6 | S37: =IF(ISERROR(INDIRECT(CONCATENATE($E$32,"!J224"))),"",INDIRECT(CONCATENATE($E$32,"!J224"))) -> 12.4 | T37: =IF(ISERROR(INDIRECT(CONCATENATE($E$32,"!K222"))),"",INDIRECT(CONCATENATE($E$32,"!K222"))) -> 31.2 | U37: =IF(ISERROR(INDIRECT(CONCATENATE($E$32,"!K223"))),"",INDIRECT(CONCATENATE($E$32,"!K223"))) -> 58.9 | V37: =IF(ISERROR(INDIRECT(CONCATENATE($E$32,"!K224"))),"",INDIRECT(CONCATENATE($E$32,"!K224"))) -> 9.9 | W37: =IF(ISERROR(INDIRECT(CONCATENATE($E$32,"!L222"))),"",INDIRECT(CONCATENATE($E$32,"!L222"))) -> 50.3 | X37: =IF(ISERROR(INDIRECT(CONCATENATE($E$32,"!L223"))),"",INDIRECT(CONCATENATE($E$32,"!L223"))) -> 43.8 | Y37: =IF(ISERROR(INDIRECT(CONCATENATE($E$32,"!L224"))),"",INDIRECT(CONCATENATE($E$32,"!L224"))) -> 5.9
G40: RURAL | J40: =IF(ISERROR(INDIRECT(CONCATENATE(#REF!,"!A2"))),"",INDIRECT(CONCATENATE(#REF!,"!A210"))) ->  | K40: =IF(ISERROR(INDIRECT(CONCATENATE($E$32,"!M222"))),"",INDIRECT(CONCATENATE($E$32,"!M222"))) -> 11.2 | L40: =IF(ISERROR(INDIRECT(CONCATENATE($E$32,"!M223"))),"",INDIRECT(CONCATENATE($E$32,"!M223"))) -> 64.9 | M40: =IF(ISERROR(INDIRECT(CONCATENATE($E$32,"!M224"))),"",INDIRECT(CONCATENATE($E$32,"!M224"))) -> 23.9 | N40: =IF(ISERROR(INDIRECT(CONCATENATE($E$32,"!N222"))),"",INDIRECT(CONCATENATE($E$32,"!N222"))) -> 14.8 | O40: =IF(ISERROR(INDIRECT(CONCATENATE($E$32,"!N223"))),"",INDIRECT(CONCATENATE($E$32,"!N223"))) -> 64 | P40: =IF(ISERROR(INDIRECT(CONCATENATE($E$32,"!N224"))),"",INDIRECT(CONCATENATE($E$32,"!N224"))) -> 21.2 | Q40: =IF(ISERROR(INDIRECT(CONCATENATE($E$32,"!O222"))),"",INDIRECT(CONCATENATE($E$32,"!O222"))) -> 14.3 | R40: =IF(ISERROR(INDIRECT(CONCATENATE($E$32,"!O223"))),"",INDIRECT(CONCATENATE($E$32,"!O223"))) -> 65.9 | S40: =IF(ISERROR(INDIRECT(CONCATENATE($E$32,"!O224"))),"",INDIRECT(CONCATENATE($E$32,"!O224"))) -> 19.8 | T40: =IF(ISERROR(INDIRECT(CONCATENATE($E$32,"!P222"))),"",INDIRECT(CONCATENATE($E$32,"!P222"))) -> 18.1 | U40: =IF(ISERROR(INDIRECT(CONCATENATE($E$32,"!P223"))),"",INDIRECT(CONCATENATE($E$32,"!P223"))) -> 63.4 | V40: =IF(ISERROR(INDIRECT(CONCATENATE($E$32,"!P224"))),"",INDIRECT(CONCATENATE($E$32,"!P224"))) -> 18.5 | W40: =IF(ISERROR(INDIRECT(CONCATENATE($E$32,"!Q222"))),"",INDIRECT(CONCATENATE($E$32,"!Q222"))) -> 27 | X40: =IF(ISERROR(INDIRECT(CONCATENATE($E$32,"!Q223"))),"",INDIRECT(CONCATENATE($E$32,"!Q223"))) -> 59.2 | Y40: =IF(ISERROR(INDIRECT(CONCATENATE($E$32,"!Q224"))),"",INDIRECT(CONCATENATE($E$32,"!Q224"))) -> 13.8
A88: 4 | B88: DHS00
B89: DHS06
B90: DHS12
B91: DHS17
B92: Template

Sheet DHS00
A2: =A1026 -> Haiti
A3: =A1034 -> 2000
A4: Use of drinking water sources
A5: by wealth quintile and sub-national region
A6: Notes:
A7: WHO/UNICEF JMP customised wealth index excludes water,
A8: sanitation and hygiene assets.
A9: Survey used for analysis: | B9: =A1025 -> DHS00
A10: Improved wells based on: | B10: DHS06
A11: Time to inproved source based on: | B11: DHS06
A14: Use of drinking water sources | C14: NATIONAL wealth index quintile | H14: URBAN wealth index quintile | M14: RURAL wealth index quintile | R14: SUB-REGIONS: | BA14: Raw numbers of respondents: | BB14: Use of drinking water sources | BC14: NATIONAL wealth index quintile | BH14: URBAN wealth index quintile | BM14: RURAL wealth index quintile | BR14: SUB-REGIONS:
A15: Weighted percentage (used in graphs) | C15: Poorest | D15: Poor | E15: Middle | F15: Rich | G15: Richest | H15: Poorest | I15: Poor | J15: Middle | K15: Rich | L15: Richest | M15: Poorest | N15: Poor | O15: Middle | P15: Rich | Q15: Richest | R15: artibonite | S15: centre | T15: grande-anse | U15: metropolitain area | V15: north | W15: north-east | X15: north-west | Y15: south | Z15: south-east | AA15: west | BA15: Water data, raw numbers (weighted) | BC15: Poorest | BD15: Poor | BE15: Middle | BF15: Rich | BG15: Richest | BH15: Poorest | BI15: Poor | BJ15: Middle | BK15: Rich | BL15: Richest | BM15: Poorest | BN15: Poor | BO15: Middle | BP15: Rich | BQ15: Richest | BR15: artibonite | BS15: centre | BT15: grande-anse | BU15: metropolitain area | BV15: north | BW15: north-east | BX15: north-west | BY15: south | BZ15: south-east | CA15: west
A16: Water | B16: Improved | C16: =C58+C59+C64+C69+C70+C71+C72+(C60+C60+C61+C62+C63)*'DHS06'!C24/100 -> 48.36320975 | D16: =D58+D59+D64+D69+D70+D71+D72+(D60+D60+D61+D62+D63)*'DHS06'!D24/100 -> 51.59841525 | E16: =E58+E59+E64+E69+E70+E71+E72+(E60+E60+E61+E62+E63)*'DHS06'!E24/100 -> 65.58509509 | F16: =F58+F59+F64+F69+F70+F71+F72+(F60+F60+F61+F62+F63)*'DHS06'!F24/100 -> 93.89237804 | G16: =G58+G59+G64+G69+G70+G71+G72+(G60+G60+G61+G62+G63)*'DHS06'!G24/100 -> 99.87049338 | H16: =H58+H59+H64+H69+H70+H71+H72+(H60+H60+H61+H62+H63)*'DHS06'!H24/100 -> 89.36632333 | I16: =I58+I59+I64+I69+I70+I71+I72+(I60+I60+I61+I62+I63)*'DHS06'!I24/100 -> 98.57667253 | J16: =J58+J59+J64+J69+J70+J71+J72+(J60+J60+J61+J62+J63)*'DHS06'!J24/100 -> 100.1836176 | K16: =K58+K59+K64+K69+K70+K71+K72+(K60+K60+K61+K62+K63)*'DHS06'!K24/100 -> 99.24740594 | L16: =L58+L59+L64+L69+L70+L71+L72+(L60+L60+L61+L62+L63)*'DHS06'!L24/100 -> 100.050104 | M16: =M58+M59+M64+M69+M70+M71+M72+(M60+M60+M61+M62+M63)*'DHS06'!M24/100 -> 49.57714057 | N16: =N58+N59+N64+N69+N70+N71+N72+(N60+N60+N61+N62+N63)*'DHS06'!N24/100 -> 46.91849448 | O16: =O58+O59+O64+O69+O70+O71+O72+(O60+O60+O61+O62+O63)*'DHS06'!O24/100 -> 51.70548355 | P16: =P58+P59+P64+P69+P70+P71+P72+(P60+P60+P61+P62+P63)*'DHS06'!P24/100 -> 60.9565292 | Q16: =Q58+Q59+Q64+Q69+Q70+Q71+Q72+(Q60+Q60+Q61+Q62+Q63)*'DHS06'!Q24/100 -> 77.38093438 | R16: =R58+R59+R64+R69+R70+R71+R72+(R60+R60+R61+R62+R63)*'DHS06'!R24/100 -> 75.78469444 | S16: =S58+S59+S64+S69+S70+S71+S72+(S60+S60+S61+S62+S63)*'DHS06'!S24/100 -> 65.83934917 | T16: =T58+T59+T64+T69+T70+T71+T72+(T60+T60+T61+T62+T63)*'DHS06'!T24/100 -> 61.08169439 | U16: =U58+U59+U64+U69+U70+U71+U72+(U60+U60+U61+U62+U63)*'DHS06'!U24/100 -> 98.84960962 | V16: =V58+V59+V64+V69+V70+V71+V72+(V60+V60+V61+V62+V63)*'DHS06'!V24/100 -> 39.50313935 | W16: =W58+W59+W64+W69+W70+W71+W72+(W60+W60+W61+W62+W63)*'DHS06'!W24/100 -> 56.30336647 | X16: =X58+X59+X64+X69+X70+X71+X72+(X60+X60+X61+X62+X63)*'DHS06'!X24/100 -> 62.27979803 | Y16: =Y58+Y59+Y64+Y69+Y70+Y71+Y72+(Y60+Y60+Y61+Y62+Y63)*'DHS06'!Y24/100 -> 50.88474548 | Z16: =Z58+Z59+Z64+Z69+Z70+Z71+Z72+(Z60+Z60+Z61+Z62+Z63)*'DHS06'!Z24/100 -> 62.93504783 | AA16: =AA58+AA59+AA64+AA69+AA70+AA71+AA72+(AA60+AA60+AA61+AA62+AA63)*'DHS06'!AA24/100 -> 58.43674385 | BA16: Water | BB16: Improved | BC16: N/A | BD16: N/A | BE16: N/A | BF16: N/A | BG16: N/A | BH16: N/A | BI16: N/A | BJ16: N/A | BK16: N/A | BL16: N/A | BM16: N/A | BN16: N/A | BO16: N/A | BP16: N/A | BQ16: N/A | BR16: N/A | BS16: N/A | BT16: N/A | BU16: N/A | BV16: N/A | BW16: N/A | BX16: N/A | BY16: N/A | BZ16: N/A | CA16: N/A
B17: Not Improved | C17: =100-C16 -> 51.63679025 | D17: =100-D16 -> 48.40158475 | E17: 34.41490491 | F17: 6.10762196 | G17: 0.1295066245 | H17: 10.63367667 | I17: 1.42332747 | J17: -0.1836175953 | K17: 0.7525940609 | L17: -0.05010403031 | M17: 50.42285943 | N17: 53.08150552 | O17: 48.29451645 | P17: 39.0434708 | Q17: 22.61906562 | R17: 24.21530556 | S17: 34.16065083 | T17: 38.91830561 | U17: 1.15039038 | V17: 60.49686065 | W17: 43.69663353 | X17: 37.72020197 | Y17: 49.11525452 | Z17: 37.06495217 | AA17: 41.56325615 | BB17: Not Improved | BC17: N/A | BD17: N/A | BE17: N/A | BF17: N/A | BG17: N/A | BH17: N/A | BI17: N/A | BJ17: N/A | BK17: N/A | BL17: N/A | BM17: N/A | BN17: N/A | BO17: N/A | BP17: N/A | BQ17: N/A | BR17: N/A | BS17: N/A | BT17: N/A | BU17: N/A | BV17: N/A | BW17: N/A | BX17: N/A | BY17: N/A | BZ17: N/A | CA17: N/A
A18: Water ladder | B18: Basic | C18: =C16*'DHS06'!C23/100 -> 37.43312435 | D18: =D16*'DHS06'!D23/100 -> 41.48512586 | E18: =E16*'DHS06'!E23/100 -> 56.33759668 | F18: =F16*'DHS06'!F23/100 -> 86.56877255 | G18: =G16*'DHS06'!G23/100 -> 96.37502611 | H18: =H16*'DHS06'!H23/100 -> 81.5914532 | I18: =I16*'DHS06'!I23/100 -> 90.29623204 | J18: =J16*'DHS06'!J23/100 -> 93.57149883 | K18: =K16*'DHS06'!K23/100 -> 95.2775097 | L18: =L16*'DHS06'!L23/100 -> 98.34925226 | M18: =M16*'DHS06'!M23/100 -> 37.13327829 | N18: =N16*'DHS06'!N23/100 -> 38.28549149 | O18: =O16*'DHS06'!O23/100 -> 39.81322234 | P18: =P16*'DHS06'!P23/100 -> 50.65487576 | Q18: =Q16*'DHS06'!Q23/100 -> 70.33926935 | R18: =R16*'DHS06'!R23/100 -> 69.72191889 | S18: =S16*'DHS06'!S23/100 -> 59.05789621 | T18: =T16*'DHS06'!T23/100 -> 45.56694402 | U18: =U16*'DHS06'!U23/100 -> 88.86579905 | V18: =V16*'DHS06'!V23/100 -> 35.11829088 | W18: =W16*'DHS06'!W23/100 -> 52.30582745 | X18: =X16*'DHS06'!X23/100 -> 56.23865762 | Y18: =Y16*'DHS06'!Y23/100 -> 41.87814553 | Z18: =Z16*'DHS06'!Z23/100 -> 55.50871219 | AA18: =AA16*'DHS06'!AA23/100 -> 42.42507604 | BA18: Water ladder | BB18: Basic | BC18: N/A | BD18: N/A | BE18: N/A | BF18: N/A | BG18: N/A | BH18: N/A | BI18: N/A | BJ18: N/A | BK18: N/A | BL18: N/A | BM18: N/A | BN18: N/A | BO18: N/A | BP18: N/A | BQ18: N/A | BR18: N/A | BS18: N/A | BT18: N/A | BU18: N/A | BV18: N/A | BW18: N/A | BX18: N/A | BY18: N/A | BZ18: N/A | CA18: N/A
B19: Limited | C19: =C16*'DHS06'!C22/100 -> 10.9300854 | D19: =D16*'DHS06'!D22/100 -> 10.11328939 | E19: =E16*'DHS06'!E22/100 -> 9.247498407 | F19: =F16*'DHS06'!F22/100 -> 7.323605487 | G19: =G16*'DHS06'!G22/100 -> 3.495467268 | H19: =H16*'DHS06'!H22/100 -> 7.77487013 | I19: =I16*'DHS06'!I22/100 -> 8.280440493 | J19: =J16*'DHS06'!J22/100 -> 6.612118761 | K19: =K16*'DHS06'!K22/100 -> 3.969896238 | L19: =L16*'DHS06'!L22/100 -> 1.700851769 | M19: =M16*'DHS06'!M22/100 -> 12.44386228 | N19: =N16*'DHS06'!N22/100 -> 8.633002983 | O19: =O16*'DHS06'!O22/100 -> 11.89226122 | P19: =P16*'DHS06'!P22/100 -> 10.30165343 | Q19: =Q16*'DHS06'!Q22/100 -> 7.041665028 | R19: =R16*'DHS06'!R22/100 -> 6.062775555 | S19: =S16*'DHS06'!S22/100 -> 6.781452965 | T19: =T16*'DHS06'!T22/100 -> 15.51475038 | U19: =U16*'DHS06'!U22/100 -> 9.983810572 | V19: =V16*'DHS06'!V22/100 -> 4.384848468 | W19: =W16*'DHS06'!W22/100 -> 3.997539019 | X19: =X16*'DHS06'!X22/100 -> 6.041140409 | Y19: =Y16*'DHS06'!Y22/100 -> 9.00659995 | Z19: =Z16*'DHS06'!Z22/100 -> 7.426335644 | AA19: =AA16*'DHS06'!AA22/100 -> 16.01166782 | BB19: Limited | BC19: N/A | BD19: N/A | BE19: N/A | BF19: N/A | BG19: N/A | BH19: N/A | BI19: N/A | BJ19: N/A | BK19: N/A | BL19: N/A | BM19: N/A | BN19: N/A | BO19: N/A | BP19: N/A | BQ19: N/A | BR19: N/A | BS19: N/A | BT19: N/A | BU19: N/A | BV19: N/A | BW19: N/A | BX19: N/A | BY19: N/A | BZ19: N/A | CA19: N/A
B20: Unimproved | C20: =100-(C18+C19+C21) -> 41.43200085 | D20: =100-(D18+D19+D21) -> 38.1429042 | E20: 27.01461519 | F20: 5.276490277 | G20: 0.1295066245 | H20: 7.256704878 | I20: 1.182855455 | J20: -0.1836175953 | K20: 0.7525940609 | L20: -0.05010403031 | M20: 36.74719538 | N20: 43.95259016 | O20: 37.57543993 | P20: 30.65308293 | Q20: 19.12318975 | R20: 13.88596533 | S20: 27.43516562 | T20: 35.67501974 | U20: 1.15039038 | V20: 58.18551945 | W20: 17.88221276 | X20: 24.43257226 | Y20: 46.4121289 | Z20: 34.97105582 | AA20: 32.66283275 | BB20: Unimproved | BC20: N/A | BD20: N/A | BE20: N/A | BF20: N/A | BG20: N/A | BH20: N/A | BI20: N/A | BJ20: N/A | BK20: N/A | BL20: N/A | BM20: N/A | BN20: N/A | BO20: N/A | BP20: N/A | BQ20: N/A | BR20: N/A | BS20: N/A | BT20: N/A | BU20: N/A | BV20: N/A | BW20: N/A | BX20: N/A | BY20: N/A | BZ20: N/A | CA20: N/A
B21: Surface water | C21: =C66+C67+C68 -> 10.2047894 | D21: 10.25868056 | E21: 7.400289724 | F21: 0.831131683 | G21: 0 | H21: 3.376971791 | I21: 0.2404720144 | J21: 0 | K21: 0 | L21: 0 | M21: 13.67566405 | N21: 9.128915367 | O21: 10.71907652 | P21: 8.390387875 | Q21: 3.495875871 | R21: 10.32934023 | S21: 6.725485212 | T21: 3.243285867 | U21: 0 | V21: 2.311341201 | W21: 25.81442077 | X21: 13.28762971 | Y21: 2.703125617 | Z21: 2.093896351 | AA21: 8.900423397 | BB21: Surface water | BC21: N/A | BD21: N/A | BE21: N/A | BF21: N/A | BG21: N/A | BH21: N/A | BI21: N/A | BJ21: N/A | BK21: N/A | BL21: N/A | BM21: N/A | BN21: N/A | BO21: N/A | BP21: N/A | BQ21: N/A | BR21: N/A | BS21: N/A | BT21: N/A | BU21: N/A | BV21: N/A | BW21: N/A | BX21: N/A | BY21: N/A | BZ21: N/A | CA21: N/A
A22: Improved water point at more than 30 minutes | B22: Yes | C22: N/A | D22: N/A | E22: N/A | F22: N/A | G22: N/A | H22: N/A | I22: N/A | J22: N/A | K22: N/A | L22: N/A | M22: N/A | N22: N/A | O22: N/A | P22: N/A | Q22: N/A | R22: N/A | S22: N/A | T22: N/A | U22: N/A | V22: N/A | W22: N/A | X22: N/A | Y22: N/A | Z22: N/A | AA22: N/A | BA22: Improved water point at more than 30 minutes | BB22: Yes | BC22: N/A | BD22: N/A | BE22: N/A | BF22: N/A | BG22: N/A | BH22: N/A | BI22: N/A | BJ22: N/A | BK22: N/A | BL22: N/A | BM22: N/A | BN22: N/A | BO22: N/A | BP22: N/A | BQ22: N/A | BR22: N/A | BS22: N/A | BT22: N/A | BU22: N/A | BV22: N/A | BW22: N/A | BX22: N/A | BY22: N/A | BZ22: N/A | CA22: N/A
B23: No | C23: N/A | D23: N/A | E23: N/A | F23: N/A | G23: N/A | H23: N/A | I23: N/A | J23: N/A | K23: N/A | L23: N/A | M23: N/A | N23: N/A | O23: N/A | P23: N/A | Q23: N/A | R23: N/A | S23: N/A | T23: N/A | U23: N/A | V23: N/A | W23: N/A | X23: N/A | Y23: N/A | Z23: N/A | AA23: N/A | BB23: No | BC23: N/A | BD23: N/A | BE23: N/A | BF23: N/A | BG23: N/A | BH23: N/A | BI23: N/A | BJ23: N/A | BK23: N/A | BL23: N/A | BM23: N/A | BN23: N/A | BO23: N/A | BP23: N/A | BQ23: N/A | BR23: N/A | BS23: N/A | BT23: N/A | BU23: N/A | BV23: N/A | BW23: N/A | BX23: N/A | BY23: N/A | BZ23: N/A | CA23: N/A
A24: Manually calculated ratios | B24: Improved wells
B25: Improved springs
B26: Other
C27: NATIONAL wealth index quintile | H27: URBAN wealth index quintile | M27: RURAL wealth index quintile | R27: SUB-REGIONS: | BA27: Raw numbers of respondents: | BB27: Use of drinking water sources | BC27: NATIONAL wealth index quintile | BH27: URBAN wealth index quintile | BM27: RURAL wealth index quintile | BR27: SUB-REGIONS:
A28: Percentage based on weighted population | C28: Poorest | D28: Poor | E28: Middle | F28: Rich | G28: Richest | H28: Poorest | I28: Poor | J28: Middle | K28: Rich | L28: Richest | M28: Poorest | N28: Poor | O28: Middle | P28: Rich | Q28: Richest | R28: artibonite | S28: centre | T28: grande-anse | U28: metropolitain area | V28: north | W28: north-east | X28: north-west | Y28: south | Z28: south-east | AA28: west | BA28: Water data, raw numbers (weighted) | BC28: Poorest | BD28: Poor | BE28: Middle | BF28: Rich | BG28: Richest | BH28: Poorest | BI28: Poor | BJ28: Middle | BK28: Rich | BL28: Richest | BM28: Poorest | BN28: Poor | BO28: Middle | BP28: Rich | BQ28: Richest | BR28: artibonite | BS28: centre | BT28: grande-anse | BU28: metropolitain area | BV28: north | BW28: north-east | BX28: north-west | BY28: south | BZ28: south-east | CA28: west
A29: Piped water | B29: Yes | C29: 29.88404228 | D29: 29.34301455 | E29: 41.91749712 | F29: 74.51229572 | G29: 86.2263991 | H29: 68.99035006 | I29: 85.26124128 | J29: 84.88494966 | K29: 84.1399449 | L29: 87.86418421 | M29: 33.44728566 | N29: 27.6131709 | O29: 29.35541626 | P29: 39.97834647 | Q29: 50.96093352 | R29: 43.30360377 | S29: 61.59335059 | T29: 37.46977952 | U29: 88.10772522 | V29: 28.94151422 | W29: 38.29653603 | X29: 40.10756673 | Y29: 32.4778988 | Z29: 46.69118622 | AA29: 33.33771517 | BA29: Piped water | BB29: Yes | BC29: N/A | BD29: N/A | BE29: N/A | BF29: N/A | BG29: N/A | BH29: N/A | BI29: N/A | BJ29: N/A | BK29: N/A | BL29: N/A | BM29: N/A | BN29: N/A | BO29: N/A | BP29: N/A | BQ29: N/A | BR29: N/A | BS29: N/A | BT29: N/A | BU29: N/A | BV29: N/A | BW29: N/A | BX29: N/A | BY29: N/A | BZ29: N/A | CA29: N/A
B30: No | C30: 70.11595772 | D30: 70.65698545 | E30: 58.08250288 | F30: 25.48770428 | G30: 13.7736009 | H30: 31.00964994 | I30: 14.73875872 | J30: 15.11505034 | K30: 15.8600551 | L30: 12.13581579 | M30: 66.55271434 | N30: 72.3868291 | O30: 70.64458374 | P30: 60.02165353 | Q30: 49.03906648 | R30: 56.69639623 | S30: 38.40664941 | T30: 62.53022048 | U30: 11.89227478 | V30: 71.05848578 | W30: 61.70346397 | X30: 59.89243327 | Y30: 67.5221012 | Z30: 53.30881378 | AA30: 66.66228483 | BB30: No | BC30: N/A | BD30: N/A | BE30: N/A | BF30: N/A | BG30: N/A | BH30: N/A | BI30: N/A | BJ30: N/A | BK30: N/A | BL30: N/A | BM30: N/A | BN30: N/A | BO30: N/A | BP30: N/A | BQ30: N/A | BR30: N/A | BS30: N/A | BT30: N/A | BU30: N/A | BV30: N/A | BW30: N/A | BX30: N/A | BY30: N/A | BZ30: N/A | CA30: N/A
A31: Piped water on premises | B31: Yes | C31: 29.88404228 | D31: 29.34301455 | E31: 41.91749712 | F31: 74.51229572 | G31: 86.2263991 | H31: 68.99035006 | I31: 85.26124128 | J31: 84.88494966 | K31: 84.1399449 | L31: 87.86418421 | M31: 33.44728566 | N31: 27.6131709 | O31: 29.35541626 | P31: 39.97834647 | Q31: 50.96093352 | R31: 43.30360377 | S31: 61.59335059 | T31: 37.46977952 | U31: 88.10772522 | V31: 28.94151422 | W31: 38.29653603 | X31: 40.10756673 | Y31: 32.4778988 | Z31: 46.69118622 | AA31: 33.33771517 | BA31: Piped water on premises | BB31: Yes | BC31: N/A | BD31: N/A | BE31: N/A | BF31: N/A | BG31: N/A | BH31: N/A | BI31: N/A | BJ31: N/A | BK31: N/A | BL31: N/A | BM31: N/A | BN31: N/A | BO31: N/A | BP31: N/A | BQ31: N/A | BR31: N/A | BS31: N/A | BT31: N/A | BU31: N/A | BV31: N/A | BW31: N/A | BX31: N/A | BY31: N/A | BZ31: N/A | CA31: N/A
B32: No | C32: 70.11595772 | D32: 70.65698545 | E32: 58.08250288 | F32: 25.48770428 | G32: 13.7736009 | H32: 31.00964994 | I32: 14.73875872 | J32: 15.11505034 | K32: 15.8600551 | L32: 12.13581579 | M32: 66.55271434 | N32: 72.3868291 | O32: 70.64458374 | P32: 60.02165353 | Q32: 49.03906648 | R32: 56.69639623 | S32: 38.40664941 | T32: 62.53022048 | U32: 11.89227478 | V32: 71.05848578 | W32: 61.70346397 | X32: 59.89243327 | Y32: 67.5221012 | Z32: 53.30881378 | AA32: 66.66228483 | BB32: No | BC32: N/A | BD32: N/A | BE32: N/A | BF32: N/A | BG32: N/A | BH32: N/A | BI32: N/A | BJ32: N/A | BK32: N/A | BL32: N/A | BM32: N/A | BN32: N/A | BO32: N/A | BP32: N/A | BQ32: N/A | BR32: N/A | BS32: N/A | BT32: N/A | BU32: N/A | BV32: N/A | BW32: N/A | BX32: N/A | BY32: N/A | BZ32: N/A | CA32: N/A
A33: Piped water into dwelling | B33: Yes | C33: N/A | D33: N/A | E33: N/A | F33: N/A | G33: N/A | H33: N/A | I33: N/A | J33: N/A | K33: N/A | L33: N/A | M33: N/A | N33: N/A | O33: N/A | P33: N/A | Q33: N/A | R33: N/A | S33: N/A | T33: N/A | U33: N/A | V33: N/A | W33: N/A | X33: N/A | Y33: N/A | Z33: N/A | AA33: N/A | BA33: Piped water into dwelling | BB33: Yes | BC33: N/A | BD33: N/A | BE33: N/A | BF33: N/A | BG33: N/A | BH33: N/A | BI33: N/A | BJ33: N/A | BK33: N/A | BL33: N/A | BM33: N/A | BN33: N/A | BO33: N/A | BP33: N/A | BQ33: N/A | BR33: N/A | BS33: N/A | BT33: N/A | BU33: N/A | BV33: N/A | BW33: N/A | BX33: N/A | BY33: N/A | BZ33: N/A | CA33: N/A
B34: No | C34: N/A | D34: N/A | E34: N/A | F34: N/A | G34: N/A | H34: N/A | I34: N/A | J34: N/A | K34: N/A | L34: N/A | M34: N/A | N34: N/A | O34: N/A | P34: N/A | Q34: N/A | R34: N/A | S34: N/A | T34: N/A | U34: N/A | V34: N/A | W34: N/A | X34: N/A | Y34: N/A | Z34: N/A | AA34: N/A | BB34: No | BC34: N/A | BD34: N/A | BE34: N/A | BF34: N/A | BG34: N/A | BH34: N/A | BI34: N/A | BJ34: N/A | BK34: N/A | BL34: N/A | BM34: N/A | BN34: N/A | BO34: N/A | BP34: N/A | BQ34: N/A | BR34: N/A | BS34: N/A | BT34: N/A | BU34: N/A | BV34: N/A | BW34: N/A | BX34: N/A | BY34: N/A | BZ34: N/A | CA34: N/A
A35: Water source on premises | B35: Yes | C35: 37.4 | D35: 35.7 | E35: 47.2 | F35: 82.1 | G35: 95 | H35: 76.4 | I35: 91.2 | J35: 93 | K35: 94 | L35: 96.7 | M35: 41.4 | N35: 35.5 | O35: 34.8 | P35: 45.1 | Q35: 57.4 | R35: 56 | S35: 67.5 | T35: 43.6 | U35: 95.5 | V35: 31.1 | W35: 43.5 | X35: 45.6 | Y35: 36.4 | Z35: 50.9 | AA35: 39.7 | BA35: Water source on premises | BB35: Yes | BC35: N/A | BD35: N/A | BE35: N/A | BF35: N/A | BG35: N/A | BH35: N/A | BI35: N/A | BJ35: N/A | BK35: N/A | BL35: N/A | BM35: N/A | BN35: N/A | BO35: N/A | BP35: N/A | BQ35: N/A | BR35: N/A | BS35: N/A | BT35: N/A | BU35: N/A | BV35: N/A | BW35: N/A | BX35: N/A | BY35: N/A | BZ35: N/A | CA35: N/A
B36: No | C36: 62.6 | D36: 64.3 | E36: 52.8 | F36: 17.9 | G36: 5 | H36: 23.6 | I36: 8.8 | J36: 7 | K36: 6 | L36: 3.3 | M36: 58.6 | N36: 64.5 | O36: 65.2 | P36: 54.9 | Q36: 42.6 | R36: 44 | S36: 32.5 | T36: 56.4 | U36: 4.5 | V36: 68.9 | W36: 56.5 | X36: 54.4 | Y36: 63.6 | Z36: 49.1 | AA36: 60.3 | BB36: No | BC36: N/A | BD36: N/A | BE36: N/A | BF36: N/A | BG36: N/A | BH36: N/A | BI36: N/A | BJ36: N/A | BK36: N/A | BL36: N/A | BM36: N/A | BN36: N/A | BO36: N/A | BP36: N/A | BQ36: N/A | BR36: N/A | BS36: N/A | BT36: N/A | BU36: N/A | BV36: N/A | BW36: N/A | BX36: N/A | BY36: N/A | BZ36: N/A | CA36: N/A
A37: Improved Water source on premises | B37: Yes | C37: N/A | D37: N/A | E37: N/A | F37: N/A | G37: N/A | H37: N/A | I37: N/A | J37: N/A | K37: N/A | L37: N/A | M37: N/A | N37: N/A | O37: N/A | P37: N/A | Q37: N/A | R37: N/A | S37: N/A | T37: N/A | U37: N/A | V37: N/A | W37: N/A | X37: N/A | Y37: N/A | Z37: N/A | AA37: N/A | BA37: Improved water source on premises | BB37: Yes | BC37: N/A | BD37: N/A | BE37: N/A | BF37: N/A | BG37: N/A | BH37: N/A | BI37: N/A | BJ37: N/A | BK37: N/A | BL37: N/A | BM37: N/A | BN37: N/A | BO37: N/A | BP37: N/A | BQ37: N/A | BR37: N/A | BS37: N/A | BT37: N/A | BU37: N/A | BV37: N/A | BW37: N/A | BX37: N/A | BY37: N/A | BZ37: N/A | CA37: N/A
B38: No | C38: N/A | D38: N/A | E38: N/A | F38: N/A | G38: N/A | H38: N/A | I38: N/A | J38: N/A | K38: N/A | L38: N/A | M38: N/A | N38: N/A | O38: N/A | P38: N/A | Q38: N/A | R38: N/A | S38: N/A | T38: N/A | U38: N/A | V38: N/A | W38: N/A | X38: N/A | Y38: N/A | Z38: N/A | AA38: N/A | BB38: No | BC38: N/A | BD38: N/A | BE38: N/A | BF38: N/A | BG38: N/A | BH38: N/A | BI38: N/A | BJ38: N/A | BK38: N/A | BL38: N/A | BM38: N/A | BN38: N/A | BO38: N/A | BP38: N/A | BQ38: N/A | BR38: N/A | BS38: N/A | BT38: N/A | BU38: N/A | BV38: N/A | BW38: N/A | BX38: N/A | BY38: N/A | BZ38: N/A | CA38: N/A
A39: Piped water on premises available when needed | B39: Yes | C39: N/A | D39: N/A | E39: N/A | F39: N/A | G39: N/A | H39: N/A | I39: N/A | J39: N/A | K39: N/A | L39: N/A | M39: N/A | N39: N/A | O39: N/A | P39: N/A | Q39: N/A | R39: N/A | S39: N/A | T39: N/A | U39: N/A | V39: N/A | W39: N/A | X39: N/A | Y39: N/A | Z39: N/A | AA39: N/A | BA39: Piped water on premises available when needed | BB39: Yes | BC39: N/A | BD39: N/A | BE39: N/A | BF39: N/A | BG39: N/A | BH39: N/A | BI39: N/A | BJ39: N/A | BK39: N/A | BL39: N/A | BM39: N/A | BN39: N/A | BO39: N/A | BP39: N/A | BQ39: N/A | BR39: N/A | BS39: N/A | BT39: N/A | BU39: N/A | BV39: N/A | BW39: N/A | BX39: N/A | BY39: N/A | BZ39: N/A | CA39: N/A
B40: No | C40: N/A | D40: N/A | E40: N/A | F40: N/A | G40: N/A | H40: N/A | I40: N/A | J40: N/A | K40: N/A | L40: N/A | M40: N/A | N40: N/A | O40: N/A | P40: N/A | Q40: N/A | R40: N/A | S40: N/A | T40: N/A | U40: N/A | V40: N/A | W40: N/A | X40: N/A | Y40: N/A | Z40: N/A | AA40: N/A | BB40: No | BC40: N/A | BD40: N/A | BE40: N/A | BF40: N/A | BG40: N/A | BH40: N/A | BI40: N/A | BJ40: N/A | BK40: N/A | BL40: N/A | BM40: N/A | BN40: N/A | BO40: N/A | BP40: N/A | BQ40: N/A | BR40: N/A | BS40: N/A | BT40: N/A | BU40: N/A | BV40: N/A | BW40: N/A | BX40: N/A | BY40: N/A | BZ40: N/A | CA40: N/A
A41: Water point at more than 30 minutes | B41: Yes | C41: 24.35041184 | D41: 24.30420695 | E41: 19.80503231 | F41: 3.072992894 | G41: 0.5667293285 | H41: 5.568270239 | I41: 0.8654319516 | J41: 0.1180414108 | K41: 0.7839482297 | L41: 0.3888520814 | M41: 23.24270869 | N41: 25.1073252 | O41: 24.41560034 | P41: 21.08474339 | Q41: 13.73994784 | R41: 10.83591828 | S41: 6.41651138 | T41: 17.83147691 | U41: 0.4259664766 | V41: 23.20664243 | W41: 5.753755137 | X41: 33.58656756 | Y41: 18.27601517 | Z41: 31.04448687 | AA41: 31.62027404 | BA41: Water point at more than 30 minutes | BB41: Yes | BC41: N/A | BD41: N/A | BE41: N/A | BF41: N/A | BG41: N/A | BH41: N/A | BI41: N/A | BJ41: N/A | BK41: N/A | BL41: N/A | BM41: N/A | BN41: N/A | BO41: N/A | BP41: N/A | BQ41: N/A | BR41: N/A | BS41: N/A | BT41: N/A | BU41: N/A | BV41: N/A | BW41: N/A | BX41: N/A | BY41: N/A | BZ41: N/A | CA41: N/A
B42: No | C42: 75.64958816 | D42: 75.69579305 | E42: 80.19496769 | F42: 96.92700711 | G42: 99.43327067 | H42: 94.43172976 | I42: 99.13456805 | J42: 99.88195859 | K42: 99.21605177 | L42: 99.61114792 | M42: 76.75729131 | N42: 74.8926748 | O42: 75.58439966 | P42: 78.91525661 | Q42: 86.26005216 | R42: 89.16408172 | S42: 93.58348862 | T42: 82.16852309 | U42: 99.57403352 | V42: 76.79335757 | W42: 94.24624486 | X42: 66.41343244 | Y42: 81.72398483 | Z42: 68.95551313 | AA42: 68.37972596 | BB42: No | BC42: N/A | BD42: N/A | BE42: N/A | BF42: N/A | BG42: N/A | BH42: N/A | BI42: N/A | BJ42: N/A | BK42: N/A | BL42: N/A | BM42: N/A | BN42: N/A | BO42: N/A | BP42: N/A | BQ42: N/A | BR42: N/A | BS42: N/A | BT42: N/A | BU42: N/A | BV42: N/A | BW42: N/A | BX42: N/A | BY42: N/A | BZ42: N/A | CA42: N/A
A43: Water source available when needed | B43: Yes | C43: N/A | D43: N/A | E43: N/A | F43: N/A | G43: N/A | H43: N/A | I43: N/A | J43: N/A | K43: N/A | L43: N/A | M43: N/A | N43: N/A | O43: N/A | P43: N/A | Q43: N/A | R43: N/A | S43: N/A | T43: N/A | U43: N/A | V43: N/A | W43: N/A | X43: N/A | Y43: N/A | Z43: N/A | AA43: N/A | BA43: Water source available when needed | BB43: Yes | BC43: N/A | BD43: N/A | BE43: N/A | BF43: N/A | BG43: N/A | BH43: N/A | BI43: N/A | BJ43: N/A | BK43: N/A | BL43: N/A | BM43: N/A | BN43: N/A | BO43: N/A | BP43: N/A | BQ43: N/A | BR43: N/A | BS43: N/A | BT43: N/A | BU43: N/A | BV43: N/A | BW43: N/A | BX43: N/A | BY43: N/A | BZ43: N/A | CA43: N/A
B44: No | C44: N/A | D44: N/A | E44: N/A | F44: N/A | G44: N/A | H44: N/A | I44: N/A | J44: N/A | K44: N/A | L44: N/A | M44: N/A | N44: N/A | O44: N/A | P44: N/A | Q44: N/A | R44: N/A | S44: N/A | T44: N/A | U44: N/A | V44: N/A | W44: N/A | X44: N/A | Y44: N/A | Z44: N/A | AA44: N/A | BB44: No | BC44: N/A | BD44: N/A | BE44: N/A | BF44: N/A | BG44: N/A | BH44: N/A | BI44: N/A | BJ44: N/A | BK44: N/A | BL44: N/A | BM44: N/A | BN44: N/A | BO44: N/A | BP44: N/A | BQ44: N/A | BR44: N/A | BS44: N/A | BT44: N/A | BU44: N/A | BV44: N/A | BW44: N/A | BX44: N/A | BY44: N/A | BZ44: N/A | CA44: N/A
A45: Improved water source available when needed | B45: Yes | C45: N/A | D45: N/A | E45: N/A | F45: N/A | G45: N/A | H45: N/A | I45: N/A | J45: N/A | K45: N/A | L45: N/A | M45: N/A | N45: N/A | O45: N/A | P45: N/A | Q45: N/A | R45: N/A | S45: N/A | T45: N/A | U45: N/A | V45: N/A | W45: N/A | X45: N/A | Y45: N/A | Z45: N/A | AA45: N/A | BA45: Improved water source available when needed | BB45: Yes | BC45: N/A | BD45: N/A | BE45: N/A | BF45: N/A | BG45: N/A | BH45: N/A | BI45: N/A | BJ45: N/A | BK45: N/A | BL45: N/A | BM45: N/A | BN45: N/A | BO45: N/A | BP45: N/A | BQ45: N/A | BR45: N/A | BS45: N/A | BT45: N/A | BU45: N/A | BV45: N/A | BW45: N/A | BX45: N/A | BY45: N/A | BZ45: N/A | CA45: N/A
B46: No | C46: N/A | D46: N/A | E46: N/A | F46: N/A | G46: N/A | H46: N/A | I46: N/A | J46: N/A | K46: N/A | L46: N/A | M46: N/A | N46: N/A | O46: N/A | P46: N/A | Q46: N/A | R46: N/A | S46: N/A | T46: N/A | U46: N/A | V46: N/A | W46: N/A | X46: N/A | Y46: N/A | Z46: N/A | AA46: N/A | BB46: No | BC46: N/A | BD46: N/A | BE46: N/A | BF46: N/A | BG46: N/A | BH46: N/A | BI46: N/A | BJ46: N/A | BK46: N/A | BL46: N/A | BM46: N/A | BN46: N/A | BO46: N/A | BP46: N/A | BQ46: N/A | BR46: N/A | BS46: N/A | BT46: N/A | BU46: N/A | BV46: N/A | BW46: N/A | BX46: N/A | BY46: N/A | BZ46: N/A | CA46: N/A
A47: Microbiological quality at point of collection | B47: Not contaminated (No E. coli in 100 mL) | C47: N/A | D47: N/A | E47: N/A | F47: N/A | G47: N/A | H47: N/A | I47: N/A | J47: N/A | K47: N/A | L47: N/A | M47: N/A | N47: N/A | O47: N/A | P47: N/A | Q47: N/A | R47: N/A | S47: N/A | T47: N/A | U47: N/A | V47: N/A | W47: N/A | X47: N/A | Y47: N/A | Z47: N/A | AA47: N/A | BA47: Microbiological quality at point of collection | BB47: Not contaminated (No E. coli in 100 mL) | BC47: N/A | BD47: N/A | BE47: N/A | BF47: N/A | BG47: N/A | BH47: N/A | BI47: N/A | BJ47: N/A | BK47: N/A | BL47: N/A | BM47: N/A | BN47: N/A | BO47: N/A | BP47: N/A | BQ47: N/A | BR47: N/A | BS47: N/A | BT47: N/A | BU47: N/A | BV47: N/A | BW47: N/A | BX47: N/A | BY47: N/A | BZ47: N/A | CA47: N/A
B48: Contaminated (E. coli detected in 100 mL) | C48: N/A | D48: N/A | E48: N/A | F48: N/A | G48: N/A | H48: N/A | I48: N/A | J48: N/A | K48: N/A | L48: N/A | M48: N/A | N48: N/A | O48: N/A | P48: N/A | Q48: N/A | R48: N/A | S48: N/A | T48: N/A | U48: N/A | V48: N/A | W48: N/A | X48: N/A | Y48: N/A | Z48: N/A | AA48: N/A | BB48: Contaminated (E. coli detected in 100 mL) | BC48: N/A | BD48: N/A | BE48: N/A | BF48: N/A | BG48: N/A | BH48: N/A | BI48: N/A | BJ48: N/A | BK48: N/A | BL48: N/A | BM48: N/A | BN48: N/A | BO48: N/A | BP48: N/A | BQ48: N/A | BR48: N/A | BS48: N/A | BT48: N/A | BU48: N/A | BV48: N/A | BW48: N/A | BX48: N/A | BY48: N/A | BZ48: N/A | CA48: N/A
B49: Highly contaminated (>100 CFU/100 mL) | C49: N/A | D49: N/A | E49: N/A | F49: N/A | G49: N/A | H49: N/A | I49: N/A | J49: N/A | K49: N/A | L49: N/A | M49: N/A | N49: N/A | O49: N/A | P49: N/A | Q49: N/A | R49: N/A | S49: N/A | T49: N/A | U49: N/A | V49: N/A | W49: N/A | X49: N/A | Y49: N/A | Z49: N/A | AA49: N/A | BB49: Highly contaminated (>100 CFU/100 mL) | BC49: N/A | BD49: N/A | BE49: N/A | BF49: N/A | BG49: N/A | BH49: N/A | BI49: N/A | BJ49: N/A | BK49: N/A | BL49: N/A | BM49: N/A | BN49: N/A | BO49: N/A | BP49: N/A | BQ49: N/A | BR49: N/A | BS49: N/A | BT49: N/A | BU49: N/A | BV49: N/A | BW49: N/A | BX49: N/A | BY49: N/A | BZ49: N/A | CA49: N/A
A50: Microbiological quality of improved water sources at point of collection | B50: Not contaminated (No E. coli in 100 mL) | C50: N/A | D50: N/A | E50: N/A | F50: N/A | G50: N/A | H50: N/A | I50: N/A | J50: N/A | K50: N/A | L50: N/A | M50: N/A | N50: N/A | O50: N/A | P50: N/A | Q50: N/A | R50: N/A | S50: N/A | T50: N/A | U50: N/A | V50: N/A | W50: N/A | X50: N/A | Y50: N/A | Z50: N/A | AA50: N/A | BA50: Microbiological quality of improved water sources at point of collection | BB50: Not contaminated (No E. coli in 100 mL) | BC50: N/A | BD50: N/A | BE50: N/A | BF50: N/A | BG50: N/A | BH50: N/A | BI50: N/A | BJ50: N/A | BK50: N/A | BL50: N/A | BM50: N/A | BN50: N/A | BO50: N/A | BP50: N/A | BQ50: N/A | BR50: N/A | BS50: N/A | BT50: N/A | BU50: N/A | BV50: N/A | BW50: N/A | BX50: N/A | BY50: N/A | BZ50: N/A | CA50: N/A
B51: Contaminated (E. coli detected in 100 mL) | C51: N/A | D51: N/A | E51: N/A | F51: N/A | G51: N/A | H51: N/A | I51: N/A | J51: N/A | K51: N/A | L51: N/A | M51: N/A | N51: N/A | O51: N/A | P51: N/A | Q51: N/A | R51: N/A | S51: N/A | T51: N/A | U51: N/A | V51: N/A | W51: N/A | X51: N/A | Y51: N/A | Z51: N/A | AA51: N/A | BB51: Contaminated (E. coli detected in 100 mL) | BC51: N/A | BD51: N/A | BE51: N/A | BF51: N/A | BG51: N/A | BH51: N/A | BI51: N/A | BJ51: N/A | BK51: N/A | BL51: N/A | BM51: N/A | BN51: N/A | BO51: N/A | BP51: N/A | BQ51: N/A | BR51: N/A | BS51: N/A | BT51: N/A | BU51: N/A | BV51: N/A | BW51: N/A | BX51: N/A | BY51: N/A | BZ51: N/A | CA51: N/A
B52: Highly contaminated (>100 CFU/100 mL) | C52: N/A | D52: N/A | E52: N/A | F52: N/A | G52: N/A | H52: N/A | I52: N/A | J52: N/A | K52: N/A | L52: N/A | M52: N/A | N52: N/A | O52: N/A | P52: N/A | Q52: N/A | R52: N/A | S52: N/A | T52: N/A | U52: N/A | V52: N/A | W52: N/A | X52: N/A | Y52: N/A | Z52: N/A | AA52: N/A | BB52: Highly contaminated (>100 CFU/100 mL) | BC52: N/A | BD52: N/A | BE52: N/A | BF52: N/A | BG52: N/A | BH52: N/A | BI52: N/A | BJ52: N/A | BK52: N/A | BL52: N/A | BM52: N/A | BN52: N/A | BO52: N/A | BP52: N/A | BQ52: N/A | BR52: N/A | BS52: N/A | BT52: N/A | BU52: N/A | BV52: N/A | BW52: N/A | BX52: N/A | BY52: N/A | BZ52: N/A | CA52: N/A
A53: Microbiological quality of piped on premises at point of collection | B53: Not contaminated (No E. coli in 100 mL) | C53: N/A | D53: N/A | E53: N/A | F53: N/A | G53: N/A | H53: N/A | I53: N/A | J53: N/A | K53: N/A | L53: N/A | M53: N/A | N53: N/A | O53: N/A | P53: N/A | Q53: N/A | R53: N/A | S53: N/A | T53: N/A | U53: N/A | V53: N/A | W53: N/A | X53: N/A | Y53: N/A | Z53: N/A | AA53: N/A | BA53: Microbiological quality of piped on premises at point of collection | BB53: Not contaminated (No E. coli in 100 mL) | BC53: N/A | BD53: N/A | BE53: N/A | BF53: N/A | BG53: N/A | BH53: N/A | BI53: N/A | BJ53: N/A | BK53: N/A | BL53: N/A | BM53: N/A | BN53: N/A | BO53: N/A | BP53: N/A | BQ53: N/A | BR53: N/A | BS53: N/A | BT53: N/A | BU53: N/A | BV53: N/A | BW53: N/A | BX53: N/A | BY53: N/A | BZ53: N/A | CA53: N/A
B54: Contaminated (E. coli detected in 100 mL) | C54: N/A | D54: N/A | E54: N/A | F54: N/A | G54: N/A | H54: N/A | I54: N/A | J54: N/A | K54: N/A | L54: N/A | M54: N/A | N54: N/A | O54: N/A | P54: N/A | Q54: N/A | R54: N/A | S54: N/A | T54: N/A | U54: N/A | V54: N/A | W54: N/A | X54: N/A | Y54: N/A | Z54: N/A | AA54: N/A | BB54: Contaminated (E. coli detected in 100 mL) | BC54: N/A | BD54: N/A | BE54: N/A | BF54: N/A | BG54: N/A | BH54: N/A | BI54: N/A | BJ54: N/A | BK54: N/A | BL54: N/A | BM54: N/A | BN54: N/A | BO54: N/A | BP54: N/A | BQ54: N/A | BR54: N/A | BS54: N/A | BT54: N/A | BU54: N/A | BV54: N/A | BW54: N/A | BX54: N/A | BY54: N/A | BZ54: N/A | CA54: N/A
B55: Highly contaminated (>100 CFU/100 mL) | C55: N/A | D55: N/A | E55: N/A | F55: N/A | G55: N/A | H55: N/A | I55: N/A | J55: N/A | K55: N/A | L55: N/A | M55: N/A | N55: N/A | O55: N/A | P55: N/A | Q55: N/A | R55: N/A | S55: N/A | T55: N/A | U55: N/A | V55: N/A | W55: N/A | X55: N/A | Y55: N/A | Z55: N/A | AA55: N/A | BB55: Highly contaminated (>100 CFU/100 mL) | BC55: N/A | BD55: N/A | BE55: N/A | BF55: N/A | BG55: N/A | BH55: N/A | BI55: N/A | BJ55: N/A | BK55: N/A | BL55: N/A | BM55: N/A | BN55: N/A | BO55: N/A | BP55: N/A | BQ55: N/A | BR55: N/A | BS55: N/A | BT55: N/A | BU55: N/A | BV55: N/A | BW55: N/A | BX55: N/A | BY55: N/A | BZ55: N/A | CA55: N/A
C56: NATIONAL wealth index quintile | H56: URBAN wealth index quintile | M56: RURAL wealth index quintile | R56: SUB-REGIONS: | BA56: Raw numbers of respondents: | BB56: Use of drinking water sources | BC56: NATIONAL wealth index quintile | BH56: URBAN wealth index quintile | BM56: RURAL wealth index quintile | BR56: SUB-REGIONS:
A57: Percentage based on weighted population | C57: Poorest | D57: Poor | E57: Middle | F57: Rich | G57: Richest | H57: Poorest | I57: Poor | J57: Middle | K57: Rich | L57: Richest | M57: Poorest | N57: Poor | O57: Middle | P57: Rich | Q57: Richest | R57: artibonite | S57: centre | T57: grande-anse | U57: metropolitain area | V57: north | W57: north-east | X57: north-west | Y57: south | Z57: south-east | AA57: west | BA57: Water data, raw numbers (weighted) | BC57: Poorest | BD57: Poor | BE57: Middle | BF57: Rich | BG57: Richest | BH57: Poorest | BI57: Poor | BJ57: Middle | BK57: Rich | BL57: Richest | BM57: Poorest | BN57: Poor | BO57: Middle | BP57: Rich | BQ57: Richest | BR57: artibonite | BS57: centre | BT57: grande-anse | BU57: metropolitain area | BV57: north | BW57: north-east | BX57: north-west | BY57: south | BZ57: south-east | CA57: west
A58: source of drinking water | B58: piped into dwelling | C58: 1.491147384 | D58: 2.517846381 | E58: 4.891855864 | F58: 13.82920573 | G58: 30.92417097 | H58: 12.87948154 | I58: 12.26111164 | J58: 11.31931039 | K58: 19.53727862 | L58: 55.01617669 | M58: 0.945196003 | N58: 1.644848861 | O58: 2.325940954 | P58: 3.622453534 | Q58: 12.16719131 | R58: 7.949926796 | S58: 8.104524903 | T58: 7.738303563 | U58: 23.03607453 | V58: 6.793005114 | W58: 6.384254243 | X58: 8.069542189 | Y58: 8.080023063 | Z58: 2.431873801 | AA58: 3.621512177
B59: public tap | C59: 28.39289489 | D59: 26.82993314 | E59: 37.03389266 | F59: 60.72197866 | G59: 55.30222813 | H59: 56.11086852 | I59: 73.00012964 | J59: 73.70394498 | K59: 64.60266628 | L59: 32.84800752 | M59: 32.50208965 | N59: 25.96832204 | O59: 27.0352657 | P59: 36.35589293 | Q59: 38.8093154 | R59: 35.38102322 | S59: 53.48882569 | T59: 29.73147596 | U59: 65.07165069 | V59: 22.14850911 | W59: 31.92524352 | X59: 32.06261285 | Y59: 24.39787574 | Z59: 44.28240828 | AA59: 29.716203
B60: well in dwelling | C60: 1.55764376 | D60: 2.685077231 | E60: 3.25061154 | F60: 2.503285806 | G60: 0.7328702279 | H60: 2.273060669 | I60: 2.574880285 | J60: 1.793614257 | K60: 0.2547783714 | L60: 0.1468141226 | M60: 0.6107309582 | N60: 1.896764655 | O60: 2.917071847 | P60: 2.559005497 | Q60: 3.70339275 | R60: 9.426691615 | S60: 0 | T60: 0.7705969615 | U60: 0.8940205437 | V60: 1.01660524 | W60: 0.6258230296 | X60: 0.7828748947 | Y60: 0.1071709083 | Z60: 1.046121827 | AA60: 0.689527239
B61: public well | C61: 2.220655478 | D61: 2.361429965 | E61: 4.364758057 | F61: 4.53888562 | G61: 1.796856933 | H61: 4.463953956 | I61: 2.889665465 | J61: 3.925257992 | K61: 2.318902579 | L61: 0.8753993601 | M61: 1.163655838 | N61: 2.358096093 | O61: 2.604921005 | P61: 2.996688945 | Q61: 5.888007392 | R61: 3.956330951 | S61: 0.3885163629 | T61: 3.372093835 | U61: 2.298127158 | V61: 1.763843082 | W61: 2.006882129 | X61: 2.149559851 | Y61: 7.420493095 | Z61: 0.6955884335 | AA61: 4.753978782
B62: well in dwelling | C62: 0.461925268 | D62: 0.4345353367 | E62: 0.7760176578 | F62: 2.624930085 | G62: 0.7142959908 | H62: 3.93801941 | I62: 1.281657308 | J62: 1.110876378 | K62: 0.5303883579 | L62: 0.610814395 | M62: 1.236856487 | N62: 0.2519581294 | O62: 0.3729861013 | P62: 0.6205868765 | Q62: 1.649020098 | R62: 3.712298249 | S62: 0 | T62: 0.09788092027 | U62: 0.504516326 | V62: 1.007449445 | W62: 1.592187294 | X62: 0.2741691169 | Y62: 0.4209896002 | Z62: 0.5236503163 | AA62: 0.3130099508
B63: public well | C63: 2.857169741 | D63: 4.778549675 | E63: 7.266321697 | F63: 4.626720088 | G63: 1.185184379 | H63: 7.141088886 | I63: 2.531048628 | J63: 1.801813689 | K63: 0.7789530283 | L63: 1.443827742 | M63: 2.62050315 | N63: 2.982537417 | O63: 4.209085587 | P63: 6.661512071 | Q63: 7.466455003 | R63: 3.319850163 | S63: 2.354274686 | T63: 2.943994278 | U63: 0.583690721 | V63: 6.279950637 | W63: 11.56285477 | X63: 1.707024283 | Y63: 15.53004403 | Z63: 1.00024975 | AA63: 5.041227958
B64: pretected source | C64: 11.95261043 | D64: 11.87795366 | E64: 7.935148074 | F64: 1.840985866 | G64: 0.3456626734 | H64: 1.907701183 | I64: 0.804926764 | J64: 0.1504063204 | K64: 0.2132316291 | L64: 0.2994132785 | M64: 10.51264198 | N64: 12.58833914 | O64: 12.16888373 | P64: 9.228314517 | Q64: 5.479540736 | R64: 7.720199869 | S64: 2.188905294 | T64: 11.14899557 | U64: 0.1828747982 | V64: 5.127508806 | W64: 5.101219275 | X64: 15.51905354 | Y64: 3.7851841 | Z64: 11.56800085 | AA64: 17.76007651
B65: souce not protected | C65: 39.34541808 | D65: 35.71824349 | E65: 24.63092921 | F65: 5.037391201 | G65: 0.4624975893 | H65: 5.758510866 | I65: 1.684739274 | J65: 0.5783385634 | K65: 0.6216452477 | L65: 0 | M65: 35.20003292 | N65: 41.5829362 | O65: 34.93572109 | P65: 27.37539342 | Q65: 17.91356221 | R65: 17.6464805 | S65: 26.74946785 | T65: 31.19859433 | U65: 0.4327202593 | V65: 51.52155839 | W65: 14.97062841 | X65: 24.56627302 | Y65: 37.3470176 | Z65: 34.33878526 | AA65: 23.01381594
B66: river | C66: 5.964555748 | D66: 7.688409479 | E66: 3.570847057 | F66: 0.4183587773 | G66: 0 | H66: 1.410939783 | I66: 0.1131995368 | J66: 0 | K66: 0 | L66: 0 | M66: 4.845797138 | N66: 6.479723268 | O66: 7.69487192 | P66: 4.162073994 | Q66: 2.019731318 | R66: 2.0189892 | S66: 6.535035884 | T66: 3.243285867 | U66: 0 | V66: 2.165246865 | W66: 25.37873724 | X66: 12.97821584 | Y66: 2.489578784 | Z66: 2.062069868 | AA66: 2.532304897
B67: lake, pond | C67: 0.2893885931 | D67: 0.4200583168 | E67: 0.09706694024 | F67: 0.001990094186 | G67: 0 | H67: 0.02372951089 | I67: 0 | J67: 0 | K67: 0 | L67: 0 | M67: 0.4751676323 | N67: 0.2121674131 | O67: 0.4975481064 | P67: 0.1619737159 | Q67: 0.003004590869 | R67: 0.109284422 | S67: 0.1904493276 | T67: 0 | U67: 0 | V67: 0.07664119469 | W67: 0.4356835256 | X67: 0.09761622147 | Y67: 0.2135468326 | Z67: 0.03182648324 | AA67: 0.5718553608
B68: canal | C68: 3.950845056 | D68: 2.150212763 | E68: 3.732375727 | F68: 0.4107828114 | G68: 0 | H68: 1.942302497 | I68: 0.1272724777 | J68: 0 | K68: 0 | L68: 0 | M68: 8.354699279 | N68: 2.437024686 | O68: 2.526656495 | P68: 4.066340165 | Q68: 1.473139962 | R68: 8.201066608 | S68: 0 | T68: 0 | U68: 0 | V68: 0.06945314125 | W68: 0 | X68: 0.211797645 | Y68: 0 | Z68: 0 | AA68: 5.796263139
B69: rainwater | C69: 1.46577286 | D69: 2.42599651 | E69: 2.356021349 | F69: 1.033494542 | G69: 0.2014641366 | H69: 0.5914187339 | I69: 0.3099904122 | J69: 0.1485493793 | K69: 0 | L69: 0.2832662574 | M69: 1.329713038 | N69: 1.597282101 | O69: 2.613173898 | P69: 2.125088036 | Q69: 2.813003932 | R69: 0.08101742048 | S69: 0 | T69: 7.187801243 | U69: 0.2165187067 | V69: 0 | W69: 0 | X69: 1.419705437 | Y69: 0.06878092464 | Z69: 1.789926296 | AA69: 5.775118028
B70: tanker truck | C70: 0 | D70: 0.0805751245 | E70: 0.03875894162 | F70: 0.3558499296 | G70: 1.391209282 | H70: 0 | I70: 0.79149678 | J70: 0.4626430146 | K70: 2.446665136 | L70: 1.032966809 | M70: 0 | N70: 0 | O70: 0.09787357653 | P70: 0.06467629231 | Q70: 0 | R70: 0 | S70: 0 | T70: 0.3463468883 | U70: 1.282924534 | V70: 0.1951687731 | W70: 0 | X70: 0 | Y70: 0 | Z70: 0.1809867927 | AA70: 0
B71: bottled water | C71: 0 | D71: 0 | E71: 0.004434464632 | F71: 0.2158116614 | G71: 3.147369061 | H71: 0.2013789368 | I71: 0.2824667242 | J71: 0.6045137863 | K71: 0.8763985905 | L71: 6.755916662 | M71: 0 | N71: 0 | O71: 0 | P71: 0 | Q71: 0.4458074673 | R71: 0.2726340836 | S71: 0 | T71: 0.1884225316 | U71: 1.653277717 | V71: 1.78383525 | W71: 0.01648655411 | X71: 0.02986843871 | Y71: 0 | Z71: 0.04851203877 | AA71: 0.399602156
B72: water vendor | C72: 0.04997270833 | D72: 0.03117892971 | E72: 0.0509607649 | F72: 1.840329126 | G72: 3.796190624 | H72: 1.35754551 | I72: 1.347415064 | J72: 4.400731255 | K72: 7.819092164 | L72: 0.68739716 | M72: 0.2029159222 | N72: 0 | O72: 0 | P72: 0 | Q72: 0.168827834 | R72: 0.2042069022 | S72: 0 | T72: 2.032208057 | U72: 3.843604015 | V72: 0.05122495429 | W72: 0 | X72: 0.1316866716 | Y72: 0.1392953245 | Z72: 0 | AA72: 0.01550487163
A108: =A1026 -> Haiti
A109: =A1034 -> 2000
A110: Use of sanitation facilities
A111: by wealth quintile and sub-national region
A112: Notes:
A113: WHO/UNICEF JMP customised wealth index excludes water,
A114: sanitation and hygiene assets.
A115: Survey used for analysis: | B115: =A1025 -> DHS00
A116: =B1030 -> Ratio of Improved latrines based on: | B116: DHS06
A117: =B1029 -> Ratio of Shared improved based on: | B117: DHS06
A120: Use of sanitation facilities | C120: NATIONAL wealth index quintile | H120: URBAN wealth index quintile | M120: RURAL wealth index quintile | R120: SUB-REGIONS: | BA120: Raw numbers of respondents: | BB120: Use of sanitation facilities | BC120: NATIONAL wealth index quintile | BH120: URBAN wealth index quintile | BM120: RURAL wealth index quintile | BR120: SUB-REGIONS:
A121: Weighted percentage (used in graphs) | C121: Poorest | D121: Poor | E121: Middle | F121: Rich | G121: Richest | H121: Poorest | I121: Poor | J121: Middle | K121: Rich | L121: Richest | M121: Poorest | N121: Poor | O121: Middle | P121: Rich | Q121: Richest | R121: artibonite | S121: centre | T121: grande-anse | U121: metropolitain area | V121: north | W121: north-east | X121: north-west | Y121: south | Z121: south-east | AA121: west | BA121: Sanitation data, raw numbers (weighted) | BC121: Poorest | BD121: Poor | BE121: Middle | BF121: Rich | BG121: Richest | BH121: Poorest | BI121: Poor | BJ121: Middle | BK121: Rich | BL121: Richest | BM121: Poorest | BN121: Poor | BO121: Middle | BP121: Rich | BQ121: Richest | BR121: artibonite | BS121: centre | BT121: grande-anse | BU121: metropolitain area | BV121: north | BW121: north-east | BX121: north-west | BY121: south | BZ121: south-east | CA121: west
A122: Sanitation | B122: Improved | C122: =C153+(C154+C155)*'DHS06'!C130/100 -> 6.398556518 | D122: =D153+(D154+D155)*'DHS06'!D130/100 -> 10.30282235 | E122: =E153+(E154+E155)*'DHS06'!E130/100 -> 17.76947904 | F122: =F153+(F154+F155)*'DHS06'!F130/100 -> 35.42149442 | G122: =G153+(G154+G155)*'DHS06'!G130/100 -> 61.92278246 | H122: =H153+(H154+H155)*'DHS06'!H130/100 -> 24.1375854 | I122: =I153+(I154+I155)*'DHS06'!I130/100 -> 38.6496314 | J122: =J153+(J154+J155)*'DHS06'!J130/100 -> 50.32463053 | K122: =K153+(K154+K155)*'DHS06'!K130/100 -> 55.84325223 | L122: =L153+(L154+L155)*'DHS06'!L130/100 -> 73.05344037 | M122: =M153+(M154+M155)*'DHS06'!M130/100 -> 8.671582869 | N122: =N153+(N154+N155)*'DHS06'!N130/100 -> 5.880840964 | O122: =O153+(O154+O155)*'DHS06'!O130/100 -> 10.94192769 | P122: =P153+(P154+P155)*'DHS06'!P130/100 -> 14.96580234 | Q122: =Q153+(Q154+Q155)*'DHS06'!Q130/100 -> 26.88709174 | R122: =R153+(R154+R155)*'DHS06'!R130/100 -> 23.93765518 | S122: =S153+(S154+S155)*'DHS06'!S130/100 -> 18.96354956 | T122: =T153+(T154+T155)*'DHS06'!T130/100 -> 13.04694739 | U122: =U153+(U154+U155)*'DHS06'!U130/100 -> 42.22744756 | V122: =V153+(V154+V155)*'DHS06'!V130/100 -> 16.56693366 | W122: =W153+(W154+W155)*'DHS06'!W130/100 -> 27.86776682 | X122: =X153+(X154+X155)*'DHS06'!X130/100 -> 17.27372383 | Y122: =Y153+(Y154+Y155)*'DHS06'!Y130/100 -> 15.12465376 | Z122: =Z153+(Z154+Z155)*'DHS06'!Z130/100 -> 16.51388273 | AA122: =AA153+(AA154+AA155)*'DHS06'!AA130/100 -> 19.08115714 | BA122: Sanitation | BB122: Improved | BC122: N/A | BD122: N/A | BE122: N/A | BF122: N/A | BG122: N/A | BH122: N/A | BI122: N/A | BJ122: N/A | BK122: N/A | BL122: N/A | BM122: N/A | BN122: N/A | BO122: N/A | BP122: N/A | BQ122: N/A | BR122: N/A | BS122: N/A | BT122: N/A | BU122: N/A | BV122: N/A | BW122: N/A | BX122: N/A | BY122: N/A | BZ122: N/A | CA122: N/A
B123: Not Improved | C123: =100-C122 -> 93.60144348 | D123: =100-D122 -> 89.69717765 | E123: 82.23052096 | F123: 64.57850558 | G123: 38.07721754 | H123: 75.8624146 | I123: 61.3503686 | J123: 49.67536947 | K123: 44.15674777 | L123: 26.94655963 | M123: 91.32841713 | N123: 94.11915904 | O123: 89.05807231 | P123: 85.03419766 | Q123: 73.11290826 | R123: 76.06234482 | S123: 81.03645044 | T123: 86.95305261 | U123: 57.77255244 | V123: 83.43306634 | W123: 72.13223318 | X123: 82.72627617 | Y123: 84.87534624 | Z123: 83.48611727 | AA123: 80.91884286 | BB123: Not Improved | BC123: N/A | BD123: N/A | BE123: N/A | BF123: N/A | BG123: N/A | BH123: N/A | BI123: N/A | BJ123: N/A | BK123: N/A | BL123: N/A | BM123: N/A | BN123: N/A | BO123: N/A | BP123: N/A | BQ123: N/A | BR123: N/A | BS123: N/A | BT123: N/A | BU123: N/A | BV123: N/A | BW123: N/A | BX123: N/A | BY123: N/A | BZ123: N/A | CA123: N/A
A124: Sanitation ladder | B124: Basic | C124: =C122*'DHS06'!C129/100 -> 4.504680537 | D124: =D122*'DHS06'!D129/100 -> 6.159302291 | E124: =E122*'DHS06'!E129/100 -> 10.83387771 | F124: =F122*'DHS06'!F129/100 -> 14.25833365 | G124: =G122*'DHS06'!G129/100 -> 44.21163727 | H124: =H122*'DHS06'!H129/100 -> 7.742044078 | I124: =I122*'DHS06'!I129/100 -> 14.7984279 | J124: =J122*'DHS06'!J129/100 -> 20.66854478 | K124: =K122*'DHS06'!K129/100 -> 30.52932643 | L124: =L122*'DHS06'!L129/100 -> 62.05351025 | M124: =M122*'DHS06'!M129/100 -> 5.547824211 | N124: =N122*'DHS06'!N129/100 -> 4.259350924 | O124: =O122*'DHS06'!O129/100 -> 7.266185161 | P124: =P122*'DHS06'!P129/100 -> 10.02888912 | Q124: =Q122*'DHS06'!Q129/100 -> 17.545971 | R124: =R122*'DHS06'!R129/100 -> 13.83477874 | S124: =S122*'DHS06'!S129/100 -> 11.06731359 | T124: =T122*'DHS06'!T129/100 -> 8.802156664 | U124: =U122*'DHS06'!U129/100 -> 29.91966082 | V124: =V122*'DHS06'!V129/100 -> 13.04923426 | W124: =W122*'DHS06'!W129/100 -> 18.19680032 | X124: =X122*'DHS06'!X129/100 -> 10.846528 | Y124: =Y122*'DHS06'!Y129/100 -> 9.172362861 | Z124: =Z122*'DHS06'!Z129/100 -> 12.19488154 | AA124: =AA122*'DHS06'!AA129/100 -> 11.37071256 | BA124: Sanitation ladder | BB124: Basic | BC124: N/A | BD124: N/A | BE124: N/A | BF124: N/A | BG124: N/A | BH124: N/A | BI124: N/A | BJ124: N/A | BK124: N/A | BL124: N/A | BM124: N/A | BN124: N/A | BO124: N/A | BP124: N/A | BQ124: N/A | BR124: N/A | BS124: N/A | BT124: N/A | BU124: N/A | BV124: N/A | BW124: N/A | BX124: N/A | BY124: N/A | BZ124: N/A | CA124: N/A
B125: Limited | C125: =C122*'DHS06'!C128/100 -> 1.893875981 | D125: =D122*'DHS06'!D128/100 -> 4.143520055 | E125: =E122*'DHS06'!E128/100 -> 6.93560133 | F125: =F122*'DHS06'!F128/100 -> 21.16316077 | G125: =G122*'DHS06'!G128/100 -> 17.71114519 | H125: =H122*'DHS06'!H128/100 -> 16.39554132 | I125: =I122*'DHS06'!I128/100 -> 23.8512035 | J125: =J122*'DHS06'!J128/100 -> 29.65608575 | K125: =K122*'DHS06'!K128/100 -> 25.3139258 | L125: =L122*'DHS06'!L128/100 -> 10.99993012 | M125: =M122*'DHS06'!M128/100 -> 3.123758658 | N125: =N122*'DHS06'!N128/100 -> 1.62149004 | O125: =O122*'DHS06'!O128/100 -> 3.675742524 | P125: =P122*'DHS06'!P128/100 -> 4.936913218 | Q125: =Q122*'DHS06'!Q128/100 -> 9.341120739 | R125: =R122*'DHS06'!R128/100 -> 10.10287644 | S125: =S122*'DHS06'!S128/100 -> 7.896235964 | T125: =T122*'DHS06'!T128/100 -> 4.244790723 | U125: =U122*'DHS06'!U128/100 -> 12.30778674 | V125: =V122*'DHS06'!V128/100 -> 3.517699404 | W125: =W122*'DHS06'!W128/100 -> 9.670966503 | X125: =X122*'DHS06'!X128/100 -> 6.427195834 | Y125: =Y122*'DHS06'!Y128/100 -> 5.952290895 | Z125: =Z122*'DHS06'!Z128/100 -> 4.319001193 | AA125: =AA122*'DHS06'!AA128/100 -> 7.710444587 | BB125: Limited | BC125: N/A | BD125: N/A | BE125: N/A | BF125: N/A | BG125: N/A | BH125: N/A | BI125: N/A | BJ125: N/A | BK125: N/A | BL125: N/A | BM125: N/A | BN125: N/A | BO125: N/A | BP125: N/A | BQ125: N/A | BR125: N/A | BS125: N/A | BT125: N/A | BU125: N/A | BV125: N/A | BW125: N/A | BX125: N/A | BY125: N/A | BZ125: N/A | CA125: N/A
B126: Unimproved | C126: =100-(C124+C125+C127) -> 25.69420595 | D126: =100-(D124+D125+D127) -> 29.69669576 | E126: 35.28187588 | F126: 47.97195471 | G126: 35.11064564 | H126: 49.62653328 | I126: 52.33770645 | J126: 44.50447395 | K126: 40.40355186 | L126: 25.87763161 | M126: 34.36919341 | N126: 23.51725048 | O126: 27.75721799 | P126: 35.68925416 | Q126: 38.48181105 | R126: 30.27829494 | S126: 34.8040447 | T126: 30.68987818 | U126: 53.66454071 | V126: 21.79498354 | W126: 39.60731593 | X126: 35.76280552 | Y126: 26.81701047 | Z126: 24.70910536 | AA126: 29.71860454 | BB126: Unimproved | BC126: N/A | BD126: N/A | BE126: N/A | BF126: N/A | BG126: N/A | BH126: N/A | BI126: N/A | BJ126: N/A | BK126: N/A | BL126: N/A | BM126: N/A | BN126: N/A | BO126: N/A | BP126: N/A | BQ126: N/A | BR126: N/A | BS126: N/A | BT126: N/A | BU126: N/A | BV126: N/A | BW126: N/A | BX126: N/A | BY126: N/A | BZ126: N/A | CA126: N/A
B127: Open defecation | C127: =C156 -> 67.90723753 | D127: =D156 -> 60.0004819 | E127: 46.94864508 | F127: 16.60655087 | G127: 2.9665719 | H127: 26.23588132 | I127: 9.012662142 | J127: 5.170895523 | K127: 3.753195914 | L127: 1.068928022 | M127: 56.95922372 | N127: 70.60190856 | O127: 61.30085432 | P127: 49.3449435 | Q127: 34.63109721 | R127: 45.78404988 | S127: 46.23240574 | T127: 56.26317444 | U127: 4.108011722 | V127: 61.63808279 | W127: 32.52491725 | X127: 46.96347065 | Y127: 58.05833577 | Z127: 58.77701191 | AA127: 51.20023832 | BB127: Open defecation | BC127: N/A | BD127: N/A | BE127: N/A | BF127: N/A | BG127: N/A | BH127: N/A | BI127: N/A | BJ127: N/A | BK127: N/A | BL127: N/A | BM127: N/A | BN127: N/A | BO127: N/A | BP127: N/A | BQ127: N/A | BR127: N/A | BS127: N/A | BT127: N/A | BU127: N/A | BV127: N/A | BW127: N/A | BX127: N/A | BY127: N/A | BZ127: N/A | CA127: N/A
A128: Shared among Improved Sanitation | B128: Yes | C128: N/A | D128: N/A | E128: N/A | F128: N/A | G128: N/A | H128: N/A | I128: N/A | J128: N/A | K128: N/A | L128: N/A | M128: N/A | N128: N/A | O128: N/A | P128: N/A | Q128: N/A | R128: N/A | S128: N/A | T128: N/A | U128: N/A | V128: N/A | W128: N/A | X128: N/A | Y128: N/A | Z128: N/A | AA128: N/A | BA128: Shared among improved sanitation facilities | BB128: Yes | BC128: N/A | BD128: N/A | BE128: N/A | BF128: N/A | BG128: N/A | BH128: N/A | BI128: N/A | BJ128: N/A | BK128: N/A | BL128: N/A | BM128: N/A | BN128: N/A | BO128: N/A | BP128: N/A | BQ128: N/A | BR128: N/A | BS128: N/A | BT128: N/A | BU128: N/A | BV128: N/A | BW128: N/A | BX128: N/A | BY128: N/A | BZ128: N/A | CA128: N/A
B129: No | C129: N/A | D129: N/A | E129: N/A | F129: N/A | G129: N/A | H129: N/A | I129: N/A | J129: N/A | K129: N/A | L129: N/A | M129: N/A | N129: N/A | O129: N/A | P129: N/A | Q129: N/A | R129: N/A | S129: N/A | T129: N/A | U129: N/A | V129: N/A | W129: N/A | X129: N/A | Y129: N/A | Z129: N/A | AA129: N/A | BB129: No | BC129: N/A | BD129: N/A | BE129: N/A | BF129: N/A | BG129: N/A | BH129: N/A | BI129: N/A | BJ129: N/A | BK129: N/A | BL129: N/A | BM129: N/A | BN129: N/A | BO129: N/A | BP129: N/A | BQ129: N/A | BR129: N/A | BS129: N/A | BT129: N/A | BU129: N/A | BV129: N/A | BW129: N/A | BX129: N/A | BY129: N/A | BZ129: N/A | CA129: N/A
A130: Manually calculated ratios | B130: Improved latrines
B131: Other
B132: Other
C133: NATIONAL wealth index quintile | H133: URBAN wealth index quintile | M133: RURAL wealth index quintile | R133: SUB-REGIONS: | BA133: Raw numbers of respondents: | BB133: Use of sanitation facilities | BC133: NATIONAL wealth index quintile | BH133: URBAN wealth index quintile | BM133: RURAL wealth index quintile | BR133: SUB-REGIONS:
A134: Percentage based on weighted population | C134: Poorest | D134: Poor | E134: Middle | F134: Rich | G134: Richest | H134: Poorest | I134: Poor | J134: Middle | K134: Rich | L134: Richest | M134: Poorest | N134: Poor | O134: Middle | P134: Rich | Q134: Richest | R134: artibonite | S134: centre | T134: grande-anse | U134: metropolitain area | V134: north | W134: north-east | X134: north-west | Y134: south | Z134: south-east | AA134: west | BA134: Sanitation data, raw numbers (weighted) | BC134: Poorest | BD134: Poor | BE134: Middle | BF134: Rich | BG134: Richest | BH134: Poorest | BI134: Poor | BJ134: Middle | BK134: Rich | BL134: Richest | BM134: Poorest | BN134: Poor | BO134: Middle | BP134: Rich | BQ134: Richest | BR134: artibonite | BS134: centre | BT134: grande-anse | BU134: metropolitain area | BV134: north | BW134: north-east | BX134: north-west | BY134: south | BZ134: south-east | CA134: west
A135: Sanitation type | B135: Sewer connection | C135: N/A | D135: N/A | E135: N/A | F135: N/A | G135: N/A | H135: N/A | I135: N/A | J135: N/A | K135: N/A | L135: N/A | M135: N/A | N135: N/A | O135: N/A | P135: N/A | Q135: N/A | R135: N/A | S135: N/A | T135: N/A | U135: N/A | V135: N/A | W135: N/A | X135: N/A | Y135: N/A | Z135: N/A | AA135: N/A | BA135: Sanitation type | BB135: Sewer connection | BC135: N/A | BD135: N/A | BE135: N/A | BF135: N/A | BG135: N/A | BH135: N/A | BI135: N/A | BJ135: N/A | BK135: N/A | BL135: N/A | BM135: N/A | BN135: N/A | BO135: N/A | BP135: N/A | BQ135: N/A | BR135: N/A | BS135: N/A | BT135: N/A | BU135: N/A | BV135: N/A | BW135: N/A | BX135: N/A | BY135: N/A | BZ135: N/A | CA135: N/A
B136: Septic tank connection | C136: N/A | D136: N/A | E136: N/A | F136: N/A | G136: N/A | H136: N/A | I136: N/A | J136: N/A | K136: N/A | L136: N/A | M136: N/A | N136: N/A | O136: N/A | P136: N/A | Q136: N/A | R136: N/A | S136: N/A | T136: N/A | U136: N/A | V136: N/A | W136: N/A | X136: N/A | Y136: N/A | Z136: N/A | AA136: N/A | BB136: Septic tank connection | BC136: N/A | BD136: N/A | BE136: N/A | BF136: N/A | BG136: N/A | BH136: N/A | BI136: N/A | BJ136: N/A | BK136: N/A | BL136: N/A | BM136: N/A | BN136: N/A | BO136: N/A | BP136: N/A | BQ136: N/A | BR136: N/A | BS136: N/A | BT136: N/A | BU136: N/A | BV136: N/A | BW136: N/A | BX136: N/A | BY136: N/A | BZ136: N/A | CA136: N/A
B137: Improved latrines | C137: N/A | D137: N/A | E137: N/A | F137: N/A | G137: N/A | H137: N/A | I137: N/A | J137: N/A | K137: N/A | L137: N/A | M137: N/A | N137: N/A | O137: N/A | P137: N/A | Q137: N/A | R137: N/A | S137: N/A | T137: N/A | U137: N/A | V137: N/A | W137: N/A | X137: N/A | Y137: N/A | Z137: N/A | AA137: N/A | BB137: Improved latrines | BC137: N/A | BD137: N/A | BE137: N/A | BF137: N/A | BG137: N/A | BH137: N/A | BI137: N/A | BJ137: N/A | BK137: N/A | BL137: N/A | BM137: N/A | BN137: N/A | BO137: N/A | BP137: N/A | BQ137: N/A | BR137: N/A | BS137: N/A | BT137: N/A | BU137: N/A | BV137: N/A | BW137: N/A | BX137: N/A | BY137: N/A | BZ137: N/A | CA137: N/A
B138: Unimproved facilities | C138: N/A | D138: N/A | E138: N/A | F138: N/A | G138: N/A | H138: N/A | I138: N/A | J138: N/A | K138: N/A | L138: N/A | M138: N/A | N138: N/A | O138: N/A | P138: N/A | Q138: N/A | R138: N/A | S138: N/A | T138: N/A | U138: N/A | V138: N/A | W138: N/A | X138: N/A | Y138: N/A | Z138: N/A | AA138: N/A | BB138: Unimproved facilities | BC138: N/A | BD138: N/A | BE138: N/A | BF138: N/A | BG138: N/A | BH138: N/A | BI138: N/A | BJ138: N/A | BK138: N/A | BL138: N/A | BM138: N/A | BN138: N/A | BO138: N/A | BP138: N/A | BQ138: N/A | BR138: N/A | BS138: N/A | BT138: N/A | BU138: N/A | BV138: N/A | BW138: N/A | BX138: N/A | BY138: N/A | BZ138: N/A | CA138: N/A
B139: Open defecation | C139: 67.90723753 | D139: 60.0004819 | E139: 46.94564535 | F139: 16.60655087 | G139: 2.962421371 | H139: 26.23588132 | I139: 9.012662142 | J139: 5.170895523 | K139: 3.753195914 | L139: 1.068928022 | M139: 56.95922372 | N139: 70.60190856 | O139: 61.30085432 | P139: 49.3449435 | Q139: 34.55055787 | R139: 45.78404988 | S139: 46.23240574 | T139: 56.26317444 | U139: 4.108011722 | V139: 61.63808279 | W139: 32.51391268 | X139: 46.96347065 | Y139: 58.05833577 | Z139: 58.77701191 | AA139: 51.09073548 | BB139: Open defecation | BC139: N/A | BD139: N/A | BE139: N/A | BF139: N/A | BG139: N/A | BH139: N/A | BI139: N/A | BJ139: N/A | BK139: N/A | BL139: N/A | BM139: N/A | BN139: N/A | BO139: N/A | BP139: N/A | BQ139: N/A | BR139: N/A | BS139: N/A | BT139: N/A | BU139: N/A | BV139: N/A | BW139: N/A | BX139: N/A | BY139: N/A | BZ139: N/A | CA139: N/A
A140: Septic tank emptying practices | B140: Not emptied/treated and disposed in situ | C140: N/A | D140: N/A | E140: N/A | F140: N/A | G140: N/A | H140: N/A | I140: N/A | J140: N/A | K140: N/A | L140: N/A | M140: N/A | N140: N/A | O140: N/A | P140: N/A | Q140: N/A | R140: N/A | S140: N/A | T140: N/A | U140: N/A | V140: N/A | W140: N/A | X140: N/A | Y140: N/A | Z140: N/A | AA140: N/A | BA140: Septic tank emptying practices | BB140: Not emptied/treated and disposed in situ | BC140: N/A | BD140: N/A | BE140: N/A | BF140: N/A | BG140: N/A | BH140: N/A | BI140: N/A | BJ140: N/A | BK140: N/A | BL140: N/A | BM140: N/A | BN140: N/A | BO140: N/A | BP140: N/A | BQ140: N/A | BR140: N/A | BS140: N/A | BT140: N/A | BU140: N/A | BV140: N/A | BW140: N/A | BX140: N/A | BY140: N/A | BZ140: N/A | CA140: N/A
B141: Emptied and buried on site | C141: N/A | D141: N/A | E141: N/A | F141: N/A | G141: N/A | H141: N/A | I141: N/A | J141: N/A | K141: N/A | L141: N/A | M141: N/A | N141: N/A | O141: N/A | P141: N/A | Q141: N/A | R141: N/A | S141: N/A | T141: N/A | U141: N/A | V141: N/A | W141: N/A | X141: N/A | Y141: N/A | Z141: N/A | AA141: N/A | BB141: Emptied and buried on site | BC141: N/A | BD141: N/A | BE141: N/A | BF141: N/A | BG141: N/A | BH141: N/A | BI141: N/A | BJ141: N/A | BK141: N/A | BL141: N/A | BM141: N/A | BN141: N/A | BO141: N/A | BP141: N/A | BQ141: N/A | BR141: N/A | BS141: N/A | BT141: N/A | BU141: N/A | BV141: N/A | BW141: N/A | BX141: N/A | BY141: N/A | BZ141: N/A | CA141: N/A
B142: Emptied and discharged locally | C142: N/A | D142: N/A | E142: N/A | F142: N/A | G142: N/A | H142: N/A | I142: N/A | J142: N/A | K142: N/A | L142: N/A | M142: N/A | N142: N/A | O142: N/A | P142: N/A | Q142: N/A | R142: N/A | S142: N/A | T142: N/A | U142: N/A | V142: N/A | W142: N/A | X142: N/A | Y142: N/A | Z142: N/A | AA142: N/A | BB142: Emptied and discharged locally | BC142: N/A | BD142: N/A | BE142: N/A | BF142: N/A | BG142: N/A | BH142: N/A | BI142: N/A | BJ142: N/A | BK142: N/A | BL142: N/A | BM142: N/A | BN142: N/A | BO142: N/A | BP142: N/A | BQ142: N/A | BR142: N/A | BS142: N/A | BT142: N/A | BU142: N/A | BV142: N/A | BW142: N/A | BX142: N/A | BY142: N/A | BZ142: N/A | CA142: N/A
B143: Emptied and removed offsite | C143: N/A | D143: N/A | E143: N/A | F143: N/A | G143: N/A | H143: N/A | I143: N/A | J143: N/A | K143: N/A | L143: N/A | M143: N/A | N143: N/A | O143: N/A | P143: N/A | Q143: N/A | R143: N/A | S143: N/A | T143: N/A | U143: N/A | V143: N/A | W143: N/A | X143: N/A | Y143: N/A | Z143: N/A | AA143: N/A | BB143: Emptied and removed offsite | BC143: N/A | BD143: N/A | BE143: N/A | BF143: N/A | BG143: N/A | BH143: N/A | BI143: N/A | BJ143: N/A | BK143: N/A | BL143: N/A | BM143: N/A | BN143: N/A | BO143: N/A | BP143: N/A | BQ143: N/A | BR143: N/A | BS143: N/A | BT143: N/A | BU143: N/A | BV143: N/A | BW143: N/A | BX143: N/A | BY143: N/A | BZ143: N/A | CA143: N/A
A144: Latrine emptying practices | B144: Not emptied/treated and disposed in situ | C144: N/A | D144: N/A | E144: N/A | F144: N/A | G144: N/A | H144: N/A | I144: N/A | J144: N/A | K144: N/A | L144: N/A | M144: N/A | N144: N/A | O144: N/A | P144: N/A | Q144: N/A | R144: N/A | S144: N/A | T144: N/A | U144: N/A | V144: N/A | W144: N/A | X144: N/A | Y144: N/A | Z144: N/A | AA144: N/A | BA144: Latrine emptying practices | BB144: Not emptied/treated and disposed in situ | BC144: N/A | BD144: N/A | BE144: N/A | BF144: N/A | BG144: N/A | BH144: N/A | BI144: N/A | BJ144: N/A | BK144: N/A | BL144: N/A | BM144: N/A | BN144: N/A | BO144: N/A | BP144: N/A | BQ144: N/A | BR144: N/A | BS144: N/A | BT144: N/A | BU144: N/A | BV144: N/A | BW144: N/A | BX144: N/A | BY144: N/A | BZ144: N/A | CA144: N/A
B145: Emptied and buried on site | C145: N/A | D145: N/A | E145: N/A | F145: N/A | G145: N/A | H145: N/A | I145: N/A | J145: N/A | K145: N/A | L145: N/A | M145: N/A | N145: N/A | O145: N/A | P145: N/A | Q145: N/A | R145: N/A | S145: N/A | T145: N/A | U145: N/A | V145: N/A | W145: N/A | X145: N/A | Y145: N/A | Z145: N/A | AA145: N/A | BB145: Emptied and buried on site | BC145: N/A | BD145: N/A | BE145: N/A | BF145: N/A | BG145: N/A | BH145: N/A | BI145: N/A | BJ145: N/A | BK145: N/A | BL145: N/A | BM145: N/A | BN145: N/A | BO145: N/A | BP145: N/A | BQ145: N/A | BR145: N/A | BS145: N/A | BT145: N/A | BU145: N/A | BV145: N/A | BW145: N/A | BX145: N/A | BY145: N/A | BZ145: N/A | CA145: N/A
B146: Emptied and discharged locally | C146: N/A | D146: N/A | E146: N/A | F146: N/A | G146: N/A | H146: N/A | I146: N/A | J146: N/A | K146: N/A | L146: N/A | M146: N/A | N146: N/A | O146: N/A | P146: N/A | Q146: N/A | R146: N/A | S146: N/A | T146: N/A | U146: N/A | V146: N/A | W146: N/A | X146: N/A | Y146: N/A | Z146: N/A | AA146: N/A | BB146: Emptied and discharged locally | BC146: N/A | BD146: N/A | BE146: N/A | BF146: N/A | BG146: N/A | BH146: N/A | BI146: N/A | BJ146: N/A | BK146: N/A | BL146: N/A | BM146: N/A | BN146: N/A | BO146: N/A | BP146: N/A | BQ146: N/A | BR146: N/A | BS146: N/A | BT146: N/A | BU146: N/A | BV146: N/A | BW146: N/A | BX146: N/A | BY146: N/A | BZ146: N/A | CA146: N/A
B147: Emptied and removed offsite | C147: N/A | D147: N/A | E147: N/A | F147: N/A | G147: N/A | H147: N/A | I147: N/A | J147: N/A | K147: N/A | L147: N/A | M147: N/A | N147: N/A | O147: N/A | P147: N/A | Q147: N/A | R147: N/A | S147: N/A | T147: N/A | U147: N/A | V147: N/A | W147: N/A | X147: N/A | Y147: N/A | Z147: N/A | AA147: N/A | BB147: Emptied and removed offsite | BC147: N/A | BD147: N/A | BE147: N/A | BF147: N/A | BG147: N/A | BH147: N/A | BI147: N/A | BJ147: N/A | BK147: N/A | BL147: N/A | BM147: N/A | BN147: N/A | BO147: N/A | BP147: N/A | BQ147: N/A | BR147: N/A | BS147: N/A | BT147: N/A | BU147: N/A | BV147: N/A | BW147: N/A | BX147: N/A | BY147: N/A | BZ147: N/A | CA147: N/A
A148: Shared among improved sanitation facilities | B148: Yes | C148: N/A | D148: N/A | E148: N/A | F148: N/A | G148: N/A | H148: N/A | I148: N/A | J148: N/A | K148: N/A | L148: N/A | M148: N/A | N148: N/A | O148: N/A | P148: N/A | Q148: N/A | R148: N/A | S148: N/A | T148: N/A | U148: N/A | V148: N/A | W148: N/A | X148: N/A | Y148: N/A | Z148: N/A | AA148: N/A | BA148: Shared among improved sanitation facilities | BB148: Yes | BC148: N/A | BD148: N/A | BE148: N/A | BF148: N/A | BG148: N/A | BH148: N/A | BI148: N/A | BJ148: N/A | BK148: N/A | BL148: N/A | BM148: N/A | BN148: N/A | BO148: N/A | BP148: N/A | BQ148: N/A | BR148: N/A | BS148: N/A | BT148: N/A | BU148: N/A | BV148: N/A | BW148: N/A | BX148: N/A | BY148: N/A | BZ148: N/A | CA148: N/A
B149: No | C149: N/A | D149: N/A | E149: N/A | F149: N/A | G149: N/A | H149: N/A | I149: N/A | J149: N/A | K149: N/A | L149: N/A | M149: N/A | N149: N/A | O149: N/A | P149: N/A | Q149: N/A | R149: N/A | S149: N/A | T149: N/A | U149: N/A | V149: N/A | W149: N/A | X149: N/A | Y149: N/A | Z149: N/A | AA149: N/A | BB149: No | BC149: N/A | BD149: N/A | BE149: N/A | BF149: N/A | BG149: N/A | BH149: N/A | BI149: N/A | BJ149: N/A | BK149: N/A | BL149: N/A | BM149: N/A | BN149: N/A | BO149: N/A | BP149: N/A | BQ149: N/A | BR149: N/A | BS149: N/A | BT149: N/A | BU149: N/A | BV149: N/A | BW149: N/A | BX149: N/A | BY149: N/A | BZ149: N/A | CA149: N/A
B150: DK/missing | C150: N/A | D150: N/A | E150: N/A | F150: N/A | G150: N/A | H150: N/A | I150: N/A | J150: N/A | K150: N/A | L150: N/A | M150: N/A | N150: N/A | O150: N/A | P150: N/A | Q150: N/A | R150: N/A | S150: N/A | T150: N/A | U150: N/A | V150: N/A | W150: N/A | X150: N/A | Y150: N/A | Z150: N/A | AA150: N/A | BB150: DK/missing | BC150: N/A | BD150: N/A | BE150: N/A | BF150: N/A | BG150: N/A | BH150: N/A | BI150: N/A | BJ150: N/A | BK150: N/A | BL150: N/A | BM150: N/A | BN150: N/A | BO150: N/A | BP150: N/A | BQ150: N/A | BR150: N/A | BS150: N/A | BT150: N/A | BU150: N/A | BV150: N/A | BW150: N/A | BX150: N/A | BY150: N/A | BZ150: N/A | CA150: N/A
A151: Shared among all sanitation facilities | B151: Yes | C151: 43.13392039 | D151: 37.58943383 | E151: 45.93810569 | F151: 66.07754154 | G151: 50.8273079 | H151: 57.77823899 | I151: 76.80978865 | J151: 64.51612224 | K151: 65.47317998 | L151: 31.67679916 | M151: 45.91729561 | N151: 39.1098159 | O151: 40.07082337 | P151: 38.70008862 | Q151: 48.96652513 | R151: 62.64661438 | S151: 42.66258557 | T151: 29.31816909 | U151: 61.86376105 | V151: 49.67740208 | W151: 35.17885115 | X151: 31.65530646 | Y151: 34.26455751 | Z151: 29.30809191 | AA151: 45.41733678 | BA151: Shared among all sanitation facilities | BB151: Yes | BC151: N/A | BD151: N/A | BE151: N/A | BF151: N/A | BG151: N/A | BH151: N/A | BI151: N/A | BJ151: N/A | BK151: N/A | BL151: N/A | BM151: N/A | BN151: N/A | BO151: N/A | BP151: N/A | BQ151: N/A | BR151: N/A | BS151: N/A | BT151: N/A | BU151: N/A | BV151: N/A | BW151: N/A | BX151: N/A | BY151: N/A | BZ151: N/A | CA151: N/A
B152: No | C152: 56.86607961 | D152: 62.41056617 | E152: 54.06189431 | F152: 33.92245846 | G152: 49.1726921 | H152: 42.22176101 | I152: 23.19021135 | J152: 35.48387776 | K152: 34.52682002 | L152: 68.32320084 | M152: 54.08270439 | N152: 60.8901841 | O152: 59.92917663 | P152: 61.29991138 | Q152: 51.03347487 | R152: 37.35338562 | S152: 57.33741443 | T152: 70.68183091 | U152: 38.13623895 | V152: 50.32259792 | W152: 64.82114885 | X152: 68.34469354 | Y152: 65.73544249 | Z152: 70.69190809 | AA152: 54.58266322 | BB152: No | BC152: N/A | BD152: N/A | BE152: N/A | BF152: N/A | BG152: N/A | BH152: N/A | BI152: N/A | BJ152: N/A | BK152: N/A | BL152: N/A | BM152: N/A | BN152: N/A | BO152: N/A | BP152: N/A | BQ152: N/A | BR152: N/A | BS152: N/A | BT152: N/A | BU152: N/A | BV152: N/A | BW152: N/A | BX152: N/A | BY152: N/A | BZ152: N/A | CA152: N/A
A153: type of toilet facility | B153: w.c | C153: 0.01842594887 | D153: 0.02676561137 | E153: 0.1430796503 | F153: 1.373235132 | G153: 15.44057918 | H153: 0.9120921241 | I153: 1.442038275 | J153: 2.437496717 | K153: 3.119293811 | L153: 35.96387434 | M153: 0 | N153: 0 | O153: 0 | P153: 0 | Q153: 2.273733575 | R153: 0.3856836585 | S153: 0.6259326198 | T153: 0.8128599157 | U153: 10.74514711 | V153: 3.138575328 | W153: 0.06552815806 | X153: 1.314314925 | Y153: 0.7894803288 | Z153: 0 | AA153: 1.249897197 | BA153: type of toilet facility | BB153: w.c | BC153: 1.988992 | BD153: 1.988992 | BE153: 13.059661 | BF153: 121.947298 | BG153: 1442.922655 | BH153: 29.838673 | BI153: 51.533334 | BJ153: 69.412472 | BK153: 109.922998 | BL153: 1187.801898 | BM153: 0 | BN153: 0 | BO153: 0 | BP153: 0 | BQ153: 133.398223 | BR153: 28.309201 | BS153: 25.466115 | BT153: 23.206567 | BU153: 1251.04909 | BV153: 122.640622 | BW153: 1.129184 | BX153: 26.026925 | BY153: 27.726709 | BZ153: 0 | CA153: 76.353185
B154: open, rudimentary | C154: 15.59737801 | D154: 16.16234609 | E154: 20.15578271 | F154: 17.14592565 | G154: 13.2296485 | H154: 18.00914411 | I154: 17.13338659 | J154: 11.24843193 | K154: 17.28266369 | L154: 10.31856681 | M154: 17.773156 | N154: 15.20385117 | O154: 15.74866116 | P154: 22.98726806 | Q154: 16.39722346 | R154: 26.00937039 | S154: 21.71513911 | T154: 13.22958526 | U154: 13.39873213 | V154: 10.08330192 | W154: 29.86646331 | X154: 18.1154562 | Y154: 12.81119798 | Z154: 9.620239111 | AA154: 13.11205455 | BB154: open, rudimentary | BC154: 1683.661466 | BD154: 1201.047741 | BE154: 1839.728353 | BF154: 1522.608369 | BG154: 1236.311107 | BH154: 589.16084 | BI154: 612.286476 | BJ154: 320.321033 | BK154: 609.035994 | BL154: 340.797911 | BM154: 447.117897 | BN154: 1381.910052 | BO154: 963.496568 | BP154: 1257.217611 | BQ154: 962.012654 | BR154: 1909.089167 | BS154: 883.482043 | BT154: 377.695161 | BU154: 1560.003922 | BV154: 394.007564 | BW154: 514.660163 | BX154: 358.734129 | BY154: 449.931867 | BZ154: 234.769444 | CA154: 800.983576
B155: improved latrines | C155: 16.47695851 | D155: 23.8104064 | E155: 32.75249256 | F155: 64.87428835 | G155: 68.36320042 | H155: 54.84288245 | I155: 72.41191299 | J155: 81.14317583 | K155: 75.84484658 | L155: 52.64863082 | M155: 25.26762027 | N155: 14.19424027 | O155: 22.95048451 | P155: 27.66778844 | Q155: 46.69794576 | R155: 27.82089607 | S155: 31.42652253 | T155: 29.69438039 | U155: 71.74810904 | V155: 25.14003996 | W155: 37.54309129 | X155: 33.60675822 | Y155: 28.34098592 | Z155: 31.60274898 | AA155: 34.43780994 | BB155: improved latrines | BC155: 1778.607924 | BD155: 1769.386366 | BE155: 2989.498848 | BF155: 5761.026635 | BG155: 6388.543429 | BH155: 1794.159595 | BI155: 2587.744973 | BJ155: 2310.710157 | BK155: 2672.750124 | BL155: 1738.86003 | BM155: 635.655549 | BN155: 1290.144391 | BO155: 1404.101138 | BP155: 1513.204213 | BQ155: 2739.733032 | BR155: 2042.055248 | BS155: 1278.590397 | BT155: 847.753241 | BU155: 8353.576327 | BV155: 982.353398 | BW155: 646.944142 | BX155: 665.503038 | BY155: 995.341164 | BZ155: 771.224054 | CA155: 2103.722193
B156: no facility, nature | C156: 67.90723753 | D156: 60.0004819 | E156: 46.94864508 | F156: 16.60655087 | G156: 2.9665719 | H156: 26.23588132 | I156: 9.012662142 | J156: 5.170895523 | K156: 3.753195914 | L156: 1.068928022 | M156: 56.95922372 | N156: 70.60190856 | O156: 61.30085432 | P156: 49.3449435 | Q156: 34.63109721 | R156: 45.78404988 | S156: 46.23240574 | T156: 56.26317444 | U156: 4.108011722 | V156: 61.63808279 | W156: 32.52491725 | X156: 46.96347065 | Y156: 58.05833577 | Z156: 58.77701191 | AA156: 51.20023832 | BB156: no facility, nature | BC156: 7330.257625 | BD156: 4458.724175 | BE156: 4285.259209 | BF156: 1474.71031 | BG156: 277.226246 | BH156: 858.294752 | BI156: 322.080583 | BJ156: 147.251333 | BK156: 132.261522 | BL156: 35.30417 | BM156: 1432.918741 | BN156: 6417.156155 | BO156: 3750.360881 | BP156: 2698.769241 | BQ156: 2031.780187 | BR156: 3360.551691 | BS156: 1880.968852 | BT156: 1606.273236 | BU156: 478.292598 | BV156: 2408.523621 | BW156: 560.470754 | BX156: 930.001406 | BY156: 2039.020508 | BZ156: 1434.376656 | CA156: 3127.698243
BB157: Total | BC157: 10794.51601 | BD157: 7431.147274 | BE157: 9127.546071 | BF157: 8880.292612 | BG157: 9345.003437 | BH157: 3271.45386 | BI157: 3573.645366 | BJ157: 2847.694995 | BK157: 3523.970638 | BL157: 3302.764009 | BM157: 2515.692187 | BN157: 9089.210598 | BO157: 6117.958587 | BP157: 5469.191065 | BQ157: 5866.924096 | BR157: 7340.005307 | BS157: 4068.507407 | BT157: 2854.928205 | BU157: 11642.92194 | BV157: 3907.525205 | BW157: 1723.204243 | BX157: 1980.265498 | BY157: 3512.020248 | BZ157: 2440.370154 | CA157: 6108.757197
A208: =A1026 -> Haiti
A209: =A1034 -> 2000
A210: Access to hygiene facilities
A211: by wealth quintile and sub-national region
A212: Notes:
A213: WHO/UNICEF JMP customised wealth index excludes water,
A214: sanitation and hygiene assets.
A215: Survey used for analysis: | B215: =A1025 -> DHS00
A220: Access to handwashing | C220: NATIONAL wealth index quintile | H220: URBAN wealth index quintile | M220: RURAL wealth index quintile | R220: SUB-REGIONS: | BA220: Raw numbers of respondents: | BB220: Access to handwashing | BC220: NATIONAL wealth index quintile | BH220: URBAN wealth index quintile | BM220: RURAL wealth index quintile | BR220: SUB-REGIONS:
A221: Weighted percentage (used in graphs) | C221: Poorest | D221: Poor | E221: Middle | F221: Rich | G221: Richest | H221: Poorest | I221: Poor | J221: Middle | K221: Rich | L221: Richest | M221: Poorest | N221: Poor | O221: Middle | P221: Rich | Q221: Richest | R221: artibonite | S221: centre | T221: grande-anse | U221: metropolitain area | V221: north | W221: north-east | X221: north-west | Y221: south | Z221: south-east | AA221: west | BA221: Hygiene data, raw numbers (weighted) | BC221: Poorest | BD221: Poor | BE221: Middle | BF221: Rich | BG221: Richest | BH221: Poorest | BI221: Poor | BJ221: Middle | BK221: Rich | BL221: Richest | BM221: Poorest | BN221: Poor | BO221: Middle | BP221: Rich | BQ221: Richest | BR221: artibonite | BS221: centre | BT221: grande-anse | BU221: metropolitain area | BV221: north | BW221: north-east | BX221: north-west | BY221: south | BZ221: south-east | CA221: west
A222: Hygiene ladder | B222: Basic | C222: N/A | D222: N/A | E222: N/A | F222: N/A | G222: N/A | H222: N/A | I222: N/A | J222: N/A | K222: N/A | L222: N/A | M222: N/A | N222: N/A | O222: N/A | P222: N/A | Q222: N/A | R222: N/A | S222: N/A | T222: N/A | U222: N/A | V222: N/A | W222: N/A | X222: N/A | Y222: N/A | Z222: N/A | AA222: N/A | BA222: Hygiene ladder | BB222: Basic | BC222: N/A | BD222: N/A | BE222: N/A | BF222: N/A | BG222: N/A | BH222: N/A | BI222: N/A | BJ222: N/A | BK222: N/A | BL222: N/A | BM222: N/A | BN222: N/A | BO222: N/A | BP222: N/A | BQ222: N/A | BR222: N/A | BS222: N/A | BT222: N/A | BU222: N/A | BV222: N/A | BW222: N/A | BX222: N/A | BY222: N/A | BZ222: N/A | CA222: N/A
B223: Limited | C223: N/A | D223: N/A | E223: N/A | F223: N/A | G223: N/A | H223: N/A | I223: N/A | J223: N/A | K223: N/A | L223: N/A | M223: N/A | N223: N/A | O223: N/A | P223: N/A | Q223: N/A | R223: N/A | S223: N/A | T223: N/A | U223: N/A | V223: N/A | W223: N/A | X223: N/A | Y223: N/A | Z223: N/A | AA223: N/A | BB223: Limited | BC223: N/A | BD223: N/A | BE223: N/A | BF223: N/A | BG223: N/A | BH223: N/A | BI223: N/A | BJ223: N/A | BK223: N/A | BL223: N/A | BM223: N/A | BN223: N/A | BO223: N/A | BP223: N/A | BQ223: N/A | BR223: N/A | BS223: N/A | BT223: N/A | BU223: N/A | BV223: N/A | BW223: N/A | BX223: N/A | BY223: N/A | BZ223: N/A | CA223: N/A
B224: No facility | C224: N/A | D224: N/A | E224: N/A | F224: N/A | G224: N/A | H224: N/A | I224: N/A | J224: N/A | K224: N/A | L224: N/A | M224: N/A | N224: N/A | O224: N/A | P224: N/A | Q224: N/A | R224: N/A | S224: N/A | T224: N/A | U224: N/A | V224: N/A | W224: N/A | X224: N/A | Y224: N/A | Z224: N/A | AA224: N/A | BB224: No facility | BC224: N/A | BD224: N/A | BE224: N/A | BF224: N/A | BG224: N/A | BH224: N/A | BI224: N/A | BJ224: N/A | BK224: N/A | BL224: N/A | BM224: N/A | BN224: N/A | BO224: N/A | BP224: N/A | BQ224: N/A | BR224: N/A | BS224: N/A | BT224: N/A | BU224: N/A | BV224: N/A | BW224: N/A | BX224: N/A | BY224: N/A | BZ224: N/A | CA224: N/A
BA225: Observed handwashing place | BB225: Fixed | BC225: N/A | BD225: N/A | BE225: N/A | BF225: N/A | BG225: N/A | BH225: N/A | BI225: N/A | BJ225: N/A | BK225: N/A | BL225: N/A | BM225: N/A | BN225: N/A | BO225: N/A | BP225: N/A | BQ225: N/A | BR225: N/A | BS225: N/A | BT225: N/A | BU225: N/A | BV225: N/A | BW225: N/A | BX225: N/A | BY225: N/A | BZ225: N/A | CA225: N/A
BB226: Mobile | BC226: N/A | BD226: N/A | BE226: N/A | BF226: N/A | BG226: N/A | BH226: N/A | BI226: N/A | BJ226: N/A | BK226: N/A | BL226: N/A | BM226: N/A | BN226: N/A | BO226: N/A | BP226: N/A | BQ226: N/A | BR226: N/A | BS226: N/A | BT226: N/A | BU226: N/A | BV226: N/A | BW226: N/A | BX226: N/A | BY226: N/A | BZ226: N/A | CA226: N/A
BA227: Water / Soap | BB227: Water and soap | BC227: N/A | BD227: N/A | BE227: N/A | BF227: N/A | BG227: N/A | BH227: N/A | BI227: N/A | BJ227: N/A | BK227: N/A | BL227: N/A | BM227: N/A | BN227: N/A | BO227: N/A | BP227: N/A | BQ227: N/A | BR227: N/A | BS227: N/A | BT227: N/A | BU227: N/A | BV227: N/A | BW227: N/A | BX227: N/A | BY227: N/A | BZ227: N/A | CA227: N/A
BB228: Water only | BC228: N/A | BD228: N/A | BE228: N/A | BF228: N/A | BG228: N/A | BH228: N/A | BI228: N/A | BJ228: N/A | BK228: N/A | BL228: N/A | BM228: N/A | BN228: N/A | BO228: N/A | BP228: N/A | BQ228: N/A | BR228: N/A | BS228: N/A | BT228: N/A | BU228: N/A | BV228: N/A | BW228: N/A | BX228: N/A | BY228: N/A | BZ228: N/A | CA228: N/A
BB229: Soap only | BC229: N/A | BD229: N/A | BE229: N/A | BF229: N/A | BG229: N/A | BH229: N/A | BI229: N/A | BJ229: N/A | BK229: N/A | BL229: N/A | BM229: N/A | BN229: N/A | BO229: N/A | BP229: N/A | BQ229: N/A | BR229: N/A | BS229: N/A | BT229: N/A | BU229: N/A | BV229: N/A | BW229: N/A | BX229: N/A | BY229: N/A | BZ229: N/A | CA229: N/A
BB230: Neither | BC230: N/A | BD230: N/A | BE230: N/A | BF230: N/A | BG230: N/A | BH230: N/A | BI230: N/A | BJ230: N/A | BK230: N/A | BL230: N/A | BM230: N/A | BN230: N/A | BO230: N/A | BP230: N/A | BQ230: N/A | BR230: N/A | BS230: N/A | BT230: N/A | BU230: N/A | BV230: N/A | BW230: N/A | BX230: N/A | BY230: N/A | BZ230: N/A | CA230: N/A
BA259: Raw numbers of respondents: | BB259: Menstrual health and hygiene | BC259: NATIONAL wealth index quintile | BH259: URBAN wealth index quintile | BM259: RURAL wealth index quintile | BR259: SUB-REGIONS:
BA260: MHH data, raw numbers (weighted) | BC260: Poorest | BD260: Poor | BE260: Middle | BF260: Rich | BG260: Richest | BH260: Poorest | BI260: Poor | BJ260: Middle | BK260: Rich | BL260: Richest | BM260: Poorest | BN260: Poor | BO260: Middle | BP260: Rich | BQ260: Richest | BR260: artibonite | BS260: centre | BT260: grande-anse | BU260: metropolitain area | BV260: north | BW260: north-east | BX260: north-west | BY260: south | BZ260: south-east | CA260: west
BA261: Private place to wash and change | BB261: Yes | BC261: N/A | BD261: N/A | BE261: N/A | BF261: N/A | BG261: N/A | BH261: N/A | BI261: N/A | BJ261: N/A | BK261: N/A | BL261: N/A | BM261: N/A | BN261: N/A | BO261: N/A | BP261: N/A | BQ261: N/A | BR261: N/A | BS261: N/A | BT261: N/A | BU261: N/A | BV261: N/A | BW261: N/A | BX261: N/A | BY261: N/A | BZ261: N/A | CA261: N/A
BB262: No | BC262: N/A | BD262: N/A | BE262: N/A | BF262: N/A | BG262: N/A | BH262: N/A | BI262: N/A | BJ262: N/A | BK262: N/A | BL262: N/A | BM262: N/A | BN262: N/A | BO262: N/A | BP262: N/A | BQ262: N/A | BR262: N/A | BS262: N/A | BT262: N/A | BU262: N/A | BV262: N/A | BW262: N/A | BX262: N/A | BY262: N/A | BZ262: N/A | CA262: N/A
BB263: DK/not sure/missing | BC263: N/A | BD263: N/A | BE263: N/A | BF263: N/A | BG263: N/A | BH263: N/A | BI263: N/A | BJ263: N/A | BK263: N/A | BL263: N/A | BM263: N/A | BN263: N/A | BO263: N/A | BP263: N/A | BQ263: N/A | BR263: N/A | BS263: N/A | BT263: N/A | BU263: N/A | BV263: N/A | BW263: N/A | BX263: N/A | BY263: N/A | BZ263: N/A | CA263: N/A
BA264: Use of menstrual materials | BB264: Materials reusable | BC264: N/A | BD264: N/A | BE264: N/A | BF264: N/A | BG264: N/A | BH264: N/A | BI264: N/A | BJ264: N/A | BK264: N/A | BL264: N/A | BM264: N/A | BN264: N/A | BO264: N/A | BP264: N/A | BQ264: N/A | BR264: N/A | BS264: N/A | BT264: N/A | BU264: N/A | BV264: N/A | BW264: N/A | BX264: N/A | BY264: N/A | BZ264: N/A | CA264: N/A
BB265: Materials not reusable | BC265: N/A | BD265: N/A | BE265: N/A | BF265: N/A | BG265: N/A | BH265: N/A | BI265: N/A | BJ265: N/A | BK265: N/A | BL265: N/A | BM265: N/A | BN265: N/A | BO265: N/A | BP265: N/A | BQ265: N/A | BR265: N/A | BS265: N/A | BT265: N/A | BU265: N/A | BV265: N/A | BW265: N/A | BX265: N/A | BY265: N/A | BZ265: N/A | CA265: N/A
BB266: No materials used | BC266: N/A | BD266: N/A | BE266: N/A | BF266: N/A | BG266: N/A | BH266: N/A | BI266: N/A | BJ266: N/A | BK266: N/A | BL266: N/A | BM266: N/A | BN266: N/A | BO266: N/A | BP266: N/A | BQ266: N/A | BR266: N/A | BS266: N/A | BT266: N/A | BU266: N/A | BV266: N/A | BW266: N/A | BX266: N/A | BY266: N/A | BZ266: N/A | CA266: N/A
BB267: DK/not sure/missing | BC267: N/A | BD267: N/A | BE267: N/A | BF267: N/A | BG267: N/A | BH267: N/A | BI267: N/A | BJ267: N/A | BK267: N/A | BL267: N/A | BM267: N/A | BN267: N/A | BO267: N/A | BP267: N/A | BQ267: N/A | BR267: N/A | BS267: N/A | BT267: N/A | BU267: N/A | BV267: N/A | BW267: N/A | BX267: N/A | BY267: N/A | BZ267: N/A | CA267: N/A
BA268: Use of menstrual materials with private place to wash and change | BB268: Materials reusable | BC268: N/A | BD268: N/A | BE268: N/A | BF268: N/A | BG268: N/A | BH268: N/A | BI268: N/A | BJ268: N/A | BK268: N/A | BL268: N/A | BM268: N/A | BN268: N/A | BO268: N/A | BP268: N/A | BQ268: N/A | BR268: N/A | BS268: N/A | BT268: N/A | BU268: N/A | BV268: N/A | BW268: N/A | BX268: N/A | BY268: N/A | BZ268: N/A | CA268: N/A
BB269: Materials not reusable | BC269: N/A | BD269: N/A | BE269: N/A | BF269: N/A | BG269: N/A | BH269: N/A | BI269: N/A | BJ269: N/A | BK269: N/A | BL269: N/A | BM269: N/A | BN269: N/A | BO269: N/A | BP269: N/A | BQ269: N/A | BR269: N/A | BS269: N/A | BT269: N/A | BU269: N/A | BV269: N/A | BW269: N/A | BX269: N/A | BY269: N/A | BZ269: N/A | CA269: N/A
BB270: No materials used | BC270: N/A | BD270: N/A | BE270: N/A | BF270: N/A | BG270: N/A | BH270: N/A | BI270: N/A | BJ270: N/A | BK270: N/A | BL270: N/A | BM270: N/A | BN270: N/A | BO270: N/A | BP270: N/A | BQ270: N/A | BR270: N/A | BS270: N/A | BT270: N/A | BU270: N/A | BV270: N/A | BW270: N/A | BX270: N/A | BY270: N/A | BZ270: N/A | CA270: N/A
BA271: Awareness of menstruation before menarche | BB271: Yes | BC271: N/A | BD271: N/A | BE271: N/A | BF271: N/A | BG271: N/A | BH271: N/A | BI271: N/A | BJ271: N/A | BK271: N/A | BL271: N/A | BM271: N/A | BN271: N/A | BO271: N/A | BP271: N/A | BQ271: N/A | BR271: N/A | BS271: N/A | BT271: N/A | BU271: N/A | BV271: N/A | BW271: N/A | BX271: N/A | BY271: N/A | BZ271: N/A | CA271: N/A
BB272: No | BC272: N/A | BD272: N/A | BE272: N/A | BF272: N/A | BG272: N/A | BH272: N/A | BI272: N/A | BJ272: N/A | BK272: N/A | BL272: N/A | BM272: N/A | BN272: N/A | BO272: N/A | BP272: N/A | BQ272: N/A | BR272: N/A | BS272: N/A | BT272: N/A | BU272: N/A | BV272: N/A | BW272: N/A | BX272: N/A | BY272: N/A | BZ272: N/A | CA272: N/A
BB273: DK/not sure/missing | BC273: N/A | BD273: N/A | BE273: N/A | BF273: N/A | BG273: N/A | BH273: N/A | BI273: N/A | BJ273: N/A | BK273: N/A | BL273: N/A | BM273: N/A | BN273: N/A | BO273: N/A | BP273: N/A | BQ273: N/A | BR273: N/A | BS273: N/A | BT273: N/A | BU273: N/A | BV273: N/A | BW273: N/A | BX273: N/A | BY273: N/A | BZ273: N/A | CA273: N/A
BA274: Participation in (all) activities during menstruation | BB274: Yes | BC274: N/A | BD274: N/A | BE274: N/A | BF274: N/A | BG274: N/A | BH274: N/A | BI274: N/A | BJ274: N/A | BK274: N/A | BL274: N/A | BM274: N/A | BN274: N/A | BO274: N/A | BP274: N/A | BQ274: N/A | BR274: N/A | BS274: N/A | BT274: N/A | BU274: N/A | BV274: N/A | BW274: N/A | BX274: N/A | BY274: N/A | BZ274: N/A | CA274: N/A
BB275: No | BC275: N/A | BD275: N/A | BE275: N/A | BF275: N/A | BG275: N/A | BH275: N/A | BI275: N/A | BJ275: N/A | BK275: N/A | BL275: N/A | BM275: N/A | BN275: N/A | BO275: N/A | BP275: N/A | BQ275: N/A | BR275: N/A | BS275: N/A | BT275: N/A | BU275: N/A | BV275: N/A | BW275: N/A | BX275: N/A | BY275: N/A | BZ275: N/A | CA275: N/A
BB276: DK/not sure/missing/no such activity | BC276: N/A | BD276: N/A | BE276: N/A | BF276: N/A | BG276: N/A | BH276: N/A | BI276: N/A | BJ276: N/A | BK276: N/A | BL276: N/A | BM276: N/A | BN276: N/A | BO276: N/A | BP276: N/A | BQ276: N/A | BR276: N/A | BS276: N/A | BT276: N/A | BU276: N/A | BV276: N/A | BW276: N/A | BX276: N/A | BY276: N/A | BZ276: N/A | CA276: N/A
BA277: Participation in specific activities during menstruation | BB277: Did not go to school (amongst those usually attending school) | BC277: N/A | BD277: N/A | BE277: N/A | BF277: N/A | BG277: N/A | BH277: N/A | BI277: N/A | BJ277: N/A | BK277: N/A | BL277: N/A | BM277: N/A | BN277: N/A | BO277: N/A | BP277: N/A | BQ277: N/A | BR277: N/A | BS277: N/A | BT277: N/A | BU277: N/A | BV277: N/A | BW277: N/A | BX277: N/A | BY277: N/A | BZ277: N/A | CA277: N/A
BB278: Did not go to work (amongst those who usually work) | BC278: N/A | BD278: N/A | BE278: N/A | BF278: N/A | BG278: N/A | BH278: N/A | BI278: N/A | BJ278: N/A | BK278: N/A | BL278: N/A | BM278: N/A | BN278: N/A | BO278: N/A | BP278: N/A | BQ278: N/A | BR278: N/A | BS278: N/A | BT278: N/A | BU278: N/A | BV278: N/A | BW278: N/A | BX278: N/A | BY278: N/A | BZ278: N/A | CA278: N/A
BB279: Did not participate in social activities | BC279: N/A | BD279: N/A | BE279: N/A | BF279: N/A | BG279: N/A | BH279: N/A | BI279: N/A | BJ279: N/A | BK279: N/A | BL279: N/A | BM279: N/A | BN279: N/A | BO279: N/A | BP279: N/A | BQ279: N/A | BR279: N/A | BS279: N/A | BT279: N/A | BU279: N/A | BV279: N/A | BW279: N/A | BX279: N/A | BY279: N/A | BZ279: N/A | CA279: N/A
BB280: Did not cook food | BC280: N/A | BD280: N/A | BE280: N/A | BF280: N/A | BG280: N/A | BH280: N/A | BI280: N/A | BJ280: N/A | BK280: N/A | BL280: N/A | BM280: N/A | BN280: N/A | BO280: N/A | BP280: N/A | BQ280: N/A | BR280: N/A | BS280: N/A | BT280: N/A | BU280: N/A | BV280: N/A | BW280: N/A | BX280: N/A | BY280: N/A | BZ280: N/A | CA280: N/A
BB281: Did not eat with others | BC281: N/A | BD281: N/A | BE281: N/A | BF281: N/A | BG281: N/A | BH281: N/A | BI281: N/A | BJ281: N/A | BK281: N/A | BL281: N/A | BM281: N/A | BN281: N/A | BO281: N/A | BP281: N/A | BQ281: N/A | BR281: N/A | BS281: N/A | BT281: N/A | BU281: N/A | BV281: N/A | BW281: N/A | BX281: N/A | BY281: N/A | BZ281: N/A | CA281: N/A
BB282: Did not bathe in regular place | BC282: N/A | BD282: N/A | BE282: N/A | BF282: N/A | BG282: N/A | BH282: N/A | BI282: N/A | BJ282: N/A | BK282: N/A | BL282: N/A | BM282: N/A | BN282: N/A | BO282: N/A | BP282: N/A | BQ282: N/A | BR282: N/A | BS282: N/A | BT282: N/A | BU282: N/A | BV282: N/A | BW282: N/A | BX282: N/A | BY282: N/A | BZ282: N/A | CA282: N/A
BB283: Did not participate in other activities | BC283: N/A | BD283: N/A | BE283: N/A | BF283: N/A | BG283: N/A | BH283: N/A | BI283: N/A | BJ283: N/A | BK283: N/A | BL283: N/A | BM283: N/A | BN283: N/A | BO283: N/A | BP283: N/A | BQ283: N/A | BR283: N/A | BS283: N/A | BT283: N/A | BU283: N/A | BV283: N/A | BW283: N/A | BX283: N/A | BY283: N/A | BZ283: N/A | CA283: N/A
BB284: DK/not sure/missing/no such activity | BC284: N/A | BD284: N/A | BE284: N/A | BF284: N/A | BG284: N/A | BH284: N/A | BI284: N/A | BJ284: N/A | BK284: N/A | BL284: N/A | BM284: N/A | BN284: N/A | BO284: N/A | BP284: N/A | BQ284: N/A | BR284: N/A | BS284: N/A | BT284: N/A | BU284: N/A | BV284: N/A | BW284: N/A | BX284: N/A | BY284: N/A | BZ284: N/A | CA284: N/A
BA339: Raw numbers of respondents: | BB339: Basic water, sanitation and hygiene | BC339: NATIONAL wealth index quintile | BH339: URBAN wealth index quintile | BM339: RURAL wealth index quintile | BR339: SUB-REGIONS:
BA340: WatSan data, raw numbers (weighted) | BC340: Poorest | BD340: Poor | BE340: Middle | BF340: Rich | BG340: Richest | BH340: Poorest | BI340: Poor | BJ340: Middle | BK340: Rich | BL340: Richest | BM340: Poorest | BN340: Poor | BO340: Middle | BP340: Rich | BQ340: Richest | BR340: artibonite | BS340: centre | BT340: grande-anse | BU340: metropolitain area | BV340: north | BW340: north-east | BX340: north-west | BY340: south | BZ340: south-east | CA340: west
BA341: Use of Basic Water Sanitation and Hygiene | BB341: Yes | BC341: N/A | BD341: N/A | BE341: N/A | BF341: N/A | BG341: N/A | BH341: N/A | BI341: N/A | BJ341: N/A | BK341: N/A | BL341: N/A | BM341: N/A | BN341: N/A | BO341: N/A | BP341: N/A | BQ341: N/A | BR341: N/A | BS341: N/A | BT341: N/A | BU341: N/A | BV341: N/A | BW341: N/A | BX341: N/A | BY341: N/A | BZ341: N/A | CA341: N/A
BB342: No | BC342: N/A | BD342: N/A | BE342: N/A | BF342: N/A | BG342: N/A | BH342: N/A | BI342: N/A | BJ342: N/A | BK342: N/A | BL342: N/A | BM342: N/A | BN342: N/A | BO342: N/A | BP342: N/A | BQ342: N/A | BR342: N/A | BS342: N/A | BT342: N/A | BU342: N/A | BV342: N/A | BW342: N/A | BX342: N/A | BY342: N/A | BZ342: N/A | CA342: N/A
BA343: Use of Basic Water and Sanitation | BB343: Yes | BC343: N/A | BD343: N/A | BE343: N/A | BF343: N/A | BG343: N/A | BH343: N/A | BI343: N/A | BJ343: N/A | BK343: N/A | BL343: N/A | BM343: N/A | BN343: N/A | BO343: N/A | BP343: N/A | BQ343: N/A | BR343: N/A | BS343: N/A | BT343: N/A | BU343: N/A | BV343: N/A | BW343: N/A | BX343: N/A | BY343: N/A | BZ343: N/A | CA343: N/A
BB344: No | BC344: N/A | BD344: N/A | BE344: N/A | BF344: N/A | BG344: N/A | BH344: N/A | BI344: N/A | BJ344: N/A | BK344: N/A | BL344: N/A | BM344: N/A | BN344: N/A | BO344: N/A | BP344: N/A | BQ344: N/A | BR344: N/A | BS344: N/A | BT344: N/A | BU344: N/A | BV344: N/A | BW344: N/A | BX344: N/A | BY344: N/A | BZ344: N/A | CA344: N/A
BA345: Use of Basic Water and Hygiene | BB345: Yes | BC345: N/A | BD345: N/A | BE345: N/A | BF345: N/A | BG345: N/A | BH345: N/A | BI345: N/A | BJ345: N/A | BK345: N/A | BL345: N/A | BM345: N/A | BN345: N/A | BO345: N/A | BP345: N/A | BQ345: N/A | BR345: N/A | BS345: N/A | BT345: N/A | BU345: N/A | BV345: N/A | BW345: N/A | BX345: N/A | BY345: N/A | BZ345: N/A | CA345: N/A
BB346: No | BC346: N/A | BD346: N/A | BE346: N/A | BF346: N/A | BG346: N/A | BH346: N/A | BI346: N/A | BJ346: N/A | BK346: N/A | BL346: N/A | BM346: N/A | BN346: N/A | BO346: N/A | BP346: N/A | BQ346: N/A | BR346: N/A | BS346: N/A | BT346: N/A | BU346: N/A | BV346: N/A | BW346: N/A | BX346: N/A | BY346: N/A | BZ346: N/A | CA346: N/A
BA347: Use of Basic Sanitation and Hygiene | BB347: Yes | BC347: N/A | BD347: N/A | BE347: N/A | BF347: N/A | BG347: N/A | BH347: N/A | BI347: N/A | BJ347: N/A | BK347: N/A | BL347: N/A | BM347: N/A | BN347: N/A | BO347: N/A | BP347: N/A | BQ347: N/A | BR347: N/A | BS347: N/A | BT347: N/A | BU347: N/A | BV347: N/A | BW347: N/A | BX347: N/A | BY347: N/A | BZ347: N/A | CA347: N/A
BB348: No | BC348: N/A | BD348: N/A | BE348: N/A | BF348: N/A | BG348: N/A | BH348: N/A | BI348: N/A | BJ348: N/A | BK348: N/A | BL348: N/A | BM348: N/A | BN348: N/A | BO348: N/A | BP348: N/A | BQ348: N/A | BR348: N/A | BS348: N/A | BT348: N/A | BU348: N/A | BV348: N/A | BW348: N/A | BX348: N/A | BY348: N/A | BZ348: N/A | CA348: N/A
BA349: Use of Basic Water | BB349: Yes | BC349: N/A | BD349: N/A | BE349: N/A | BF349: N/A | BG349: N/A | BH349: N/A | BI349: N/A | BJ349: N/A | BK349: N/A | BL349: N/A | BM349: N/A | BN349: N/A | BO349: N/A | BP349: N/A | BQ349: N/A | BR349: N/A | BS349: N/A | BT349: N/A | BU349: N/A | BV349: N/A | BW349: N/A | BX349: N/A | BY349: N/A | BZ349: N/A | CA349: N/A
BB350: No | BC350: N/A | BD350: N/A | BE350: N/A | BF350: N/A | BG350: N/A | BH350: N/A | BI350: N/A | BJ350: N/A | BK350: N/A | BL350: N/A | BM350: N/A | BN350: N/A | BO350: N/A | BP350: N/A | BQ350: N/A | BR350: N/A | BS350: N/A | BT350: N/A | BU350: N/A | BV350: N/A | BW350: N/A | BX350: N/A | BY350: N/A | BZ350: N/A | CA350: N/A
BA351: Use of Basic Sanitation | BB351: Yes | BC351: N/A | BD351: N/A | BE351: N/A | BF351: N/A | BG351: N/A | BH351: N/A | BI351: N/A | BJ351: N/A | BK351: N/A | BL351: N/A | BM351: N/A | BN351: N/A | BO351: N/A | BP351: N/A | BQ351: N/A | BR351: N/A | BS351: N/A | BT351: N/A | BU351: N/A | BV351: N/A | BW351: N/A | BX351: N/A | BY351: N/A | BZ351: N/A | CA351: N/A
BB352: No | BC352: N/A | BD352: N/A | BE352: N/A | BF352: N/A | BG352: N/A | BH352: N/A | BI352: N/A | BJ352: N/A | BK352: N/A | BL352: N/A | BM352: N/A | BN352: N/A | BO352: N/A | BP352: N/A | BQ352: N/A | BR352: N/A | BS352: N/A | BT352: N/A | BU352: N/A | BV352: N/A | BW352: N/A | BX352: N/A | BY352: N/A | BZ352: N/A | CA352: N/A
BA353: Access to Basic Hygiene | BB353: Yes | BC353: N/A | BD353: N/A | BE353: N/A | BF353: N/A | BG353: N/A | BH353: N/A | BI353: N/A | BJ353: N/A | BK353: N/A | BL353: N/A | BM353: N/A | BN353: N/A | BO353: N/A | BP353: N/A | BQ353: N/A | BR353: N/A | BS353: N/A | BT353: N/A | BU353: N/A | BV353: N/A | BW353: N/A | BX353: N/A | BY353: N/A | BZ353: N/A | CA353: N/A
BB354: No | BC354: N/A | BD354: N/A | BE354: N/A | BF354: N/A | BG354: N/A | BH354: N/A | BI354: N/A | BJ354: N/A | BK354: N/A | BL354: N/A | BM354: N/A | BN354: N/A | BO354: N/A | BP354: N/A | BQ354: N/A | BR354: N/A | BS354: N/A | BT354: N/A | BU354: N/A | BV354: N/A | BW354: N/A | BX354: N/A | BY354: N/A | BZ354: N/A | CA354: N/A
C399: INITIAL (national) Wealth Index | H399: URBAN Wealth Index | M399: RURAL Wealth Index
C400: Component Matrix | H400: Component Matrix | M400: Component Matrix
E401: Component | J401: Component | O401: Component
B402: Note: The INITIAL (national) Wealth Index is based on the first component of the Principal Component Analysis (PCA) which has been obtained at national level. The final national-level (NATIONAL) Wealth Index is based on the URBAN and RURAL specific wealth indexes. Regression procedures are used to establish the relationships between the two sets of scores (urban and rural) and the initial (national) wealth factors. This allows best use of the available information for each area and a better precision of the FINAL (NATIONAL) Wealth Index. For dependency reasons, all WASH variables (contained in the generic MICS and DHS scripts) have been excluded from the sets of asset variables used in the PCAs. The PCA can extracts as many components as there are asset variables in the input. Only the first of the components is used to represent the Wealth Index. The scores represent the weights of the asset variables on the Wealth Index (correlations between the variables and the component). The communalities are the proportion of each variable's variance that can be explained by the component. Proportion of explained variance is the part of the model's total variance that is explained by the component. For more information on the procedure used: The DHS Wealth Index, DHS Comparative Reports No. 6, Shea Oscar Rutstein, Kiersten Johnson, ORC Macro International Inc., 2004. The DHS Wealth Index: Approaches for Rural and Urban Areas, Shea O. Rutstein, ORC Macro International Inc., 2008. MICS Methodological Paper No. 4, Review of options for reporting water, sanitation and hygiene coverage by wealth quintile, UNICEF, 2016. | E402: 1 | J402: 1 | O402: 1
C403: has electricity | E403: 0.8532369185 | H403: has electricity | J403: 0.8009458015 | M403: has electricity | O403: 0.7612078502
C404: electricity from edh | E404: 0.8450420135 | H404: electricity from edh | J404: 0.7912727228 | M404: electricity from edh | O404: 0.7240179712
C405: if uses wood as cooking fuel | E405: -0.7862968031 | H405: has television | J405: 0.7457784837 | M405: has television | O405: 0.7120900816
C406: has television | E406: 0.7603508163 | H406: has refrigerator | J406: 0.6377459839 | M406: if uses wood as cooking fuel | O406: -0.633035902
C407: if uses charcoal for cooking | E407: 0.6702130177 | H407: has radio | J407: 0.5953107329 | M407: has refrigerator | O407: 0.6103603054
C408: if has dirt, sand, dung as principal floor inndwelling | E408: -0.6657498745 | H408: if has dirt, sand, dung as principal floor inndwelling | J408: -0.5502150804 | M408: if uses charcoal for cooking | O408: 0.5606952834
C409: has refrigerator | E409: 0.6054785603 | H409: has telephone | J409: 0.5239526635 | M409: has car/truck | O409: 0.49794998
C410: has radio | E410: 0.5594390684 | H410: if uses wood as cooking fuel | J410: -0.5035060124 | M410: if has dirt, sand, dung as principal floor inndwelling | O410: -0.4660961237
C411: Rents dwelling | E411: 0.5431741499 | H411: has car/truck | J411: 0.4367269325 | M411: has telephone | O411: 0.4277388323
C412: if has cement principal floor | E412: 0.5381306044 | H412: if has tiles for main flooring material | J412: 0.4159635046 | M412: if has tiles for main flooring material | O412: 0.4203394809
C413: Owns dwelling | E413: -0.5180757895 | H413: other source of electricity | J413: 0.3003057786 | M413: has radio | O413: 0.4080233522
C414: has telephone | E414: 0.461029505 | H414: if uses gas as cooking fuel | J414: 0.2626617421 | M414: if has cement principal floor | O414: 0.4078454092
C415: has car/truck | E415: 0.4069708743 | H415: if has cement principal floor | J415: 0.2396936819 | M415: other source of electricity | O415: 0.3634484716
C416: if has tiles for main flooring material | E416: 0.3865976255 | H416: if uses biogas as cooking fuel | J416: 0.2299593729 | M416: has bicycle | O416: 0.3382765609
C417: other source of electricity | E417: 0.2760173557 | H417: if uses charcoal for cooking | J417: 0.2079827898 | M417: Rents dwelling | O417: 0.3252283345
C418: has bicycle | E418: 0.2417539454 | H418: horse, mule | J418: -0.2009877002 | M418: if uses gas as cooking fuel | O418: 0.3222854382
C419: if uses gas as cooking fuel | E419: 0.2371677557 | H419: Rents dwelling | J419: 0.1907999648 | M419: Owns dwelling | O419: -0.2934964193
C420: horse, mule | E420: -0.2010662855 | H420: bed | J420: 0.1794402074 | M420: has motorcycle/scooter | O420: 0.2290129179
... 137 more rows

Sheet DHS06
A2: =A1026 -> Haiti
A3: =A1034 -> 2006
A4: Use of drinking water sources
A5: by wealth quintile and sub-national region
A6: Notes:
A7: WHO/UNICEF JMP customised wealth index excludes water,
A8: sanitation and hygiene assets.
A9: Survey used for analysis: | B9: =A1025 -> DHS06
A10: =B1028 -> 
A11: =B1027 -> 
A14: Use of drinking water sources | C14: NATIONAL wealth index quintile | H14: URBAN wealth index quintile | M14: RURAL wealth index quintile | R14: SUB-REGIONS: | BA14: Raw numbers of respondents: | BB14: Use of drinking water sources | BC14: NATIONAL wealth index quintile | BH14: URBAN wealth index quintile | BM14: RURAL wealth index quintile | BR14: SUB-REGIONS:
A15: Weighted percentage (used in graphs) | C15: Poorest | D15: Poor | E15: Middle | F15: Rich | G15: Richest | H15: Poorest | I15: Poor | J15: Middle | K15: Rich | L15: Richest | M15: Poorest | N15: Poor | O15: Middle | P15: Rich | Q15: Richest | R15: aire metropolitaine/ reste-quest | S15: artibinite | T15: centre | U15: grand-ause | V15: nippes | W15: nord | X15: nord-est | Y15: nord-quest | Z15: sud | AA15: sud-est | BA15: Water data, raw numbers (weighted) | BC15: Poorest | BD15: Poor | BE15: Middle | BF15: Rich | BG15: Richest | BH15: Poorest | BI15: Poor | BJ15: Middle | BK15: Rich | BL15: Richest | BM15: Poorest | BN15: Poor | BO15: Middle | BP15: Rich | BQ15: Richest | BR15: aire metropolitaine/ reste-quest | BS15: artibinite | BT15: centre | BU15: grand-ause | BV15: nippes | BW15: nord | BX15: nord-est | BY15: nord-quest | BZ15: sud | CA15: sud-est
A16: Water | B16: Improved | C16: 33.5 | D16: 44.4 | E16: 63.6 | F16: 89.7 | G16: 97.5 | H16: 81.2 | I16: 91.9 | J16: 96.3 | K16: 97.3 | L16: 99 | M16: 32.5 | N16: 33.4 | O16: 45.3 | P16: 54.4 | Q16: 78.5 | R16: 84.4 | S16: 61 | T16: 31.5 | U16: 39.3 | V16: 40.2 | W16: 61.7 | X16: 68.9 | Y16: 66.7 | Z16: 62.9 | AA16: 49.8 | BA16: Water | BB16: Improved | BC16: N/A | BD16: N/A | BE16: N/A | BF16: N/A | BG16: N/A | BH16: N/A | BI16: N/A | BJ16: N/A | BK16: N/A | BL16: N/A | BM16: N/A | BN16: N/A | BO16: N/A | BP16: N/A | BQ16: N/A | BR16: N/A | BS16: N/A | BT16: N/A | BU16: N/A | BV16: N/A | BW16: N/A | BX16: N/A | BY16: N/A | BZ16: N/A | CA16: N/A
B17: Not Improved | C17: 66.5 | D17: 55.6 | E17: 36.4 | F17: 10.3 | G17: 2.5 | H17: 18.8 | I17: 8.1 | J17: 3.7 | K17: 2.7 | L17: 1 | M17: 67.5 | N17: 66.6 | O17: 54.7 | P17: 45.6 | Q17: 21.5 | R17: 15.6 | S17: 39 | T17: 68.5 | U17: 60.7 | V17: 59.8 | W17: 38.3 | X17: 31.1 | Y17: 33.3 | Z17: 37.1 | AA17: 50.2 | BB17: Not Improved | BC17: N/A | BD17: N/A | BE17: N/A | BF17: N/A | BG17: N/A | BH17: N/A | BI17: N/A | BJ17: N/A | BK17: N/A | BL17: N/A | BM17: N/A | BN17: N/A | BO17: N/A | BP17: N/A | BQ17: N/A | BR17: N/A | BS17: N/A | BT17: N/A | BU17: N/A | BV17: N/A | BW17: N/A | BX17: N/A | BY17: N/A | BZ17: N/A | CA17: N/A
A18: Water ladder | B18: Basic | C18: 25.9 | D18: 35.7 | E18: 54.6 | F18: 82.7 | G18: 94.1 | H18: 74.1 | I18: 84.2 | J18: 89.9 | K18: 93.4 | L18: 97.3 | M18: 24.3 | N18: 27.2 | O18: 34.9 | P18: 45.3 | Q18: 71.4 | R18: 77.7 | S18: 54.7 | T18: 23.5 | U18: 35.3 | V18: 35.7 | W18: 57.3 | X18: 62.2 | Y18: 54.8 | Z18: 55.5 | AA18: 36.2 | BA18: Water ladder | BB18: Basic | BC18: N/A | BD18: N/A | BE18: N/A | BF18: N/A | BG18: N/A | BH18: N/A | BI18: N/A | BJ18: N/A | BK18: N/A | BL18: N/A | BM18: N/A | BN18: N/A | BO18: N/A | BP18: N/A | BQ18: N/A | BR18: N/A | BS18: N/A | BT18: N/A | BU18: N/A | BV18: N/A | BW18: N/A | BX18: N/A | BY18: N/A | BZ18: N/A | CA18: N/A
B19: Limited | C19: 7.5 | D19: 8.7 | E19: missing | F19: 7 | G19: 3.4 | H19: 7.1 | I19: 7.7 | J19: 6.4 | K19: 3.9 | L19: 1.6 | M19: 8.1 | N19: 6.2 | O19: 10.4 | P19: 9.2 | Q19: 7.1 | R19: 6.8 | S19: 6.3 | T19: 8 | U19: 4 | V19: 4.5 | W19: 4.4 | X19: 6.7 | Y19: 11.8 | Z19: 7.4 | AA19: 13.6 | BB19: Limited | BC19: N/A | BD19: N/A | BE19: N/A | BF19: N/A | BG19: N/A | BH19: N/A | BI19: N/A | BJ19: N/A | BK19: N/A | BL19: N/A | BM19: N/A | BN19: N/A | BO19: N/A | BP19: N/A | BQ19: N/A | BR19: N/A | BS19: N/A | BT19: N/A | BU19: N/A | BV19: N/A | BW19: N/A | BX19: N/A | BY19: N/A | BZ19: N/A | CA19: N/A
B20: Unimproved | C20: 58.4 | D20: 46.7 | E20: 31.1 | F20: 9.3 | G20: 2.5 | H20: 15.8 | I20: 7.9 | J20: 3.7 | K20: 2.7 | L20: 1 | M20: 58.8 | N20: 57 | O20: 46.7 | P20: 38.7 | Q20: 18.8 | R20: 14.9 | S20: 23.7 | T20: 61.5 | U20: 57.3 | V20: 52.5 | W20: 37.4 | X20: 19.5 | Y20: 30.6 | Z20: 35.3 | AA20: 45.4 | BB20: Unimproved | BC20: N/A | BD20: N/A | BE20: N/A | BF20: N/A | BG20: N/A | BH20: N/A | BI20: N/A | BJ20: N/A | BK20: N/A | BL20: N/A | BM20: N/A | BN20: N/A | BO20: N/A | BP20: N/A | BQ20: N/A | BR20: N/A | BS20: N/A | BT20: N/A | BU20: N/A | BV20: N/A | BW20: N/A | BX20: N/A | BY20: N/A | BZ20: N/A | CA20: N/A
B21: Surface water | C21: 8.2 | D21: 8.9 | E21: 5.4 | F21: 1 | G21: 0 | H21: 3 | I21: 0.1 | J21: 0 | K21: 0 | L21: 0 | M21: 8.7 | N21: 9.6 | O21: 8 | P21: 6.9 | Q21: 2.7 | R21: 0.6 | S21: 15.3 | T21: 7 | U21: 3.5 | V21: 7.3 | W21: 0.9 | X21: 11.6 | Y21: 2.7 | Z21: 1.7 | AA21: 4.8 | BB21: Surface water | BC21: N/A | BD21: N/A | BE21: N/A | BF21: N/A | BG21: N/A | BH21: N/A | BI21: N/A | BJ21: N/A | BK21: N/A | BL21: N/A | BM21: N/A | BN21: N/A | BO21: N/A | BP21: N/A | BQ21: N/A | BR21: N/A | BS21: N/A | BT21: N/A | BU21: N/A | BV21: N/A | BW21: N/A | BX21: N/A | BY21: N/A | BZ21: N/A | CA21: N/A
A22: Improved water point at more than 30 minutes | B22: Yes | C22: 22.6 | D22: 19.6 | E22: 14.1 | F22: 7.8 | G22: 3.5 | H22: 8.7 | I22: 8.4 | J22: 6.6 | K22: 4 | L22: 1.7 | M22: 25.1 | N22: 18.4 | O22: 23 | P22: 16.9 | Q22: 9.1 | R22: 8 | S22: 10.3 | T22: 25.4 | U22: 10.1 | V22: 11.1 | W22: 7.1 | X22: 9.7 | Y22: 17.7 | Z22: 11.8 | AA22: 27.4 | BA22: Improved water point at more than 30 minutes | BB22: Yes | BC22: N/A | BD22: N/A | BE22: N/A | BF22: N/A | BG22: N/A | BH22: N/A | BI22: N/A | BJ22: N/A | BK22: N/A | BL22: N/A | BM22: N/A | BN22: N/A | BO22: N/A | BP22: N/A | BQ22: N/A | BR22: N/A | BS22: N/A | BT22: N/A | BU22: N/A | BV22: N/A | BW22: N/A | BX22: N/A | BY22: N/A | BZ22: N/A | CA22: N/A
B23: No | C23: 77.4 | D23: 80.4 | E23: 85.9 | F23: 92.2 | G23: 96.5 | H23: 91.3 | I23: 91.6 | J23: 93.4 | K23: 96 | L23: 98.3 | M23: 74.9 | N23: 81.6 | O23: 77 | P23: 83.1 | Q23: 90.9 | R23: 92 | S23: 89.7 | T23: 74.6 | U23: 89.9 | V23: 88.9 | W23: 92.9 | X23: 90.3 | Y23: 82.3 | Z23: 88.2 | AA23: 72.6 | BB23: No | BC23: N/A | BD23: N/A | BE23: N/A | BF23: N/A | BG23: N/A | BH23: N/A | BI23: N/A | BJ23: N/A | BK23: N/A | BL23: N/A | BM23: N/A | BN23: N/A | BO23: N/A | BP23: N/A | BQ23: N/A | BR23: N/A | BS23: N/A | BT23: N/A | BU23: N/A | BV23: N/A | BW23: N/A | BX23: N/A | BY23: N/A | BZ23: N/A | CA23: N/A
A24: Manually calculated ratios | B24: Improved wells | C24: =(C61+C62)/(C61+C62+C63)*100 -> 57.89473684 | D24: 60.52631579 | E24: 70.2020202 | F24: 83.67346939 | G24: 92.25352113 | H24: 81.22743682 | I24: 82.5095057 | J24: 90.10416667 | K24: 90.6779661 | L24: 97 | M24: 65.43209877 | N24: 54.54545455 | O24: 57.32484076 | P24: 62.09150327 | Q24: 78.07692308 | R24: 81.01265823 | S24: 75 | T24: 34.04255319 | U24: 68.85245902 | V24: 30.70866142 | W24: 78.44827586 | X24: 88.6039886 | Y24: 61.11111111 | Z24: 61.0738255 | AA24: 10
B25: Improved springs
B26: Other
C27: NATIONAL wealth index quintile | H27: URBAN wealth index quintile | M27: RURAL wealth index quintile | R27: SUB-REGIONS: | BA27: Raw numbers of respondents: | BB27: Use of drinking water sources | BC27: NATIONAL wealth index quintile | BH27: URBAN wealth index quintile | BM27: RURAL wealth index quintile | BR27: SUB-REGIONS:
A28: Percentage based on weighted population | C28: Poorest | D28: Poor | E28: Middle | F28: Rich | G28: Richest | H28: Poorest | I28: Poor | J28: Middle | K28: Rich | L28: Richest | M28: Poorest | N28: Poor | O28: Middle | P28: Rich | Q28: Richest | R28: aire metropolitaine/ reste-quest | S28: artibinite | T28: centre | U28: grand-ause | V28: nippes | W28: nord | X28: nord-est | Y28: nord-quest | Z28: sud | AA28: sud-est | BA28: Water data, raw numbers (weighted) | BC28: Poorest | BD28: Poor | BE28: Middle | BF28: Rich | BG28: Richest | BH28: Poorest | BI28: Poor | BJ28: Middle | BK28: Rich | BL28: Richest | BM28: Poorest | BN28: Poor | BO28: Middle | BP28: Rich | BQ28: Richest | BR28: aire metropolitaine/ reste-quest | BS28: artibinite | BT28: centre | BU28: grand-ause | BV28: nippes | BW28: nord | BX28: nord-est | BY28: nord-quest | BZ28: sud | CA28: sud-est
A29: Piped water | B29: Yes | C29: 17.9 | D29: 22.7 | E29: 36.7 | F29: 53.6 | G29: 56.1 | H29: 48.2 | I29: 55.4 | J29: 58.8 | K29: 62.9 | L29: 58.4 | M29: 17.5 | N29: 15.9 | O29: 22.8 | P29: 31.7 | Q29: 39.5 | R29: 49.6 | S29: 28.9 | T29: 21.7 | U29: 22.2 | V29: 24.5 | W29: 28.7 | X29: 22.8 | Y29: 38.8 | Z29: 47.4 | AA29: 34.6 | BA29: Piped water | BB29: Yes | BC29: N/A | BD29: N/A | BE29: N/A | BF29: N/A | BG29: N/A | BH29: N/A | BI29: N/A | BJ29: N/A | BK29: N/A | BL29: N/A | BM29: N/A | BN29: N/A | BO29: N/A | BP29: N/A | BQ29: N/A | BR29: N/A | BS29: N/A | BT29: N/A | BU29: N/A | BV29: N/A | BW29: N/A | BX29: N/A | BY29: N/A | BZ29: N/A | CA29: N/A
B30: No | C30: 82.1 | D30: 77.3 | E30: 63.3 | F30: 46.4 | G30: 43.9 | H30: 51.8 | I30: 44.6 | J30: 41.2 | K30: 37.1 | L30: 41.6 | M30: 82.5 | N30: 84.1 | O30: 77.2 | P30: 68.3 | Q30: 60.5 | R30: 50.4 | S30: 71.1 | T30: 78.3 | U30: 77.8 | V30: 75.5 | W30: 71.3 | X30: 77.2 | Y30: 61.2 | Z30: 52.6 | AA30: 65.4 | BB30: No | BC30: N/A | BD30: N/A | BE30: N/A | BF30: N/A | BG30: N/A | BH30: N/A | BI30: N/A | BJ30: N/A | BK30: N/A | BL30: N/A | BM30: N/A | BN30: N/A | BO30: N/A | BP30: N/A | BQ30: N/A | BR30: N/A | BS30: N/A | BT30: N/A | BU30: N/A | BV30: N/A | BW30: N/A | BX30: N/A | BY30: N/A | BZ30: N/A | CA30: N/A
A31: Piped water on premises | B31: Yes | C31: 1 | D31: 1.5 | E31: 6.6 | F31: 13.7 | G31: 35.7 | H31: 10.5 | I31: 13.8 | J31: 20.5 | K31: 36.3 | L31: 45.1 | M31: 1.2 | N31: 0.3 | O31: 1.2 | P31: 2.9 | Q31: 11.4 | R31: 19.6 | S31: 5.7 | T31: 5.1 | U31: 4.6 | V31: 7.5 | W31: 10.3 | X31: 3.9 | Y31: 10.9 | Z31: 11.1 | AA31: 4.2 | BA31: Piped water on premises | BB31: Yes | BC31: N/A | BD31: N/A | BE31: N/A | BF31: N/A | BG31: N/A | BH31: N/A | BI31: N/A | BJ31: N/A | BK31: N/A | BL31: N/A | BM31: N/A | BN31: N/A | BO31: N/A | BP31: N/A | BQ31: N/A | BR31: N/A | BS31: N/A | BT31: N/A | BU31: N/A | BV31: N/A | BW31: N/A | BX31: N/A | BY31: N/A | BZ31: N/A | CA31: N/A
B32: No | C32: 99 | D32: 98.5 | E32: 93.4 | F32: 86.3 | G32: 64.3 | H32: 89.5 | I32: 86.2 | J32: 79.5 | K32: 63.7 | L32: 54.9 | M32: 98.8 | N32: 99.7 | O32: 98.8 | P32: 97.1 | Q32: 88.6 | R32: 80.4 | S32: 94.3 | T32: 94.9 | U32: 95.4 | V32: 92.5 | W32: 89.7 | X32: 96.1 | Y32: 89.1 | Z32: 88.9 | AA32: 95.8 | BB32: No | BC32: N/A | BD32: N/A | BE32: N/A | BF32: N/A | BG32: N/A | BH32: N/A | BI32: N/A | BJ32: N/A | BK32: N/A | BL32: N/A | BM32: N/A | BN32: N/A | BO32: N/A | BP32: N/A | BQ32: N/A | BR32: N/A | BS32: N/A | BT32: N/A | BU32: N/A | BV32: N/A | BW32: N/A | BX32: N/A | BY32: N/A | BZ32: N/A | CA32: N/A
A33: Piped water into dwelling | B33: Yes | C33: N/A | D33: N/A | E33: N/A | F33: N/A | G33: N/A | H33: N/A | I33: N/A | J33: N/A | K33: N/A | L33: N/A | M33: N/A | N33: N/A | O33: N/A | P33: N/A | Q33: N/A | R33: N/A | S33: N/A | T33: N/A | U33: N/A | V33: N/A | W33: N/A | X33: N/A | Y33: N/A | Z33: N/A | AA33: N/A | BA33: Piped water into dwelling | BB33: Yes | BC33: N/A | BD33: N/A | BE33: N/A | BF33: N/A | BG33: N/A | BH33: N/A | BI33: N/A | BJ33: N/A | BK33: N/A | BL33: N/A | BM33: N/A | BN33: N/A | BO33: N/A | BP33: N/A | BQ33: N/A | BR33: N/A | BS33: N/A | BT33: N/A | BU33: N/A | BV33: N/A | BW33: N/A | BX33: N/A | BY33: N/A | BZ33: N/A | CA33: N/A
B34: No | C34: N/A | D34: N/A | E34: N/A | F34: N/A | G34: N/A | H34: N/A | I34: N/A | J34: N/A | K34: N/A | L34: N/A | M34: N/A | N34: N/A | O34: N/A | P34: N/A | Q34: N/A | R34: N/A | S34: N/A | T34: N/A | U34: N/A | V34: N/A | W34: N/A | X34: N/A | Y34: N/A | Z34: N/A | AA34: N/A | BB34: No | BC34: N/A | BD34: N/A | BE34: N/A | BF34: N/A | BG34: N/A | BH34: N/A | BI34: N/A | BJ34: N/A | BK34: N/A | BL34: N/A | BM34: N/A | BN34: N/A | BO34: N/A | BP34: N/A | BQ34: N/A | BR34: N/A | BS34: N/A | BT34: N/A | BU34: N/A | BV34: N/A | BW34: N/A | BX34: N/A | BY34: N/A | BZ34: N/A | CA34: N/A
A35: Water source on premises | B35: Yes | C35: 3.5 | D35: 7.5 | E35: 14.1 | F35: 22.4 | G35: 56.5 | H35: 18.1 | I35: 19.9 | J35: 30.6 | K35: 47.9 | L35: 72.9 | M35: 3.3 | N35: 4 | O35: 7.7 | P35: 9.7 | Q35: 26.9 | R35: 34.2 | S35: 12.5 | T35: 8.1 | U35: 11.6 | V35: 12.1 | W35: 16 | X35: 8.5 | Y35: 25 | Z35: 12 | AA35: 11.7 | BA35: Water source on premises | BB35: Yes | BC35: N/A | BD35: N/A | BE35: N/A | BF35: N/A | BG35: N/A | BH35: N/A | BI35: N/A | BJ35: N/A | BK35: N/A | BL35: N/A | BM35: N/A | BN35: N/A | BO35: N/A | BP35: N/A | BQ35: N/A | BR35: N/A | BS35: N/A | BT35: N/A | BU35: N/A | BV35: N/A | BW35: N/A | BX35: N/A | BY35: N/A | BZ35: N/A | CA35: N/A
B36: No | C36: 96.5 | D36: 92.5 | E36: 85.9 | F36: 77.6 | G36: 43.5 | H36: 81.9 | I36: 80.1 | J36: 69.4 | K36: 52.1 | L36: 27.1 | M36: 96.7 | N36: 96 | O36: 92.3 | P36: 90.3 | Q36: 73.1 | R36: 65.8 | S36: 87.5 | T36: 91.9 | U36: 88.4 | V36: 87.9 | W36: 84 | X36: 91.5 | Y36: 75 | Z36: 88 | AA36: 88.3 | BB36: No | BC36: N/A | BD36: N/A | BE36: N/A | BF36: N/A | BG36: N/A | BH36: N/A | BI36: N/A | BJ36: N/A | BK36: N/A | BL36: N/A | BM36: N/A | BN36: N/A | BO36: N/A | BP36: N/A | BQ36: N/A | BR36: N/A | BS36: N/A | BT36: N/A | BU36: N/A | BV36: N/A | BW36: N/A | BX36: N/A | BY36: N/A | BZ36: N/A | CA36: N/A
A37: Improved Water source on premises | B37: Yes | C37: 2.9 | D37: 6.7 | E37: 12.9 | F37: 21.1 | G37: 55.5 | H37: 16.5 | I37: 19.2 | J37: 29.1 | K37: 47.4 | L37: 72.8 | M37: 2.9 | N37: 2.9 | O37: 6.9 | P37: 9 | Q37: 24.5 | R37: 32.9 | S37: 10.9 | T37: 7.8 | U37: 11.4 | V37: 11.6 | W37: 15.5 | X37: 6.7 | Y37: 24.2 | Z37: 11.7 | AA37: 11 | BA37: Improved water source on premises | BB37: Yes | BC37: N/A | BD37: N/A | BE37: N/A | BF37: N/A | BG37: N/A | BH37: N/A | BI37: N/A | BJ37: N/A | BK37: N/A | BL37: N/A | BM37: N/A | BN37: N/A | BO37: N/A | BP37: N/A | BQ37: N/A | BR37: N/A | BS37: N/A | BT37: N/A | BU37: N/A | BV37: N/A | BW37: N/A | BX37: N/A | BY37: N/A | BZ37: N/A | CA37: N/A
B38: No | C38: 97.1 | D38: 93.3 | E38: 87.1 | F38: 78.9 | G38: 44.5 | H38: 83.5 | I38: 80.8 | J38: 70.9 | K38: 52.6 | L38: 27.2 | M38: 97.1 | N38: 97.1 | O38: 93.1 | P38: 91 | Q38: 75.5 | R38: 67.1 | S38: 89.1 | T38: 92.2 | U38: 88.6 | V38: 88.4 | W38: 84.5 | X38: 93.3 | Y38: 75.8 | Z38: 88.3 | AA38: 89 | BB38: No | BC38: N/A | BD38: N/A | BE38: N/A | BF38: N/A | BG38: N/A | BH38: N/A | BI38: N/A | BJ38: N/A | BK38: N/A | BL38: N/A | BM38: N/A | BN38: N/A | BO38: N/A | BP38: N/A | BQ38: N/A | BR38: N/A | BS38: N/A | BT38: N/A | BU38: N/A | BV38: N/A | BW38: N/A | BX38: N/A | BY38: N/A | BZ38: N/A | CA38: N/A
A39: Piped water on premises available when needed | B39: Yes | C39: N/A | D39: N/A | E39: N/A | F39: N/A | G39: N/A | H39: N/A | I39: N/A | J39: N/A | K39: N/A | L39: N/A | M39: N/A | N39: N/A | O39: N/A | P39: N/A | Q39: N/A | R39: N/A | S39: N/A | T39: N/A | U39: N/A | V39: N/A | W39: N/A | X39: N/A | Y39: N/A | Z39: N/A | AA39: N/A | BA39: Piped water on premises available when needed | BB39: Yes | BC39: N/A | BD39: N/A | BE39: N/A | BF39: N/A | BG39: N/A | BH39: N/A | BI39: N/A | BJ39: N/A | BK39: N/A | BL39: N/A | BM39: N/A | BN39: N/A | BO39: N/A | BP39: N/A | BQ39: N/A | BR39: N/A | BS39: N/A | BT39: N/A | BU39: N/A | BV39: N/A | BW39: N/A | BX39: N/A | BY39: N/A | BZ39: N/A | CA39: N/A
B40: No | C40: N/A | D40: N/A | E40: N/A | F40: N/A | G40: N/A | H40: N/A | I40: N/A | J40: N/A | K40: N/A | L40: N/A | M40: N/A | N40: N/A | O40: N/A | P40: N/A | Q40: N/A | R40: N/A | S40: N/A | T40: N/A | U40: N/A | V40: N/A | W40: N/A | X40: N/A | Y40: N/A | Z40: N/A | AA40: N/A | BB40: No | BC40: N/A | BD40: N/A | BE40: N/A | BF40: N/A | BG40: N/A | BH40: N/A | BI40: N/A | BJ40: N/A | BK40: N/A | BL40: N/A | BM40: N/A | BN40: N/A | BO40: N/A | BP40: N/A | BQ40: N/A | BR40: N/A | BS40: N/A | BT40: N/A | BU40: N/A | BV40: N/A | BW40: N/A | BX40: N/A | BY40: N/A | BZ40: N/A | CA40: N/A
A41: Water point at more than 30 minutes | B41: Yes | C41: 27.7 | D41: 25.8 | E41: 21.6 | F41: missing | G41: 3.7 | H41: 12.2 | I41: 9.7 | J41: 7.2 | K41: 4.4 | L41: 1.8 | M41: 28.7 | N41: 25.7 | O41: 28 | P41: 26.1 | Q41: 11.6 | R41: 13.7 | S41: 14.3 | T41: 31.2 | U41: 25.4 | V41: 19.7 | W41: 11.1 | X41: 10.3 | Y41: 19.9 | Z41: 18 | AA41: 36.8 | BA41: Water point at more than 30 minutes | BB41: Yes | BC41: N/A | BD41: N/A | BE41: N/A | BF41: N/A | BG41: N/A | BH41: N/A | BI41: N/A | BJ41: N/A | BK41: N/A | BL41: N/A | BM41: N/A | BN41: N/A | BO41: N/A | BP41: N/A | BQ41: N/A | BR41: N/A | BS41: N/A | BT41: N/A | BU41: N/A | BV41: N/A | BW41: N/A | BX41: N/A | BY41: N/A | BZ41: N/A | CA41: N/A
B42: No | C42: 72.3 | D42: 74.2 | E42: 78.4 | F42: 91 | G42: 96.3 | H42: 87.8 | I42: 90.3 | J42: 92.8 | K42: 95.6 | L42: 98.2 | M42: 71.3 | N42: 74.3 | O42: 72 | P42: 73.9 | Q42: 88.4 | R42: 86.3 | S42: 85.7 | T42: 68.8 | U42: 74.6 | V42: 80.3 | W42: 88.9 | X42: 89.7 | Y42: 80.1 | Z42: 82 | AA42: 63.2 | BB42: No | BC42: N/A | BD42: N/A | BE42: N/A | BF42: N/A | BG42: N/A | BH42: N/A | BI42: N/A | BJ42: N/A | BK42: N/A | BL42: N/A | BM42: N/A | BN42: N/A | BO42: N/A | BP42: N/A | BQ42: N/A | BR42: N/A | BS42: N/A | BT42: N/A | BU42: N/A | BV42: N/A | BW42: N/A | BX42: N/A | BY42: N/A | BZ42: N/A | CA42: N/A
A43: Water source available when needed | B43: Yes | C43: N/A | D43: N/A | E43: N/A | F43: N/A | G43: N/A | H43: N/A | I43: N/A | J43: N/A | K43: N/A | L43: N/A | M43: N/A | N43: N/A | O43: N/A | P43: N/A | Q43: N/A | R43: N/A | S43: N/A | T43: N/A | U43: N/A | V43: N/A | W43: N/A | X43: N/A | Y43: N/A | Z43: N/A | AA43: N/A | BA43: Water source available when needed | BB43: Yes | BC43: N/A | BD43: N/A | BE43: N/A | BF43: N/A | BG43: N/A | BH43: N/A | BI43: N/A | BJ43: N/A | BK43: N/A | BL43: N/A | BM43: N/A | BN43: N/A | BO43: N/A | BP43: N/A | BQ43: N/A | BR43: N/A | BS43: N/A | BT43: N/A | BU43: N/A | BV43: N/A | BW43: N/A | BX43: N/A | BY43: N/A | BZ43: N/A | CA43: N/A
B44: No | C44: N/A | D44: N/A | E44: N/A | F44: N/A | G44: N/A | H44: N/A | I44: N/A | J44: N/A | K44: N/A | L44: N/A | M44: N/A | N44: N/A | O44: N/A | P44: N/A | Q44: N/A | R44: N/A | S44: N/A | T44: N/A | U44: N/A | V44: N/A | W44: N/A | X44: N/A | Y44: N/A | Z44: N/A | AA44: N/A | BB44: No | BC44: N/A | BD44: N/A | BE44: N/A | BF44: N/A | BG44: N/A | BH44: N/A | BI44: N/A | BJ44: N/A | BK44: N/A | BL44: N/A | BM44: N/A | BN44: N/A | BO44: N/A | BP44: N/A | BQ44: N/A | BR44: N/A | BS44: N/A | BT44: N/A | BU44: N/A | BV44: N/A | BW44: N/A | BX44: N/A | BY44: N/A | BZ44: N/A | CA44: N/A
A45: Improved water source available when needed | B45: Yes | C45: N/A | D45: N/A | E45: N/A | F45: N/A | G45: N/A | H45: N/A | I45: N/A | J45: N/A | K45: N/A | L45: N/A | M45: N/A | N45: N/A | O45: N/A | P45: N/A | Q45: N/A | R45: N/A | S45: N/A | T45: N/A | U45: N/A | V45: N/A | W45: N/A | X45: N/A | Y45: N/A | Z45: N/A | AA45: N/A | BA45: Improved water source available when needed | BB45: Yes | BC45: N/A | BD45: N/A | BE45: N/A | BF45: N/A | BG45: N/A | BH45: N/A | BI45: N/A | BJ45: N/A | BK45: N/A | BL45: N/A | BM45: N/A | BN45: N/A | BO45: N/A | BP45: N/A | BQ45: N/A | BR45: N/A | BS45: N/A | BT45: N/A | BU45: N/A | BV45: N/A | BW45: N/A | BX45: N/A | BY45: N/A | BZ45: N/A | CA45: N/A
B46: No | C46: N/A | D46: N/A | E46: N/A | F46: N/A | G46: N/A | H46: N/A | I46: N/A | J46: N/A | K46: N/A | L46: N/A | M46: N/A | N46: N/A | O46: N/A | P46: N/A | Q46: N/A | R46: N/A | S46: N/A | T46: N/A | U46: N/A | V46: N/A | W46: N/A | X46: N/A | Y46: N/A | Z46: N/A | AA46: N/A | BB46: No | BC46: N/A | BD46: N/A | BE46: N/A | BF46: N/A | BG46: N/A | BH46: N/A | BI46: N/A | BJ46: N/A | BK46: N/A | BL46: N/A | BM46: N/A | BN46: N/A | BO46: N/A | BP46: N/A | BQ46: N/A | BR46: N/A | BS46: N/A | BT46: N/A | BU46: N/A | BV46: N/A | BW46: N/A | BX46: N/A | BY46: N/A | BZ46: N/A | CA46: N/A
A47: Microbiological quality at point of collection | B47: Not contaminated (No E. coli in 100 mL) | C47: N/A | D47: N/A | E47: N/A | F47: N/A | G47: N/A | H47: N/A | I47: N/A | J47: N/A | K47: N/A | L47: N/A | M47: N/A | N47: N/A | O47: N/A | P47: N/A | Q47: N/A | R47: N/A | S47: N/A | T47: N/A | U47: N/A | V47: N/A | W47: N/A | X47: N/A | Y47: N/A | Z47: N/A | AA47: N/A | BA47: Microbiological quality at point of collection | BB47: Not contaminated (No E. coli in 100 mL) | BC47: N/A | BD47: N/A | BE47: N/A | BF47: N/A | BG47: N/A | BH47: N/A | BI47: N/A | BJ47: N/A | BK47: N/A | BL47: N/A | BM47: N/A | BN47: N/A | BO47: N/A | BP47: N/A | BQ47: N/A | BR47: N/A | BS47: N/A | BT47: N/A | BU47: N/A | BV47: N/A | BW47: N/A | BX47: N/A | BY47: N/A | BZ47: N/A | CA47: N/A
B48: Contaminated (E. coli detected in 100 mL) | C48: N/A | D48: N/A | E48: N/A | F48: N/A | G48: N/A | H48: N/A | I48: N/A | J48: N/A | K48: N/A | L48: N/A | M48: N/A | N48: N/A | O48: N/A | P48: N/A | Q48: N/A | R48: N/A | S48: N/A | T48: N/A | U48: N/A | V48: N/A | W48: N/A | X48: N/A | Y48: N/A | Z48: N/A | AA48: N/A | BB48: Contaminated (E. coli detected in 100 mL) | BC48: N/A | BD48: N/A | BE48: N/A | BF48: N/A | BG48: N/A | BH48: N/A | BI48: N/A | BJ48: N/A | BK48: N/A | BL48: N/A | BM48: N/A | BN48: N/A | BO48: N/A | BP48: N/A | BQ48: N/A | BR48: N/A | BS48: N/A | BT48: N/A | BU48: N/A | BV48: N/A | BW48: N/A | BX48: N/A | BY48: N/A | BZ48: N/A | CA48: N/A
B49: Highly contaminated (>100 CFU/100 mL) | C49: N/A | D49: N/A | E49: N/A | F49: N/A | G49: N/A | H49: N/A | I49: N/A | J49: N/A | K49: N/A | L49: N/A | M49: N/A | N49: N/A | O49: N/A | P49: N/A | Q49: N/A | R49: N/A | S49: N/A | T49: N/A | U49: N/A | V49: N/A | W49: N/A | X49: N/A | Y49: N/A | Z49: N/A | AA49: N/A | BB49: Highly contaminated (>100 CFU/100 mL) | BC49: N/A | BD49: N/A | BE49: N/A | BF49: N/A | BG49: N/A | BH49: N/A | BI49: N/A | BJ49: N/A | BK49: N/A | BL49: N/A | BM49: N/A | BN49: N/A | BO49: N/A | BP49: N/A | BQ49: N/A | BR49: N/A | BS49: N/A | BT49: N/A | BU49: N/A | BV49: N/A | BW49: N/A | BX49: N/A | BY49: N/A | BZ49: N/A | CA49: N/A
A50: Microbiological quality of improved water sources at point of collection | B50: Not contaminated (No E. coli in 100 mL) | C50: N/A | D50: N/A | E50: N/A | F50: N/A | G50: N/A | H50: N/A | I50: N/A | J50: N/A | K50: N/A | L50: N/A | M50: N/A | N50: N/A | O50: N/A | P50: N/A | Q50: N/A | R50: N/A | S50: N/A | T50: N/A | U50: N/A | V50: N/A | W50: N/A | X50: N/A | Y50: N/A | Z50: N/A | AA50: N/A | BA50: Microbiological quality of improved water sources at point of collection | BB50: Not contaminated (No E. coli in 100 mL) | BC50: N/A | BD50: N/A | BE50: N/A | BF50: N/A | BG50: N/A | BH50: N/A | BI50: N/A | BJ50: N/A | BK50: N/A | BL50: N/A | BM50: N/A | BN50: N/A | BO50: N/A | BP50: N/A | BQ50: N/A | BR50: N/A | BS50: N/A | BT50: N/A | BU50: N/A | BV50: N/A | BW50: N/A | BX50: N/A | BY50: N/A | BZ50: N/A | CA50: N/A
B51: Contaminated (E. coli detected in 100 mL) | C51: N/A | D51: N/A | E51: N/A | F51: N/A | G51: N/A | H51: N/A | I51: N/A | J51: N/A | K51: N/A | L51: N/A | M51: N/A | N51: N/A | O51: N/A | P51: N/A | Q51: N/A | R51: N/A | S51: N/A | T51: N/A | U51: N/A | V51: N/A | W51: N/A | X51: N/A | Y51: N/A | Z51: N/A | AA51: N/A | BB51: Contaminated (E. coli detected in 100 mL) | BC51: N/A | BD51: N/A | BE51: N/A | BF51: N/A | BG51: N/A | BH51: N/A | BI51: N/A | BJ51: N/A | BK51: N/A | BL51: N/A | BM51: N/A | BN51: N/A | BO51: N/A | BP51: N/A | BQ51: N/A | BR51: N/A | BS51: N/A | BT51: N/A | BU51: N/A | BV51: N/A | BW51: N/A | BX51: N/A | BY51: N/A | BZ51: N/A | CA51: N/A
B52: Highly contaminated (>100 CFU/100 mL) | C52: N/A | D52: N/A | E52: N/A | F52: N/A | G52: N/A | H52: N/A | I52: N/A | J52: N/A | K52: N/A | L52: N/A | M52: N/A | N52: N/A | O52: N/A | P52: N/A | Q52: N/A | R52: N/A | S52: N/A | T52: N/A | U52: N/A | V52: N/A | W52: N/A | X52: N/A | Y52: N/A | Z52: N/A | AA52: N/A | BB52: Highly contaminated (>100 CFU/100 mL) | BC52: N/A | BD52: N/A | BE52: N/A | BF52: N/A | BG52: N/A | BH52: N/A | BI52: N/A | BJ52: N/A | BK52: N/A | BL52: N/A | BM52: N/A | BN52: N/A | BO52: N/A | BP52: N/A | BQ52: N/A | BR52: N/A | BS52: N/A | BT52: N/A | BU52: N/A | BV52: N/A | BW52: N/A | BX52: N/A | BY52: N/A | BZ52: N/A | CA52: N/A
A53: Microbiological quality of piped on premises at point of collection | B53: Not contaminated (No E. coli in 100 mL) | C53: N/A | D53: N/A | E53: N/A | F53: N/A | G53: N/A | H53: N/A | I53: N/A | J53: N/A | K53: N/A | L53: N/A | M53: N/A | N53: N/A | O53: N/A | P53: N/A | Q53: N/A | R53: N/A | S53: N/A | T53: N/A | U53: N/A | V53: N/A | W53: N/A | X53: N/A | Y53: N/A | Z53: N/A | AA53: N/A | BA53: Microbiological quality of piped on premises at point of collection | BB53: Not contaminated (No E. coli in 100 mL) | BC53: N/A | BD53: N/A | BE53: N/A | BF53: N/A | BG53: N/A | BH53: N/A | BI53: N/A | BJ53: N/A | BK53: N/A | BL53: N/A | BM53: N/A | BN53: N/A | BO53: N/A | BP53: N/A | BQ53: N/A | BR53: N/A | BS53: N/A | BT53: N/A | BU53: N/A | BV53: N/A | BW53: N/A | BX53: N/A | BY53: N/A | BZ53: N/A | CA53: N/A
B54: Contaminated (E. coli detected in 100 mL) | C54: N/A | D54: N/A | E54: N/A | F54: N/A | G54: N/A | H54: N/A | I54: N/A | J54: N/A | K54: N/A | L54: N/A | M54: N/A | N54: N/A | O54: N/A | P54: N/A | Q54: N/A | R54: N/A | S54: N/A | T54: N/A | U54: N/A | V54: N/A | W54: N/A | X54: N/A | Y54: N/A | Z54: N/A | AA54: N/A | BB54: Contaminated (E. coli detected in 100 mL) | BC54: N/A | BD54: N/A | BE54: N/A | BF54: N/A | BG54: N/A | BH54: N/A | BI54: N/A | BJ54: N/A | BK54: N/A | BL54: N/A | BM54: N/A | BN54: N/A | BO54: N/A | BP54: N/A | BQ54: N/A | BR54: N/A | BS54: N/A | BT54: N/A | BU54: N/A | BV54: N/A | BW54: N/A | BX54: N/A | BY54: N/A | BZ54: N/A | CA54: N/A
B55: Highly contaminated (>100 CFU/100 mL) | C55: N/A | D55: N/A | E55: N/A | F55: N/A | G55: N/A | H55: N/A | I55: N/A | J55: N/A | K55: N/A | L55: N/A | M55: N/A | N55: N/A | O55: N/A | P55: N/A | Q55: N/A | R55: N/A | S55: N/A | T55: N/A | U55: N/A | V55: N/A | W55: N/A | X55: N/A | Y55: N/A | Z55: N/A | AA55: N/A | BB55: Highly contaminated (>100 CFU/100 mL) | BC55: N/A | BD55: N/A | BE55: N/A | BF55: N/A | BG55: N/A | BH55: N/A | BI55: N/A | BJ55: N/A | BK55: N/A | BL55: N/A | BM55: N/A | BN55: N/A | BO55: N/A | BP55: N/A | BQ55: N/A | BR55: N/A | BS55: N/A | BT55: N/A | BU55: N/A | BV55: N/A | BW55: N/A | BX55: N/A | BY55: N/A | BZ55: N/A | CA55: N/A
C56: NATIONAL wealth index quintile | H56: URBAN wealth index quintile | M56: RURAL wealth index quintile | R56: SUB-REGIONS: | BA56: Raw numbers of respondents: | BB56: Use of drinking water sources | BC56: NATIONAL wealth index quintile | BH56: URBAN wealth index quintile | BM56: RURAL wealth index quintile | BR56: SUB-REGIONS:
A57: Percentage based on weighted population | C57: Poorest | D57: Poor | E57: Middle | F57: Rich | G57: Richest | H57: Poorest | I57: Poor | J57: Middle | K57: Rich | L57: Richest | M57: Poorest | N57: Poor | O57: Middle | P57: Rich | Q57: Richest | R57: aire metropolitaine/ reste-quest | S57: artibinite | T57: centre | U57: grand-ause | V57: nippes | W57: nord | X57: nord-est | Y57: nord-quest | Z57: sud | AA57: sud-est | BA57: Water data, raw numbers (weighted) | BC57: Poorest | BD57: Poor | BE57: Middle | BF57: Rich | BG57: Richest | BH57: Poorest | BI57: Poor | BJ57: Middle | BK57: Rich | BL57: Richest | BM57: Poorest | BN57: Poor | BO57: Middle | BP57: Rich | BQ57: Richest | BR57: aire metropolitaine/ reste-quest | BS57: artibinite | BT57: centre | BU57: grand-ause | BV57: nippes | BW57: nord | BX57: nord-est | BY57: nord-quest | BZ57: sud | CA57: sud-est
A58: source of drinking water | B58: ....piped into dwelling | C58: 0.1 | D58: 0.2 | E58: 1.1 | F58: 2.6 | G58: 6.5 | H58: 2.2 | I58: 2.5 | J58: 5.7 | K58: 6.8 | L58: 6.4 | M58: 0.1 | N58: 0 | O58: 0.1 | P58: 0.8 | Q58: 1.4 | R58: 3.7 | S58: 0.9 | T58: 1.3 | U58: 1 | V58: 1.8 | W58: 1.4 | X58: 1 | Y58: 1.5 | Z58: 1.3 | AA58: 0.9
B59: ....piped into yard/plot | C59: 1 | D59: 1.3 | E59: 5.5 | F59: 10.7 | G59: 22.5 | H59: 8.3 | I59: 10.8 | J59: 13.8 | K59: 26.1 | L59: 25.5 | M59: 1.1 | N59: 0.3 | O59: 1.2 | P59: 2.1 | Q59: 9.6 | R59: 13.4 | S59: 4.2 | T59: 3.7 | U59: 3.1 | V59: 5.6 | W59: 6.2 | X59: 2.6 | Y59: 8.8 | Z59: 9.4 | AA59: 2.6
B60: ....piped - public | C60: 16.9 | D60: 21.2 | E60: 30.1 | F60: 38.9 | G60: 18.7 | H60: 37.7 | I60: 40.8 | J60: 36.8 | K60: 24.7 | L60: 11.4 | M60: 16.4 | N60: 15.6 | O60: 21.6 | P60: 28.8 | Q60: 27.7 | R60: 28.9 | S60: 23.2 | T60: 16.5 | U60: 17.4 | V60: 17 | W60: 17.5 | X60: 18.7 | Y60: 27.7 | Z60: 36 | AA60: 30.3
B61: ....tube well or borehole | C61: 2.6 | D61: 5.1 | E61: 7.5 | F61: 11.9 | G61: 6 | H61: 12.8 | I61: 12.5 | J61: 10.6 | K61: 5.1 | L61: 5.5 | M61: 3.3 | N61: 2.3 | O61: 4.8 | P61: 4.7 | Q61: 9.8 | R61: 6.8 | S61: 10.5 | T61: 0.8 | U61: 4.1 | V61: 2.5 | W61: 9.8 | X61: 20.3 | Y61: 0.8 | Z61: 5.6 | AA61: 0.2
B62: ....dug well - protected | C62: 2.9 | D62: 4.1 | E62: 6.4 | F62: 8.6 | G62: 7.1 | H62: 9.7 | I62: 9.2 | J62: 6.7 | K62: 5.6 | L62: 4.2 | M62: 2 | N62: 3.7 | O62: 4.2 | P62: 4.8 | Q62: 10.5 | R62: 6 | S62: 11.4 | T62: 0.8 | U62: 0.1 | V62: 1.4 | W62: 8.4 | X62: 10.8 | Y62: 3.6 | Z62: 3.5 | AA62: 0.1
B63: ....dug - well unprotected | C63: 4 | D63: 6 | E63: 5.9 | F63: 4 | G63: 1.1 | H63: 5.2 | I63: 4.6 | J63: 1.9 | K63: 1.1 | L63: 0.3 | M63: 2.8 | N63: 5 | O63: 6.7 | P63: 5.8 | Q63: 5.7 | R63: 3 | S63: 7.3 | T63: 3.1 | U63: 1.9 | V63: 8.8 | W63: 5 | X63: 4 | Y63: 2.8 | Z63: 5.8 | AA63: 2.7
B64: ....spring water protected | C64: 7.5 | D64: 7.1 | E64: 6.2 | F64: 1 | G64: 1 | H64: 0.9 | I64: 1 | J64: 0.6 | K64: 0.6 | L64: 0 | M64: 7.4 | N64: 8.3 | O64: 7.3 | P64: 7.9 | Q64: 4.1 | R64: 3.9 | S64: 3.1 | T64: 5.5 | U64: 5.7 | V64: 4 | W64: 4.2 | X64: 12.1 | Y64: 3 | Z64: 5.5 | AA64: 8
B65: ....spring water unprotected | C65: 54.3 | D65: 40.6 | E65: 25.2 | F65: 4.9 | G65: 1.2 | H65: 10.6 | I65: 2.7 | J65: 1.1 | K65: 1.1 | L65: 0.7 | M65: 56 | N65: 52 | O65: 40 | P65: 32.9 | Q65: 13.1 | R65: 11.6 | S65: 16.5 | T65: 58.4 | U65: 55.4 | V65: 43.7 | W65: 32.4 | X65: 15.3 | Y65: 27.5 | Z65: 29.5 | AA65: 42.6
B66: rainwater | C66: 1.6 | D66: 4.5 | E66: 4.3 | F66: 1.2 | G66: 0.5 | H66: 2.7 | I66: 0.9 | J66: 0.7 | K66: 0.7 | L66: 0.1 | M66: 1.5 | N66: 2.2 | O66: 5.1 | P66: 5 | Q66: 2.5 | R66: 2.7 | S66: 0.3 | T66: 2.3 | U66: 5.2 | V66: 3.6 | W66: 0 | X66: 0 | Y66: 9.5 | Z66: 0 | AA66: 5.8
B67: tanker truck | C67: 0 | D67: 0.2 | E67: 1.1 | F67: 2.9 | G67: 3.4 | H67: 3 | I67: 3.4 | J67: 4.4 | K67: 5.2 | L67: 2.2 | M67: 0 | N67: 0 | O67: 0.3 | P67: 0.1 | Q67: 0.6 | R67: 1.8 | S67: 0 | T67: 0 | U67: 0 | V67: 2.3 | W67: 2.9 | X67: 0 | Y67: 8 | Z67: 0 | AA67: 0.3
B68: cart with small tank | C68: 0.4 | D68: 0.1 | E68: 0.2 | F68: 0.6 | G68: 0.2 | H68: 0.5 | I68: 1.3 | J68: 0.3 | K68: 0.3 | L68: 0.1 | M68: 0.7 | N68: 0 | O68: 0.1 | P68: 0 | Q68: 0 | R68: 0.4 | S68: 0.2 | T68: 0.1 | U68: 0.4 | V68: 0.9 | W68: 0 | X68: 0.1 | Y68: 0.5 | Z68: 0.4 | AA68: 0
B69: surface water (river/dam) | C69: 8.2 | D69: 8.9 | E69: 5.4 | F69: 1 | G69: 0 | H69: 3 | I69: 0.1 | J69: 0 | K69: 0 | L69: 0 | M69: 8.7 | N69: 9.6 | O69: 8 | P69: 6.9 | Q69: 2.7 | R69: 0.6 | S69: 15.3 | T69: 7 | U69: 3.5 | V69: 7.3 | W69: 0.9 | X69: 11.6 | Y69: 2.7 | Z69: 1.7 | AA69: 4.8
B70: water sale by company | C70: 0.6 | D70: 0.5 | E70: 0.7 | F70: 7.6 | G70: 15.7 | H70: 2.4 | I70: 6.7 | J70: 11.5 | K70: 13.1 | L70: 20.2 | M70: 0.2 | N70: 1 | O70: 0.5 | P70: 0.2 | Q70: 5.6 | R70: 9.7 | S70: 4.7 | T70: 0.4 | U70: 1.2 | V70: 0.8 | W70: 5.1 | X70: 1.2 | Y70: 1.1 | Z70: 0.4 | AA70: 0.2
B71: bottled water | C71: 0 | D71: 0 | E71: 0.6 | F71: 3.6 | G71: 15.8 | H71: 1 | I71: 2.8 | J71: 5 | K71: 9.2 | L71: 23.5 | M71: 0 | N71: 0 | O71: 0 | P71: 0.1 | Q71: 6.6 | R71: 7.2 | S71: 2.6 | T71: 0.1 | U71: 1.1 | V71: 0.2 | W71: 6.1 | X71: 2 | Y71: 2.2 | Z71: 0.8 | AA71: 1.2
B72: other | C72: 0 | D72: 0 | E72: 0 | F72: 0.4 | G72: 0.2 | H72: 0 | I72: 0.6 | J72: 0.7 | K72: 0.5 | L72: 0 | M72: 0 | N72: 0 | O72: 0 | P72: 0 | Q72: 0 | R72: 0.3 | S72: 0 | T72: 0 | U72: 0 | V72: 0 | W72: 0 | X72: 0.1 | Y72: 0.3 | Z72: 0 | AA72: 0
A108: =A1026 -> Haiti
A109: =A1034 -> 2006
A110: Use of sanitation facilities
A111: by wealth quintile and sub-national region
A112: Notes:
A113: WHO/UNICEF JMP customised wealth index excludes water,
A114: sanitation and hygiene assets.
A115: Survey used for analysis: | B115: =A1025 -> DHS06
A116: =B1030 -> 
A117: =B1029 -> 
A120: Use of sanitation facilities | C120: NATIONAL wealth index quintile | H120: URBAN wealth index quintile | M120: RURAL wealth index quintile | R120: SUB-REGIONS: | BA120: Raw numbers of respondents: | BB120: Use of sanitation facilities | BC120: NATIONAL wealth index quintile | BH120: URBAN wealth index quintile | BM120: RURAL wealth index quintile | BR120: SUB-REGIONS:
A121: Weighted percentage (used in graphs) | C121: Poorest | D121: Poor | E121: Middle | F121: Rich | G121: Richest | H121: Poorest | I121: Poor | J121: Middle | K121: Rich | L121: Richest | M121: Poorest | N121: Poor | O121: Middle | P121: Rich | Q121: Richest | R121: aire metropolitaine/ reste-quest | S121: artibinite | T121: centre | U121: grand-ause | V121: nippes | W121: nord | X121: nord-est | Y121: nord-quest | Z121: sud | AA121: sud-est | BA121: Sanitation data, raw numbers (weighted) | BC121: Poorest | BD121: Poor | BE121: Middle | BF121: Rich | BG121: Richest | BH121: Poorest | BI121: Poor | BJ121: Middle | BK121: Rich | BL121: Richest | BM121: Poorest | BN121: Poor | BO121: Middle | BP121: Rich | BQ121: Richest | BR121: aire metropolitaine/ reste-quest | BS121: artibinite | BT121: centre | BU121: grand-ause | BV121: nippes | BW121: nord | BX121: nord-est | BY121: nord-quest | BZ121: sud | CA121: sud-est
A122: Sanitation | B122: Improved | C122: =C153+C154+C155+C156+C157+C158+C161 -> 5.05777724 | D122: =D153+D154+D155+D156+D157+D158+D161 -> 11.66250595 | E122: 24.05841304 | F122: 40.50975965 | G122: 68.9226301 | H122: 23.14104954 | I122: 39.03690482 | J122: 54.11077906 | K122: 61.7272177 | L122: 77.1727092 | M122: 4.484040639 | N122: 6.399064762 | O122: 13.14765603 | P122: 20.34543642 | Q122: 41.20866995 | R122: 45.08484848 | S122: 23.4543562 | T122: 12.74584988 | U122: 13.9307489 | V122: 18.30921069 | W122: 25.62652573 | X122: 22.54555031 | Y122: 22.93371484 | Z122: 23.38820203 | AA122: 24.31641297 | BA122: Sanitation | BB122: Improved | BC122: 312.637558 | BD122: 773.109258 | BE122: 1886.046148 | BF122: 3194.697465 | BG122: 5615.939766 | BH122: 655.305402 | BI122: 1146.705505 | BJ122: 1559.888868 | BK122: 1767.988511 | BL122: 2502.453336 | BM122: 170.702987 | BN122: 208.034948 | BO122: 579.658811 | BP122: 994.238401 | BQ122: 2197.453426 | BR122: 6741.329831 | BS122: 1521.302582 | BT122: 234.48833 | BU122: 220.408098 | BV122: 147.348538 | BW122: 1025.145621 | BX122: 195.278873 | BY122: 473.171392 | BZ122: 750.782625 | CA122: 473.174305
B123: Not Improved | C123: =100-C122 -> 94.94222276 | D123: =100-D122 -> 88.33749405 | E123: 75.94158696 | F123: 59.49024035 | G123: 31.0773699 | H123: 76.85895046 | I123: 60.96309518 | J123: 45.88922094 | K123: 38.2727823 | L123: 22.8272908 | M123: 95.51595936 | N123: 93.60093524 | O123: 86.85234397 | P123: 79.65456358 | Q123: 58.79133005 | R123: 54.91515152 | S123: 76.5456438 | T123: 87.25415012 | U123: 86.0692511 | V123: 81.69078931 | W123: 74.37347427 | X123: 77.45444969 | Y123: 77.06628516 | Z123: 76.61179797 | AA123: 75.68358703 | BB123: Not Improved | BC123: 8963.464918 | BD123: 8503.904885 | BE123: 7392.744038 | BF123: 6085.023979 | BG123: 3658.853293 | BH123: 2874.602123 | BI123: 2394.863275 | BJ123: 1974.177542 | BK123: 1768.78664 | BL123: 1033.214581 | BM123: 5570.780738 | BN123: 5538.028393 | BO123: 5160.94599 | BP123: 4750.519775 | BQ123: 3538.072056 | BR123: 10062.52278 | BS123: 6069.788537 | BT123: 3687.467298 | BU123: 1712.070008 | BV123: 1120.736268 | BW123: 3537.460122 | BX123: 1374.168526 | BY123: 2309.38602 | BZ123: 2590.903957 | CA123: 2139.487594
A124: Sanitation ladder | B124: Basic | C124: =C122*C129/100 -> 3.560751652 | D124: =D122*D129/100 -> 6.972157454 | E124: =E122*E129/100 -> 14.66817931 | F124: 16.30653022 | G124: 49.20938952 | H124: 7.422408768 | I124: 14.94670972 | J124: 22.22353246 | K124: 33.74607143 | L124: 65.55252535 | M124: 2.868757596 | N124: 4.634687892 | O124: 8.730938998 | P124: 13.63389154 | Q124: 26.8919426 | R124: 26.05680876 | S124: 13.68819241 | T124: 8.599020456 | U124: 9.870435135 | V124: 14.42156915 | W124: 16.73333836 | X124: 14.15681674 | Y124: 13.90817652 | Z124: 17.27130789 | AA124: 14.49047038 | BA124: Sanitation ladder | BB124: Basic | BC124: 220.101568 | BD124: 462.185357 | BE124: 1146.672685 | BF124: 1283.21736 | BG124: 4009.669495 | BH124: 209.428823 | BI124: 436.437706 | BJ124: 640.653147 | BK124: 966.553634 | BL124: 2125.649565 | BM124: 109.210761 | BN124: 150.674683 | BO124: 384.932927 | BP124: 664.291661 | BQ124: 1434.013558 | BR124: 3896.154653 | BS124: 887.847114 | BT124: 153.58075 | BU124: 156.167041 | BV124: 116.061646 | BW124: 667.845571 | BX124: 122.619638 | BY124: 285.174517 | BZ124: 554.424742 | CA124: 281.970793
B125: Limited | C125: =C122*C128/100 -> 1.497025588 | D125: =D122*D128/100 -> 4.690348496 | E125: =E122*E128/100 -> 9.390233731 | F125: 24.20322943 | G125: 19.71324059 | H125: 15.71864077 | I125: 24.09019509 | J125: 31.8872466 | K125: 27.98114627 | L125: 11.62018385 | M125: 1.615283044 | N125: 1.764376871 | O125: 4.416717031 | P125: 6.711544872 | Q125: 14.31672734 | R125: 19.02803972 | S125: 9.766163786 | T125: 4.146829425 | U125: 4.060313765 | V125: 3.887641543 | W125: 8.893187372 | X125: 8.388733575 | Y125: 9.02553832 | Z125: 6.116894138 | AA125: 9.825942599 | BB125: Limited | BC125: 92.53599 | BD125: 310.923901 | BE125: 734.073691 | BF125: 1904.635981 | BG125: 1606.270271 | BH125: 443.513223 | BI125: 703.423675 | BJ125: 919.235721 | BK125: 801.434877 | BL125: 376.803771 | BM125: 61.492226 | BN125: 57.360265 | BO125: 194.725884 | BP125: 327.010324 | BQ125: 763.439868 | BR125: 2845.175178 | BS125: 633.455468 | BT125: 74.063456 | BU125: 64.241057 | BV125: 31.286892 | BW125: 354.936694 | BX125: 72.659235 | BY125: 185.060459 | BZ125: 196.357883 | CA125: 191.203512
B126: Unimproved | C126: =100-C124-C125-C127 -> 19.40756256 | D126: =100-D124-D125-D127 -> 32.04463995 | E126: =100-E124-E125-E127 -> 43.58475249 | F126: 49.83430253 | G126: 30.2448848 | H126: 43.63628013 | I126: 49.4759485 | J126: 42.2866349 | K126: 37.43021059 | L126: 22.81169417 | M126: 16.47673032 | N126: 24.74535396 | O126: 31.83311153 | P126: 44.59862324 | Q126: 44.83057899 | R126: 38.64848041 | S126: 37.69494154 | T126: 27.74863308 | U126: 18.73225272 | V126: 26.8093508 | W126: 28.32592052 | X126: 46.57890411 | Y126: 36.76525751 | Z126: 32.27377294 | AA126: 37.16658992 | BB126: Unimproved | BC126: 1956.792433 | BD126: 3281.608849 | BE126: 4392.136095 | BF126: 5189.640711 | BG126: 3581.642023 | BH126: 1702.657753 | BI126: 1988.824269 | BJ126: 1846.859759 | BK126: 1738.986773 | BL126: 1032.663136 | BM126: 1032.756266 | BN126: 1581.543079 | BO126: 2002.509291 | BP126: 2737.670164 | BQ126: 2737.349621 | BR126: 7329.095345 | BS126: 3120.596328 | BT126: 1357.759955 | BU126: 410.797257 | BV126: 424.793085 | BW126: 1437.580058 | BX126: 889.593079 | BY126: 1189.170194 | BZ126: 1109.266124 | CA126: 1133.168686
B127: Open defecation | C127: 75.5346602 | D127: 56.2928541 | E127: 32.35683447 | F127: 9.655937818 | G127: 0.8324850971 | H127: 33.22267033 | I127: 11.48714668 | J127: 3.602586036 | K127: 0.8425717137 | L127: 0.01559662878 | M127: 79.03922905 | N127: 68.85558128 | O127: 55.01923244 | P127: 35.05594035 | Q127: 13.96075107 | R127: 16.26667111 | S127: 38.85070226 | T127: 59.50551704 | U127: 67.33699838 | V127: 54.88143851 | W127: 46.04755374 | X127: 30.87554558 | Y127: 40.30102764 | Z127: 44.33802503 | AA127: 38.5169971 | BB127: Open defecation | BC127: 7006.672485 | BD127: 5222.296036 | BE127: 3000.607943 | BF127: 895.383268 | BG127: 77.21127 | BH127: 1171.94437 | BI127: 406.039006 | BJ127: 127.317783 | BK127: 29.799867 | BL127: 0.551445 | BM127: 4538.024472 | BN127: 3956.485314 | BO127: 3158.436699 | BP127: 2012.849611 | BQ127: 800.722435 | BR127: 2733.427438 | BS127: 2949.192209 | BT127: 2329.707343 | BU127: 1301.272751 | BV127: 695.943183 | BW127: 2099.880064 | BX127: 484.575447 | BY127: 1120.215826 | BZ127: 1481.637833 | CA127: 1006.318908
A128: Shared among Improved Sanitation | B128: Yes | C128: 29.59848797 | D128: 40.21732993 | E128: 39.0309773 | F128: 59.74666264 | G128: 28.60198538 | H128: 67.92535811 | I128: 61.71133497 | J128: 58.92956478 | K128: 45.33032155 | L128: 15.05737452 | M128: 36.02293497 | N128: 27.57241778 | O128: 33.5931897 | P128: 32.98796219 | Q128: 34.74202725 | R128: 42.20495435 | S128: 41.63901879 | T128: 32.5347424 | U128: 29.14641412 | V128: 21.23325581 | W128: 34.7030552 | X128: 37.20793442 | Y128: 39.35489031 | Z128: 26.15375962 | AA128: 40.40868449 | BA128: Shared among improved sanitation facilities | BB128: Yes | BC128: N/A | BD128: N/A | BE128: N/A | BF128: N/A | BG128: N/A | BH128: N/A | BI128: N/A | BJ128: N/A | BK128: N/A | BL128: N/A | BM128: N/A | BN128: N/A | BO128: N/A | BP128: N/A | BQ128: N/A | BR128: N/A | BS128: N/A | BT128: N/A | BU128: N/A | BV128: N/A | BW128: N/A | BX128: N/A | BY128: N/A | BZ128: N/A | CA128: N/A
B129: No | C129: 70.40151203 | D129: 59.78267007 | E129: 60.9690227 | F129: 40.25333736 | G129: 71.39801462 | H129: 32.07464189 | I129: 38.28866503 | J129: 41.07043522 | K129: 54.66967845 | L129: 84.94262548 | M129: 63.97706503 | N129: 72.42758222 | O129: 66.4068103 | P129: 67.01203781 | Q129: 65.25797275 | R129: 57.79504565 | S129: 58.36098121 | T129: 67.4652576 | U129: 70.85358588 | V129: 78.76674419 | W129: 65.2969448 | X129: 62.79206558 | Y129: 60.64510969 | Z129: 73.84624038 | AA129: 59.59131551 | BB129: No | BC129: N/A | BD129: N/A | BE129: N/A | BF129: N/A | BG129: N/A | BH129: N/A | BI129: N/A | BJ129: N/A | BK129: N/A | BL129: N/A | BM129: N/A | BN129: N/A | BO129: N/A | BP129: N/A | BQ129: N/A | BR129: N/A | BS129: N/A | BT129: N/A | BU129: N/A | BV129: N/A | BW129: N/A | BX129: N/A | BY129: N/A | BZ129: N/A | CA129: N/A
A130: Manually calculated ratios | B130: Improved latrines | C130: =(C157+C158+C161)/(C157+C158+C159+C161+C162+C163)*100 -> 19.89169929 | D130: =(D157+D158+D161)/(D157+D158+D159+D161+D162+D163)*100 -> 25.70765358 | E130: 33.31501414 | F130: 41.51203421 | G130: 56.96847688 | H130: 31.88036678 | I130: 41.55169875 | J130: 51.83060992 | K130: 56.61480508 | L130: 58.9029962 | M130: 20.14736633 | N130: 20.00415903 | O130: 28.27433912 | P130: 29.54453785 | Q130: 39.00989327 | R130: 43.75228485 | S130: 34.5070447 | T130: 28.50176419 | U130: 36.97412614 | V130: 38.12346478 | W130: 41.24376556 | X130: 30.85600468 | Y130: 34.8345387 | Z130: 40.05988768 | AA130: 37.50012779
B131: Other
B132: Other
C133: NATIONAL wealth index quintile | H133: URBAN wealth index quintile | M133: RURAL wealth index quintile | R133: SUB-REGIONS: | BA133: Raw numbers of respondents: | BB133: Use of sanitation facilities | BC133: NATIONAL wealth index quintile | BH133: URBAN wealth index quintile | BM133: RURAL wealth index quintile | BR133: SUB-REGIONS:
A134: Percentage based on weighted population | C134: Poorest | D134: Poor | E134: Middle | F134: Rich | G134: Richest | H134: Poorest | I134: Poor | J134: Middle | K134: Rich | L134: Richest | M134: Poorest | N134: Poor | O134: Middle | P134: Rich | Q134: Richest | R134: aire metropolitaine/ reste-quest | S134: artibinite | T134: centre | U134: grand-ause | V134: nippes | W134: nord | X134: nord-est | Y134: nord-quest | Z134: sud | AA134: sud-est | BA134: Sanitation data, raw numbers (weighted) | BC134: Poorest | BD134: Poor | BE134: Middle | BF134: Rich | BG134: Richest | BH134: Poorest | BI134: Poor | BJ134: Middle | BK134: Rich | BL134: Richest | BM134: Poorest | BN134: Poor | BO134: Middle | BP134: Rich | BQ134: Richest | BR134: aire metropolitaine/ reste-quest | BS134: artibinite | BT134: centre | BU134: grand-ause | BV134: nippes | BW134: nord | BX134: nord-est | BY134: nord-quest | BZ134: sud | CA134: sud-est
A135: Sanitation type | B135: Sewer connection | C135: 0 | D135: 0 | E135: 0.1547847479 | F135: 0.2328646946 | G135: 6.440032065 | H135: 0.4068704888 | I135: 0.4346626017 | J135: 0.2918917135 | K135: 2.837799513 | L135: 11.19088476 | M135: 0 | N135: 0 | O135: 0 | P135: 0 | Q135: 1.694007119 | R135: 3.092945237 | S135: 0.2943207195 | T135: 0.01684534611 | U135: 0.03847562349 | V135: 0.1594502978 | W135: 1.362129877 | X135: 0 | Y135: 0.7405427795 | Z135: 0 | AA135: 0.1919143079 | BA135: Sanitation type | BB135: Sewer connection | BC135: N/A | BD135: N/A | BE135: N/A | BF135: N/A | BG135: N/A | BH135: N/A | BI135: N/A | BJ135: N/A | BK135: N/A | BL135: N/A | BM135: N/A | BN135: N/A | BO135: N/A | BP135: N/A | BQ135: N/A | BR135: N/A | BS135: N/A | BT135: N/A | BU135: N/A | BV135: N/A | BW135: N/A | BX135: N/A | BY135: N/A | BZ135: N/A | CA135: N/A
B136: Septic tank connection | C136: 0 | D136: 0 | E136: 0.3164080921 | F136: 2.128484914 | G136: 18.16984729 | H136: 0.4150186909 | I136: 1.006162303 | J136: 4.154839439 | K136: 7.522281192 | L136: 31.30984428 | M136: 0 | N136: 0 | O136: 0 | P136: 0.1015242386 | Q136: 5.859671377 | R136: 9.097677349 | S136: 1.114239951 | T136: 0.3959925984 | U136: 0.6925612227 | V136: 0.5643755028 | W136: 3.10853236 | X136: 0.7883718822 | Y136: 1.575343129 | Z136: 1.349441394 | AA136: 0.7481140597 | BB136: Septic tank connection | BC136: N/A | BD136: N/A | BE136: N/A | BF136: N/A | BG136: N/A | BH136: N/A | BI136: N/A | BJ136: N/A | BK136: N/A | BL136: N/A | BM136: N/A | BN136: N/A | BO136: N/A | BP136: N/A | BQ136: N/A | BR136: N/A | BS136: N/A | BT136: N/A | BU136: N/A | BV136: N/A | BW136: N/A | BX136: N/A | BY136: N/A | BZ136: N/A | CA136: N/A
B137: Improved latrines | C137: 3.370354724 | D137: 8.33360008 | E137: 19.85523022 | F137: 32.065303 | G137: 35.94068744 | H137: 17.74248956 | I137: 30.93763719 | J137: 39.69190935 | K137: 39.62863601 | L137: 28.27665715 | M137: 2.973151108 | N137: 3.620477806 | O137: 10.09752162 | P137: 17.20535571 | Q137: 30.75934849 | R137: 27.9271408 | S137: 18.63207062 | T137: 5.566024446 | U137: 10.67442733 | V137: 10.89594421 | W137: 17.99776214 | X137: 11.65415235 | Y137: 14.68902439 | Z137: 21.11773518 | AA137: 17.17078441 | BB137: Improved latrines | BC137: N/A | BD137: N/A | BE137: N/A | BF137: N/A | BG137: N/A | BH137: N/A | BI137: N/A | BJ137: N/A | BK137: N/A | BL137: N/A | BM137: N/A | BN137: N/A | BO137: N/A | BP137: N/A | BQ137: N/A | BR137: N/A | BS137: N/A | BT137: N/A | BU137: N/A | BV137: N/A | BW137: N/A | BX137: N/A | BY137: N/A | BZ137: N/A | CA137: N/A
B138: Unimproved facilities | C138: 21.09498508 | D138: 35.37354582 | E138: 47.33522374 | F138: 55.92453117 | G138: 38.61694811 | H138: 48.23519429 | I138: 56.15659027 | J138: 52.25877346 | K138: 49.16871157 | L138: 29.20701718 | M138: 17.98761985 | N138: 27.52394092 | O138: 34.88324594 | P138: 47.65509844 | Q138: 47.72622194 | R138: 43.61556551 | S138: 41.10866645 | T138: 34.61946243 | U138: 21.25753745 | V138: 33.49879148 | W138: 31.50787377 | X138: 56.68193019 | Y138: 42.73659148 | Z138: 33.1947984 | AA138: 43.37219012 | BB138: Unimproved facilities | BC138: N/A | BD138: N/A | BE138: N/A | BF138: N/A | BG138: N/A | BH138: N/A | BI138: N/A | BJ138: N/A | BK138: N/A | BL138: N/A | BM138: N/A | BN138: N/A | BO138: N/A | BP138: N/A | BQ138: N/A | BR138: N/A | BS138: N/A | BT138: N/A | BU138: N/A | BV138: N/A | BW138: N/A | BX138: N/A | BY138: N/A | BZ138: N/A | CA138: N/A
B139: Open defecation | C139: 75.5346602 | D139: 56.2928541 | E139: 32.3383532 | F139: 9.648816222 | G139: 0.8324850971 | H139: 33.20042697 | I139: 11.46494763 | J139: 3.602586036 | K139: 0.8425717137 | L139: 0.01559662878 | M139: 79.03922905 | N139: 68.85558128 | O139: 55.01923244 | P139: 35.03802161 | Q139: 13.96075107 | R139: 16.26667111 | S139: 38.85070226 | T139: 59.40167518 | U139: 67.33699838 | V139: 54.88143851 | W139: 46.02370186 | X139: 30.87554558 | Y139: 40.25849821 | Z139: 44.33802503 | AA139: 38.5169971 | BB139: Open defecation | BC139: N/A | BD139: N/A | BE139: N/A | BF139: N/A | BG139: N/A | BH139: N/A | BI139: N/A | BJ139: N/A | BK139: N/A | BL139: N/A | BM139: N/A | BN139: N/A | BO139: N/A | BP139: N/A | BQ139: N/A | BR139: N/A | BS139: N/A | BT139: N/A | BU139: N/A | BV139: N/A | BW139: N/A | BX139: N/A | BY139: N/A | BZ139: N/A | CA139: N/A
A140: Septic tank emptying practices | B140: Not emptied/treated and disposed in situ | C140: N/A | D140: N/A | E140: N/A | F140: N/A | G140: N/A | H140: N/A | I140: N/A | J140: N/A | K140: N/A | L140: N/A | M140: N/A | N140: N/A | O140: N/A | P140: N/A | Q140: N/A | R140: N/A | S140: N/A | T140: N/A | U140: N/A | V140: N/A | W140: N/A | X140: N/A | Y140: N/A | Z140: N/A | AA140: N/A | BA140: Septic tank emptying practices | BB140: Not emptied/treated and disposed in situ | BC140: N/A | BD140: N/A | BE140: N/A | BF140: N/A | BG140: N/A | BH140: N/A | BI140: N/A | BJ140: N/A | BK140: N/A | BL140: N/A | BM140: N/A | BN140: N/A | BO140: N/A | BP140: N/A | BQ140: N/A | BR140: N/A | BS140: N/A | BT140: N/A | BU140: N/A | BV140: N/A | BW140: N/A | BX140: N/A | BY140: N/A | BZ140: N/A | CA140: N/A
B141: Emptied and buried on site | C141: N/A | D141: N/A | E141: N/A | F141: N/A | G141: N/A | H141: N/A | I141: N/A | J141: N/A | K141: N/A | L141: N/A | M141: N/A | N141: N/A | O141: N/A | P141: N/A | Q141: N/A | R141: N/A | S141: N/A | T141: N/A | U141: N/A | V141: N/A | W141: N/A | X141: N/A | Y141: N/A | Z141: N/A | AA141: N/A | BB141: Emptied and buried on site | BC141: N/A | BD141: N/A | BE141: N/A | BF141: N/A | BG141: N/A | BH141: N/A | BI141: N/A | BJ141: N/A | BK141: N/A | BL141: N/A | BM141: N/A | BN141: N/A | BO141: N/A | BP141: N/A | BQ141: N/A | BR141: N/A | BS141: N/A | BT141: N/A | BU141: N/A | BV141: N/A | BW141: N/A | BX141: N/A | BY141: N/A | BZ141: N/A | CA141: N/A
B142: Emptied and discharged locally | C142: N/A | D142: N/A | E142: N/A | F142: N/A | G142: N/A | H142: N/A | I142: N/A | J142: N/A | K142: N/A | L142: N/A | M142: N/A | N142: N/A | O142: N/A | P142: N/A | Q142: N/A | R142: N/A | S142: N/A | T142: N/A | U142: N/A | V142: N/A | W142: N/A | X142: N/A | Y142: N/A | Z142: N/A | AA142: N/A | BB142: Emptied and discharged locally | BC142: N/A | BD142: N/A | BE142: N/A | BF142: N/A | BG142: N/A | BH142: N/A | BI142: N/A | BJ142: N/A | BK142: N/A | BL142: N/A | BM142: N/A | BN142: N/A | BO142: N/A | BP142: N/A | BQ142: N/A | BR142: N/A | BS142: N/A | BT142: N/A | BU142: N/A | BV142: N/A | BW142: N/A | BX142: N/A | BY142: N/A | BZ142: N/A | CA142: N/A
B143: Emptied and removed offsite | C143: N/A | D143: N/A | E143: N/A | F143: N/A | G143: N/A | H143: N/A | I143: N/A | J143: N/A | K143: N/A | L143: N/A | M143: N/A | N143: N/A | O143: N/A | P143: N/A | Q143: N/A | R143: N/A | S143: N/A | T143: N/A | U143: N/A | V143: N/A | W143: N/A | X143: N/A | Y143: N/A | Z143: N/A | AA143: N/A | BB143: Emptied and removed offsite | BC143: N/A | BD143: N/A | BE143: N/A | BF143: N/A | BG143: N/A | BH143: N/A | BI143: N/A | BJ143: N/A | BK143: N/A | BL143: N/A | BM143: N/A | BN143: N/A | BO143: N/A | BP143: N/A | BQ143: N/A | BR143: N/A | BS143: N/A | BT143: N/A | BU143: N/A | BV143: N/A | BW143: N/A | BX143: N/A | BY143: N/A | BZ143: N/A | CA143: N/A
A144: Latrine emptying practices | B144: Not emptied/treated and disposed in situ | C144: N/A | D144: N/A | E144: N/A | F144: N/A | G144: N/A | H144: N/A | I144: N/A | J144: N/A | K144: N/A | L144: N/A | M144: N/A | N144: N/A | O144: N/A | P144: N/A | Q144: N/A | R144: N/A | S144: N/A | T144: N/A | U144: N/A | V144: N/A | W144: N/A | X144: N/A | Y144: N/A | Z144: N/A | AA144: N/A | BA144: Latrine emptying practices | BB144: Not emptied/treated and disposed in situ | BC144: N/A | BD144: N/A | BE144: N/A | BF144: N/A | BG144: N/A | BH144: N/A | BI144: N/A | BJ144: N/A | BK144: N/A | BL144: N/A | BM144: N/A | BN144: N/A | BO144: N/A | BP144: N/A | BQ144: N/A | BR144: N/A | BS144: N/A | BT144: N/A | BU144: N/A | BV144: N/A | BW144: N/A | BX144: N/A | BY144: N/A | BZ144: N/A | CA144: N/A
B145: Emptied and buried on site | C145: N/A | D145: N/A | E145: N/A | F145: N/A | G145: N/A | H145: N/A | I145: N/A | J145: N/A | K145: N/A | L145: N/A | M145: N/A | N145: N/A | O145: N/A | P145: N/A | Q145: N/A | R145: N/A | S145: N/A | T145: N/A | U145: N/A | V145: N/A | W145: N/A | X145: N/A | Y145: N/A | Z145: N/A | AA145: N/A | BB145: Emptied and buried on site | BC145: N/A | BD145: N/A | BE145: N/A | BF145: N/A | BG145: N/A | BH145: N/A | BI145: N/A | BJ145: N/A | BK145: N/A | BL145: N/A | BM145: N/A | BN145: N/A | BO145: N/A | BP145: N/A | BQ145: N/A | BR145: N/A | BS145: N/A | BT145: N/A | BU145: N/A | BV145: N/A | BW145: N/A | BX145: N/A | BY145: N/A | BZ145: N/A | CA145: N/A
B146: Emptied and discharged locally | C146: N/A | D146: N/A | E146: N/A | F146: N/A | G146: N/A | H146: N/A | I146: N/A | J146: N/A | K146: N/A | L146: N/A | M146: N/A | N146: N/A | O146: N/A | P146: N/A | Q146: N/A | R146: N/A | S146: N/A | T146: N/A | U146: N/A | V146: N/A | W146: N/A | X146: N/A | Y146: N/A | Z146: N/A | AA146: N/A | BB146: Emptied and discharged locally | BC146: N/A | BD146: N/A | BE146: N/A | BF146: N/A | BG146: N/A | BH146: N/A | BI146: N/A | BJ146: N/A | BK146: N/A | BL146: N/A | BM146: N/A | BN146: N/A | BO146: N/A | BP146: N/A | BQ146: N/A | BR146: N/A | BS146: N/A | BT146: N/A | BU146: N/A | BV146: N/A | BW146: N/A | BX146: N/A | BY146: N/A | BZ146: N/A | CA146: N/A
B147: Emptied and removed offsite | C147: N/A | D147: N/A | E147: N/A | F147: N/A | G147: N/A | H147: N/A | I147: N/A | J147: N/A | K147: N/A | L147: N/A | M147: N/A | N147: N/A | O147: N/A | P147: N/A | Q147: N/A | R147: N/A | S147: N/A | T147: N/A | U147: N/A | V147: N/A | W147: N/A | X147: N/A | Y147: N/A | Z147: N/A | AA147: N/A | BB147: Emptied and removed offsite | BC147: N/A | BD147: N/A | BE147: N/A | BF147: N/A | BG147: N/A | BH147: N/A | BI147: N/A | BJ147: N/A | BK147: N/A | BL147: N/A | BM147: N/A | BN147: N/A | BO147: N/A | BP147: N/A | BQ147: N/A | BR147: N/A | BS147: N/A | BT147: N/A | BU147: N/A | BV147: N/A | BW147: N/A | BX147: N/A | BY147: N/A | BZ147: N/A | CA147: N/A
A148: Shared among improved sanitation facilities | B148: Yes | C148: 0.9975740376 | D148: 3.351551439 | E148: 7.911308223 | F148: 20.52471071 | G148: 17.31866426 | H148: 12.56444312 | I148: 19.86192331 | J148: 26.01070875 | K148: 22.66004602 | L148: 10.65721611 | M148: 1.07101629 | N148: 0.9982532666 | O148: 3.392079594 | P148: 5.692325316 | Q148: 13.31072228 | R148: 16.93168372 | S148: 8.344722229 | T148: 1.888431768 | U148: 3.32428382 | V148: 2.46725549 | W148: 7.779254093 | X148: 4.629606258 | Y148: 6.650732819 | Z148: 5.876011355 | AA148: 7.318341193 | BA148: Shared among improved sanitation facilities | BB148: Yes | BC148: N/A | BD148: N/A | BE148: N/A | BF148: N/A | BG148: N/A | BH148: N/A | BI148: N/A | BJ148: N/A | BK148: N/A | BL148: N/A | BM148: N/A | BN148: N/A | BO148: N/A | BP148: N/A | BQ148: N/A | BR148: N/A | BS148: N/A | BT148: N/A | BU148: N/A | BV148: N/A | BW148: N/A | BX148: N/A | BY148: N/A | BZ148: N/A | CA148: N/A
B149: No | C149: 2.372780686 | D149: 4.982048641 | E149: 12.35799778 | F149: 13.82818835 | G149: 43.23190253 | H149: 5.932983273 | I149: 12.32328759 | J149: 18.12793176 | K149: 27.32867069 | L149: 60.12017008 | M149: 1.902134818 | N149: 2.62222454 | O149: 6.705442028 | P149: 11.56343993 | Q149: 25.00230471 | R149: 23.18607966 | S149: 11.69590906 | T149: 3.915922682 | U149: 8.081180352 | V149: 9.15251452 | W149: 14.6373719 | X149: 7.812917979 | Y149: 10.24864809 | Z149: 16.59116522 | AA149: 10.79247158 | BB149: No | BC149: N/A | BD149: N/A | BE149: N/A | BF149: N/A | BG149: N/A | BH149: N/A | BI149: N/A | BJ149: N/A | BK149: N/A | BL149: N/A | BM149: N/A | BN149: N/A | BO149: N/A | BP149: N/A | BQ149: N/A | BR149: N/A | BS149: N/A | BT149: N/A | BU149: N/A | BV149: N/A | BW149: N/A | BX149: N/A | BY149: N/A | BZ149: N/A | CA149: N/A
B150: DK/missing | C150: 96.62964528 | D150: 91.66639992 | E150: 79.730694 | F150: 65.64710094 | G150: 39.44943321 | H150: 81.50257361 | I150: 67.8147891 | J150: 55.86135949 | K150: 50.01128329 | L150: 29.22261381 | M150: 97.02684889 | N150: 96.37952219 | O150: 89.90247838 | P150: 82.74423475 | Q150: 61.68697301 | R150: 59.88223662 | S150: 79.95936871 | T150: 94.19564555 | U150: 88.59453583 | V150: 88.38022999 | W150: 77.58337401 | X150: 87.55747576 | Y150: 83.10061909 | Z150: 77.53282342 | AA150: 81.88918722 | BB150: DK/missing | BC150: N/A | BD150: N/A | BE150: N/A | BF150: N/A | BG150: N/A | BH150: N/A | BI150: N/A | BJ150: N/A | BK150: N/A | BL150: N/A | BM150: N/A | BN150: N/A | BO150: N/A | BP150: N/A | BQ150: N/A | BR150: N/A | BS150: N/A | BT150: N/A | BU150: N/A | BV150: N/A | BW150: N/A | BX150: N/A | BY150: N/A | BZ150: N/A | CA150: N/A
A151: Shared among all sanitation facilities | B151: Yes | C151: 33.68566061 | D151: 33.59153783 | E151: 42.70020156 | F151: 59.03574644 | G151: 37.21211532 | H151: 59.1905028 | I151: 57.60041247 | J151: 63.18853818 | K151: 50.30991761 | L151: 22.66367008 | M151: 28.25591838 | N151: 35.15195792 | O151: 30.26719497 | P151: 35.84976781 | Q151: 43.97244126 | R151: 49.592593 | S151: 47.65483014 | T151: 38.34000036 | U151: 32.40935099 | V151: 29.39939715 | W151: 36.30158072 | X151: 31.80845881 | Y151: 44.32681266 | Z151: 30.98766273 | AA151: 28.21601809 | BA151: Shared among all sanitation facilities | BB151: Yes | BC151: N/A | BD151: N/A | BE151: N/A | BF151: N/A | BG151: N/A | BH151: N/A | BI151: N/A | BJ151: N/A | BK151: N/A | BL151: N/A | BM151: N/A | BN151: N/A | BO151: N/A | BP151: N/A | BQ151: N/A | BR151: N/A | BS151: N/A | BT151: N/A | BU151: N/A | BV151: N/A | BW151: N/A | BX151: N/A | BY151: N/A | BZ151: N/A | CA151: N/A
B152: No | C152: 66.31433939 | D152: 66.40846217 | E152: 57.29979844 | F152: 40.96425356 | G152: 62.78788468 | H152: 40.8094972 | I152: 42.39958753 | J152: 36.81146182 | K152: 49.69008239 | L152: 77.33632992 | M152: 71.74408162 | N152: 64.84804208 | O152: 69.73280503 | P152: 64.15023219 | Q152: 56.02755874 | R152: 50.407407 | S152: 52.34516986 | T152: 61.65999964 | U152: 67.59064901 | V152: 70.60060285 | W152: 63.69841928 | X152: 68.19154119 | Y152: 55.67318734 | Z152: 69.01233727 | AA152: 71.78398191 | BB152: No | BC152: N/A | BD152: N/A | BE152: N/A | BF152: N/A | BG152: N/A | BH152: N/A | BI152: N/A | BJ152: N/A | BK152: N/A | BL152: N/A | BM152: N/A | BN152: N/A | BO152: N/A | BP152: N/A | BQ152: N/A | BR152: N/A | BS152: N/A | BT152: N/A | BU152: N/A | BV152: N/A | BW152: N/A | BX152: N/A | BY152: N/A | BZ152: N/A | CA152: N/A
A153: type of toilet facility | B153: ....flush - to piped sewer system | C153: 0 | D153: 0 | E153: 0.1551148877 | F153: 0.2330728516 | G153: 6.440032065 | H153: 0.4081474574 | I153: 0.4351781792 | J153: 0.2918917135 | K153: 2.837799513 | L153: 11.19088476 | M153: 0 | N153: 0 | O153: 0 | P153: 0 | Q153: 1.69658826 | R153: 3.092945237 | S153: 0.2946866684 | T153: 0.01686807843 | U153: 0.03860178754 | V153: 0.160361992 | W153: 1.366578547 | X153: 0 | Y153: 0.7420930967 | Z153: 0 | AA153: 0.1919143079 | BA153: type of toilet facility | BB153: ....flush - to piped sewer system | BC153: 0 | BD153: 0 | BE153: 14.362152 | BF153: 21.609195 | BG153: 597.299647 | BH153: 14.362152 | BI153: 15.393875 | BJ153: 10.315647 | BK153: 100.366588 | BL153: 395.672522 | BM153: 0 | BN153: 0 | BO153: 0 | BP153: 0 | BQ153: 97.16021 | BR153: 519.733959 | BS153: 22.342154 | BT153: 0.660667 | BU153: 0.743533 | BV153: 2.021965 | BW153: 62.148616 | BX153: 0 | BY153: 20.606028 | BZ153: 0 | CA153: 5.014072
B154: ....flush -to septic tank | C154: 0 | D154: 0 | E154: 0.3170829578 | F154: 2.13038756 | G154: 18.16984729 | H154: 0.4163212328 | I154: 1.007355768 | J154: 4.154839439 | K154: 7.522281192 | L154: 31.30984428 | M154: 0 | N154: 0 | O154: 0 | P154: 0.1015962263 | Q154: 5.868599696 | R154: 9.097677349 | S154: 1.115625361 | T154: 0.3965269793 | U154: 0.6948321757 | V154: 0.5676024512 | W154: 3.11868472 | X154: 0.7883718822 | Y154: 1.57864109 | Z154: 1.349441394 | AA154: 0.7481140597 | BB154: ....flush -to septic tank | BC154: 0 | BD154: 0 | BE154: 29.358843 | BF154: 197.517471 | BG154: 1685.215735 | BH154: 14.649776 | BI154: 35.63393 | BJ154: 146.834785 | BK154: 266.046172 | BL154: 1107.012119 | BM154: 0 | BN154: 0 | BO154: 0 | BP154: 5.832322 | BQ154: 336.082945 | BR154: 1528.760293 | BS154: 84.58297 | BT154: 15.530654 | BU154: 13.383594 | BV154: 7.15676 | BW154: 141.830076 | BX154: 12.373082 | BY154: 43.834827 | BZ154: 45.094102 | CA154: 19.545691
B155: ....flush - to pit latrine | C155: 0.263661449 | D155: 0.5841090658 | E155: 1.677239422 | F155: 2.744382845 | G155: 4.231134156 | H155: 1.932915487 | I155: 2.448966121 | J155: 4.043460293 | K155: 2.415448717 | L155: 1.976722352 | M155: 0.3642954809 | N155: 0.2149479427 | O155: 0.6172351313 | P155: 1.287205169 | Q155: 4.982992894 | R155: 2.859688847 | S155: 1.926344372 | T155: 1.26141318 | U155: 2.450484209 | V155: 1.128501465 | W155: 1.253587294 | X155: 0.9710078216 | Y155: 0.9822380003 | Z155: 0.4691694333 | AA155: 1.07630907 | BB155: ....flush - to pit latrine | BC155: 24.415198 | BD155: 54.159722 | BE155: 155.296296 | BF155: 254.443637 | BG155: 392.428937 | BH155: 68.016658 | BI155: 86.629064 | BJ155: 142.898572 | BK155: 85.42899 | BL155: 69.890338 | BM155: 20.876764 | BN155: 12.339684 | BO155: 35.403274 | BP155: 73.894428 | BQ155: 285.366018 | BR155: 480.537899 | BS155: 146.048964 | BT155: 49.405394 | BU155: 47.200298 | BV155: 14.228998 | BW155: 57.010053 | BX155: 15.239457 | BY155: 27.274238 | BZ155: 15.678172 | CA155: 28.120317
B156: ....flush - don't know | C156: 0.01746481867 | D156: 0 | E156: 0.1597851659 | F156: 0.117027434 | G156: 0.04108594096 | H156: 0 | I156: 0.186975707 | J156: 0.1198645557 | K156: 0.1077432361 | L156: 0 | M156: 0 | N156: 0.02817130408 | O156: 0 | P156: 0.2577143356 | Q156: 0 | R156: 0.02267715677 | S156: 0.2823733957 | T156: 0 | U156: 0 | V156: 0.1282642144 | W156: 0.09314694659 | X156: 0 | Y156: 0 | Z156: 0 | AA156: 0 | BB156: ....flush - don't know | BC156: 1.617252 | BD156: 0 | BE156: 14.794575 | BF156: 10.850121 | BG156: 3.810636 | BH156: 0 | BI156: 6.614028 | BJ156: 4.236093 | BK156: 3.810636 | BL156: 0 | BM156: 0 | BN156: 1.617252 | BO156: 0 | BP156: 14.794575 | BQ156: 0 | BR156: 3.810636 | BS156: 21.408603 | BT156: 0 | BU156: 0 | BV156: 1.617252 | BW156: 4.236093 | BX156: 0 | BY156: 0 | BZ156: 0 | CA156: 0
B157: ....pit latrine - ventilated improved | C157: 1.681582152 | D157: 3.324573077 | E157: 3.688635826 | F157: 6.052333164 | G157: 8.372063312 | H157: 4.51840624 | I157: 6.620036826 | J157: 9.972138554 | K157: 11.73850099 | L157: 6.395323014 | M157: 1.505306639 | N157: 2.775253644 | O157: 3.04164769 | P157: 3.026284706 | Q157: 2.8372658 | R157: 4.967085098 | S157: 3.388807036 | T157: 6.758919184 | U157: 2.487885474 | V157: 6.623001942 | W157: 3.084720254 | X157: 10.10302608 | Y157: 5.893204971 | Z157: 0.9210254536 | AA157: 6.205600199 | BB157: ....pit latrine - ventilated improved | BC157: 155.71545 | BD157: 308.260844 | BE157: 341.532326 | BF157: 561.138059 | BG157: 776.491547 | BH157: 158.996549 | BI157: 234.175389 | BJ157: 352.421999 | BK157: 415.164386 | BL157: 226.117384 | BM157: 86.26495 | BN157: 159.321148 | BO157: 174.462342 | BP157: 173.729552 | BQ157: 162.484527 | BR157: 834.661659 | BS157: 256.927974 | BT157: 264.724573 | BU157: 47.920707 | BV157: 83.507806 | BW157: 140.285456 | BX157: 158.56168 | BY157: 163.639235 | BZ157: 30.777784 | CA157: 162.131352
B158: ....pit latrine - with slab | C158: 2.9245986 | D158: 7.714320532 | E158: 18.02514619 | F158: 29.23255579 | G158: 31.32667278 | H158: 15.86525912 | I158: 28.33839222 | J158: 35.52858451 | K158: 36.92709531 | L158: 25.58174111 | M158: 2.405629395 | N158: 3.250357862 | O158: 9.488773208 | P158: 15.61552616 | Q158: 25.82322329 | R158: 24.86880185 | S158: 16.41841862 | T158: 4.228416254 | U158: 8.060656334 | V158: 9.701478629 | W158: 16.5197725 | X158: 10.44976175 | Y158: 13.73753768 | Z158: 20.64856575 | AA158: 15.96725153 | BB158: ....pit latrine - with slab | BC158: 270.81947 | BD158: 715.286716 | BE158: 1668.955786 | BF158: 2710.277041 | BG158: 2905.484073 | BH158: 558.276816 | BI158: 1002.434608 | BJ158: 1255.603771 | BK158: 1306.028331 | BL158: 904.485413 | BM158: 137.859951 | BN158: 186.595826 | BO158: 544.255537 | BP158: 896.43858 | BQ158: 1478.844253 | BR158: 4178.91681 | BS158: 1244.789387 | BT158: 165.613119 | BU158: 155.261307 | BV158: 122.323563 | BW158: 751.278439 | BX158: 164.003514 | BY158: 381.456299 | BZ158: 690.010351 | CA158: 417.170297
B159: ....pit latrine - without slab | C159: 12.27503469 | D159: 22.52201282 | E159: 28.92608019 | F159: 26.03461628 | G159: 15.08077482 | H159: 25.23149228 | I159: 27.43103416 | J159: 24.94915326 | K159: 20.76368824 | L159: 9.194121921 | M159: 10.63866946 | N159: 17.07653771 | O159: 22.55137004 | P159: 31.3611908 | Q159: 21.52210299 | R159: 20.95111674 | S159: 20.04587002 | T159: 22.61541957 | U159: 5.244208066 | V159: 17.4939481 | W159: 15.33381911 | X159: 28.43644835 | Y159: 23.68515532 | Z159: 29.4632255 | AA159: 26.10672897 | BB159: ....pit latrine - without slab | BC159: 1136.675094 | BD159: 2088.284577 | BE159: 2678.277801 | BF159: 2413.782198 | BG159: 1398.710656 | BH159: 887.861778 | BI159: 970.33797 | BJ159: 881.719645 | BK159: 734.364966 | BL159: 325.073619 | BM159: 609.672651 | BN159: 980.326104 | BO159: 1293.497878 | BP159: 1800.348003 | BQ159: 1232.527712 | BR159: 3520.594778 | BS159: 1519.810575 | BT159: 885.771397 | BU159: 101.011948 | BV159: 220.576898 | BW159: 697.344209 | BX159: 446.295099 | BY159: 657.676208 | BZ159: 984.568653 | CA159: 682.080561
B160: ....not facility | C160: 75.66555145 | D160: 56.32212179 | E160: 32.40732755 | F160: 9.657441266 | G160: 0.8324850971 | H160: 33.30462697 | I160: 11.47854685 | J160: 3.602586036 | K160: 0.8425717137 | L160: 0.01559662878 | M160: 79.18764649 | N160: 68.91897543 | O160: 55.06547475 | P160: 35.06286595 | Q160: 13.98202292 | R160: 16.26667111 | S160: 38.89900797 | T160: 59.48183607 | U160: 67.55780075 | V160: 55.19523591 | W160: 46.17401369 | X160: 30.87554558 | Y160: 40.34277888 | Z160: 44.33802503 | AA160: 38.5169971 | BB160: ....not facility | BC160: 7006.672485 | BD160: 5222.296036 | BE160: 3000.607943 | BF160: 895.383268 | BG160: 77.21127 | BH160: 1171.94437 | BI160: 406.039006 | BJ160: 127.317783 | BK160: 29.799867 | BL160: 0.551445 | BM160: 4538.024472 | BN160: 3956.485314 | BO160: 3158.436699 | BP160: 2012.849611 | BQ160: 800.722435 | BR160: 2733.427438 | BS160: 2949.192209 | BT160: 2329.707343 | BU160: 1301.272751 | BV160: 695.943183 | BW160: 2099.880064 | BX160: 484.575447 | BY160: 1120.215826 | BZ160: 1481.637833 | CA160: 1006.318908
B161: composting toilet | C161: 0.1704702206 | D161: 0.03950327456 | E161: 0.03540858912 | F161: 0 | G161: 0.3417945586 | H161: 0 | I161: 0 | J161: 0 | K161: 0.1783487423 | L161: 0.7181936934 | M161: 0.2088091245 | N161: 0.1303340092 | O161: 0 | P161: 0.05710981345 | Q161: 0 | R161: 0.1759729431 | S161: 0.02810074292 | T161: 0.08370620551 | U161: 0.1982889191 | V161: 0 | W161: 0.1900354773 | X161: 0.2333827819 | Y161: 0 | Z161: 0 | AA161: 0.1272238096 | BB161: composting toilet | BC161: 15.785638 | BD161: 3.66282 | BE161: 3.278496 | BF161: 0 | BG161: 31.700738 | BH161: 0 | BI161: 0 | BJ161: 0 | BK161: 6.307794 | BL161: 25.392944 | BM161: 11.966272 | BN161: 7.482186 | BO161: 0 | BP161: 3.278496 | BQ161: 0 | BR161: 29.570234 | BS161: 2.130504 | BT161: 3.278496 | BU161: 3.819366 | BV161: 0 | BW161: 8.642344 | BX161: 3.66282 | BY161: 0 | BZ161: 0 | CA161: 3.323928
B162: bucket | C162: 0 | D162: 0 | E162: 0 | F162: 0.06802410692 | G162: 0 | H162: 0 | I162: 0 | J162: 0.1784575972 | K162: 0 | L162: 0 | M162: 0 | N162: 0 | O162: 0 | P162: 0 | Q162: 0 | R162: 0.03753192881 | S162: 0 | T162: 0 | U162: 0 | V162: 0 | W162: 0 | X162: 0 | Y162: 0 | Z162: 0 | AA162: 0 | BB162: bucket | BC162: 0 | BD162: 0 | BE162: 0 | BF162: 6.30681 | BG162: 0 | BH162: 0 | BI162: 0 | BJ162: 6.30681 | BK162: 0 | BL162: 0 | BM162: 0 | BN162: 0 | BO162: 0 | BP162: 0 | BQ162: 0 | BR162: 6.30681 | BS162: 0 | BT162: 0 | BU162: 0 | BV162: 0 | BW162: 0 | BX162: 0 | BY162: 0 | BZ162: 0 | CA162: 0
B163: hanging toilet | C163: 6.961602009 | D163: 9.493359435 | E163: 14.60817922 | F163: 23.61165133 | G163: 15.16410998 | H163: 18.32283121 | I163: 21.74290706 | J163: 17.15902404 | K163: 16.66652235 | L163: 13.61757225 | M163: 5.689643406 | N163: 7.540844989 | O163: 9.235499184 | P163: 13.23050683 | Q163: 23.28720414 | R163: 17.59444595 | S163: 17.60076581 | T163: 5.156894482 | U163: 13.0747752 | V163: 9.001605303 | W163: 12.86564147 | X163: 18.14245576 | Y163: 13.03835095 | Z163: 2.810547449 | AA163: 11.05986095 | BB163: hanging toilet | BC163: 644.648249 | BD163: 880.242643 | BE163: 1352.577392 | BF163: 2189.138608 | BG163: 1406.43982 | BH163: 644.755424 | BI163: 769.127703 | BJ163: 606.411305 | BK163: 589.457421 | BL163: 481.472133 | BM163: 326.057689 | BN163: 432.903163 | BO163: 529.728286 | BP163: 759.52207 | BQ163: 1333.611518 | BR163: 2956.544766 | BS163: 1334.430982 | BT163: 201.978549 | BU163: 251.841364 | BV163: 113.499032 | BW163: 585.097588 | BX163: 284.7363 | BY163: 362.041671 | BZ163: 93.919687 | CA163: 288.956773
B164: other | C164: 0.04003461722 | D164: 0 | E164: 0 | F164: 0.1185073669 | G164: 0 | H164: 0 | I164: 0.3106071171 | J164: 0 | K164: 0 | L164: 0 | M164: 0 | N164: 0.06457710194 | O164: 0 | P164: 0 | Q164: 0 | R164: 0.0653857913 | S164: 0 | T164: 0 | U164: 0.192467083 | V164: 0 | W164: 0 | X164: 0 | Y164: 0 | Z164: 0 | AA164: 0 | BB164: other | BC164: 3.707228 | BD164: 0 | BE164: 0 | BF164: 10.987332 | BG164: 0 | BH164: 0 | BI164: 10.987332 | BJ164: 0 | BK164: 0 | BL164: 0 | BM164: 0 | BN164: 3.707228 | BO164: 0 | BP164: 0 | BQ164: 0 | BR164: 10.987332 | BS164: 0 | BT164: 0 | BU164: 3.707228 | BV164: 0 | BW164: 0 | BX164: 0 | BY164: 0 | BZ164: 0 | CA164: 0
BB165: Total | BC165: 9260.056064 | BD165: 9272.193358 | BE165: 9259.04161 | BF165: 9271.43374 | BG165: 9274.793059 | BH165: 3518.863523 | BI165: 3537.372905 | BJ165: 3534.06641 | BK165: 3536.775151 | BL165: 3535.667917 | BM165: 5730.722749 | BN165: 5740.777905 | BO165: 5735.784016 | BP165: 5740.687637 | BQ165: 5726.799618 | BR165: 16803.85261 | BS165: 7581.664322 | BT165: 3916.670192 | BU165: 1926.162096 | BV165: 1260.875457 | BW165: 4547.752938 | BX165: 1569.447399 | BY165: 2776.744332 | BZ165: 3341.686582 | CA165: 2612.661899
A208: =A1026 -> Haiti
A209: =A1034 -> 2006
A210: Access to hygiene facilities
A211: by wealth quintile and sub-national region
A212: Notes:
A213: WHO/UNICEF JMP customised wealth index excludes water,
A214: sanitation and hygiene assets.
A215: Survey used for analysis: | B215: =A1025 -> DHS06
A220: Access to handwashing | C220: NATIONAL wealth index quintile | H220: URBAN wealth index quintile | M220: RURAL wealth index quintile | R220: SUB-REGIONS: | BA220: Raw numbers of respondents: | BB220: Access to handwashing | BC220: NATIONAL wealth index quintile | BH220: URBAN wealth index quintile | BM220: RURAL wealth index quintile | BR220: SUB-REGIONS:
A221: Weighted percentage (used in graphs) | C221: Poorest | D221: Poor | E221: Middle | F221: Rich | G221: Richest | H221: Poorest | I221: Poor | J221: Middle | K221: Rich | L221: Richest | M221: Poorest | N221: Poor | O221: Middle | P221: Rich | Q221: Richest | R221: aire metropolitaine/ reste-quest | S221: artibinite | T221: centre | U221: grand-ause | V221: nippes | W221: nord | X221: nord-est | Y221: nord-quest | Z221: sud | AA221: sud-est | BA221: Hygiene data, raw numbers (weighted) | BC221: Poorest | BD221: Poor | BE221: Middle | BF221: Rich | BG221: Richest | BH221: Poorest | BI221: Poor | BJ221: Middle | BK221: Rich | BL221: Richest | BM221: Poorest | BN221: Poor | BO221: Middle | BP221: Rich | BQ221: Richest | BR221: aire metropolitaine/ reste-quest | BS221: artibinite | BT221: centre | BU221: grand-ause | BV221: nippes | BW221: nord | BX221: nord-est | BY221: nord-quest | BZ221: sud | CA221: sud-est
A222: Hygiene ladder | B222: Basic | C222: N/A | D222: N/A | E222: N/A | F222: N/A | G222: N/A | H222: N/A | I222: N/A | J222: N/A | K222: N/A | L222: N/A | M222: N/A | N222: N/A | O222: N/A | P222: N/A | Q222: N/A | R222: N/A | S222: N/A | T222: N/A | U222: N/A | V222: N/A | W222: N/A | X222: N/A | Y222: N/A | Z222: N/A | AA222: N/A | BA222: Hygiene ladder | BB222: Basic | BC222: N/A | BD222: N/A | BE222: N/A | BF222: N/A | BG222: N/A | BH222: N/A | BI222: N/A | BJ222: N/A | BK222: N/A | BL222: N/A | BM222: N/A | BN222: N/A | BO222: N/A | BP222: N/A | BQ222: N/A | BR222: N/A | BS222: N/A | BT222: N/A | BU222: N/A | BV222: N/A | BW222: N/A | BX222: N/A | BY222: N/A | BZ222: N/A | CA222: N/A
B223: Limited | C223: N/A | D223: N/A | E223: N/A | F223: N/A | G223: N/A | H223: N/A | I223: N/A | J223: N/A | K223: N/A | L223: N/A | M223: N/A | N223: N/A | O223: N/A | P223: N/A | Q223: N/A | R223: N/A | S223: N/A | T223: N/A | U223: N/A | V223: N/A | W223: N/A | X223: N/A | Y223: N/A | Z223: N/A | AA223: N/A | BB223: Limited | BC223: N/A | BD223: N/A | BE223: N/A | BF223: N/A | BG223: N/A | BH223: N/A | BI223: N/A | BJ223: N/A | BK223: N/A | BL223: N/A | BM223: N/A | BN223: N/A | BO223: N/A | BP223: N/A | BQ223: N/A | BR223: N/A | BS223: N/A | BT223: N/A | BU223: N/A | BV223: N/A | BW223: N/A | BX223: N/A | BY223: N/A | BZ223: N/A | CA223: N/A
B224: No facility | C224: N/A | D224: N/A | E224: N/A | F224: N/A | G224: N/A | H224: N/A | I224: N/A | J224: N/A | K224: N/A | L224: N/A | M224: N/A | N224: N/A | O224: N/A | P224: N/A | Q224: N/A | R224: N/A | S224: N/A | T224: N/A | U224: N/A | V224: N/A | W224: N/A | X224: N/A | Y224: N/A | Z224: N/A | AA224: N/A | BB224: No facility | BC224: N/A | BD224: N/A | BE224: N/A | BF224: N/A | BG224: N/A | BH224: N/A | BI224: N/A | BJ224: N/A | BK224: N/A | BL224: N/A | BM224: N/A | BN224: N/A | BO224: N/A | BP224: N/A | BQ224: N/A | BR224: N/A | BS224: N/A | BT224: N/A | BU224: N/A | BV224: N/A | BW224: N/A | BX224: N/A | BY224: N/A | BZ224: N/A | CA224: N/A
BA225: Observed handwashing place | BB225: Fixed | BC225: N/A | BD225: N/A | BE225: N/A | BF225: N/A | BG225: N/A | BH225: N/A | BI225: N/A | BJ225: N/A | BK225: N/A | BL225: N/A | BM225: N/A | BN225: N/A | BO225: N/A | BP225: N/A | BQ225: N/A | BR225: N/A | BS225: N/A | BT225: N/A | BU225: N/A | BV225: N/A | BW225: N/A | BX225: N/A | BY225: N/A | BZ225: N/A | CA225: N/A
BB226: Mobile | BC226: N/A | BD226: N/A | BE226: N/A | BF226: N/A | BG226: N/A | BH226: N/A | BI226: N/A | BJ226: N/A | BK226: N/A | BL226: N/A | BM226: N/A | BN226: N/A | BO226: N/A | BP226: N/A | BQ226: N/A | BR226: N/A | BS226: N/A | BT226: N/A | BU226: N/A | BV226: N/A | BW226: N/A | BX226: N/A | BY226: N/A | BZ226: N/A | CA226: N/A
BA227: Water / Soap | BB227: Water and soap | BC227: N/A | BD227: N/A | BE227: N/A | BF227: N/A | BG227: N/A | BH227: N/A | BI227: N/A | BJ227: N/A | BK227: N/A | BL227: N/A | BM227: N/A | BN227: N/A | BO227: N/A | BP227: N/A | BQ227: N/A | BR227: N/A | BS227: N/A | BT227: N/A | BU227: N/A | BV227: N/A | BW227: N/A | BX227: N/A | BY227: N/A | BZ227: N/A | CA227: N/A
BB228: Water only | BC228: N/A | BD228: N/A | BE228: N/A | BF228: N/A | BG228: N/A | BH228: N/A | BI228: N/A | BJ228: N/A | BK228: N/A | BL228: N/A | BM228: N/A | BN228: N/A | BO228: N/A | BP228: N/A | BQ228: N/A | BR228: N/A | BS228: N/A | BT228: N/A | BU228: N/A | BV228: N/A | BW228: N/A | BX228: N/A | BY228: N/A | BZ228: N/A | CA228: N/A
BB229: Soap only | BC229: N/A | BD229: N/A | BE229: N/A | BF229: N/A | BG229: N/A | BH229: N/A | BI229: N/A | BJ229: N/A | BK229: N/A | BL229: N/A | BM229: N/A | BN229: N/A | BO229: N/A | BP229: N/A | BQ229: N/A | BR229: N/A | BS229: N/A | BT229: N/A | BU229: N/A | BV229: N/A | BW229: N/A | BX229: N/A | BY229: N/A | BZ229: N/A | CA229: N/A
BB230: Neither | BC230: N/A | BD230: N/A | BE230: N/A | BF230: N/A | BG230: N/A | BH230: N/A | BI230: N/A | BJ230: N/A | BK230: N/A | BL230: N/A | BM230: N/A | BN230: N/A | BO230: N/A | BP230: N/A | BQ230: N/A | BR230: N/A | BS230: N/A | BT230: N/A | BU230: N/A | BV230: N/A | BW230: N/A | BX230: N/A | BY230: N/A | BZ230: N/A | CA230: N/A
BA259: Raw numbers of respondents: | BB259: Menstrual health and hygiene | BC259: NATIONAL wealth index quintile | BH259: URBAN wealth index quintile | BM259: RURAL wealth index quintile | BR259: SUB-REGIONS:
BA260: MHH data, raw numbers (weighted) | BC260: Poorest | BD260: Poor | BE260: Middle | BF260: Rich | BG260: Richest | BH260: Poorest | BI260: Poor | BJ260: Middle | BK260: Rich | BL260: Richest | BM260: Poorest | BN260: Poor | BO260: Middle | BP260: Rich | BQ260: Richest | BR260: aire metropolitaine/ reste-quest | BS260: artibinite | BT260: centre | BU260: grand-ause | BV260: nippes | BW260: nord | BX260: nord-est | BY260: nord-quest | BZ260: sud | CA260: sud-est
BA261: Private place to wash and change | BB261: Yes | BC261: N/A | BD261: N/A | BE261: N/A | BF261: N/A | BG261: N/A | BH261: N/A | BI261: N/A | BJ261: N/A | BK261: N/A | BL261: N/A | BM261: N/A | BN261: N/A | BO261: N/A | BP261: N/A | BQ261: N/A | BR261: N/A | BS261: N/A | BT261: N/A | BU261: N/A | BV261: N/A | BW261: N/A | BX261: N/A | BY261: N/A | BZ261: N/A | CA261: N/A
BB262: No | BC262: N/A | BD262: N/A | BE262: N/A | BF262: N/A | BG262: N/A | BH262: N/A | BI262: N/A | BJ262: N/A | BK262: N/A | BL262: N/A | BM262: N/A | BN262: N/A | BO262: N/A | BP262: N/A | BQ262: N/A | BR262: N/A | BS262: N/A | BT262: N/A | BU262: N/A | BV262: N/A | BW262: N/A | BX262: N/A | BY262: N/A | BZ262: N/A | CA262: N/A
BB263: DK/not sure/missing | BC263: N/A | BD263: N/A | BE263: N/A | BF263: N/A | BG263: N/A | BH263: N/A | BI263: N/A | BJ263: N/A | BK263: N/A | BL263: N/A | BM263: N/A | BN263: N/A | BO263: N/A | BP263: N/A | BQ263: N/A | BR263: N/A | BS263: N/A | BT263: N/A | BU263: N/A | BV263: N/A | BW263: N/A | BX263: N/A | BY263: N/A | BZ263: N/A | CA263: N/A
BA264: Use of menstrual materials | BB264: Materials reusable | BC264: N/A | BD264: N/A | BE264: N/A | BF264: N/A | BG264: N/A | BH264: N/A | BI264: N/A | BJ264: N/A | BK264: N/A | BL264: N/A | BM264: N/A | BN264: N/A | BO264: N/A | BP264: N/A | BQ264: N/A | BR264: N/A | BS264: N/A | BT264: N/A | BU264: N/A | BV264: N/A | BW264: N/A | BX264: N/A | BY264: N/A | BZ264: N/A | CA264: N/A
BB265: Materials not reusable | BC265: N/A | BD265: N/A | BE265: N/A | BF265: N/A | BG265: N/A | BH265: N/A | BI265: N/A | BJ265: N/A | BK265: N/A | BL265: N/A | BM265: N/A | BN265: N/A | BO265: N/A | BP265: N/A | BQ265: N/A | BR265: N/A | BS265: N/A | BT265: N/A | BU265: N/A | BV265: N/A | BW265: N/A | BX265: N/A | BY265: N/A | BZ265: N/A | CA265: N/A
BB266: No materials used | BC266: N/A | BD266: N/A | BE266: N/A | BF266: N/A | BG266: N/A | BH266: N/A | BI266: N/A | BJ266: N/A | BK266: N/A | BL266: N/A | BM266: N/A | BN266: N/A | BO266: N/A | BP266: N/A | BQ266: N/A | BR266: N/A | BS266: N/A | BT266: N/A | BU266: N/A | BV266: N/A | BW266: N/A | BX266: N/A | BY266: N/A | BZ266: N/A | CA266: N/A
BB267: DK/not sure/missing | BC267: N/A | BD267: N/A | BE267: N/A | BF267: N/A | BG267: N/A | BH267: N/A | BI267: N/A | BJ267: N/A | BK267: N/A | BL267: N/A | BM267: N/A | BN267: N/A | BO267: N/A | BP267: N/A | BQ267: N/A | BR267: N/A | BS267: N/A | BT267: N/A | BU267: N/A | BV267: N/A | BW267: N/A | BX267: N/A | BY267: N/A | BZ267: N/A | CA267: N/A
BA268: Use of menstrual materials with private place to wash and change | BB268: Materials reusable | BC268: N/A | BD268: N/A | BE268: N/A | BF268: N/A | BG268: N/A | BH268: N/A | BI268: N/A | BJ268: N/A | BK268: N/A | BL268: N/A | BM268: N/A | BN268: N/A | BO268: N/A | BP268: N/A | BQ268: N/A | BR268: N/A | BS268: N/A | BT268: N/A | BU268: N/A | BV268: N/A | BW268: N/A | BX268: N/A | BY268: N/A | BZ268: N/A | CA268: N/A
BB269: Materials not reusable | BC269: N/A | BD269: N/A | BE269: N/A | BF269: N/A | BG269: N/A | BH269: N/A | BI269: N/A | BJ269: N/A | BK269: N/A | BL269: N/A | BM269: N/A | BN269: N/A | BO269: N/A | BP269: N/A | BQ269: N/A | BR269: N/A | BS269: N/A | BT269: N/A | BU269: N/A | BV269: N/A | BW269: N/A | BX269: N/A | BY269: N/A | BZ269: N/A | CA269: N/A
BB270: No materials used | BC270: N/A | BD270: N/A | BE270: N/A | BF270: N/A | BG270: N/A | BH270: N/A | BI270: N/A | BJ270: N/A | BK270: N/A | BL270: N/A | BM270: N/A | BN270: N/A | BO270: N/A | BP270: N/A | BQ270: N/A | BR270: N/A | BS270: N/A | BT270: N/A | BU270: N/A | BV270: N/A | BW270: N/A | BX270: N/A | BY270: N/A | BZ270: N/A | CA270: N/A
BA271: Awareness of menstruation before menarche | BB271: Yes | BC271: N/A | BD271: N/A | BE271: N/A | BF271: N/A | BG271: N/A | BH271: N/A | BI271: N/A | BJ271: N/A | BK271: N/A | BL271: N/A | BM271: N/A | BN271: N/A | BO271: N/A | BP271: N/A | BQ271: N/A | BR271: N/A | BS271: N/A | BT271: N/A | BU271: N/A | BV271: N/A | BW271: N/A | BX271: N/A | BY271: N/A | BZ271: N/A | CA271: N/A
BB272: No | BC272: N/A | BD272: N/A | BE272: N/A | BF272: N/A | BG272: N/A | BH272: N/A | BI272: N/A | BJ272: N/A | BK272: N/A | BL272: N/A | BM272: N/A | BN272: N/A | BO272: N/A | BP272: N/A | BQ272: N/A | BR272: N/A | BS272: N/A | BT272: N/A | BU272: N/A | BV272: N/A | BW272: N/A | BX272: N/A | BY272: N/A | BZ272: N/A | CA272: N/A
BB273: DK/not sure/missing | BC273: N/A | BD273: N/A | BE273: N/A | BF273: N/A | BG273: N/A | BH273: N/A | BI273: N/A | BJ273: N/A | BK273: N/A | BL273: N/A | BM273: N/A | BN273: N/A | BO273: N/A | BP273: N/A | BQ273: N/A | BR273: N/A | BS273: N/A | BT273: N/A | BU273: N/A | BV273: N/A | BW273: N/A | BX273: N/A | BY273: N/A | BZ273: N/A | CA273: N/A
BA274: Participation in (all) activities during menstruation | BB274: Yes | BC274: N/A | BD274: N/A | BE274: N/A | BF274: N/A | BG274: N/A | BH274: N/A | BI274: N/A | BJ274: N/A | BK274: N/A | BL274: N/A | BM274: N/A | BN274: N/A | BO274: N/A | BP274: N/A | BQ274: N/A | BR274: N/A | BS274: N/A | BT274: N/A | BU274: N/A | BV274: N/A | BW274: N/A | BX274: N/A | BY274: N/A | BZ274: N/A | CA274: N/A
BB275: No | BC275: N/A | BD275: N/A | BE275: N/A | BF275: N/A | BG275: N/A | BH275: N/A | BI275: N/A | BJ275: N/A | BK275: N/A | BL275: N/A | BM275: N/A | BN275: N/A | BO275: N/A | BP275: N/A | BQ275: N/A | BR275: N/A | BS275: N/A | BT275: N/A | BU275: N/A | BV275: N/A | BW275: N/A | BX275: N/A | BY275: N/A | BZ275: N/A | CA275: N/A
BB276: DK/not sure/missing/no such activity | BC276: N/A | BD276: N/A | BE276: N/A | BF276: N/A | BG276: N/A | BH276: N/A | BI276: N/A | BJ276: N/A | BK276: N/A | BL276: N/A | BM276: N/A | BN276: N/A | BO276: N/A | BP276: N/A | BQ276: N/A | BR276: N/A | BS276: N/A | BT276: N/A | BU276: N/A | BV276: N/A | BW276: N/A | BX276: N/A | BY276: N/A | BZ276: N/A | CA276: N/A
BA277: Participation in specific activities during menstruation | BB277: Did not go to school (amongst those usually attending school) | BC277: N/A | BD277: N/A | BE277: N/A | BF277: N/A | BG277: N/A | BH277: N/A | BI277: N/A | BJ277: N/A | BK277: N/A | BL277: N/A | BM277: N/A | BN277: N/A | BO277: N/A | BP277: N/A | BQ277: N/A | BR277: N/A | BS277: N/A | BT277: N/A | BU277: N/A | BV277: N/A | BW277: N/A | BX277: N/A | BY277: N/A | BZ277: N/A | CA277: N/A
BB278: Did not go to work (amongst those who usually work) | BC278: N/A | BD278: N/A | BE278: N/A | BF278: N/A | BG278: N/A | BH278: N/A | BI278: N/A | BJ278: N/A | BK278: N/A | BL278: N/A | BM278: N/A | BN278: N/A | BO278: N/A | BP278: N/A | BQ278: N/A | BR278: N/A | BS278: N/A | BT278: N/A | BU278: N/A | BV278: N/A | BW278: N/A | BX278: N/A | BY278: N/A | BZ278: N/A | CA278: N/A
BB279: Did not participate in social activities | BC279: N/A | BD279: N/A | BE279: N/A | BF279: N/A | BG279: N/A | BH279: N/A | BI279: N/A | BJ279: N/A | BK279: N/A | BL279: N/A | BM279: N/A | BN279: N/A | BO279: N/A | BP279: N/A | BQ279: N/A | BR279: N/A | BS279: N/A | BT279: N/A | BU279: N/A | BV279: N/A | BW279: N/A | BX279: N/A | BY279: N/A | BZ279: N/A | CA279: N/A
BB280: Did not cook food | BC280: N/A | BD280: N/A | BE280: N/A | BF280: N/A | BG280: N/A | BH280: N/A | BI280: N/A | BJ280: N/A | BK280: N/A | BL280: N/A | BM280: N/A | BN280: N/A | BO280: N/A | BP280: N/A | BQ280: N/A | BR280: N/A | BS280: N/A | BT280: N/A | BU280: N/A | BV280: N/A | BW280: N/A | BX280: N/A | BY280: N/A | BZ280: N/A | CA280: N/A
BB281: Did not eat with others | BC281: N/A | BD281: N/A | BE281: N/A | BF281: N/A | BG281: N/A | BH281: N/A | BI281: N/A | BJ281: N/A | BK281: N/A | BL281: N/A | BM281: N/A | BN281: N/A | BO281: N/A | BP281: N/A | BQ281: N/A | BR281: N/A | BS281: N/A | BT281: N/A | BU281: N/A | BV281: N/A | BW281: N/A | BX281: N/A | BY281: N/A | BZ281: N/A | CA281: N/A
BB282: Did not bathe in regular place | BC282: N/A | BD282: N/A | BE282: N/A | BF282: N/A | BG282: N/A | BH282: N/A | BI282: N/A | BJ282: N/A | BK282: N/A | BL282: N/A | BM282: N/A | BN282: N/A | BO282: N/A | BP282: N/A | BQ282: N/A | BR282: N/A | BS282: N/A | BT282: N/A | BU282: N/A | BV282: N/A | BW282: N/A | BX282: N/A | BY282: N/A | BZ282: N/A | CA282: N/A
BB283: Did not participate in other activities | BC283: N/A | BD283: N/A | BE283: N/A | BF283: N/A | BG283: N/A | BH283: N/A | BI283: N/A | BJ283: N/A | BK283: N/A | BL283: N/A | BM283: N/A | BN283: N/A | BO283: N/A | BP283: N/A | BQ283: N/A | BR283: N/A | BS283: N/A | BT283: N/A | BU283: N/A | BV283: N/A | BW283: N/A | BX283: N/A | BY283: N/A | BZ283: N/A | CA283: N/A
BB284: DK/not sure/missing/no such activity | BC284: N/A | BD284: N/A | BE284: N/A | BF284: N/A | BG284: N/A | BH284: N/A | BI284: N/A | BJ284: N/A | BK284: N/A | BL284: N/A | BM284: N/A | BN284: N/A | BO284: N/A | BP284: N/A | BQ284: N/A | BR284: N/A | BS284: N/A | BT284: N/A | BU284: N/A | BV284: N/A | BW284: N/A | BX284: N/A | BY284: N/A | BZ284: N/A | CA284: N/A
BA339: Raw numbers of respondents: | BB339: Basic water, sanitation and hygiene | BC339: NATIONAL wealth index quintile | BH339: URBAN wealth index quintile | BM339: RURAL wealth index quintile | BR339: SUB-REGIONS:
BA340: WatSan data, raw numbers (weighted) | BC340: Poorest | BD340: Poor | BE340: Middle | BF340: Rich | BG340: Richest | BH340: Poorest | BI340: Poor | BJ340: Middle | BK340: Rich | BL340: Richest | BM340: Poorest | BN340: Poor | BO340: Middle | BP340: Rich | BQ340: Richest | BR340: aire metropolitaine/ reste-quest | BS340: artibinite | BT340: centre | BU340: grand-ause | BV340: nippes | BW340: nord | BX340: nord-est | BY340: nord-quest | BZ340: sud | CA340: sud-est
BA341: Use of Basic Water Sanitation and Hygiene | BB341: Yes | BC341: N/A | BD341: N/A | BE341: N/A | BF341: N/A | BG341: N/A | BH341: N/A | BI341: N/A | BJ341: N/A | BK341: N/A | BL341: N/A | BM341: N/A | BN341: N/A | BO341: N/A | BP341: N/A | BQ341: N/A | BR341: N/A | BS341: N/A | BT341: N/A | BU341: N/A | BV341: N/A | BW341: N/A | BX341: N/A | BY341: N/A | BZ341: N/A | CA341: N/A
BB342: No | BC342: N/A | BD342: N/A | BE342: N/A | BF342: N/A | BG342: N/A | BH342: N/A | BI342: N/A | BJ342: N/A | BK342: N/A | BL342: N/A | BM342: N/A | BN342: N/A | BO342: N/A | BP342: N/A | BQ342: N/A | BR342: N/A | BS342: N/A | BT342: N/A | BU342: N/A | BV342: N/A | BW342: N/A | BX342: N/A | BY342: N/A | BZ342: N/A | CA342: N/A
BA343: Use of Basic Water and Sanitation | BB343: Yes | BC343: N/A | BD343: N/A | BE343: N/A | BF343: N/A | BG343: N/A | BH343: N/A | BI343: N/A | BJ343: N/A | BK343: N/A | BL343: N/A | BM343: N/A | BN343: N/A | BO343: N/A | BP343: N/A | BQ343: N/A | BR343: N/A | BS343: N/A | BT343: N/A | BU343: N/A | BV343: N/A | BW343: N/A | BX343: N/A | BY343: N/A | BZ343: N/A | CA343: N/A
BB344: No | BC344: N/A | BD344: N/A | BE344: N/A | BF344: N/A | BG344: N/A | BH344: N/A | BI344: N/A | BJ344: N/A | BK344: N/A | BL344: N/A | BM344: N/A | BN344: N/A | BO344: N/A | BP344: N/A | BQ344: N/A | BR344: N/A | BS344: N/A | BT344: N/A | BU344: N/A | BV344: N/A | BW344: N/A | BX344: N/A | BY344: N/A | BZ344: N/A | CA344: N/A
BA345: Use of Basic Water and Hygiene | BB345: Yes | BC345: N/A | BD345: N/A | BE345: N/A | BF345: N/A | BG345: N/A | BH345: N/A | BI345: N/A | BJ345: N/A | BK345: N/A | BL345: N/A | BM345: N/A | BN345: N/A | BO345: N/A | BP345: N/A | BQ345: N/A | BR345: N/A | BS345: N/A | BT345: N/A | BU345: N/A | BV345: N/A | BW345: N/A | BX345: N/A | BY345: N/A | BZ345: N/A | CA345: N/A
BB346: No | BC346: N/A | BD346: N/A | BE346: N/A | BF346: N/A | BG346: N/A | BH346: N/A | BI346: N/A | BJ346: N/A | BK346: N/A | BL346: N/A | BM346: N/A | BN346: N/A | BO346: N/A | BP346: N/A | BQ346: N/A | BR346: N/A | BS346: N/A | BT346: N/A | BU346: N/A | BV346: N/A | BW346: N/A | BX346: N/A | BY346: N/A | BZ346: N/A | CA346: N/A
BA347: Use of Basic Sanitation and Hygiene | BB347: Yes | BC347: N/A | BD347: N/A | BE347: N/A | BF347: N/A | BG347: N/A | BH347: N/A | BI347: N/A | BJ347: N/A | BK347: N/A | BL347: N/A | BM347: N/A | BN347: N/A | BO347: N/A | BP347: N/A | BQ347: N/A | BR347: N/A | BS347: N/A | BT347: N/A | BU347: N/A | BV347: N/A | BW347: N/A | BX347: N/A | BY347: N/A | BZ347: N/A | CA347: N/A
BB348: No | BC348: N/A | BD348: N/A | BE348: N/A | BF348: N/A | BG348: N/A | BH348: N/A | BI348: N/A | BJ348: N/A | BK348: N/A | BL348: N/A | BM348: N/A | BN348: N/A | BO348: N/A | BP348: N/A | BQ348: N/A | BR348: N/A | BS348: N/A | BT348: N/A | BU348: N/A | BV348: N/A | BW348: N/A | BX348: N/A | BY348: N/A | BZ348: N/A | CA348: N/A
BA349: Use of Basic Water | BB349: Yes | BC349: N/A | BD349: N/A | BE349: N/A | BF349: N/A | BG349: N/A | BH349: N/A | BI349: N/A | BJ349: N/A | BK349: N/A | BL349: N/A | BM349: N/A | BN349: N/A | BO349: N/A | BP349: N/A | BQ349: N/A | BR349: N/A | BS349: N/A | BT349: N/A | BU349: N/A | BV349: N/A | BW349: N/A | BX349: N/A | BY349: N/A | BZ349: N/A | CA349: N/A
BB350: No | BC350: N/A | BD350: N/A | BE350: N/A | BF350: N/A | BG350: N/A | BH350: N/A | BI350: N/A | BJ350: N/A | BK350: N/A | BL350: N/A | BM350: N/A | BN350: N/A | BO350: N/A | BP350: N/A | BQ350: N/A | BR350: N/A | BS350: N/A | BT350: N/A | BU350: N/A | BV350: N/A | BW350: N/A | BX350: N/A | BY350: N/A | BZ350: N/A | CA350: N/A
BA351: Use of Basic Sanitation | BB351: Yes | BC351: N/A | BD351: N/A | BE351: N/A | BF351: N/A | BG351: N/A | BH351: N/A | BI351: N/A | BJ351: N/A | BK351: N/A | BL351: N/A | BM351: N/A | BN351: N/A | BO351: N/A | BP351: N/A | BQ351: N/A | BR351: N/A | BS351: N/A | BT351: N/A | BU351: N/A | BV351: N/A | BW351: N/A | BX351: N/A | BY351: N/A | BZ351: N/A | CA351: N/A
BB352: No | BC352: N/A | BD352: N/A | BE352: N/A | BF352: N/A | BG352: N/A | BH352: N/A | BI352: N/A | BJ352: N/A | BK352: N/A | BL352: N/A | BM352: N/A | BN352: N/A | BO352: N/A | BP352: N/A | BQ352: N/A | BR352: N/A | BS352: N/A | BT352: N/A | BU352: N/A | BV352: N/A | BW352: N/A | BX352: N/A | BY352: N/A | BZ352: N/A | CA352: N/A
BA353: Access to Basic Hygiene | BB353: Yes | BC353: N/A | BD353: N/A | BE353: N/A | BF353: N/A | BG353: N/A | BH353: N/A | BI353: N/A | BJ353: N/A | BK353: N/A | BL353: N/A | BM353: N/A | BN353: N/A | BO353: N/A | BP353: N/A | BQ353: N/A | BR353: N/A | BS353: N/A | BT353: N/A | BU353: N/A | BV353: N/A | BW353: N/A | BX353: N/A | BY353: N/A | BZ353: N/A | CA353: N/A
BB354: No | BC354: N/A | BD354: N/A | BE354: N/A | BF354: N/A | BG354: N/A | BH354: N/A | BI354: N/A | BJ354: N/A | BK354: N/A | BL354: N/A | BM354: N/A | BN354: N/A | BO354: N/A | BP354: N/A | BQ354: N/A | BR354: N/A | BS354: N/A | BT354: N/A | BU354: N/A | BV354: N/A | BW354: N/A | BX354: N/A | BY354: N/A | BZ354: N/A | CA354: N/A
C399: INITIAL (national) Wealth Index | H399: URBAN Wealth Index | M399: RURAL Wealth Index
C400: Component Matrix | H400: Component Matrix | M400: Component Matrix
E401: Component | J401: Component | O401: Component
B402: Note: The INITIAL (national) Wealth Index is based on the first component of the Principal Component Analysis (PCA) which has been obtained at national level. The final national-level (NATIONAL) Wealth Index is based on the URBAN and RURAL specific wealth indexes. Regression procedures are used to establish the relationships between the two sets of scores (urban and rural) and the initial (national) wealth factors. This allows best use of the available information for each area and a better precision of the FINAL (NATIONAL) Wealth Index. For dependency reasons, all WASH variables (contained in the generic MICS and DHS scripts) have been excluded from the sets of asset variables used in the PCAs. The PCA can extracts as many components as there are asset variables in the input. Only the first of the components is used to represent the Wealth Index. The scores represent the weights of the asset variables on the Wealth Index (correlations between the variables and the component). The communalities are the proportion of each variable's variance that can be explained by the component. Proportion of explained variance is the part of the model's total variance that is explained by the component. For more information on the procedure used: The DHS Wealth Index, DHS Comparative Reports No. 6, Shea Oscar Rutstein, Kiersten Johnson, ORC Macro International Inc., 2004. The DHS Wealth Index: Approaches for Rural and Urban Areas, Shea O. Rutstein, ORC Macro International Inc., 2008. MICS Methodological Paper No. 4, Review of options for reporting water, sanitation and hygiene coverage by wealth quintile, UNICEF, 2016. | E402: 1 | J402: 1 | O402: 1
C403: Household fuel type: wood, straw | E403: -0.7759601362 | H403: has television | J403: 0.7030424638 | M403: has television | O403: 0.6695924709
C404: has electricity | E404: 0.751367325 | H404: Has cement/concrete roof | J404: 0.6975497064 | M404: Household fuel type: wood, straw | O404: -0.657535253
C405: has television | E405: 0.7500429444 | H405: Has corrugated iron roof | J405: -0.6303867354 | M405: Has earth/sand floor | O405: -0.6342590389
C406: Has earth/sand floor | E406: -0.7068610408 | H406: has electricity | J406: 0.6254630291 | M406: has electricity | O406: 0.627097272
C407: Has cement/concrete roof | E407: 0.6883395247 | H407: owns a bank account | J407: 0.6157266863 | M407: Has cement/concrete roof | O407: 0.6022729452
C408: Household fuel type: charcoal | E408: 0.6400821352 | H408: has refrigerator | J408: 0.6081410627 | M408: Has cement floor | O408: 0.588687906
C409: owns a bank account | E409: 0.6345228935 | H409: has radio | J409: 0.5321808309 | M409: Household fuel type: charcoal | O409: 0.5696130183
C410: Has cement blocks wall | E410: 0.6098647681 | H410: has a watch | J410: 0.5170943906 | M410: Has cement blocks wall | O410: 0.5270171139
C411: Has cement floor | E411: 0.5926454339 | H411: Has earth/sand floor | J411: -0.5152248465 | M411: owns a bank account | O411: 0.5238830827
C412: has refrigerator | E412: 0.5833815147 | H412: Household fuel type: wood, straw | J412: -0.4992685225 | M412: has refrigerator | O412: 0.5193807519
... 261 more rows

Sheet DHS12
A2: =A1026 -> Haiti
A3: =A1034 -> 2012
A4: Use of drinking water sources
A5: by wealth quintile and sub-national region
A6: Notes:
A7: WHO/UNICEF JMP customised wealth index excludes water,
A8: sanitation and hygiene assets.
A9: Survey used for analysis: | B9: =A1025 -> DHS12
A10: =B1028 -> 
A11: =B1027 -> 
A14: Use of drinking water sources | C14: NATIONAL wealth index quintile | H14: URBAN wealth index quintile | M14: RURAL wealth index quintile | R14: SUB-REGIONS: | BA14: Raw numbers of respondents: | BB14: Use of drinking water sources | BC14: NATIONAL wealth index quintile | BH14: URBAN wealth index quintile | BM14: RURAL wealth index quintile | BR14: SUB-REGIONS:
A15: Weighted percentage (used in graphs) | C15: Poorest | D15: Poor | E15: Middle | F15: Rich | G15: Richest | H15: Poorest | I15: Poor | J15: Middle | K15: Rich | L15: Richest | M15: Poorest | N15: Poor | O15: Middle | P15: Rich | Q15: Richest | R15: Aire Metropolitaine/ Reste-Ouest | S15: Artibonite | T15: Camps | U15: Centre | V15: Grand'Anse | W15: Nippes | X15: Nord | Y15: Nord-Est | Z15: Nord-Ouest | AA15: Sud | AB15: Sud-Est | BA15: Water data, raw numbers (weighted) | BC15: Poorest | BD15: Poor | BE15: Middle | BF15: Rich | BG15: Richest | BH15: Poorest | BI15: Poor | BJ15: Middle | BK15: Rich | BL15: Richest | BM15: Poorest | BN15: Poor | BO15: Middle | BP15: Rich | BQ15: Richest | BR15: Aire Metropolitaine/ Reste-Ouest | BS15: Artibonite | BT15: Camps | BU15: Centre | BV15: Grand'Anse | BW15: Nippes | BX15: Nord | BY15: Nord-Est | BZ15: Nord-Ouest | CA15: Sud | CB15: Sud-Est
A16: Water | B16: Improved | C16: 35.2 | D16: 42.1 | E16: 71 | F16: 93 | G16: 97.1 | H16: 86.3 | I16: 92.7 | J16: 96.2 | K16: 97.6 | L16: 98.1 | M16: 32.6 | N16: 36.8 | O16: 37.4 | P16: 57 | Q16: 85.8 | R16: 83.4 | S16: 49.7 | T16: 94.1 | U16: 46.3 | V16: 36.9 | W16: 66.2 | X16: 70.7 | Y16: 67 | Z16: 62.8 | AA16: 63.1 | AB16: 54.6 | BA16: Water | BB16: Improved | BC16: N/A | BD16: N/A | BE16: N/A | BF16: N/A | BG16: N/A | BH16: N/A | BI16: N/A | BJ16: N/A | BK16: N/A | BL16: N/A | BM16: N/A | BN16: N/A | BO16: N/A | BP16: N/A | BQ16: N/A | BR16: N/A | BS16: N/A | BT16: N/A | BU16: N/A | BV16: N/A | BW16: N/A | BX16: N/A | BY16: N/A | BZ16: N/A | CA16: N/A | CB16: N/A
B17: Not Improved | C17: 64.8 | D17: 57.9 | E17: 29 | F17: 7 | G17: 2.9 | H17: 13.7 | I17: 7.3 | J17: 3.8 | K17: 2.4 | L17: 1.9 | M17: 67.4 | N17: 63.2 | O17: 62.6 | P17: 43 | Q17: 14.2 | R17: 16.6 | S17: 50.3 | T17: 5.9 | U17: 53.7 | V17: 63.1 | W17: 33.8 | X17: 29.3 | Y17: 33 | Z17: 37.2 | AA17: 36.9 | AB17: 45.4 | BB17: Not Improved | BC17: N/A | BD17: N/A | BE17: N/A | BF17: N/A | BG17: N/A | BH17: N/A | BI17: N/A | BJ17: N/A | BK17: N/A | BL17: N/A | BM17: N/A | BN17: N/A | BO17: N/A | BP17: N/A | BQ17: N/A | BR17: N/A | BS17: N/A | BT17: N/A | BU17: N/A | BV17: N/A | BW17: N/A | BX17: N/A | BY17: N/A | BZ17: N/A | CA17: N/A | CB17: N/A
A18: Water ladder | B18: Basic | C18: 22 | D18: 31 | E18: 59.4 | F18: 84.7 | G18: 92 | H18: 74.9 | I18: 84.5 | J18: 88.8 | K18: 92.7 | L18: 93.1 | M18: 19.3 | N18: 25.6 | O18: 26.2 | P18: 45.2 | Q18: 75.8 | R18: 74.7 | S18: 40.5 | T18: 90.6 | U18: 36.6 | V18: 28.1 | W18: 49.7 | X18: 63.8 | Y18: 55 | Z18: 47.4 | AA18: 51 | AB18: 38 | BA18: Water ladder | BB18: Basic | BC18: N/A | BD18: N/A | BE18: N/A | BF18: N/A | BG18: N/A | BH18: N/A | BI18: N/A | BJ18: N/A | BK18: N/A | BL18: N/A | BM18: N/A | BN18: N/A | BO18: N/A | BP18: N/A | BQ18: N/A | BR18: N/A | BS18: N/A | BT18: N/A | BU18: N/A | BV18: N/A | BW18: N/A | BX18: N/A | BY18: N/A | BZ18: N/A | CA18: N/A | CB18: N/A
B19: Limited | C19: 13.1 | D19: 11.1 | E19: 11.6 | F19: 8.3 | G19: 5.1 | H19: 11.3 | I19: 8.2 | J19: 7.4 | K19: 4.9 | L19: 5 | M19: 13.3 | N19: 11.2 | O19: 11.2 | P19: 11.7 | Q19: 9.9 | R19: 8.7 | S19: 8.9 | T19: 3.5 | U19: 9.8 | V19: 8.8 | W19: 16.5 | X19: 6.9 | Y19: 11.9 | Z19: 15.4 | AA19: 11.9 | AB19: 16.7 | BB19: Limited | BC19: N/A | BD19: N/A | BE19: N/A | BF19: N/A | BG19: N/A | BH19: N/A | BI19: N/A | BJ19: N/A | BK19: N/A | BL19: N/A | BM19: N/A | BN19: N/A | BO19: N/A | BP19: N/A | BQ19: N/A | BR19: N/A | BS19: N/A | BT19: N/A | BU19: N/A | BV19: N/A | BW19: N/A | BX19: N/A | BY19: N/A | BZ19: N/A | CA19: N/A | CB19: N/A
B20: Unimproved | C20: 62.1 | D20: 54.4 | E20: 27.7 | F20: 6.8 | G20: 2.9 | H20: 13.8 | I20: 7.1 | J20: 3.8 | K20: 2.4 | L20: 1.9 | M20: 64.7 | N20: 60.3 | O20: 58.5 | P20: 40.4 | Q20: 13.7 | R20: 16 | S20: 46.5 | T20: 5.8 | U20: 50.4 | V20: 58.8 | W20: 32.4 | X20: 29 | Y20: 32.5 | Z20: 35.5 | AA20: 36.4 | AB20: 43.4 | BB20: Unimproved | BC20: N/A | BD20: N/A | BE20: N/A | BF20: N/A | BG20: N/A | BH20: N/A | BI20: N/A | BJ20: N/A | BK20: N/A | BL20: N/A | BM20: N/A | BN20: N/A | BO20: N/A | BP20: N/A | BQ20: N/A | BR20: N/A | BS20: N/A | BT20: N/A | BU20: N/A | BV20: N/A | BW20: N/A | BX20: N/A | BY20: N/A | BZ20: N/A | CA20: N/A | CB20: N/A
B21: Surface water | C21: 2.8 | D21: 3.5 | E21: 1.4 | F21: 0.2 | G21: 0 | H21: 0 | I21: 0.2 | J21: 0 | K21: 0 | L21: 0 | M21: 2.7 | N21: 2.9 | O21: 4.1 | P21: 2.7 | Q21: 0.6 | R21: 0.7 | S21: 4 | T21: 0.1 | U21: 3.2 | V21: 4.3 | W21: 1.5 | X21: 0.2 | Y21: 0.5 | Z21: 1.8 | AA21: 0.6 | AB21: 2 | BB21: Surface water | BC21: N/A | BD21: N/A | BE21: N/A | BF21: N/A | BG21: N/A | BH21: N/A | BI21: N/A | BJ21: N/A | BK21: N/A | BL21: N/A | BM21: N/A | BN21: N/A | BO21: N/A | BP21: N/A | BQ21: N/A | BR21: N/A | BS21: N/A | BT21: N/A | BU21: N/A | BV21: N/A | BW21: N/A | BX21: N/A | BY21: N/A | BZ21: N/A | CA21: N/A | CB21: N/A
A22: Improved water point at more than 30 minutes | B22: Yes | C22: 37.3 | D22: 26.4 | E22: 16.3 | F22: 8.9 | G22: 5.3 | H22: 13.1 | I22: 8.9 | J22: 7.7 | K22: 5.1 | L22: 5.1 | M22: 40.8 | N22: 30.5 | O22: 30 | P22: 20.6 | Q22: 11.6 | R22: 10.4 | S22: 18 | T22: 3.8 | U22: 21.1 | V22: 23.9 | W22: 24.9 | X22: 9.8 | Y22: 17.8 | Z22: 24.5 | AA22: 19 | AB22: 30.5 | BA22: Improved water point at more than 30 minutes | BB22: Yes | BC22: N/A | BD22: N/A | BE22: N/A | BF22: N/A | BG22: N/A | BH22: N/A | BI22: N/A | BJ22: N/A | BK22: N/A | BL22: N/A | BM22: N/A | BN22: N/A | BO22: N/A | BP22: N/A | BQ22: N/A | BR22: N/A | BS22: N/A | BT22: N/A | BU22: N/A | BV22: N/A | BW22: N/A | BX22: N/A | BY22: N/A | BZ22: N/A | CA22: N/A | CB22: N/A
B23: No | C23: 62.7 | D23: 73.6 | E23: 83.7 | F23: 91.1 | G23: 94.7 | H23: 86.9 | I23: 91.1 | J23: 92.3 | K23: 94.9 | L23: 94.9 | M23: 59.2 | N23: 69.5 | O23: 70 | P23: 79.4 | Q23: 88.4 | R23: 89.6 | S23: 82 | T23: 96.2 | U23: 78.9 | V23: 76.1 | W23: 75.1 | X23: 90.2 | Y23: 82.2 | Z23: 75.5 | AA23: 81 | AB23: 69.5 | BB23: No | BC23: N/A | BD23: N/A | BE23: N/A | BF23: N/A | BG23: N/A | BH23: N/A | BI23: N/A | BJ23: N/A | BK23: N/A | BL23: N/A | BM23: N/A | BN23: N/A | BO23: N/A | BP23: N/A | BQ23: N/A | BR23: N/A | BS23: N/A | BT23: N/A | BU23: N/A | BV23: N/A | BW23: N/A | BX23: N/A | BY23: N/A | BZ23: N/A | CA23: N/A | CB23: N/A
A24: Manually calculated ratios | B24: Improved wells
B25: Improved springs
B26: Other
C27: NATIONAL wealth index quintile | H27: URBAN wealth index quintile | M27: RURAL wealth index quintile | R27: SUB-REGIONS: | BA27: Raw numbers of respondents: | BB27: Use of drinking water sources | BC27: NATIONAL wealth index quintile | BH27: URBAN wealth index quintile | BM27: RURAL wealth index quintile | BR27: SUB-REGIONS:
A28: Percentage based on weighted population | C28: Poorest | D28: Poor | E28: Middle | F28: Rich | G28: Richest | H28: Poorest | I28: Poor | J28: Middle | K28: Rich | L28: Richest | M28: Poorest | N28: Poor | O28: Middle | P28: Rich | Q28: Richest | R28: Aire Metropolitaine/ Reste-Ouest | S28: Artibonite | T28: Camps | U28: Centre | V28: Grand'Anse | W28: Nippes | X28: Nord | Y28: Nord-Est | Z28: Nord-Ouest | AA28: Sud | AB28: Sud-Est | BA28: Water data, raw numbers (weighted) | BC28: Poorest | BD28: Poor | BE28: Middle | BF28: Rich | BG28: Richest | BH28: Poorest | BI28: Poor | BJ28: Middle | BK28: Rich | BL28: Richest | BM28: Poorest | BN28: Poor | BO28: Middle | BP28: Rich | BQ28: Richest | BR28: Aire Metropolitaine/ Reste-Ouest | BS28: Artibonite | BT28: Camps | BU28: Centre | BV28: Grand'Anse | BW28: Nippes | BX28: Nord | BY28: Nord-Est | BZ28: Nord-Ouest | CA28: Sud | CB28: Sud-Est
A29: Piped water | B29: Yes | C29: 16.10480223 | D29: 23.18509864 | E29: 41.86022178 | F29: 44.04172023 | G29: 25.04520151 | H29: 48.05836384 | I29: 47.90140629 | J29: 38.25210626 | K29: 29.16505055 | L29: 18.21414132 | M29: 15.1994947 | N29: 17.50131644 | O29: 21.43603104 | P29: 34.99942726 | Q29: 40.10370421 | R29: 33.55513532 | S29: 21.52048593 | T29: 37.08508226 | U29: 34.26765401 | V29: 17.50735256 | W29: 45.24445392 | X29: 27.60229696 | Y29: 25.10138183 | Z29: 24.4750352 | AA29: 33.26111844 | AB29: 29.61368958 | BA29: Piped water | BB29: Yes | BC29: N/A | BD29: N/A | BE29: N/A | BF29: N/A | BG29: N/A | BH29: N/A | BI29: N/A | BJ29: N/A | BK29: N/A | BL29: N/A | BM29: N/A | BN29: N/A | BO29: N/A | BP29: N/A | BQ29: N/A | BR29: N/A | BS29: N/A | BT29: N/A | BU29: N/A | BV29: N/A | BW29: N/A | BX29: N/A | BY29: N/A | BZ29: N/A | CA29: N/A | CB29: N/A
